Workbook

Sheet Summary
D2: Debt Sizing | K2: Risk Analysis
D5: Project IRR | G5: ='Structuring Model'!H22 -> 0.07608135045 | K5: Project IRR | M5: ='Cash Flow Waterfall'!H21 -> 0.07608135045 | O5: Cash Sweep | Q5: ='InputC - Risk'!F14 -> 0
D6: Equity IRR | G6: ='Structuring Model'!H206 -> 0.09594852626 | K6: Equity IRR | M6: ='Cash Flow Waterfall'!H66 -> 0.09594859183 | O6: Cash Trap Flag | Q6: ='InputC - Risk'!F16 -> FALSE
D7: Debt to Capital | G7: ='Structuring Model'!I45 -> 0.799998967 | K7: Debt to Capital | M7: =G7 -> 0.799998967 | O7: Cash Trap Covenant | Q7: ='InputC - Risk'!F17 -> 1.2
D8: DSCR | G8: ='Structuring Model'!H207 -> 1.215503608 | K8: DSCR (Min) | M8: ='Cash Flow Waterfall'!H73 -> 1.215468122
D9: Total Debt | G9: ='Structuring Model'!H45 -> 54126.52306 | K9: LLCR | M9: ='Cash Flow Waterfall'!H85 -> 1.215503619
D10: Sizing Method | E10: =UDFInputs!N320 -> Debt/Cap | G10: ='InputC - Structure'!G29 -> 2 | K10: PLCR | M10: ='Cash Flow Waterfall'!H78 -> 1.427548132
D11: Sculpting Method | E11: ='InputC - Structure'!F26 -> Flat DSCR | G11: ='InputC - Structure'!G26 -> 2 | K11: Cash Sensitivity | M11: ='InputC - Risk'!F12 -> 1
D12: Int Rate | E12: ='InputC - Structure'!E52 -> Base Interest Rates | G12: ='InputC - Structure'!G52 -> 1 | K12: Volatility | M12: ='InputC - Risk'!F22 -> 0
D13: Debt Tenor | E13: Semi-annual | G13: ='InputC - Structure'!$I$41 -> 35 | K13: Mean Reversion | M13: ='InputC - Risk'!F24 -> 0
D15: Seasonality | E15: ='InputC - Structure'!F19 -> Flat Seasonal Factor | G15: ='InputC - Structure'!G19 -> 2
D16: Base Case Cash | E16: ='InputC - Structure'!$F$13 -> Base Case | G16: ='InputC - Structure'!G13 -> 1
K19: Same Diagram with Actual Cases -- eg P50 Base Case

Sheet InputC - Structure
B2: Structuring Index Code | E2: =O2 -> 4 | O2: 4
G3: Applied | H3: C Index
G4: Debt/Cap | H4: =INDEX(J4:O4,$E$2) -> Debt/Cap | J4: P50 | K4: P90 | L4: P99 | M4: Debt/Cap | N4: Curved P50 | O4: Curved P90
B5: Dates and Cap Exp
C6: COD Date | E6: Dat | G6: 2024-01-01 | H6: =INDEX(J6:O6,$E$2) -> 2024-01-01 | J6: 2024-01-01 | K6: 2024-01-01 | L6: 2024-01-01 | M6: 2024-01-01 | N6: 2024-01-01 | O6: 2024-01-01
C8: Capital Expenditures | E8: Euro 000's | G8: 65000 | H8: =INDEX(J8:O8,$E$2) -> 65000 | I8: 50 | J8: 65000 | K8: 65000 | L8: 65000 | M8: 65000 | N8: 65000 | O8: 65000
C9: S-Cure Code | E9: Code | G9: 1 | H9: =INDEX(J9:O9,$E$2) -> 1 | J9: 1 | K9: 1 | L9: 1 | M9: 1 | N9: 1 | O9: 1
B11: Structuring - Operations
C13: Base Cash Flow Code | F13: =INDEX('InputS- Structure'!D18:D22,'InputC - Structure'!G13) -> Base Case | G13: 1 | H13: =INDEX(J13:O13,$E$2) -> 1 | J13: 1 | K13: 1 | L13: 1 | M13: 1 | N13: 1 | O13: 1
C15: Probability | E15: % | G15: 0.5 | H15: =INDEX(J15:O15,$E$2) -> 0.5 | J15: 0.5 | K15: 0.1 | L15: 0.01 | M15: 0.5 | N15: 0.5 | O15: 0.1
C16: P50 | E16: % | G16: 1 | H16: =INDEX(J16:O16,$E$2) -> 1 | J16: 1 | K16: 1 | L16: 1 | M16: 1 | N16: 1 | O16: 1
C17: Standard Deviation | E17: % of P50 | G17: 0.15 | H17: =INDEX(J17:O17,$E$2) -> 0.15 | J17: 0.15 | K17: 0.15 | L17: 0.15 | M17: 0.15 | N17: 0.15 | O17: 0.15
C18: Factor to Apply to Cash Flow | E18: % of P50 | G18: 1 | H18: =INDEX(J18:O18,$E$2) -> 1 | J18: =NORMINV(J15,J16,J17) -> 1 | K18: =NORMINV(K15,K16,K17) -> 0.8077672652 | L18: 0.6510478189 | M18: 1 | N18: 1 | O18: 0.8077672652
C19: Seasonality Code | E19: Code | F19: ='InputS- Structure'!D35 -> Flat Seasonal Factor | G19: 2 | H19: =INDEX(J19:O19,$E$2) -> 2 | J19: 2 | K19: 2 | L19: 2 | M19: 2 | N19: 2 | O19: 2
C20: Growth | G20: 0.02 | H20: =INDEX(J20:O20,$E$2) -> 0.02 | J20: 0.02 | K20: 0.02 | L20: 0.02 | M20: 0.02 | N20: 0.02 | O20: 0.02
B22: Structuring - Financing
C24: Debt Size
D25: Total Debt Gearing | E25: % | G25: 0.8 | H25: =INDEX(J25:O25,$E$2) -> 0.8 | J25: 0.8 | K25: 0.8 | L25: 0.8 | M25: 0.8 | N25: 0.8 | O25: 0.8
D26: Method | E26: Code | F26: =INDEX(H79:H81,G26) -> Flat DSCR | G26: 2 | H26: =INDEX(J26:O26,$E$2) -> 2 | J26: 2 | K26: 2 | L26: 2 | M26: 2 | N26: 3 | O26: 3
D28: Minimum DSCR | E28: x | G28: 1.25 | H28: =INDEX(J28:O28,$E$2) -> 1.25 | J28: 1.3 | K28: 1.2 | L28: 1 | M28: 1.25 | N28: 1.2 | O28: 1.2
D29: Debt Sizing Method | E29: Code | G29: 2 | H29: =INDEX(J29:O29,$E$2) -> 2 | J29: 3 | K29: 3 | L29: 3 | M29: 2 | N29: 2 | O29: 2
C31: Equity First | E31: Flag | G31: TRUE | H31: =INDEX(J31:O31,$E$2) -> TRUE | J31: TRUE | K31: TRUE | L31: TRUE | M31: TRUE | N31: TRUE | O31: TRUE
C32: Pro-Rata | E32: Flag | G32: FALSE | H32: =INDEX(J32:O32,$E$2) -> FALSE | J32: =NOT(J31) -> FALSE | K32: =NOT(K31) -> FALSE | L32: FALSE | M32: FALSE | N32: FALSE | O32: FALSE
C34: Start of Payment (1 is grace period)
D35: EIAF | E35: Period | G35: 1 | H35: =INDEX(J35:O35,$E$2) -> 1 | J35: 1 | K35: 1 | L35: 1 | M35: 1 | N35: 1 | O35: 1
D36: AFDB | E36: Period | G36: 1 | H36: =INDEX(J36:O36,$E$2) -> 1 | J36: 1 | K36: 1 | L36: 1 | M36: 1 | N36: 1 | O36: 1
D37: IFC | E37: Period | G37: 1 | H37: =INDEX(J37:O37,$E$2) -> 1 | J37: 1 | K37: 1 | L37: 1 | M37: 1 | N37: 1 | O37: 1
D38: GWF | E38: Period | G38: 1 | H38: =INDEX(J38:O38,$E$2) -> 1 | J38: 1 | K38: 1 | L38: 1 | M38: 1 | N38: 1 | O38: 1
C40: End of Payment
D41: EIAF | E41: Period | G41: =I41 -> 35 | H41: =INDEX(J41:O41,$E$2) -> 35 | I41: 35 | J41: 40 | K41: 35 | L41: 35 | M41: 35 | N41: 35 | O41: 35
D42: AFDB | E42: Period | G42: =I42 -> 40 | H42: =INDEX(J42:O42,$E$2) -> 40 | I42: 40 | J42: 40 | K42: 40 | L42: 40 | M42: 40 | N42: 40 | O42: 40
D43: IFC | E43: Period | G43: =I43 -> 35 | H43: =INDEX(J43:O43,$E$2) -> 35 | I43: 35 | J43: 40 | K43: 35 | L43: 35 | M43: 35 | N43: 35 | O43: 35
D44: GFW | E44: Period | G44: =I44 -> 37 | H44: =INDEX(J44:O44,$E$2) -> 37 | I44: 37 | J44: 40 | K44: 37 | L44: 37 | M44: 37 | N44: 37 | O44: 37
C46: Percent of Issue
D47: EIAF | E47: % | G47: 0.4 | H47: =INDEX(J47:O47,$E$2) -> 0.4 | J47: 0.2 | K47: 0.4 | L47: 0.4 | M47: 0.4 | N47: 0.4 | O47: 0.4
D48: AFDB | E48: % | G48: 0.3 | H48: =INDEX(J48:O48,$E$2) -> 0.3 | J48: 0.2 | K48: 0.3 | L48: 0.3 | M48: 0.3 | N48: 0.3 | O48: 0.3
D49: IFC | E49: % | G49: 0.1 | H49: =INDEX(J49:O49,$E$2) -> 0.1 | J49: 0.3 | K49: 0.1 | L49: 0.1 | M49: 0.1 | N49: 0.1 | O49: 0.1
D50: GFW | E50: % | G50: 0.2 | H50: =INDEX(J50:O50,$E$2) -> 0.2 | J50: 0.3 | K50: 0.2 | L50: 0.2 | M50: 0.2 | N50: 0.2 | O50: 0.2
C52: Interest Rate Code | E52: =CHOOSE(G52,'InputS- Structure'!C38,'InputS- Structure'!C44,'InputS- Structure'!C50,'InputS- Structure'!C56) -> Base Interest Rates | G52: 1 | H52: =INDEX(J52:O52,$E$2) -> 1 | J52: 1 | K52: 1 | L52: 1 | M52: 1 | N52: 1 | O52: 1
C54: Up-Front Fee
D55: EIAF | E55: % | G55: 0.01 | H55: =INDEX(J55:O55,$E$2) -> 0.01 | J55: 0.01 | K55: 0.01 | L55: 0.01 | M55: 0.01 | N55: 0.01 | O55: 0.01
D56: AFDB | E56: % | G56: 0.009 | H56: =INDEX(J56:O56,$E$2) -> 0.009 | J56: 0.009 | K56: 0.009 | L56: 0.009 | M56: 0.009 | N56: 0.009 | O56: 0.009
D57: IFC | E57: % | G57: 0.011 | H57: =INDEX(J57:O57,$E$2) -> 0.011 | J57: 0.011 | K57: 0.011 | L57: 0.011 | M57: 0.011 | N57: 0.011 | O57: 0.011
D58: GFW | E58: % | G58: 0.012 | H58: =INDEX(J58:O58,$E$2) -> 0.012 | J58: 0.012 | K58: 0.012 | L58: 0.012 | M58: 0.012 | N58: 0.012 | O58: 0.012
C60: Annual Commitment Fee
D61: EIAF | E61: % p.a. | G61: 0.007 | H61: =INDEX(J61:O61,$E$2) -> 0.007 | J61: 0.007 | K61: 0.007 | L61: 0.007 | M61: 0.007 | N61: 0.007 | O61: 0.007
D62: AFDB | E62: % p.a. | G62: 0.008 | H62: =INDEX(J62:O62,$E$2) -> 0.008 | J62: 0.008 | K62: 0.008 | L62: 0.008 | M62: 0.008 | N62: 0.008 | O62: 0.008
D63: IFC | E63: % p.a. | G63: 0.006 | H63: =INDEX(J63:O63,$E$2) -> 0.006 | J63: 0.006 | K63: 0.006 | L63: 0.006 | M63: 0.006 | N63: 0.006 | O63: 0.006
D64: GFW | E64: % p.a. | G64: 0.008 | H64: =INDEX(J64:O64,$E$2) -> 0.008 | J64: 0.008 | K64: 0.008 | L64: 0.008 | M64: 0.008 | N64: 0.008 | O64: 0.008
C66: DSRA
D67: Forward Periods for DSRA | E67: Period | G67: 1 | H67: =INDEX(J67:O67,$E$2) -> 1 | J67: 1 | K67: 1 | L67: 1 | M67: 1 | N67: 1 | O67: 1
D68: Cash DSRA | E68: Flag | G68: FALSE | H68: =INDEX(J68:O68,$E$2) -> FALSE | J68: FALSE | K68: FALSE | L68: FALSE | M68: FALSE | N68: FALSE | O68: FALSE
D69: LC DSRA | E69: Flag | G69: TRUE | H69: =INDEX(J69:O69,$E$2) -> TRUE | J69: =NOT(J68) -> TRUE | K69: =NOT(K68) -> TRUE | L69: TRUE | M69: TRUE | N69: TRUE | O69: TRUE
D70: LC Fees on DSR | E70: % p.p. | G70: 0.008 | H70: =INDEX(J70:O70,$E$2) -> 0.008 | J70: 0.008 | K70: 0.008 | L70: 0.008 | M70: 0.008 | N70: 0.008 | O70: 0.008
C77: UDF Code
G79: Minimum | H79: Minimum | K79: =TRANSPOSE(J4:U4) -> P50
G80: Flat DSCR | H80: Flat DSCR | K80: P90
G81: Changing DSCR | H81: Changing DSCR | K81: P99
K82: Debt/Cap
K83: Curved P50
K84: Curved P90
K85: 0
K86: 0
K87: 0
K88: 0
K89: 0
K90: 0

Sheet InputS- Structure
B4: Construction
C5: S-curve Code | E5: 1
F6: 0 | G6: 1 | H6: 2 | I6: 3 | J6: 4 | K6: 5 | L6: 6 | M6: 7 | N6: 8 | O6: 9 | P6: 10 | Q6: 11 | R6: 12 | S6: 13 | T6: 14 | U6: 15
D7: S-Curve Projected for Structuring | F7: 0 | G7: 0.3413086761 | H7: 0.09880368868 | I7: 0 | J7: 0.06586913522 | K7: 0 | L7: 0.1317382704 | M7: 0.1317382704 | N7: 0.1317382704 | O7: 0 | P7: 0 | Q7: 0 | R7: 0.06586913522 | S7: 0.03293455347 | T7: 0 | U7: 0
D8: All at End | F8: 0 | G8: 0 | H8: 0 | I8: 0 | J8: 0 | K8: 0 | L8: 0 | M8: 0 | N8: 0 | O8: 0 | P8: 0 | Q8: 0 | R8: 0 | S8: 0 | T8: 1 | U8: 0
B11: Operations
D12: Standard Deviation | F12: 0.08
D14: Model Period | G14: 0 | H14: 1 | I14: 2 | J14: 3 | K14: 4 | L14: 5 | M14: 6 | N14: 7 | O14: 8 | P14: 9 | Q14: 10 | R14: 11 | S14: 12 | T14: 13 | U14: 14 | V14: 15 | W14: 16 | X14: 17 | Y14: 18 | Z14: 19 | AA14: 20 | AB14: 21 | AC14: 22 | AD14: 23 | AE14: 24 | AF14: 25 | AG14: 26 | AH14: 27 | AI14: 28 | AJ14: 29 | AK14: 30 | AL14: 31 | AM14: 32 | AN14: 33 | AO14: 34 | AP14: 35 | AQ14: 36 | AR14: 37 | AS14: 38 | AT14: 39 | AU14: 40 | AV14: 41 | AW14: 42 | AX14: 43 | AY14: 44 | AZ14: 45 | BA14: 46 | BB14: 47 | BC14: 48 | BD14: 49 | BE14: 50 | BF14: 51 | BG14: 52 | BH14: 53 | BI14: 54 | BJ14: 55 | BK14: 56 | BL14: 57 | BM14: 58 | BN14: 59 | BO14: 60 | BP14: 61 | BQ14: 62 | BR14: 63 | BS14: 64 | BT14: 65 | BU14: 66 | BV14: 67 | BW14: 68 | BX14: 69 | BY14: 70 | BZ14: 71 | CA14: 72 | CB14: 73 | CC14: 74 | CD14: 75 | CE14: 76 | CF14: 77 | CG14: 78 | CH14: 79 | CI14: 80 | CJ14: 81 | CK14: 82 | CL14: 83 | CM14: 84 | CN14: 85 | CO14: 86 | CP14: 87 | CQ14: 88 | CR14: 89 | CS14: 90
D16: Code for Applied Cash Flow Pattern | E16: ='InputC - Structure'!G13 -> 1
G17: 0.8 | H17: =G17*1.2 -> 0.96 | I17: =H17*1.2 -> 1.152 | J17: 1.3824 | K17: =$J$17 -> 1.3824 | L17: =$J$17 -> 1.3824 | M17: 1.3824 | N17: 1.3824 | O17: 1.3824 | P17: 1.3824 | Q17: 1.3824 | R17: 1.3824 | S17: 1.3824 | T17: 1.3824 | U17: 1.3824 | V17: 1.3824 | W17: 1.3824 | X17: 1.3824 | Y17: 1.3824 | Z17: 1.3824 | AA17: 1.3824 | AB17: 1.3824 | AC17: 1.3824 | AD17: 1.3824 | AE17: 1.3824 | AF17: 1.3824 | AG17: 1.3824 | AH17: 1.3824 | AI17: 1.3824 | AJ17: 1.3824 | AK17: 1.3824 | AL17: 1.3824 | AM17: 1.3824 | AN17: 1.3824 | AO17: 1.3824 | AP17: 1.3824 | AQ17: 1.3824 | AR17: 1.3824 | AS17: 1.3824 | AT17: 1.3824 | AU17: 1.3824 | AV17: 1.3824 | AW17: 1.3824 | AX17: 1.3824 | AY17: 1.3824 | AZ17: 1.3824 | BA17: 1.3824 | BB17: 1.3824 | BC17: 1.3824 | BD17: 1.3824 | BE17: 1.3824 | BF17: 1.3824 | BG17: 1.3824 | BH17: 1.3824 | BI17: 1.3824 | BJ17: 1.3824 | BK17: 1.3824 | BL17: 1.3824 | BM17: 1.3824 | BN17: 1.3824 | BO17: 1.3824 | BP17: 1.3824 | BQ17: 1.3824 | BR17: 1.3824 | BS17: 1.3824 | BT17: 1.3824 | BU17: 1.3824 | BV17: 1.3824 | BW17: 1.3824 | BX17: =$J$17 -> 1.3824 | BY17: 1.3824 | BZ17: 1.3824 | CA17: 1.3824 | CB17: 1.3824 | CC17: 1.3824 | CD17: 1.3824 | CE17: 1.3824 | CF17: 1.3824 | CG17: 1.3824 | CH17: 1.3824 | CI17: 1.3824 | CJ17: 1.3824 | CK17: 1.3824 | CL17: 1.3824 | CM17: 1.3824 | CN17: 1.3824 | CO17: 1.3824 | CP17: 1.3824 | CQ17: 1.3824 | CR17: 1.3824 | CS17: 1.3824
D18: Base Case | G18: 0 | H18: 2909.617547 | I18: 2909.617547 | J18: 2989.367044 | K18: 2892.593285 | L18: 3000.021672 | M18: 2909.742019 | N18: 2996.994703 | O18: 2849.226766 | P18: 2931.232153 | Q18: 2839.356195 | R18: 2926.54476 | S18: 2839.109514 | T18: 2926.821182 | U18: 2839.492382 | V18: 2927.385937 | W18: 2840.339271 | X18: 2923.301915 | Y18: 2842.07159 | Z18: 2930.082711 | AA18: 2757.818267 | AB18: 2897.849112 | AC18: 2810.714068 | AD18: 2900.149132 | AE18: 2812.952322 | AF18: 2897.27911 | AG18: 2816.15025 | AH18: 2905.719984 | AI18: 2819.204207 | AJ18: 2909.536179 | AK18: 2823.435827 | AL18: 2914.113146 | AM18: 2828.845051 | AN18: 2839.492382 | AO18: 2927.385937 | AP18: 2840.339271 | AQ18: 2923.301915 | AR18: 2842.07159 | AS18: 2930.082711 | AT18: 2757.818267 | AU18: 2897.849112 | AV18: 2810.714068 | AW18: 2900.149132 | AX18: 2812.952322 | AY18: 2897.27911 | AZ18: 2816.15025 | BA18: 2905.719984 | BB18: 2819.204207 | BC18: 2909.536179 | BD18: 2823.435827 | BE18: 2914.113146 | BF18: 2828.845051 | BG18: 2828.845051 | BH18: 2828.845051 | BI18: 2828.845051 | BJ18: 2828.845051 | BK18: 2828.845051 | BL18: 2828.845051 | BM18: 2828.845051 | BN18: 2828.845051 | BO18: 2828.845051 | BP18: 0 | BQ18: 0 | BR18: 0 | BS18: 0 | BT18: 0 | BU18: 0 | BV18: 0 | BW18: 0 | BX18: 0 | BY18: 0 | BZ18: 0 | CA18: 0 | CB18: 0 | CC18: 0 | CD18: 0 | CE18: 0 | CF18: 0 | CG18: 0 | CH18: 0 | CI18: 0 | CJ18: 0 | CK18: 0 | CL18: 0 | CM18: 0 | CN18: 0 | CO18: 0 | CP18: 0 | CQ18: 0 | CR18: 0 | CS18: 0 | CT18: 0 | CU18: 0 | CV18: 0 | CW18: 0 | CX18: 0 | CY18: 0 | CZ18: 0 | DA18: 0 | DB18: 0 | DC18: 0 | DD18: 0 | DE18: 0 | DF18: 0 | DG18: 0 | DH18: 0 | DI18: 0 | DJ18: 0 | DK18: 0 | DL18: 0 | DM18: 0 | DN18: 0
D19: Early Growth Case | G19: 0 | H19: 2793.232845 | I19: 3351.879415 | J19: 4132.501002 | K19: 3998.720957 | L19: 4147.229959 | M19: 4022.427367 | N19: 4143.045478 | O19: 3938.771081 | P19: 4052.135328 | Q19: 3925.126004 | R19: 4045.655476 | S19: 3924.784991 | T19: 4046.037602 | U19: 3925.314268 | V19: 4046.818319 | W19: 3926.485009 | X19: 4041.172567 | Y19: 3928.879766 | Z19: 4050.54634 | AA19: 3812.407972 | AB19: 4005.986612 | AC19: 3885.531127 | AD19: 4009.166161 | AE19: 3888.625291 | AF19: 4005.198641 | AG19: 3893.046105 | AH19: 4016.867305 | AI19: 3897.267896 | AJ19: 4022.142814 | AK19: 3903.117688 | AL19: 4028.470013 | AM19: 3910.595398 | AN19: 3925.314268 | AO19: 4046.818319 | AP19: 3926.485009 | AQ19: 4041.172567 | AR19: 3928.879766 | AS19: 4050.54634 | AT19: 3812.407972 | AU19: 4005.986612 | AV19: 3885.531127 | AW19: 4009.166161 | AX19: 3888.625291 | AY19: 4005.198641 | AZ19: 3893.046105 | BA19: 4016.867305 | BB19: 3897.267896 | BC19: 4022.142814 | BD19: 3903.117688 | BE19: 4028.470013 | BF19: 3910.595398 | BG19: 3910.595398 | BH19: 3910.595398 | BI19: 3910.595398 | BJ19: 3910.595398 | BK19: 3910.595398 | BL19: 3910.595398 | BM19: 3910.595398 | BN19: 3910.595398 | BO19: 3910.595398 | BP19: 0 | BQ19: 0 | BR19: 0 | BS19: 0 | BT19: 0 | BU19: 0 | BV19: 0 | BW19: 0 | BX19: 0 | BY19: 0 | BZ19: 0 | CA19: 0 | CB19: 0 | CC19: 0 | CD19: 0 | CE19: 0 | CF19: 0 | CG19: 0 | CH19: 0 | CI19: 0 | CJ19: 0 | CK19: 0 | CL19: 0 | CM19: 0 | CN19: 0 | CO19: 0 | CP19: 0 | CQ19: 0 | CR19: 0 | CS19: 0 | CT19: 0 | CU19: 0 | CV19: 0 | CW19: 0 | CX19: 0 | CY19: 0 | CZ19: 0 | DA19: 0 | DB19: 0 | DC19: 0 | DD19: 0 | DE19: 0 | DF19: 0 | DG19: 0 | DH19: 0 | DI19: 0 | DJ19: 0 | DK19: 0 | DL19: 0 | DM19: 0 | DN19: 0
D20: Continual Growth Case | G20: 0 | H20: 2077.466929 | I20: 2119.016267 | J20: 2220.638156 | K20: 2191.725198 | L20: 2318.586436 | M20: 2293.789478 | N20: 2409.823403 | O20: 2336.826288 | P20: 2452.165634 | Q20: 2422.811551 | R20: 2547.153397 | S20: 2520.474141 | T20: 2650.308701 | U20: 2622.654927 | V20: 2757.913233 | W20: 2729.424005 | X20: 2865.329896 | Y20: 2841.424659 | Z20: 2988.004061 | AA20: 2868.581011 | AB20: 3074.520658 | AC20: 3041.714767 | AD20: 3201.270123 | AE20: 3167.120107 | AF20: 3327.305433 | AG20: 3298.817788 | AH20: 3471.813901 | AI20: 3435.811937 | AJ20: 3616.819062 | AK20: 3579.984235 | AL20: 3768.858 | AM20: 3731.751329 | AN20: 3820.712999 | AO20: 4017.75881 | AP20: 3976.255385 | AQ20: 4174.244605 | AR20: 4139.419189 | AS20: 4352.9577 | AT20: 4178.980866 | AU20: 4478.996045 | AV20: 4431.204056 | AW20: 4663.646081 | AX20: 4613.895957 | AY20: 4847.255728 | AZ20: 4805.75461 | BA20: 5057.777281 | BB20: 5005.329217 | BC20: 5269.022419 | BD20: 5215.361031 | BE20: 5490.514442 | BF20: 5436.457029 | BG20: 5545.186169 | BH20: 5656.089893 | BI20: 5769.211691 | BJ20: 5884.595924 | BK20: 6002.287843 | BL20: 6122.3336 | BM20: 6244.780272 | BN20: 6369.675877 | BO20: 6497.069395 | BP20: 0 | BQ20: 0 | BR20: 0 | BS20: 0 | BT20: 0 | BU20: 0 | BV20: 0 | BW20: 0 | BX20: 0 | BY20: 0 | BZ20: 0 | CA20: 0 | CB20: 0 | CC20: 0 | CD20: 0 | CE20: 0 | CF20: 0 | CG20: 0 | CH20: 0 | CI20: 0 | CJ20: 0 | CK20: 0 | CL20: 0 | CM20: 0 | CN20: 0 | CO20: 0 | CP20: 0 | CQ20: 0 | CR20: 0 | CS20: 0 | CT20: 0 | CU20: 0 | CV20: 0 | CW20: 0 | CX20: 0 | CY20: 0 | CZ20: 0 | DA20: 0 | DB20: 0 | DC20: 0 | DD20: 0 | DE20: 0 | DF20: 0 | DG20: 0 | DH20: 0 | DI20: 0 | DJ20: 0 | DK20: 0 | DL20: 0 | DM20: 0 | DN20: 0
D21: Higher Case - 20% | G21: 0 | H21: 3491.541057 | I21: 3491.541057 | J21: 3587.240453 | K21: 3471.111942 | L21: 3600.026006 | M21: 3491.690423 | N21: 3596.393644 | O21: 3419.072119 | P21: 3517.478584 | Q21: 3407.227434 | R21: 3511.853712 | S21: 3406.931416 | T21: 3512.185418 | U21: 3407.390858 | V21: 3512.863124 | W21: 3408.407126 | X21: 3507.962298 | Y21: 3410.485908 | Z21: 3516.099254 | AA21: 3309.38192 | AB21: 3477.418934 | AC21: 3372.856881 | AD21: 3480.178959 | AE21: 3375.542787 | AF21: 3476.734932 | AG21: 3379.3803 | AH21: 3486.86398 | AI21: 3383.045049 | AJ21: 3491.443415 | AK21: 3388.122993 | AL21: 3496.935776 | AM21: 3394.614061 | AN21: 3407.390858 | AO21: 3512.863124 | AP21: 3408.407126 | AQ21: 3507.962298 | AR21: 3410.485908 | AS21: 3516.099254 | AT21: 3309.38192 | AU21: 3477.418934 | AV21: 3372.856881 | AW21: 3480.178959 | AX21: 3375.542787 | AY21: 3476.734932 | AZ21: 3379.3803 | BA21: 3486.86398 | BB21: 3383.045049 | BC21: 3491.443415 | BD21: 3388.122993 | BE21: 3496.935776 | BF21: 3394.614061 | BG21: 3394.614061 | BH21: 3394.614061 | BI21: 3394.614061 | BJ21: 3394.614061 | BK21: 3394.614061 | BL21: 3394.614061 | BM21: 3394.614061 | BN21: 3394.614061 | BO21: 3394.614061 | BP21: 0 | BQ21: 0 | BR21: 0 | BS21: 0 | BT21: 0 | BU21: 0 | BV21: 0 | BW21: 0 | BX21: 0 | BY21: 0 | BZ21: 0 | CA21: 0 | CB21: 0 | CC21: 0 | CD21: 0 | CE21: 0 | CF21: 0 | CG21: 0 | CH21: 0 | CI21: 0 | CJ21: 0 | CK21: 0 | CL21: 0 | CM21: 0 | CN21: 0 | CO21: 0 | CP21: 0 | CQ21: 0 | CR21: 0 | CS21: 0 | CT21: 0 | CU21: 0 | CV21: 0 | CW21: 0 | CX21: 0 | CY21: 0 | CZ21: 0 | DA21: 0 | DB21: 0 | DC21: 0 | DD21: 0 | DE21: 0 | DF21: 0 | DG21: 0 | DH21: 0 | DI21: 0 | DJ21: 0 | DK21: 0 | DL21: 0 | DM21: 0 | DN21: 0
D22: Lower Case - 20% | G22: 0 | H22: 2327.694038 | I22: 2327.694038 | J22: 2391.493635 | K22: 2314.074628 | L22: 2400.017337 | M22: 2327.793615 | N22: 2397.595762 | O22: 2279.381413 | P22: 2344.985722 | Q22: 2271.484956 | R22: 2341.235808 | S22: 2271.287611 | T22: 2341.456945 | U22: 2271.593905 | V22: 2341.90875 | W22: 2272.271417 | X22: 2338.641532 | Y22: 2273.657272 | Z22: 2344.066169 | AA22: 2206.254614 | AB22: 2318.27929 | AC22: 2248.571254 | AD22: 2320.119306 | AE22: 2250.361858 | AF22: 2317.823288 | AG22: 2252.9202 | AH22: 2324.575987 | AI22: 2255.363366 | AJ22: 2327.628943 | AK22: 2258.748662 | AL22: 2331.290517 | AM22: 2263.07604 | AN22: 2271.593905 | AO22: 2341.90875 | AP22: 2272.271417 | AQ22: 2338.641532 | AR22: 2273.657272 | AS22: 2344.066169 | AT22: 2206.254614 | AU22: 2318.27929 | AV22: 2248.571254 | AW22: 2320.119306 | AX22: 2250.361858 | AY22: 2317.823288 | AZ22: 2252.9202 | BA22: 2324.575987 | BB22: 2255.363366 | BC22: 2327.628943 | BD22: 2258.748662 | BE22: 2331.290517 | BF22: 2263.07604 | BG22: 2263.07604 | BH22: 2263.07604 | BI22: 2263.07604 | BJ22: 2263.07604 | BK22: 2263.07604 | BL22: 2263.07604 | BM22: 2263.07604 | BN22: 2263.07604 | BO22: 2263.07604 | BP22: 0 | BQ22: 0 | BR22: 0 | BS22: 0 | BT22: 0 | BU22: 0 | BV22: 0 | BW22: 0 | BX22: 0 | BY22: 0 | BZ22: 0 | CA22: 0 | CB22: 0 | CC22: 0 | CD22: 0 | CE22: 0 | CF22: 0 | CG22: 0 | CH22: 0 | CI22: 0 | CJ22: 0 | CK22: 0 | CL22: 0 | CM22: 0 | CN22: 0 | CO22: 0 | CP22: 0 | CQ22: 0 | CR22: 0 | CS22: 0 | CT22: 0 | CU22: 0 | CV22: 0 | CW22: 0 | CX22: 0 | CY22: 0 | CZ22: 0 | DA22: 0 | DB22: 0 | DC22: 0 | DD22: 0 | DE22: 0 | DF22: 0 | DG22: 0 | DH22: 0 | DI22: 0 | DJ22: 0 | DK22: 0 | DL22: 0 | DM22: 0 | DN22: 0
D24: Cash Flow Applied | G24: =INDEX(G18:G22,$E$16) -> 0 | H24: =INDEX(H18:H22,$E$16) -> 2909.617547 | I24: =INDEX(I18:I22,$E$16) -> 2909.617547 | J24: =INDEX(J18:J22,$E$16) -> 2989.367044 | K24: =INDEX(K18:K22,$E$16) -> 2892.593285 | L24: =INDEX(L18:L22,$E$16) -> 3000.021672 | M24: =INDEX(M18:M22,$E$16) -> 2909.742019 | N24: =INDEX(N18:N22,$E$16) -> 2996.994703 | O24: =INDEX(O18:O22,$E$16) -> 2849.226766 | P24: =INDEX(P18:P22,$E$16) -> 2931.232153 | Q24: =INDEX(Q18:Q22,$E$16) -> 2839.356195 | R24: =INDEX(R18:R22,$E$16) -> 2926.54476 | S24: =INDEX(S18:S22,$E$16) -> 2839.109514 | T24: =INDEX(T18:T22,$E$16) -> 2926.821182 | U24: =INDEX(U18:U22,$E$16) -> 2839.492382 | V24: =INDEX(V18:V22,$E$16) -> 2927.385937 | W24: =INDEX(W18:W22,$E$16) -> 2840.339271 | X24: =INDEX(X18:X22,$E$16) -> 2923.301915 | Y24: =INDEX(Y18:Y22,$E$16) -> 2842.07159 | Z24: =INDEX(Z18:Z22,$E$16) -> 2930.082711 | AA24: =INDEX(AA18:AA22,$E$16) -> 2757.818267 | AB24: =INDEX(AB18:AB22,$E$16) -> 2897.849112 | AC24: =INDEX(AC18:AC22,$E$16) -> 2810.714068 | AD24: =INDEX(AD18:AD22,$E$16) -> 2900.149132 | AE24: =INDEX(AE18:AE22,$E$16) -> 2812.952322 | AF24: =INDEX(AF18:AF22,$E$16) -> 2897.27911 | AG24: =INDEX(AG18:AG22,$E$16) -> 2816.15025 | AH24: =INDEX(AH18:AH22,$E$16) -> 2905.719984 | AI24: =INDEX(AI18:AI22,$E$16) -> 2819.204207 | AJ24: =INDEX(AJ18:AJ22,$E$16) -> 2909.536179 | AK24: =INDEX(AK18:AK22,$E$16) -> 2823.435827 | AL24: =INDEX(AL18:AL22,$E$16) -> 2914.113146 | AM24: =INDEX(AM18:AM22,$E$16) -> 2828.845051 | AN24: =INDEX(AN18:AN22,$E$16) -> 2839.492382 | AO24: =INDEX(AO18:AO22,$E$16) -> 2927.385937 | AP24: =INDEX(AP18:AP22,$E$16) -> 2840.339271 | AQ24: =INDEX(AQ18:AQ22,$E$16) -> 2923.301915 | AR24: =INDEX(AR18:AR22,$E$16) -> 2842.07159 | AS24: =INDEX(AS18:AS22,$E$16) -> 2930.082711 | AT24: =INDEX(AT18:AT22,$E$16) -> 2757.818267 | AU24: =INDEX(AU18:AU22,$E$16) -> 2897.849112 | AV24: =INDEX(AV18:AV22,$E$16) -> 2810.714068 | AW24: =INDEX(AW18:AW22,$E$16) -> 2900.149132 | AX24: =INDEX(AX18:AX22,$E$16) -> 2812.952322 | AY24: =INDEX(AY18:AY22,$E$16) -> 2897.27911 | AZ24: =INDEX(AZ18:AZ22,$E$16) -> 2816.15025 | BA24: =INDEX(BA18:BA22,$E$16) -> 2905.719984 | BB24: =INDEX(BB18:BB22,$E$16) -> 2819.204207 | BC24: =INDEX(BC18:BC22,$E$16) -> 2909.536179 | BD24: =INDEX(BD18:BD22,$E$16) -> 2823.435827 | BE24: =INDEX(BE18:BE22,$E$16) -> 2914.113146 | BF24: =INDEX(BF18:BF22,$E$16) -> 2828.845051 | BG24: =INDEX(BG18:BG22,$E$16) -> 2828.845051 | BH24: =INDEX(BH18:BH22,$E$16) -> 2828.845051 | BI24: =INDEX(BI18:BI22,$E$16) -> 2828.845051 | BJ24: =INDEX(BJ18:BJ22,$E$16) -> 2828.845051 | BK24: =INDEX(BK18:BK22,$E$16) -> 2828.845051 | BL24: =INDEX(BL18:BL22,$E$16) -> 2828.845051 | BM24: =INDEX(BM18:BM22,$E$16) -> 2828.845051 | BN24: =INDEX(BN18:BN22,$E$16) -> 2828.845051 | BO24: =INDEX(BO18:BO22,$E$16) -> 2828.845051 | BP24: =INDEX(BP18:BP22,$E$16) -> 0 | BQ24: =INDEX(BQ18:BQ22,$E$16) -> 0 | BR24: =INDEX(BR18:BR22,$E$16) -> 0 | BS24: =INDEX(BS18:BS22,$E$16) -> 0 | BT24: =INDEX(BT18:BT22,$E$16) -> 0 | BU24: =INDEX(BU18:BU22,$E$16) -> 0 | BV24: =INDEX(BV18:BV22,$E$16) -> 0 | BW24: =INDEX(BW18:BW22,$E$16) -> 0 | BX24: =INDEX(BX18:BX22,$E$16) -> 0 | BY24: =INDEX(BY18:BY22,$E$16) -> 0 | BZ24: =INDEX(BZ18:BZ22,$E$16) -> 0 | CA24: =INDEX(CA18:CA22,$E$16) -> 0 | CB24: =INDEX(CB18:CB22,$E$16) -> 0 | CC24: =INDEX(CC18:CC22,$E$16) -> 0 | CD24: =INDEX(CD18:CD22,$E$16) -> 0 | CE24: =INDEX(CE18:CE22,$E$16) -> 0 | CF24: =INDEX(CF18:CF22,$E$16) -> 0 | CG24: =INDEX(CG18:CG22,$E$16) -> 0 | CH24: =INDEX(CH18:CH22,$E$16) -> 0 | CI24: =INDEX(CI18:CI22,$E$16) -> 0 | CJ24: =INDEX(CJ18:CJ22,$E$16) -> 0 | CK24: =INDEX(CK18:CK22,$E$16) -> 0 | CL24: =INDEX(CL18:CL22,$E$16) -> 0 | CM24: =INDEX(CM18:CM22,$E$16) -> 0 | CN24: =INDEX(CN18:CN22,$E$16) -> 0 | CO24: =INDEX(CO18:CO22,$E$16) -> 0 | CP24: =INDEX(CP18:CP22,$E$16) -> 0 | CQ24: =INDEX(CQ18:CQ22,$E$16) -> 0 | CR24: =INDEX(CR18:CR22,$E$16) -> 0 | CS24: =INDEX(CS18:CS22,$E$16) -> 0 | CT24: =INDEX(CT18:CT22,$E$16) -> 0 | CU24: =INDEX(CU18:CU22,$E$16) -> 0 | CV24: =INDEX(CV18:CV22,$E$16) -> 0 | CW24: =INDEX(CW18:CW22,$E$16) -> 0 | CX24: =INDEX(CX18:CX22,$E$16) -> 0 | CY24: =INDEX(CY18:CY22,$E$16) -> 0 | CZ24: =INDEX(CZ18:CZ22,$E$16) -> 0 | DA24: =INDEX(DA18:DA22,$E$16) -> 0 | DB24: =INDEX(DB18:DB22,$E$16) -> 0 | DC24: =INDEX(DC18:DC22,$E$16) -> 0 | DD24: =INDEX(DD18:DD22,$E$16) -> 0 | DE24: =INDEX(DE18:DE22,$E$16) -> 0 | DF24: =INDEX(DF18:DF22,$E$16) -> 0 | DG24: =INDEX(DG18:DG22,$E$16) -> 0 | DH24: =INDEX(DH18:DH22,$E$16) -> 0 | DI24: =INDEX(DI18:DI22,$E$16) -> 0 | DJ24: =INDEX(DJ18:DJ22,$E$16) -> 0 | DK24: =INDEX(DK18:DK22,$E$16) -> 0 | DL24: =INDEX(DL18:DL22,$E$16) -> 0 | DM24: =INDEX(DM18:DM22,$E$16) -> 0 | DN24: =INDEX(DN18:DN22,$E$16) -> 0
D27: CFADS - Applied after P Value | F27: ='InputC - Structure'!G15 -> 0.5 | H27: =IFERROR(_xlfn.NORM.INV($F$27,H24,H24*$F$12),0) -> 2909.617547 | I27: =IFERROR(_xlfn.NORM.INV($F$27,I24,I24*$F$12),0) -> 2909.617547 | J27: 2989.367044 | K27: 2892.593285 | L27: 3000.021672 | M27: 2909.742019 | N27: 2996.994703 | O27: 2849.226766 | P27: 2931.232153 | Q27: 2839.356195 | R27: 2926.54476 | S27: 2839.109514 | T27: 2926.821182 | U27: 2839.492382 | V27: 2927.385937 | W27: 2840.339271 | X27: 2923.301915 | Y27: 2842.07159 | Z27: 2930.082711 | AA27: 2757.818267 | AB27: 2897.849112 | AC27: 2810.714068 | AD27: 2900.149132 | AE27: 2812.952322 | AF27: 2897.27911 | AG27: 2816.15025 | AH27: 2905.719984 | AI27: 2819.204207 | AJ27: 2909.536179 | AK27: 2823.435827 | AL27: 2914.113146 | AM27: 2828.845051 | AN27: 2839.492382 | AO27: 2927.385937 | AP27: 2840.339271 | AQ27: 2923.301915 | AR27: 2842.07159 | AS27: 2930.082711 | AT27: 2757.818267 | AU27: 2897.849112 | AV27: 2810.714068 | AW27: 2900.149132 | AX27: 2812.952322 | AY27: 2897.27911 | AZ27: 2816.15025 | BA27: 2905.719984 | BB27: 2819.204207 | BC27: 2909.536179 | BD27: 2823.435827 | BE27: 2914.113146 | BF27: 2828.845051 | BG27: 2828.845051 | BH27: 2828.845051 | BI27: 2828.845051 | BJ27: 2828.845051 | BK27: 2828.845051 | BL27: 2828.845051 | BM27: 2828.845051 | BN27: 2828.845051 | BO27: 2828.845051 | BP27: 0 | BQ27: 0 | BR27: 0 | BS27: 0 | BT27: 0 | BU27: =IFERROR(_xlfn.NORM.INV($F$27,BU24,BU24*$F$12),0) -> 0 | BV27: 0 | BW27: 0 | BX27: 0 | BY27: 0 | BZ27: 0 | CA27: 0 | CB27: 0 | CC27: 0 | CD27: 0 | CE27: 0 | CF27: 0 | CG27: 0 | CH27: 0 | CI27: 0 | CJ27: 0 | CK27: 0 | CL27: 0 | CM27: 0 | CN27: 0 | CO27: 0 | CP27: 0 | CQ27: 0 | CR27: 0 | CS27: 0 | CT27: 0 | CU27: 0 | CV27: 0 | CW27: 0 | CX27: 0 | CY27: 0 | CZ27: 0 | DA27: 0 | DB27: 0 | DC27: 0 | DD27: 0 | DE27: 0 | DF27: 0 | DG27: 0 | DH27: 0 | DI27: 0 | DJ27: 0 | DK27: 0 | DL27: 0 | DM27: 0 | DN27: 0
D30: Seasonal Flag | E30: ='InputC - Structure'!G19 -> 2 | G30: =(MOD(G14,2)=0)*1 -> 1 | H30: 0 | I30: 1 | J30: 0 | K30: 1 | L30: 0 | M30: 1 | N30: 0 | O30: 1 | P30: 0 | Q30: 1 | R30: 0 | S30: 1 | T30: 0 | U30: 1 | V30: 0 | W30: 1 | X30: 0 | Y30: 1 | Z30: 0 | AA30: 1 | AB30: 0 | AC30: 1 | AD30: 0 | AE30: 1 | AF30: 0 | AG30: 1 | AH30: 0 | AI30: 1 | AJ30: 0 | AK30: 1 | AL30: 0 | AM30: =(MOD(AM14,2)=0)*1 -> 1 | AN30: 0 | AO30: 1 | AP30: 0 | AQ30: 1 | AR30: 0 | AS30: 1 | AT30: 0 | AU30: 1 | AV30: 0 | AW30: 1 | AX30: 0 | AY30: 1 | AZ30: 0 | BA30: 1 | BB30: 0 | BC30: 1 | BD30: 0 | BE30: 1 | BF30: 0 | BG30: 1 | BH30: 0 | BI30: 1 | BJ30: 0 | BK30: 1 | BL30: 0 | BM30: 1 | BN30: 0 | BO30: 1 | BP30: 0 | BQ30: 1 | BR30: 0 | BS30: =(MOD(BS14,2)=0)*1 -> 1 | BT30: 0 | BU30: 1 | BV30: 0 | BW30: 1 | BX30: 0 | BY30: 1 | BZ30: 0 | CA30: 1 | CB30: 0 | CC30: 1 | CD30: 0 | CE30: 1 | CF30: 0 | CG30: 1 | CH30: 0 | CI30: 1 | CJ30: 0 | CK30: 1 | CL30: 0 | CM30: 1 | CN30: 0 | CO30: 1 | CP30: 0 | CQ30: 1 | CR30: 0 | CS30: 1 | CT30: 1 | CU30: 1 | CV30: 1 | CW30: 1 | CX30: 1 | CY30: =(MOD(CY14,2)=0)*1 -> 1 | CZ30: 1 | DA30: 1 | DB30: 1 | DC30: 1 | DD30: 1 | DE30: 1 | DF30: 1 | DG30: 1 | DH30: 1 | DI30: 1 | DJ30: 1 | DK30: 1 | DL30: 1 | DM30: 1 | DN30: 1
D31: Varying Seasonal Factor | E31: 0.8 | F31: 1 | G31: =IF(G30,$E$31,(1-$E$31+1)) -> 0.8 | H31: 1.2 | I31: 0.8 | J31: 1.2 | K31: 0.8 | L31: 1.2 | M31: 0.8 | N31: 1.2 | O31: 0.8 | P31: 1.2 | Q31: 0.8 | R31: 1.2 | S31: 0.8 | T31: 1.2 | U31: 0.8 | V31: =IF(V30,$E$31,(1-$E$31+1)) -> 1.2 | W31: 0.8 | X31: 1.2 | Y31: 0.8 | Z31: 1.2 | AA31: 0.8 | AB31: 1.2 | AC31: 0.8 | AD31: 1.2 | AE31: 0.8 | AF31: 1.2 | AG31: 0.8 | AH31: 1.2 | AI31: 0.8 | AJ31: 1.2 | AK31: 0.8 | AL31: 1.2 | AM31: 0.8 | AN31: 1.2 | AO31: 0.8 | AP31: 1.2 | AQ31: 0.8 | AR31: 1.2 | AS31: 0.8 | AT31: 1.2 | AU31: 0.8 | AV31: 1.2 | AW31: 0.8 | AX31: 1.2 | AY31: 0.8 | AZ31: 1.2 | BA31: 0.8 | BB31: 1.2 | BC31: 0.8 | BD31: 1.2 | BE31: 0.8 | BF31: 1.2 | BG31: 0.8 | BH31: 1.2 | BI31: 0.8 | BJ31: 1.2 | BK31: 0.8 | BL31: 1.2 | BM31: 0.8 | BN31: 1.2 | BO31: 0.8 | BP31: 1.2 | BQ31: 0.8 | BR31: 1.2 | BS31: 0.8 | BT31: 1.2 | BU31: 0.8 | BV31: 1.2 | BW31: 0.8 | BX31: 1.2 | BY31: 0.8 | BZ31: 1.2 | CA31: 0.8 | CB31: 1.2 | CC31: 0.8 | CD31: 1.2 | CE31: 0.8 | CF31: 1.2 | CG31: 0.8 | CH31: =IF(CH30,$E$31,(1-$E$31+1)) -> 1.2 | CI31: 0.8 | CJ31: 1.2 | CK31: 0.8 | CL31: 1.2 | CM31: 0.8 | CN31: 1.2 | CO31: 0.8 | CP31: 1.2 | CQ31: 0.8 | CR31: 1.2 | CS31: 0.8 | CT31: 0.8 | CU31: 0.8 | CV31: 0.8 | CW31: 0.8 | CX31: 0.8 | CY31: 0.8 | CZ31: 0.8 | DA31: 0.8 | DB31: 0.8 | DC31: 0.8 | DD31: 0.8 | DE31: 0.8 | DF31: 0.8 | DG31: 0.8 | DH31: 0.8 | DI31: 0.8 | DJ31: 0.8 | DK31: 0.8 | DL31: 0.8 | DM31: 0.8 | DN31: 0.8
D32: Flat Seasonal Factor | F32: 2 | G32: 1 | H32: 1 | I32: 1 | J32: 1 | K32: 1 | L32: 1 | M32: 1 | N32: 1 | O32: 1 | P32: 1 | Q32: 1 | R32: 1 | S32: 1 | T32: 1 | U32: 1 | V32: 1 | W32: 1 | X32: 1 | Y32: 1 | Z32: 1 | AA32: 1 | AB32: 1 | AC32: 1 | AD32: 1 | AE32: 1 | AF32: 1 | AG32: 1 | AH32: 1 | AI32: 1 | AJ32: 1 | AK32: 1 | AL32: 1 | AM32: 1 | AN32: 1 | AO32: 1 | AP32: 1 | AQ32: 1 | AR32: 1 | AS32: 1 | AT32: 1 | AU32: 1 | AV32: 1 | AW32: 1 | AX32: 1 | AY32: 1 | AZ32: 1 | BA32: 1 | BB32: 1 | BC32: 1 | BD32: 1 | BE32: 1 | BF32: 1 | BG32: 1 | BH32: 1 | BI32: 1 | BJ32: 1 | BK32: 1 | BL32: 1 | BM32: 1 | BN32: 1 | BO32: 1 | BP32: 1 | BQ32: 1 | BR32: 1 | BS32: 1 | BT32: 1 | BU32: 1 | BV32: 1 | BW32: 1 | BX32: 1 | BY32: 1 | BZ32: 1 | CA32: 1 | CB32: 1 | CC32: 1 | CD32: 1 | CE32: 1 | CF32: 1 | CG32: 1 | CH32: 1 | CI32: 1 | CJ32: 1 | CK32: 1 | CL32: 1 | CM32: 1 | CN32: 1 | CO32: 1 | CP32: 1 | CQ32: 1 | CR32: 1 | CS32: 1 | CT32: 1 | CU32: 1 | CV32: 1 | CW32: 1 | CX32: 1 | CY32: 1 | CZ32: 1 | DA32: 1 | DB32: 1 | DC32: 1 | DD32: 1 | DE32: 1 | DF32: 1 | DG32: 1 | DH32: 1 | DI32: 1 | DJ32: 1 | DK32: 1 | DL32: 1 | DM32: 1 | DN32: 1
D33: High Seasonal Factor | E33: 0.6 | F33: 3 | G33: =IF(G30,$E$33,(1-$E$33+1)) -> 0.6 | H33: =IF(H30,$E$33,(1-$E$33+1)) -> 1.4 | I33: 0.6 | J33: 1.4 | K33: 0.6 | L33: 1.4 | M33: 0.6 | N33: 1.4 | O33: 0.6 | P33: 1.4 | Q33: 0.6 | R33: 1.4 | S33: 0.6 | T33: 1.4 | U33: 0.6 | V33: 1.4 | W33: 0.6 | X33: 1.4 | Y33: 0.6 | Z33: 1.4 | AA33: 0.6 | AB33: 1.4 | AC33: 0.6 | AD33: 1.4 | AE33: 0.6 | AF33: 1.4 | AG33: 0.6 | AH33: 1.4 | AI33: 0.6 | AJ33: 1.4 | AK33: 0.6 | AL33: 1.4 | AM33: 0.6 | AN33: 1.4 | AO33: 0.6 | AP33: 1.4 | AQ33: 0.6 | AR33: 1.4 | AS33: 0.6 | AT33: 1.4 | AU33: 0.6 | AV33: 1.4 | AW33: 0.6 | AX33: 1.4 | AY33: 0.6 | AZ33: 1.4 | BA33: 0.6 | BB33: 1.4 | BC33: 0.6 | BD33: 1.4 | BE33: 0.6 | BF33: 1.4 | BG33: 0.6 | BH33: 1.4 | BI33: 0.6 | BJ33: 1.4 | BK33: 0.6 | BL33: 1.4 | BM33: 0.6 | BN33: 1.4 | BO33: 0.6 | BP33: 1.4 | BQ33: 0.6 | BR33: 1.4 | BS33: 0.6 | BT33: =IF(BT30,$E$33,(1-$E$33+1)) -> 1.4 | BU33: 0.6 | BV33: 1.4 | BW33: 0.6 | BX33: 1.4 | BY33: 0.6 | BZ33: 1.4 | CA33: 0.6 | CB33: 1.4 | CC33: 0.6 | CD33: 1.4 | CE33: 0.6 | CF33: 1.4 | CG33: 0.6 | CH33: 1.4 | CI33: 0.6 | CJ33: 1.4 | CK33: 0.6 | CL33: 1.4 | CM33: 0.6 | CN33: 1.4 | CO33: 0.6 | CP33: 1.4 | CQ33: 0.6 | CR33: 1.4 | CS33: 0.6 | CT33: 0.6 | CU33: 0.6 | CV33: 0.6 | CW33: 0.6 | CX33: 0.6 | CY33: 0.6 | CZ33: 0.6 | DA33: 0.6 | DB33: 0.6 | DC33: 0.6 | DD33: 0.6 | DE33: 0.6 | DF33: 0.6 | DG33: 0.6 | DH33: 0.6 | DI33: 0.6 | DJ33: 0.6 | DK33: 0.6 | DL33: 0.6 | DM33: 0.6 | DN33: 0.6
D35: =INDEX(D31:D33,$E$30) -> Flat Seasonal Factor | F35: =INDEX(F31:F33,$E$30) -> 2 | G35: =INDEX(G31:G33,$E$30) -> 1 | H35: =INDEX(H31:H33,$E$30) -> 1 | I35: =INDEX(I31:I33,$E$30) -> 1 | J35: =INDEX(J31:J33,$E$30) -> 1 | K35: =INDEX(K31:K33,$E$30) -> 1 | L35: =INDEX(L31:L33,$E$30) -> 1 | M35: =INDEX(M31:M33,$E$30) -> 1 | N35: =INDEX(N31:N33,$E$30) -> 1 | O35: =INDEX(O31:O33,$E$30) -> 1 | P35: =INDEX(P31:P33,$E$30) -> 1 | Q35: =INDEX(Q31:Q33,$E$30) -> 1 | R35: =INDEX(R31:R33,$E$30) -> 1 | S35: =INDEX(S31:S33,$E$30) -> 1 | T35: =INDEX(T31:T33,$E$30) -> 1 | U35: =INDEX(U31:U33,$E$30) -> 1 | V35: =INDEX(V31:V33,$E$30) -> 1 | W35: =INDEX(W31:W33,$E$30) -> 1 | X35: =INDEX(X31:X33,$E$30) -> 1 | Y35: =INDEX(Y31:Y33,$E$30) -> 1 | Z35: =INDEX(Z31:Z33,$E$30) -> 1 | AA35: =INDEX(AA31:AA33,$E$30) -> 1 | AB35: =INDEX(AB31:AB33,$E$30) -> 1 | AC35: =INDEX(AC31:AC33,$E$30) -> 1 | AD35: =INDEX(AD31:AD33,$E$30) -> 1 | AE35: =INDEX(AE31:AE33,$E$30) -> 1 | AF35: =INDEX(AF31:AF33,$E$30) -> 1 | AG35: =INDEX(AG31:AG33,$E$30) -> 1 | AH35: =INDEX(AH31:AH33,$E$30) -> 1 | AI35: =INDEX(AI31:AI33,$E$30) -> 1 | AJ35: =INDEX(AJ31:AJ33,$E$30) -> 1 | AK35: =INDEX(AK31:AK33,$E$30) -> 1 | AL35: =INDEX(AL31:AL33,$E$30) -> 1 | AM35: =INDEX(AM31:AM33,$E$30) -> 1 | AN35: =INDEX(AN31:AN33,$E$30) -> 1 | AO35: =INDEX(AO31:AO33,$E$30) -> 1 | AP35: =INDEX(AP31:AP33,$E$30) -> 1 | AQ35: =INDEX(AQ31:AQ33,$E$30) -> 1 | AR35: =INDEX(AR31:AR33,$E$30) -> 1 | AS35: =INDEX(AS31:AS33,$E$30) -> 1 | AT35: =INDEX(AT31:AT33,$E$30) -> 1 | AU35: =INDEX(AU31:AU33,$E$30) -> 1 | AV35: =INDEX(AV31:AV33,$E$30) -> 1 | AW35: =INDEX(AW31:AW33,$E$30) -> 1 | AX35: =INDEX(AX31:AX33,$E$30) -> 1 | AY35: =INDEX(AY31:AY33,$E$30) -> 1 | AZ35: =INDEX(AZ31:AZ33,$E$30) -> 1 | BA35: =INDEX(BA31:BA33,$E$30) -> 1 | BB35: =INDEX(BB31:BB33,$E$30) -> 1 | BC35: =INDEX(BC31:BC33,$E$30) -> 1 | BD35: =INDEX(BD31:BD33,$E$30) -> 1 | BE35: =INDEX(BE31:BE33,$E$30) -> 1 | BF35: =INDEX(BF31:BF33,$E$30) -> 1 | BG35: =INDEX(BG31:BG33,$E$30) -> 1 | BH35: =INDEX(BH31:BH33,$E$30) -> 1 | BI35: =INDEX(BI31:BI33,$E$30) -> 1 | BJ35: =INDEX(BJ31:BJ33,$E$30) -> 1 | BK35: =INDEX(BK31:BK33,$E$30) -> 1 | BL35: =INDEX(BL31:BL33,$E$30) -> 1 | BM35: =INDEX(BM31:BM33,$E$30) -> 1 | BN35: =INDEX(BN31:BN33,$E$30) -> 1 | BO35: =INDEX(BO31:BO33,$E$30) -> 1 | BP35: =INDEX(BP31:BP33,$E$30) -> 1 | BQ35: =INDEX(BQ31:BQ33,$E$30) -> 1 | BR35: =INDEX(BR31:BR33,$E$30) -> 1 | BS35: =INDEX(BS31:BS33,$E$30) -> 1 | BT35: =INDEX(BT31:BT33,$E$30) -> 1 | BU35: =INDEX(BU31:BU33,$E$30) -> 1 | BV35: =INDEX(BV31:BV33,$E$30) -> 1 | BW35: =INDEX(BW31:BW33,$E$30) -> 1 | BX35: =INDEX(BX31:BX33,$E$30) -> 1 | BY35: =INDEX(BY31:BY33,$E$30) -> 1 | BZ35: =INDEX(BZ31:BZ33,$E$30) -> 1 | CA35: =INDEX(CA31:CA33,$E$30) -> 1 | CB35: =INDEX(CB31:CB33,$E$30) -> 1 | CC35: =INDEX(CC31:CC33,$E$30) -> 1 | CD35: =INDEX(CD31:CD33,$E$30) -> 1 | CE35: =INDEX(CE31:CE33,$E$30) -> 1 | CF35: =INDEX(CF31:CF33,$E$30) -> 1 | CG35: =INDEX(CG31:CG33,$E$30) -> 1 | CH35: =INDEX(CH31:CH33,$E$30) -> 1 | CI35: =INDEX(CI31:CI33,$E$30) -> 1 | CJ35: =INDEX(CJ31:CJ33,$E$30) -> 1 | CK35: =INDEX(CK31:CK33,$E$30) -> 1 | CL35: =INDEX(CL31:CL33,$E$30) -> 1 | CM35: =INDEX(CM31:CM33,$E$30) -> 1 | CN35: =INDEX(CN31:CN33,$E$30) -> 1 | CO35: =INDEX(CO31:CO33,$E$30) -> 1 | CP35: =INDEX(CP31:CP33,$E$30) -> 1 | CQ35: =INDEX(CQ31:CQ33,$E$30) -> 1 | CR35: =INDEX(CR31:CR33,$E$30) -> 1 | CS35: =INDEX(CS31:CS33,$E$30) -> 1 | CT35: =INDEX(CT31:CT33,$E$30) -> 1 | CU35: =INDEX(CU31:CU33,$E$30) -> 1 | CV35: =INDEX(CV31:CV33,$E$30) -> 1 | CW35: =INDEX(CW31:CW33,$E$30) -> 1 | CX35: =INDEX(CX31:CX33,$E$30) -> 1 | CY35: =INDEX(CY31:CY33,$E$30) -> 1 | CZ35: =INDEX(CZ31:CZ33,$E$30) -> 1 | DA35: =INDEX(DA31:DA33,$E$30) -> 1 | DB35: =INDEX(DB31:DB33,$E$30) -> 1 | DC35: =INDEX(DC31:DC33,$E$30) -> 1 | DD35: =INDEX(DD31:DD33,$E$30) -> 1 | DE35: =INDEX(DE31:DE33,$E$30) -> 1 | DF35: =INDEX(DF31:DF33,$E$30) -> 1 | DG35: =INDEX(DG31:DG33,$E$30) -> 1 | DH35: =INDEX(DH31:DH33,$E$30) -> 1 | DI35: =INDEX(DI31:DI33,$E$30) -> 1 | DJ35: =INDEX(DJ31:DJ33,$E$30) -> 1 | DK35: =INDEX(DK31:DK33,$E$30) -> 1 | DL35: =INDEX(DL31:DL33,$E$30) -> 1 | DM35: =INDEX(DM31:DM33,$E$30) -> 1 | DN35: =INDEX(DN31:DN33,$E$30) -> 1
B37: Financing
C38: Base Interest Rates | E38: 1 | G38: =E38=$E$56 -> TRUE | H38: =F38=$E$56 -> FALSE | I38: FALSE | J38: FALSE | K38: FALSE | L38: FALSE | M38: FALSE | N38: FALSE | O38: FALSE | P38: FALSE | Q38: FALSE | R38: FALSE | S38: FALSE | T38: FALSE | U38: FALSE | V38: FALSE | W38: FALSE | X38: FALSE | Y38: FALSE | Z38: FALSE | AA38: FALSE | AB38: FALSE | AC38: FALSE | AD38: FALSE | AE38: FALSE | AF38: FALSE | AG38: FALSE | AH38: FALSE | AI38: FALSE | AJ38: FALSE | AK38: FALSE | AL38: FALSE | AM38: FALSE | AN38: FALSE | AO38: FALSE | AP38: FALSE | AQ38: FALSE | AR38: FALSE | AS38: FALSE | AT38: FALSE | AU38: FALSE | AV38: FALSE | AW38: FALSE | AX38: FALSE | AY38: FALSE | AZ38: FALSE | BA38: FALSE | BB38: FALSE | BC38: FALSE | BD38: FALSE | BE38: FALSE | BF38: FALSE | BG38: FALSE | BH38: FALSE | BI38: FALSE | BJ38: FALSE | BK38: FALSE | BL38: FALSE | BM38: FALSE | BN38: FALSE | BO38: FALSE | BP38: FALSE | BQ38: FALSE | BR38: FALSE | BS38: FALSE | BT38: =BR38=$E$56 -> FALSE | BU38: FALSE | BV38: FALSE | BW38: FALSE | BX38: FALSE | BY38: FALSE | BZ38: FALSE | CA38: FALSE | CB38: FALSE | CC38: FALSE | CD38: FALSE | CE38: FALSE | CF38: FALSE | CG38: FALSE | CH38: FALSE | CI38: FALSE | CJ38: FALSE | CK38: FALSE | CL38: FALSE | CM38: FALSE | CN38: FALSE | CO38: FALSE | CP38: FALSE | CQ38: FALSE | CR38: FALSE | CS38: FALSE | CT38: FALSE | CU38: FALSE | CV38: FALSE | CW38: FALSE | CX38: FALSE | CY38: FALSE | CZ38: FALSE | DA38: FALSE | DB38: FALSE | DC38: FALSE | DD38: FALSE | DE38: FALSE | DF38: FALSE | DG38: FALSE | DH38: FALSE | DI38: FALSE | DJ38: FALSE | DK38: FALSE | DL38: FALSE | DM38: FALSE | DN38: FALSE
D39: EAIF & Proparco Periodic Interest Rate | G39: 0.07685467633 | H39: 0.07685467633 | I39: 0.07546798455 | J39: 0.07678515389 | K39: 0.07559879503 | L39: 0.0769050063 | M39: 0.07570345463 | N39: 0.07701127852 | O39: 0.07622696412 | P39: 0.07707128217 | Q39: 0.07582114156 | R39: 0.07717054996 | S39: 0.07600448369 | T39: 0.07737666123 | U39: 0.07622728912 | V39: 0.07749060701 | W39: 0.07664820251 | X39: 0.07749049045 | Y39: 0.07622705854 | Z39: 0.07749049045 | AA39: 0.07622705854 | AB39: 0.07749049045 | AC39: 0.07622705854 | AD39: 0.07749049045 | AE39: 0.07664820251 | AF39: 0.07749049045 | AG39: 0.07622705854 | AH39: 0.07749049045 | AI39: 0.07622705854 | AJ39: 0.07749049045 | AK39: 0.07622705854 | AL39: 0.07749049045 | AM39: 0.07749049045 | AN39: 0.07749049045 | AO39: 0.07749049045 | AP39: 0.07749049045 | AQ39: 0.07749049045 | AR39: 0.07749049045 | AS39: 0.07749049045 | AT39: 0.07749049045 | AU39: 0.07749049045 | AV39: 0.07749049045 | AW39: 0.07749049045 | AX39: 0.07749049045 | AY39: 0.07749049045 | AZ39: 0.07749049045 | BA39: 0.07749049045 | BB39: 0.07749049045 | BC39: 0.07749049045 | BD39: 0.07749049045 | BE39: 0.07749049045 | BF39: 0.07749049045 | BG39: 0.07749049045 | BH39: 0.07749049045 | BI39: 0.07749049045 | BJ39: 0.07749049045 | BK39: 0.07749049045 | BL39: 0.07749049045 | BM39: 0.07749049045 | BN39: 0.07749049045 | BO39: 0.07749049045 | BP39: 0.07749049045 | BQ39: 0.07749049045 | BR39: 0.07749049045 | BS39: 0.07749049045 | BT39: 0.07749049045 | BU39: 0.07749049045 | BV39: 0.07749049045 | BW39: 0.07749049045 | BX39: 0.07749049045 | BY39: 0.07749049045 | BZ39: 0.07749049045 | CA39: 0.07749049045 | CB39: 0.07749049045 | CC39: 0.07749049045 | CD39: 0.07749049045 | CE39: 0.07749049045 | CF39: 0.07749049045 | CG39: 0.07749049045 | CH39: 0.07749049045 | CI39: 0.07749049045 | CJ39: 0.07749049045 | CK39: 0.07749049045 | CL39: 0.07749049045 | CM39: 0.07749049045 | CN39: 0.07749049045 | CO39: 0.07749049045 | CP39: 0.07749049045 | CQ39: 0.07749049045 | CR39: 0.07749049045 | CS39: 0.07749049045 | CT39: 0.07749049045 | CU39: 0.07749049045 | CV39: 0.07749049045 | CW39: 0.07749049045 | CX39: 0.07749049045 | CY39: 0.07749049045 | CZ39: 0.07749049045 | DA39: 0.07749049045 | DB39: 0.07749049045 | DC39: 0.07749049045 | DD39: 0.07749049045 | DE39: 0.07749049045 | DF39: 0.07749049045 | DG39: 0.07749049045 | DH39: 0.07749049045 | DI39: 0.07749049045 | DJ39: 0.07749049045 | DK39: 0.07749049045 | DL39: 0.07749049045 | DM39: 0 | DN39: 0.04
D40: AFDB Periodic Interest Rate | G40: 0.08200409566 | H40: 0.08200409566 | I40: 0.08349912078 | J40: 0.08200409566 | K40: 0.08342959834 | L40: 0.08213490615 | M40: 0.08354945075 | N40: 0.08223956574 | O40: 0.08365572296 | P40: 0.08279918634 | Q40: 0.08371572661 | R40: 0.08235725267 | S40: 0.08381499441 | T40: 0.0825405948 | U40: 0.08402110567 | V40: 0.08276340024 | W40: 0.08413505145 | X40: 0.08322042473 | Y40: 0.08413493489 | Z40: 0.08276316965 | AA40: 0.08413493489 | AB40: 0.08276316965 | AC40: 0.08413493489 | AD40: 0.08276316965 | AE40: 0.08413493489 | AF40: 0.08322042473 | AG40: 0.08413493489 | AH40: 0.08276316965 | AI40: 0.08413493489 | AJ40: 0.08276316965 | AK40: 0.08413493489 | AL40: 0.08276316965 | AM40: 0.08276316965 | AN40: 0.08276316965 | AO40: 0.08276316965 | AP40: 0.08276316965 | AQ40: 0.08276316965 | AR40: 0.08276316965 | AS40: 0.08276316965 | AT40: 0.08276316965 | AU40: 0.08276316965 | AV40: 0.08276316965 | AW40: 0.08276316965 | AX40: 0.08276316965 | AY40: 0.08276316965 | AZ40: 0.08276316965 | BA40: 0.08276316965 | BB40: 0.08276316965 | BC40: 0.08276316965 | BD40: 0.08276316965 | BE40: 0.08276316965 | BF40: 0.08276316965 | BG40: 0.08276316965 | BH40: 0.08276316965 | BI40: 0.08276316965 | BJ40: 0.08276316965 | BK40: 0.08276316965 | BL40: 0.08276316965 | BM40: 0.08276316965 | BN40: 0.08276316965 | BO40: 0.08276316965 | BP40: 0.08276316965 | BQ40: 0.08276316965 | BR40: 0.08276316965 | BS40: 0.08276316965 | BT40: 0.08276316965 | BU40: 0.08276316965 | BV40: 0.08276316965 | BW40: 0.08276316965 | BX40: 0.08276316965 | BY40: 0.08276316965 | BZ40: 0.08276316965 | CA40: 0.08276316965 | CB40: 0.08276316965 | CC40: 0.08276316965 | CD40: 0.08276316965 | CE40: 0.08276316965 | CF40: 0.08276316965 | CG40: 0.08276316965 | CH40: 0.08276316965 | CI40: 0.08276316965 | CJ40: 0.08276316965 | CK40: 0.08276316965 | CL40: 0.08276316965 | CM40: 0.08276316965 | CN40: 0.08276316965 | CO40: 0.08276316965 | CP40: 0.08276316965 | CQ40: 0.08276316965 | CR40: 0.08276316965 | CS40: 0.08276316965 | CT40: 0.08276316965 | CU40: 0.08276316965 | CV40: 0.08276316965 | CW40: 0.08276316965 | CX40: 0.08276316965 | CY40: 0.08276316965 | CZ40: 0.08276316965 | DA40: 0.08276316965 | DB40: 0.08276316965 | DC40: 0.08276316965 | DD40: 0.08276316965 | DE40: 0.08276316965 | DF40: 0.08276316965 | DG40: 0.08276316965 | DH40: 0.08276316965 | DI40: 0.08276316965 | DJ40: 0.08276316965 | DK40: 0.08276316965 | DL40: 0.08276316965 | DM40: 0 | DN40: 0.04
D41: GFW Interest Rate | G41: 0.02 | H41: 0.02 | I41: 0.02 | J41: 0.02 | K41: 0.02 | L41: 0.02 | M41: 0.02 | N41: 0.02 | O41: 0.02 | P41: 0.02 | Q41: 0.02 | R41: 0.02 | S41: 0.02 | T41: 0.02 | U41: 0.02 | V41: 0.02 | W41: 0.02 | X41: 0.02 | Y41: 0.02 | Z41: 0.02 | AA41: 0.02 | AB41: 0.02 | AC41: 0.02 | AD41: 0.02 | AE41: 0.02 | AF41: 0.02 | AG41: 0.02 | AH41: 0.02 | AI41: 0.02 | AJ41: 0.02 | AK41: 0.02 | AL41: 0.02 | AM41: 0.02 | AN41: 0.02 | AO41: 0.02 | AP41: 0.02 | AQ41: 0.02 | AR41: 0.02 | AS41: 0.02 | AT41: 0.02 | AU41: 0.02 | AV41: 0.02 | AW41: 0.02 | AX41: 0.02 | AY41: 0.02 | AZ41: 0.02 | BA41: 0.02 | BB41: 0.02 | BC41: 0.02 | BD41: 0.02 | BE41: 0.02 | BF41: 0.02 | BG41: 0.02 | BH41: 0.02 | BI41: 0.02 | BJ41: 0.02 | BK41: 0.02 | BL41: 0.02 | BM41: 0.02 | BN41: 0.02 | BO41: 0.02 | BP41: 0.02 | BQ41: 0.02 | BR41: 0.02 | BS41: 0.02 | BT41: 0.02 | BU41: 0.02 | BV41: 0.02 | BW41: 0.02 | BX41: 0.02 | BY41: 0.02 | BZ41: 0.02 | CA41: 0.02 | CB41: 0.02 | CC41: 0.02 | CD41: 0.02 | CE41: 0.02 | CF41: 0.02 | CG41: 0.02 | CH41: 0.02 | CI41: 0.02 | CJ41: 0.02 | CK41: 0.02 | CL41: 0.02 | CM41: 0.02 | CN41: 0.02 | CO41: 0.02 | CP41: 0.02 | CQ41: 0.02 | CR41: 0.02 | CS41: 0.02 | CT41: 0.02 | CU41: 0.02 | CV41: 0.02 | CW41: 0.02 | CX41: 0.02 | CY41: 0.02 | CZ41: 0.02 | DA41: 0.02 | DB41: 0.02 | DC41: 0.02 | DD41: 0.02 | DE41: 0.02 | DF41: 0.02 | DG41: 0.02 | DH41: 0.02 | DI41: 0.02 | DJ41: 0.02 | DK41: 0.02 | DL41: 0.02 | DM41: 0.02 | DN41: 0.08
D42: IFC Interest Rate | G42: 0.004 | H42: 0.004 | I42: 0.004 | J42: 0.004 | K42: 0.004 | L42: 0.004 | M42: 0.004 | N42: 0.004 | O42: 0.004 | P42: 0.004 | Q42: 0.004 | R42: 0.004 | S42: 0.004 | T42: 0.004 | U42: 0.004 | V42: 0.004 | W42: 0.004 | X42: 0.004 | Y42: 0.004 | Z42: 0.004 | AA42: 0.004 | AB42: 0.004 | AC42: 0.004 | AD42: 0.004 | AE42: 0.004 | AF42: 0.004 | AG42: 0.004 | AH42: 0.004 | AI42: 0.004 | AJ42: 0.004 | AK42: 0.004 | AL42: 0.004 | AM42: 0.004 | AN42: 0.004 | AO42: 0.004 | AP42: 0.004 | AQ42: 0.004 | AR42: 0.004 | AS42: 0.004 | AT42: 0.004 | AU42: 0.004 | AV42: 0.004 | AW42: 0.004 | AX42: 0.004 | AY42: 0.004 | AZ42: 0.004 | BA42: 0.004 | BB42: 0.004 | BC42: 0.004 | BD42: 0.004 | BE42: 0.004 | BF42: 0.004 | BG42: 0.004 | BH42: 0.004 | BI42: 0.004 | BJ42: 0.004 | BK42: 0.004 | BL42: 0.004 | BM42: 0.004 | BN42: 0.004 | BO42: 0.004 | BP42: 0.004 | BQ42: 0.004 | BR42: 0.004 | BS42: 0.004 | BT42: 0.004 | BU42: 0.004 | BV42: 0.004 | BW42: 0.004 | BX42: 0.004 | BY42: 0.004 | BZ42: 0.004 | CA42: 0.004 | CB42: 0.004 | CC42: 0.004 | CD42: 0.004 | CE42: 0.004 | CF42: 0.004 | CG42: 0.004 | CH42: 0.004 | CI42: 0.004 | CJ42: 0.004 | CK42: 0.004 | CL42: 0.004 | CM42: 0.004 | CN42: 0.004 | CO42: 0.004 | CP42: 0.004 | CQ42: 0.004 | CR42: 0.004 | CS42: 0.004 | CT42: 0.004 | CU42: 0.004 | CV42: 0.004 | CW42: 0.004 | CX42: 0.004 | CY42: 0.004 | CZ42: 0.004 | DA42: 0.004 | DB42: 0.004 | DC42: 0.004 | DD42: 0.004 | DE42: 0.004 | DF42: 0.004 | DG42: 0.004 | DH42: 0.004 | DI42: 0.004 | DJ42: 0.004 | DK42: 0.004 | DL42: 0.004 | DM42: 0.004 | DN42: 0.08
C44: Equal Flat | E44: 2
D45: EAIF & Proparco Periodic Interest Rate | G45: 0.04 | H45: 0.04 | I45: 0.04 | J45: 0.04 | K45: 0.04 | L45: 0.04 | M45: 0.04 | N45: 0.04 | O45: 0.04 | P45: 0.04 | Q45: 0.04 | R45: 0.04 | S45: 0.04 | T45: 0.04 | U45: 0.04 | V45: 0.04 | W45: 0.04 | X45: 0.04 | Y45: 0.04 | Z45: 0.04 | AA45: 0.04 | AB45: 0.04 | AC45: 0.04 | AD45: 0.04 | AE45: 0.04 | AF45: 0.04 | AG45: 0.04 | AH45: 0.04 | AI45: 0.04 | AJ45: 0.04 | AK45: 0.04 | AL45: 0.04 | AM45: 0.04 | AN45: 0.04 | AO45: 0.04 | AP45: 0.04 | AQ45: 0.04 | AR45: 0.04 | AS45: 0.04 | AT45: 0.04 | AU45: 0.04 | AV45: 0.04 | AW45: 0.04 | AX45: 0.04 | AY45: 0.04 | AZ45: 0.04 | BA45: 0.04 | BB45: 0.04 | BC45: 0.04 | BD45: 0.04 | BE45: 0.04 | BF45: 0.04 | BG45: 0.04 | BH45: 0.04 | BI45: 0.04 | BJ45: 0.04 | BK45: 0.04 | BL45: 0.04 | BM45: 0.04 | BN45: 0.04 | BO45: 0.04 | BP45: 0.04 | BQ45: 0.04 | BR45: 0.04 | BS45: 0.04 | BT45: 0.04 | BU45: 0.04 | BV45: 0.04 | BW45: 0.04 | BX45: 0.04 | BY45: 0.04 | BZ45: 0.04 | CA45: 0.04 | CB45: 0.04 | CC45: 0.04 | CD45: 0.04 | CE45: 0.04 | CF45: 0.04 | CG45: 0.04 | CH45: 0.04 | CI45: 0.04 | CJ45: 0.04 | CK45: 0.04 | CL45: 0.04 | CM45: 0.04 | CN45: 0.04 | CO45: 0.04 | CP45: 0.04 | CQ45: 0.04 | CR45: 0.04 | CS45: 0.04 | CT45: 0.04 | CU45: 0.04 | CV45: 0.04 | CW45: 0.04 | CX45: 0.04 | CY45: 0.04 | CZ45: 0.04 | DA45: 0.04 | DB45: 0.04 | DC45: 0.04 | DD45: 0.04 | DE45: 0.04 | DF45: 0.04 | DG45: 0.04 | DH45: 0.04 | DI45: 0.04 | DJ45: 0.04 | DK45: 0.04 | DL45: 0.04 | DM45: 0.04 | DN45: 0.04
D46: AFDB Periodic Interest Rate | G46: 0.04 | H46: 0.04 | I46: 0.04 | J46: 0.04 | K46: 0.04 | L46: 0.04 | M46: 0.04 | N46: 0.04 | O46: 0.04 | P46: 0.04 | Q46: 0.04 | R46: 0.04 | S46: 0.04 | T46: 0.04 | U46: 0.04 | V46: 0.04 | W46: 0.04 | X46: 0.04 | Y46: 0.04 | Z46: 0.04 | AA46: 0.04 | AB46: 0.04 | AC46: 0.04 | AD46: 0.04 | AE46: 0.04 | AF46: 0.04 | AG46: 0.04 | AH46: 0.04 | AI46: 0.04 | AJ46: 0.04 | AK46: 0.04 | AL46: 0.04 | AM46: 0.04 | AN46: 0.04 | AO46: 0.04 | AP46: 0.04 | AQ46: 0.04 | AR46: 0.04 | AS46: 0.04 | AT46: 0.04 | AU46: 0.04 | AV46: 0.04 | AW46: 0.04 | AX46: 0.04 | AY46: 0.04 | AZ46: 0.04 | BA46: 0.04 | BB46: 0.04 | BC46: 0.04 | BD46: 0.04 | BE46: 0.04 | BF46: 0.04 | BG46: 0.04 | BH46: 0.04 | BI46: 0.04 | BJ46: 0.04 | BK46: 0.04 | BL46: 0.04 | BM46: 0.04 | BN46: 0.04 | BO46: 0.04 | BP46: 0.04 | BQ46: 0.04 | BR46: 0.04 | BS46: 0.04 | BT46: 0.04 | BU46: 0.04 | BV46: 0.04 | BW46: 0.04 | BX46: 0.04 | BY46: 0.04 | BZ46: 0.04 | CA46: 0.04 | CB46: 0.04 | CC46: 0.04 | CD46: 0.04 | CE46: 0.04 | CF46: 0.04 | CG46: 0.04 | CH46: 0.04 | CI46: 0.04 | CJ46: 0.04 | CK46: 0.04 | CL46: 0.04 | CM46: 0.04 | CN46: 0.04 | CO46: 0.04 | CP46: 0.04 | CQ46: 0.04 | CR46: 0.04 | CS46: 0.04 | CT46: 0.04 | CU46: 0.04 | CV46: 0.04 | CW46: 0.04 | CX46: 0.04 | CY46: 0.04 | CZ46: 0.04 | DA46: 0.04 | DB46: 0.04 | DC46: 0.04 | DD46: 0.04 | DE46: 0.04 | DF46: 0.04 | DG46: 0.04 | DH46: 0.04 | DI46: 0.04 | DJ46: 0.04 | DK46: 0.04 | DL46: 0.04 | DM46: 0.04 | DN46: 0.04
D47: GFW Interest Rate | G47: 0.04 | H47: 0.04 | I47: 0.04 | J47: 0.04 | K47: 0.04 | L47: 0.04 | M47: 0.04 | N47: 0.04 | O47: 0.04 | P47: 0.04 | Q47: 0.04 | R47: 0.04 | S47: 0.04 | T47: 0.04 | U47: 0.04 | V47: 0.04 | W47: 0.04 | X47: 0.04 | Y47: 0.04 | Z47: 0.04 | AA47: 0.04 | AB47: 0.04 | AC47: 0.04 | AD47: 0.04 | AE47: 0.04 | AF47: 0.04 | AG47: 0.04 | AH47: 0.04 | AI47: 0.04 | AJ47: 0.04 | AK47: 0.04 | AL47: 0.04 | AM47: 0.04 | AN47: 0.04 | AO47: 0.04 | AP47: 0.04 | AQ47: 0.04 | AR47: 0.04 | AS47: 0.04 | AT47: 0.04 | AU47: 0.04 | AV47: 0.04 | AW47: 0.04 | AX47: 0.04 | AY47: 0.04 | AZ47: 0.04 | BA47: 0.04 | BB47: 0.04 | BC47: 0.04 | BD47: 0.04 | BE47: 0.04 | BF47: 0.04 | BG47: 0.04 | BH47: 0.04 | BI47: 0.04 | BJ47: 0.04 | BK47: 0.04 | BL47: 0.04 | BM47: 0.04 | BN47: 0.04 | BO47: 0.04 | BP47: 0.04 | BQ47: 0.04 | BR47: 0.04 | BS47: 0.04 | BT47: 0.04 | BU47: 0.04 | BV47: 0.04 | BW47: 0.04 | BX47: 0.04 | BY47: 0.04 | BZ47: 0.04 | CA47: 0.04 | CB47: 0.04 | CC47: 0.04 | CD47: 0.04 | CE47: 0.04 | CF47: 0.04 | CG47: 0.04 | CH47: 0.04 | CI47: 0.04 | CJ47: 0.04 | CK47: 0.04 | CL47: 0.04 | CM47: 0.04 | CN47: 0.04 | CO47: 0.04 | CP47: 0.04 | CQ47: 0.04 | CR47: 0.04 | CS47: 0.04 | CT47: 0.04 | CU47: 0.04 | CV47: 0.04 | CW47: 0.04 | CX47: 0.04 | CY47: 0.04 | CZ47: 0.04 | DA47: 0.04 | DB47: 0.04 | DC47: 0.04 | DD47: 0.04 | DE47: 0.04 | DF47: 0.04 | DG47: 0.04 | DH47: 0.04 | DI47: 0.04 | DJ47: 0.04 | DK47: 0.04 | DL47: 0.04 | DM47: 0.04 | DN47: 0.04
D48: IFC Interest Rate | G48: 0.04 | H48: 0.04 | I48: 0.04 | J48: 0.04 | K48: 0.04 | L48: 0.04 | M48: 0.04 | N48: 0.04 | O48: 0.04 | P48: 0.04 | Q48: 0.04 | R48: 0.04 | S48: 0.04 | T48: 0.04 | U48: 0.04 | V48: 0.04 | W48: 0.04 | X48: 0.04 | Y48: 0.04 | Z48: 0.04 | AA48: 0.04 | AB48: 0.04 | AC48: 0.04 | AD48: 0.04 | AE48: 0.04 | AF48: 0.04 | AG48: 0.04 | AH48: 0.04 | AI48: 0.04 | AJ48: 0.04 | AK48: 0.04 | AL48: 0.04 | AM48: 0.04 | AN48: 0.04 | AO48: 0.04 | AP48: 0.04 | AQ48: 0.04 | AR48: 0.04 | AS48: 0.04 | AT48: 0.04 | AU48: 0.04 | AV48: 0.04 | AW48: 0.04 | AX48: 0.04 | AY48: 0.04 | AZ48: 0.04 | BA48: 0.04 | BB48: 0.04 | BC48: 0.04 | BD48: 0.04 | BE48: 0.04 | BF48: 0.04 | BG48: 0.04 | BH48: 0.04 | BI48: 0.04 | BJ48: 0.04 | BK48: 0.04 | BL48: 0.04 | BM48: 0.04 | BN48: 0.04 | BO48: 0.04 | BP48: 0.04 | BQ48: 0.04 | BR48: 0.04 | BS48: 0.04 | BT48: 0.04 | BU48: 0.04 | BV48: 0.04 | BW48: 0.04 | BX48: 0.04 | BY48: 0.04 | BZ48: 0.04 | CA48: 0.04 | CB48: 0.04 | CC48: 0.04 | CD48: 0.04 | CE48: 0.04 | CF48: 0.04 | CG48: 0.04 | CH48: 0.04 | CI48: 0.04 | CJ48: 0.04 | CK48: 0.04 | CL48: 0.04 | CM48: 0.04 | CN48: 0.04 | CO48: 0.04 | CP48: 0.04 | CQ48: 0.04 | CR48: 0.04 | CS48: 0.04 | CT48: 0.04 | CU48: 0.04 | CV48: 0.04 | CW48: 0.04 | CX48: 0.04 | CY48: 0.04 | CZ48: 0.04 | DA48: 0.04 | DB48: 0.04 | DC48: 0.04 | DD48: 0.04 | DE48: 0.04 | DF48: 0.04 | DG48: 0.04 | DH48: 0.04 | DI48: 0.04 | DJ48: 0.04 | DK48: 0.04 | DL48: 0.04 | DM48: 0.04 | DN48: 0.04
C50: Equal Increasing | E50: 3
D51: EAIF & Proparco Periodic Interest Rate | G51: 0.02 | H51: 0.02 | I51: =H51+0.05% -> 0.0205 | J51: =I51+0.05% -> 0.021 | K51: 0.0215 | L51: 0.022 | M51: 0.0225 | N51: 0.023 | O51: 0.0235 | P51: 0.024 | Q51: 0.0245 | R51: 0.025 | S51: 0.0255 | T51: 0.026 | U51: 0.0265 | V51: 0.027 | W51: 0.0275 | X51: 0.028 | Y51: 0.0285 | Z51: 0.029 | AA51: 0.0295 | AB51: 0.03 | AC51: 0.0305 | AD51: 0.031 | AE51: 0.0315 | AF51: 0.032 | AG51: 0.0325 | AH51: 0.033 | AI51: 0.0335 | AJ51: 0.034 | AK51: 0.0345 | AL51: 0.035 | AM51: 0.0355 | AN51: 0.036 | AO51: 0.0365 | AP51: 0.037 | AQ51: 0.0375 | AR51: 0.038 | AS51: 0.0385 | AT51: 0.039 | AU51: 0.0395 | AV51: 0.04 | AW51: 0.0405 | AX51: 0.041 | AY51: 0.0415 | AZ51: 0.042 | BA51: 0.0425 | BB51: 0.043 | BC51: 0.0435 | BD51: 0.044 | BE51: 0.0445 | BF51: 0.045 | BG51: 0.0455 | BH51: 0.046 | BI51: 0.0465 | BJ51: 0.047 | BK51: 0.0475 | BL51: 0.048 | BM51: 0.0485 | BN51: 0.049 | BO51: 0.0495 | BP51: 0.05 | BQ51: 0.0505 | BR51: 0.051 | BS51: 0.0515 | BT51: 0.052 | BU51: 0.0525 | BV51: =BU51+0.05% -> 0.053 | BW51: 0.0535 | BX51: 0.054 | BY51: 0.0545 | BZ51: 0.055 | CA51: 0.0555 | CB51: 0.056 | CC51: 0.0565 | CD51: 0.057 | CE51: 0.0575 | CF51: 0.058 | CG51: 0.0585 | CH51: 0.059 | CI51: 0.0595 | CJ51: 0.06 | CK51: 0.0605 | CL51: 0.061 | CM51: 0.0615 | CN51: 0.062 | CO51: 0.0625 | CP51: 0.063 | CQ51: 0.0635 | CR51: 0.064 | CS51: 0.0645 | CT51: 0.065 | CU51: 0.0655 | CV51: 0.066 | CW51: 0.0665 | CX51: 0.067 | CY51: 0.0675 | CZ51: 0.068 | DA51: 0.0685 | DB51: 0.069 | DC51: 0.0695 | DD51: 0.07 | DE51: 0.0705 | DF51: 0.071 | DG51: 0.0715 | DH51: 0.072 | DI51: 0.0725 | DJ51: 0.073 | DK51: 0.0735 | DL51: 0.074 | DM51: 0.0745 | DN51: 0.075
D52: AFDB Periodic Interest Rate | G52: 0.02 | H52: 0.02 | I52: =H52+0.05% -> 0.0205 | J52: 0.021 | K52: 0.0215 | L52: 0.022 | M52: 0.0225 | N52: 0.023 | O52: 0.0235 | P52: 0.024 | Q52: 0.0245 | R52: 0.025 | S52: 0.0255 | T52: 0.026 | U52: 0.0265 | V52: 0.027 | W52: 0.0275 | X52: 0.028 | Y52: 0.0285 | Z52: 0.029 | AA52: 0.0295 | AB52: 0.03 | AC52: 0.0305 | AD52: 0.031 | AE52: 0.0315 | AF52: 0.032 | AG52: 0.0325 | AH52: 0.033 | AI52: 0.0335 | AJ52: 0.034 | AK52: 0.0345 | AL52: 0.035 | AM52: 0.0355 | AN52: 0.036 | AO52: 0.0365 | AP52: 0.037 | AQ52: 0.0375 | AR52: 0.038 | AS52: 0.0385 | AT52: 0.039 | AU52: 0.0395 | AV52: 0.04 | AW52: 0.0405 | AX52: 0.041 | AY52: 0.0415 | AZ52: 0.042 | BA52: 0.0425 | BB52: 0.043 | BC52: 0.0435 | BD52: 0.044 | BE52: 0.0445 | BF52: 0.045 | BG52: 0.0455 | BH52: 0.046 | BI52: 0.0465 | BJ52: 0.047 | BK52: 0.0475 | BL52: 0.048 | BM52: 0.0485 | BN52: 0.049 | BO52: 0.0495 | BP52: 0.05 | BQ52: 0.0505 | BR52: 0.051 | BS52: 0.0515 | BT52: 0.052 | BU52: 0.0525 | BV52: 0.053 | BW52: 0.0535 | BX52: 0.054 | BY52: 0.0545 | BZ52: 0.055 | CA52: 0.0555 | CB52: 0.056 | CC52: 0.0565 | CD52: 0.057 | CE52: 0.0575 | CF52: 0.058 | CG52: 0.0585 | CH52: 0.059 | CI52: 0.0595 | CJ52: 0.06 | CK52: 0.0605 | CL52: 0.061 | CM52: 0.0615 | CN52: 0.062 | CO52: 0.0625 | CP52: 0.063 | CQ52: 0.0635 | CR52: 0.064 | CS52: 0.0645 | CT52: 0.065 | CU52: 0.0655 | CV52: 0.066 | CW52: 0.0665 | CX52: 0.067 | CY52: 0.0675 | CZ52: 0.068 | DA52: 0.0685 | DB52: 0.069 | DC52: 0.0695 | DD52: 0.07 | DE52: 0.0705 | DF52: 0.071 | DG52: 0.0715 | DH52: 0.072 | DI52: 0.0725 | DJ52: 0.073 | DK52: 0.0735 | DL52: 0.074 | DM52: 0.0745 | DN52: 0.075
D53: GFW Interest Rate | G53: 0.02 | H53: 0.02 | I53: 0.0205 | J53: 0.021 | K53: 0.0215 | L53: 0.022 | M53: 0.0225 | N53: 0.023 | O53: 0.0235 | P53: 0.024 | Q53: 0.0245 | R53: 0.025 | S53: 0.0255 | T53: 0.026 | U53: 0.0265 | V53: 0.027 | W53: 0.0275 | X53: 0.028 | Y53: 0.0285 | Z53: 0.029 | AA53: 0.0295 | AB53: 0.03 | AC53: 0.0305 | AD53: 0.031 | AE53: 0.0315 | AF53: 0.032 | AG53: 0.0325 | AH53: 0.033 | AI53: 0.0335 | AJ53: 0.034 | AK53: 0.0345 | AL53: 0.035 | AM53: 0.0355 | AN53: 0.036 | AO53: 0.0365 | AP53: 0.037 | AQ53: 0.0375 | AR53: 0.038 | AS53: 0.0385 | AT53: 0.039 | AU53: 0.0395 | AV53: 0.04 | AW53: 0.0405 | AX53: 0.041 | AY53: 0.0415 | AZ53: 0.042 | BA53: 0.0425 | BB53: 0.043 | BC53: 0.0435 | BD53: 0.044 | BE53: 0.0445 | BF53: 0.045 | BG53: 0.0455 | BH53: 0.046 | BI53: 0.0465 | BJ53: 0.047 | BK53: 0.0475 | BL53: 0.048 | BM53: 0.0485 | BN53: 0.049 | BO53: 0.0495 | BP53: 0.05 | BQ53: 0.0505 | BR53: 0.051 | BS53: 0.0515 | BT53: 0.052 | BU53: 0.0525 | BV53: 0.053 | BW53: 0.0535 | BX53: 0.054 | BY53: 0.0545 | BZ53: 0.055 | CA53: 0.0555 | CB53: 0.056 | CC53: 0.0565 | CD53: 0.057 | CE53: 0.0575 | CF53: 0.058 | CG53: 0.0585 | CH53: 0.059 | CI53: 0.0595 | CJ53: 0.06 | CK53: 0.0605 | CL53: 0.061 | CM53: 0.0615 | CN53: 0.062 | CO53: 0.0625 | CP53: 0.063 | CQ53: 0.0635 | CR53: 0.064 | CS53: 0.0645 | CT53: 0.065 | CU53: 0.0655 | CV53: 0.066 | CW53: 0.0665 | CX53: 0.067 | CY53: 0.0675 | CZ53: 0.068 | DA53: 0.0685 | DB53: 0.069 | DC53: 0.0695 | DD53: 0.07 | DE53: 0.0705 | DF53: 0.071 | DG53: 0.0715 | DH53: 0.072 | DI53: 0.0725 | DJ53: 0.073 | DK53: 0.0735 | DL53: 0.074 | DM53: 0.0745 | DN53: 0.075
D54: IFC Interest Rate | G54: 0.02 | H54: 0.02 | I54: 0.0205 | J54: 0.021 | K54: 0.0215 | L54: 0.022 | M54: 0.0225 | N54: 0.023 | O54: 0.0235 | P54: 0.024 | Q54: 0.0245 | R54: 0.025 | S54: 0.0255 | T54: 0.026 | U54: 0.0265 | V54: 0.027 | W54: 0.0275 | X54: 0.028 | Y54: 0.0285 | Z54: 0.029 | AA54: 0.0295 | AB54: 0.03 | AC54: 0.0305 | AD54: 0.031 | AE54: 0.0315 | AF54: 0.032 | AG54: 0.0325 | AH54: 0.033 | AI54: 0.0335 | AJ54: 0.034 | AK54: 0.0345 | AL54: 0.035 | AM54: 0.0355 | AN54: 0.036 | AO54: 0.0365 | AP54: 0.037 | AQ54: 0.0375 | AR54: 0.038 | AS54: 0.0385 | AT54: 0.039 | AU54: 0.0395 | AV54: 0.04 | AW54: 0.0405 | AX54: 0.041 | AY54: 0.0415 | AZ54: 0.042 | BA54: 0.0425 | BB54: 0.043 | BC54: 0.0435 | BD54: 0.044 | BE54: 0.0445 | BF54: 0.045 | BG54: 0.0455 | BH54: 0.046 | BI54: 0.0465 | BJ54: 0.047 | BK54: 0.0475 | BL54: 0.048 | BM54: 0.0485 | BN54: 0.049 | BO54: 0.0495 | BP54: 0.05 | BQ54: 0.0505 | BR54: 0.051 | BS54: 0.0515 | BT54: 0.052 | BU54: 0.0525 | BV54: 0.053 | BW54: 0.0535 | BX54: 0.054 | BY54: 0.0545 | BZ54: 0.055 | CA54: 0.0555 | CB54: 0.056 | CC54: 0.0565 | CD54: 0.057 | CE54: 0.0575 | CF54: 0.058 | CG54: 0.0585 | CH54: 0.059 | CI54: 0.0595 | CJ54: 0.06 | CK54: 0.0605 | CL54: 0.061 | CM54: 0.0615 | CN54: 0.062 | CO54: 0.0625 | CP54: 0.063 | CQ54: 0.0635 | CR54: 0.064 | CS54: 0.0645 | CT54: 0.065 | CU54: 0.0655 | CV54: 0.066 | CW54: 0.0665 | CX54: 0.067 | CY54: 0.0675 | CZ54: 0.068 | DA54: 0.0685 | DB54: 0.069 | DC54: 0.0695 | DD54: 0.07 | DE54: 0.0705 | DF54: 0.071 | DG54: 0.0715 | DH54: 0.072 | DI54: 0.0725 | DJ54: 0.073 | DK54: 0.0735 | DL54: 0.074 | DM54: 0.0745 | DN54: 0.075
C56: Interest Rate Applied | E56: ='InputC - Structure'!G52 -> 1
D57: EAIF & Proparco Periodic Interest Rate | G57: =CHOOSE($E$56,G39,G45,G51) -> 0.07685467633 | H57: =CHOOSE($E$56,H39,H45,H51) -> 0.07685467633 | I57: 0.07546798455 | J57: 0.07678515389 | K57: 0.07559879503 | L57: 0.0769050063 | M57: 0.07570345463 | N57: 0.07701127852 | O57: 0.07622696412 | P57: 0.07707128217 | Q57: 0.07582114156 | R57: 0.07717054996 | S57: 0.07600448369 | T57: 0.07737666123 | U57: 0.07622728912 | V57: 0.07749060701 | W57: 0.07664820251 | X57: 0.07749049045 | Y57: 0.07622705854 | Z57: 0.07749049045 | AA57: 0.07622705854 | AB57: 0.07749049045 | AC57: 0.07622705854 | AD57: 0.07749049045 | AE57: 0.07664820251 | AF57: 0.07749049045 | AG57: 0.07622705854 | AH57: 0.07749049045 | AI57: 0.07622705854 | AJ57: 0.07749049045 | AK57: 0.07622705854 | AL57: 0.07749049045 | AM57: 0.07749049045 | AN57: 0.07749049045 | AO57: 0.07749049045 | AP57: 0.07749049045 | AQ57: 0.07749049045 | AR57: 0.07749049045 | AS57: 0.07749049045 | AT57: 0.07749049045 | AU57: 0.07749049045 | AV57: 0.07749049045 | AW57: 0.07749049045 | AX57: 0.07749049045 | AY57: 0.07749049045 | AZ57: 0.07749049045 | BA57: 0.07749049045 | BB57: 0.07749049045 | BC57: 0.07749049045 | BD57: 0.07749049045 | BE57: 0.07749049045 | BF57: 0.07749049045 | BG57: 0.07749049045 | BH57: 0.07749049045 | BI57: 0.07749049045 | BJ57: 0.07749049045 | BK57: 0.07749049045 | BL57: 0.07749049045 | BM57: 0.07749049045 | BN57: 0.07749049045 | BO57: 0.07749049045 | BP57: 0.07749049045 | BQ57: 0.07749049045 | BR57: 0.07749049045 | BS57: 0.07749049045 | BT57: =CHOOSE($E$56,BT39,BT45,BT51) -> 0.07749049045 | BU57: 0.07749049045 | BV57: 0.07749049045 | BW57: 0.07749049045 | BX57: 0.07749049045 | BY57: 0.07749049045 | BZ57: 0.07749049045 | CA57: 0.07749049045 | CB57: 0.07749049045 | CC57: 0.07749049045 | CD57: 0.07749049045 | CE57: 0.07749049045 | CF57: 0.07749049045 | CG57: 0.07749049045 | CH57: 0.07749049045 | CI57: 0.07749049045 | CJ57: 0.07749049045 | CK57: 0.07749049045 | CL57: 0.07749049045 | CM57: 0.07749049045 | CN57: 0.07749049045 | CO57: 0.07749049045 | CP57: 0.07749049045 | CQ57: 0.07749049045 | CR57: 0.07749049045 | CS57: 0.07749049045 | CT57: 0.07749049045 | CU57: 0.07749049045 | CV57: 0.07749049045 | CW57: 0.07749049045 | CX57: 0.07749049045 | CY57: 0.07749049045 | CZ57: 0.07749049045 | DA57: 0.07749049045 | DB57: 0.07749049045 | DC57: 0.07749049045 | DD57: 0.07749049045 | DE57: 0.07749049045 | DF57: 0.07749049045 | DG57: 0.07749049045 | DH57: 0.07749049045 | DI57: 0.07749049045 | DJ57: 0.07749049045 | DK57: 0.07749049045 | DL57: 0.07749049045 | DM57: 0 | DN57: 0.04
D58: AFDB Periodic Interest Rate | G58: =CHOOSE($E$56,G40,G46,G52) -> 0.08200409566 | H58: 0.08200409566 | I58: 0.08349912078 | J58: 0.08200409566 | K58: 0.08342959834 | L58: 0.08213490615 | M58: 0.08354945075 | N58: 0.08223956574 | O58: 0.08365572296 | P58: 0.08279918634 | Q58: 0.08371572661 | R58: 0.08235725267 | S58: 0.08381499441 | T58: 0.0825405948 | U58: 0.08402110567 | V58: 0.08276340024 | W58: 0.08413505145 | X58: 0.08322042473 | Y58: 0.08413493489 | Z58: 0.08276316965 | AA58: 0.08413493489 | AB58: 0.08276316965 | AC58: 0.08413493489 | AD58: 0.08276316965 | AE58: 0.08413493489 | AF58: 0.08322042473 | AG58: 0.08413493489 | AH58: 0.08276316965 | AI58: 0.08413493489 | AJ58: 0.08276316965 | AK58: 0.08413493489 | AL58: 0.08276316965 | AM58: 0.08276316965 | AN58: 0.08276316965 | AO58: 0.08276316965 | AP58: 0.08276316965 | AQ58: 0.08276316965 | AR58: 0.08276316965 | AS58: 0.08276316965 | AT58: 0.08276316965 | AU58: 0.08276316965 | AV58: 0.08276316965 | AW58: 0.08276316965 | AX58: 0.08276316965 | AY58: 0.08276316965 | AZ58: 0.08276316965 | BA58: 0.08276316965 | BB58: 0.08276316965 | BC58: 0.08276316965 | BD58: 0.08276316965 | BE58: 0.08276316965 | BF58: 0.08276316965 | BG58: 0.08276316965 | BH58: 0.08276316965 | BI58: 0.08276316965 | BJ58: 0.08276316965 | BK58: 0.08276316965 | BL58: 0.08276316965 | BM58: 0.08276316965 | BN58: 0.08276316965 | BO58: 0.08276316965 | BP58: 0.08276316965 | BQ58: 0.08276316965 | BR58: 0.08276316965 | BS58: =CHOOSE($E$56,BS40,BS46,BS52) -> 0.08276316965 | BT58: 0.08276316965 | BU58: 0.08276316965 | BV58: 0.08276316965 | BW58: 0.08276316965 | BX58: 0.08276316965 | BY58: 0.08276316965 | BZ58: 0.08276316965 | CA58: 0.08276316965 | CB58: 0.08276316965 | CC58: 0.08276316965 | CD58: 0.08276316965 | CE58: 0.08276316965 | CF58: 0.08276316965 | CG58: 0.08276316965 | CH58: 0.08276316965 | CI58: 0.08276316965 | CJ58: 0.08276316965 | CK58: 0.08276316965 | CL58: 0.08276316965 | CM58: 0.08276316965 | CN58: 0.08276316965 | CO58: 0.08276316965 | CP58: 0.08276316965 | CQ58: 0.08276316965 | CR58: 0.08276316965 | CS58: 0.08276316965 | CT58: 0.08276316965 | CU58: 0.08276316965 | CV58: 0.08276316965 | CW58: 0.08276316965 | CX58: 0.08276316965 | CY58: 0.08276316965 | CZ58: 0.08276316965 | DA58: 0.08276316965 | DB58: 0.08276316965 | DC58: 0.08276316965 | DD58: 0.08276316965 | DE58: 0.08276316965 | DF58: 0.08276316965 | DG58: 0.08276316965 | DH58: 0.08276316965 | DI58: 0.08276316965 | DJ58: 0.08276316965 | DK58: 0.08276316965 | DL58: 0.08276316965 | DM58: 0 | DN58: 0.04
D59: GFW Interest Rate | G59: =CHOOSE($E$56,G41,G47,G53) -> 0.02 | H59: 0.02 | I59: 0.02 | J59: 0.02 | K59: 0.02 | L59: 0.02 | M59: 0.02 | N59: 0.02 | O59: 0.02 | P59: 0.02 | Q59: 0.02 | R59: 0.02 | S59: 0.02 | T59: 0.02 | U59: 0.02 | V59: 0.02 | W59: 0.02 | X59: 0.02 | Y59: 0.02 | Z59: 0.02 | AA59: 0.02 | AB59: 0.02 | AC59: 0.02 | AD59: 0.02 | AE59: 0.02 | AF59: 0.02 | AG59: 0.02 | AH59: 0.02 | AI59: 0.02 | AJ59: 0.02 | AK59: 0.02 | AL59: 0.02 | AM59: 0.02 | AN59: 0.02 | AO59: 0.02 | AP59: 0.02 | AQ59: 0.02 | AR59: 0.02 | AS59: 0.02 | AT59: 0.02 | AU59: 0.02 | AV59: 0.02 | AW59: 0.02 | AX59: 0.02 | AY59: 0.02 | AZ59: 0.02 | BA59: 0.02 | BB59: 0.02 | BC59: 0.02 | BD59: 0.02 | BE59: 0.02 | BF59: 0.02 | BG59: 0.02 | BH59: 0.02 | BI59: 0.02 | BJ59: 0.02 | BK59: 0.02 | BL59: 0.02 | BM59: 0.02 | BN59: 0.02 | BO59: 0.02 | BP59: 0.02 | BQ59: 0.02 | BR59: 0.02 | BS59: =CHOOSE($E$56,BS41,BS47,BS53) -> 0.02 | BT59: 0.02 | BU59: 0.02 | BV59: 0.02 | BW59: 0.02 | BX59: 0.02 | BY59: 0.02 | BZ59: 0.02 | CA59: 0.02 | CB59: 0.02 | CC59: 0.02 | CD59: 0.02 | CE59: 0.02 | CF59: 0.02 | CG59: 0.02 | CH59: 0.02 | CI59: 0.02 | CJ59: 0.02 | CK59: 0.02 | CL59: 0.02 | CM59: 0.02 | CN59: 0.02 | CO59: 0.02 | CP59: 0.02 | CQ59: 0.02 | CR59: 0.02 | CS59: 0.02 | CT59: 0.02 | CU59: 0.02 | CV59: 0.02 | CW59: 0.02 | CX59: 0.02 | CY59: 0.02 | CZ59: 0.02 | DA59: 0.02 | DB59: 0.02 | DC59: 0.02 | DD59: 0.02 | DE59: 0.02 | DF59: 0.02 | DG59: 0.02 | DH59: 0.02 | DI59: 0.02 | DJ59: 0.02 | DK59: 0.02 | DL59: 0.02 | DM59: 0.02 | DN59: 0.08
D60: IFC Interest Rate | G60: =CHOOSE($E$56,G42,G48,G54) -> 0.004 | H60: 0.004 | I60: 0.004 | J60: 0.004 | K60: 0.004 | L60: 0.004 | M60: 0.004 | N60: 0.004 | O60: 0.004 | P60: 0.004 | Q60: 0.004 | R60: 0.004 | S60: 0.004 | T60: 0.004 | U60: 0.004 | V60: 0.004 | W60: 0.004 | X60: 0.004 | Y60: 0.004 | Z60: 0.004 | AA60: 0.004 | AB60: 0.004 | AC60: 0.004 | AD60: 0.004 | AE60: 0.004 | AF60: 0.004 | AG60: 0.004 | AH60: 0.004 | AI60: 0.004 | AJ60: 0.004 | AK60: 0.004 | AL60: 0.004 | AM60: 0.004 | AN60: 0.004 | AO60: 0.004 | AP60: 0.004 | AQ60: 0.004 | AR60: 0.004 | AS60: 0.004 | AT60: 0.004 | AU60: 0.004 | AV60: 0.004 | AW60: 0.004 | AX60: 0.004 | AY60: 0.004 | AZ60: 0.004 | BA60: 0.004 | BB60: 0.004 | BC60: 0.004 | BD60: 0.004 | BE60: 0.004 | BF60: 0.004 | BG60: 0.004 | BH60: 0.004 | BI60: 0.004 | BJ60: 0.004 | BK60: 0.004 | BL60: 0.004 | BM60: 0.004 | BN60: 0.004 | BO60: 0.004 | BP60: 0.004 | BQ60: 0.004 | BR60: 0.004 | BS60: =CHOOSE($E$56,BS42,BS48,BS54) -> 0.004 | BT60: 0.004 | BU60: 0.004 | BV60: 0.004 | BW60: 0.004 | BX60: 0.004 | BY60: 0.004 | BZ60: 0.004 | CA60: 0.004 | CB60: 0.004 | CC60: 0.004 | CD60: 0.004 | CE60: 0.004 | CF60: 0.004 | CG60: 0.004 | CH60: 0.004 | CI60: 0.004 | CJ60: 0.004 | CK60: 0.004 | CL60: 0.004 | CM60: 0.004 | CN60: 0.004 | CO60: 0.004 | CP60: 0.004 | CQ60: 0.004 | CR60: 0.004 | CS60: 0.004 | CT60: 0.004 | CU60: 0.004 | CV60: 0.004 | CW60: 0.004 | CX60: 0.004 | CY60: 0.004 | CZ60: 0.004 | DA60: 0.004 | DB60: 0.004 | DC60: 0.004 | DD60: 0.004 | DE60: 0.004 | DF60: 0.004 | DG60: 0.004 | DH60: 0.004 | DI60: 0.004 | DJ60: 0.004 | DK60: 0.004 | DL60: 0.004 | DM60: 0.004 | DN60: 0.08

Sheet InputC - Risk
G1: 1
F3: Applied | G3: =INDEX(I3:X3,$G$1) -> Base Case | I3: Base Case | J3: Downside Case | K3: Stress Case | L3: O&M Sensitiviy | M3: Degradation Sensitivity | N3: Base with Cash Sweep | O3: Base Case with Covenant | P3: Base Case with DSR LC | Q3: Interest Rate Sensitivity | R3: Volatiity No Mean Reversion | S3: Volatiity with Mean Reversion | T3: Volatiity No MR, All | U3: Volatiity with MR, All
I4: 1 | J4: 2 | K4: 3 | L4: 4 | M4: 5 | N4: 6 | O4: 7 | P4: 8 | Q4: 9 | R4: 10 | S4: 11 | T4: 12 | U4: 13
F6: R Applied | G6: R Index
C8: Capital Expenditures | E8: Euro 000's | F8: 65000 | G8: =INDEX(I8:X8,$G$1) -> 65000 | I8: 65000 | J8: 65000 | K8: 65000 | L8: 65000 | M8: 65000 | N8: 65000 | O8: 65000 | P8: 65000 | Q8: 65000 | R8: 65000 | S8: 65000 | T8: 65000 | U8: 65000
C9: S-Curve Code | E9: Code | F9: 1 | G9: =INDEX(I9:X9,$G$1) -> 1 | I9: 1 | J9: 1 | K9: 1 | L9: 1 | M9: 1 | N9: 1 | O9: 1 | P9: 1 | Q9: 1 | R9: 1 | S9: 1 | T9: 1 | U9: 1
C12: Cash Sensitivity | E12: % | F12: 1 | G12: =INDEX(I12:X12,$G$1) -> 1 | I12: 1 | J12: 0.84 | K12: 0.7 | L12: 1 | M12: 1 | N12: 1 | O12: 1 | P12: 1 | Q12: 1 | R12: 1 | S12: 1 | T12: 1 | U12: 1
C14: Cash Sweep | E14: % | F14: 0 | G14: =INDEX(I14:X14,$G$1) -> 0 | I14: 0 | J14: 0 | K14: 0 | L14: 0 | M14: 0 | N14: 0.7 | O14: 0 | P14: 0 | Q14: 0 | R14: 0 | S14: 0 | T14: 1 | U14: 1
C16: Include Cash Trap Covenant | E16: Flag | F16: FALSE | G16: =INDEX(I16:X16,$G$1) -> FALSE | I16: FALSE | J16: FALSE | K16: FALSE | L16: FALSE | M16: FALSE | N16: FALSE | O16: FALSE | P16: FALSE | Q16: TRUE | R16: FALSE | S16: FALSE | T16: TRUE | U16: TRUE
C17: Cash Trap Covenant | E17: x | F17: 1.2 | G17: =INDEX(I17:X17,$G$1) -> 1.2 | I17: 1.2 | J17: 1.2 | K17: 1.2 | L17: 1.2 | M17: 1.2 | N17: 1.2 | O17: 1.2 | P17: 1.2 | Q17: 1.2 | R17: 1.2 | S17: 1.2 | T17: 1.2 | U17: 1.2
C19: Include DSR L/C | F19: 1 | G19: =INDEX(I19:X19,$G$1) -> 1 | I19: 1 | J19: 1 | K19: 1 | L19: 1 | M19: 1 | N19: 1 | O19: 1 | P19: 1 | Q19: 1 | R19: 1 | S19: 1 | T19: 1 | U19: 1
C20: DSRA Method (5 None, 2 Period) | E20: Code | F20: 5 | G20: =INDEX(I20:X20,$G$1) -> 5 | I20: 5 | J20: 5 | K20: 5 | L20: 5 | M20: 5 | N20: 5 | O20: 5 | P20: 2 | Q20: 2 | R20: 5 | S20: 5 | T20: 2 | U20: 2
C22: Annual Volatility for Monte Carlo | E22: % | F22: 0 | G22: =INDEX(I22:X22,$G$1) -> 0 | I22: 0 | J22: 0 | K22: 0 | L22: 0 | M22: 0 | N22: 0 | O22: 0 | P22: 0 | Q22: 0 | R22: 0.2 | S22: 0.2 | T22: 0.2 | U22: 0.2
C24: Mean Reversion | E24: % | F24: 0 | G24: =INDEX(I24:X24,$G$1) -> 0 | I24: 0 | J24: 0 | K24: 0 | L24: 0 | M24: 0 | N24: 0 | O24: 0 | P24: 0 | Q24: 0 | R24: 0 | S24: 0.3 | T24: 0 | U24: 0.3
L290: Base Case
L291: Downside Case
L292: Stress Case
L293: O&M Sensitiviy
L294: Degradation Sensitivity
L295: Interest Rate Sensitivity

Sheet InputS - Risk
G2: 0 | H2: 1 | I2: 2 | J2: 3 | K2: 4 | L2: 5 | M2: 6 | N2: 7 | O2: 8 | P2: 9 | Q2: 10 | R2: 11 | S2: 12 | T2: 13 | U2: 14 | V2: 15 | W2: 16 | X2: 17 | Y2: 18 | Z2: 19 | AA2: 20 | AB2: 21 | AC2: 22 | AD2: 23 | AE2: 24 | AF2: 25 | AG2: 26 | AH2: 27 | AI2: 28 | AJ2: 29 | AK2: 30 | AL2: 31 | AM2: 32 | AN2: 33 | AO2: 34 | AP2: 35 | AQ2: 36 | AR2: 37 | AS2: 38 | AT2: 39 | AU2: 40 | AV2: 41 | AW2: 42 | AX2: 43 | AY2: 44 | AZ2: 45 | BA2: 46 | BB2: 47 | BC2: 48 | BD2: 49 | BE2: 50 | BF2: 51 | BG2: 52 | BH2: 53 | BI2: 54 | BJ2: 55 | BK2: 56 | BL2: 57 | BM2: 58 | BN2: 59 | BO2: 60 | BP2: 61 | BQ2: 62 | BR2: 63 | BS2: 64 | BT2: 65 | BU2: 66 | BV2: 67 | BW2: 68 | BX2: 69 | BY2: 70 | BZ2: 71 | CA2: 72 | CB2: 73 | CC2: 74 | CD2: 75 | CE2: 76 | CF2: 77 | CG2: 78 | CH2: 79 | CI2: 80 | CJ2: 81 | CK2: 82 | CL2: 83 | CM2: 84 | CN2: 85 | CO2: 86 | CP2: 87 | CQ2: 88 | CR2: 89 | CS2: 90 | CT2: 91 | CU2: 92 | CV2: 93 | CW2: 94 | CX2: 95 | CY2: 96 | CZ2: 97 | DA2: 98 | DB2: 99 | DC2: 100 | DD2: 101 | DE2: 102 | DF2: 103 | DG2: 104 | DH2: 105 | DI2: 106 | DJ2: 107 | DK2: 108 | DL2: 109 | DM2: 110 | DN2: 111
D4: EBITDA before Sensitivity | G4: ='InputS- Structure'!G24 -> 0 | H4: ='InputS- Structure'!H24 -> 2909.617547 | I4: ='InputS- Structure'!I24 -> 2909.617547 | J4: ='InputS- Structure'!J24 -> 2989.367044 | K4: ='InputS- Structure'!K24 -> 2892.593285 | L4: ='InputS- Structure'!L24 -> 3000.021672 | M4: ='InputS- Structure'!M24 -> 2909.742019 | N4: ='InputS- Structure'!N24 -> 2996.994703 | O4: ='InputS- Structure'!O24 -> 2849.226766 | P4: ='InputS- Structure'!P24 -> 2931.232153 | Q4: ='InputS- Structure'!Q24 -> 2839.356195 | R4: ='InputS- Structure'!R24 -> 2926.54476 | S4: ='InputS- Structure'!S24 -> 2839.109514 | T4: ='InputS- Structure'!T24 -> 2926.821182 | U4: ='InputS- Structure'!U24 -> 2839.492382 | V4: ='InputS- Structure'!V24 -> 2927.385937 | W4: ='InputS- Structure'!W24 -> 2840.339271 | X4: ='InputS- Structure'!X24 -> 2923.301915 | Y4: ='InputS- Structure'!Y24 -> 2842.07159 | Z4: ='InputS- Structure'!Z24 -> 2930.082711 | AA4: ='InputS- Structure'!AA24 -> 2757.818267 | AB4: ='InputS- Structure'!AB24 -> 2897.849112 | AC4: ='InputS- Structure'!AC24 -> 2810.714068 | AD4: ='InputS- Structure'!AD24 -> 2900.149132 | AE4: ='InputS- Structure'!AE24 -> 2812.952322 | AF4: ='InputS- Structure'!AF24 -> 2897.27911 | AG4: ='InputS- Structure'!AG24 -> 2816.15025 | AH4: ='InputS- Structure'!AH24 -> 2905.719984 | AI4: ='InputS- Structure'!AI24 -> 2819.204207 | AJ4: ='InputS- Structure'!AJ24 -> 2909.536179 | AK4: ='InputS- Structure'!AK24 -> 2823.435827 | AL4: ='InputS- Structure'!AL24 -> 2914.113146 | AM4: ='InputS- Structure'!AM24 -> 2828.845051 | AN4: ='InputS- Structure'!AN24 -> 2839.492382 | AO4: ='InputS- Structure'!AO24 -> 2927.385937 | AP4: ='InputS- Structure'!AP24 -> 2840.339271 | AQ4: ='InputS- Structure'!AQ24 -> 2923.301915 | AR4: ='InputS- Structure'!AR24 -> 2842.07159 | AS4: ='InputS- Structure'!AS24 -> 2930.082711 | AT4: ='InputS- Structure'!AT24 -> 2757.818267 | AU4: ='InputS- Structure'!AU24 -> 2897.849112 | AV4: ='InputS- Structure'!AV24 -> 2810.714068 | AW4: ='InputS- Structure'!AW24 -> 2900.149132 | AX4: ='InputS- Structure'!AX24 -> 2812.952322 | AY4: ='InputS- Structure'!AY24 -> 2897.27911 | AZ4: ='InputS- Structure'!AZ24 -> 2816.15025 | BA4: ='InputS- Structure'!BA24 -> 2905.719984 | BB4: ='InputS- Structure'!BB24 -> 2819.204207 | BC4: ='InputS- Structure'!BC24 -> 2909.536179 | BD4: ='InputS- Structure'!BD24 -> 2823.435827 | BE4: ='InputS- Structure'!BE24 -> 2914.113146 | BF4: ='InputS- Structure'!BF24 -> 2828.845051 | BG4: ='InputS- Structure'!BG24 -> 2828.845051 | BH4: ='InputS- Structure'!BH24 -> 2828.845051 | BI4: ='InputS- Structure'!BI24 -> 2828.845051 | BJ4: ='InputS- Structure'!BJ24 -> 2828.845051 | BK4: ='InputS- Structure'!BK24 -> 2828.845051 | BL4: ='InputS- Structure'!BL24 -> 2828.845051 | BM4: ='InputS- Structure'!BM24 -> 2828.845051 | BN4: ='InputS- Structure'!BN24 -> 2828.845051 | BO4: ='InputS- Structure'!BO24 -> 2828.845051 | BP4: ='InputS- Structure'!BP24 -> 0 | BQ4: ='InputS- Structure'!BQ24 -> 0 | BR4: ='InputS- Structure'!BR24 -> 0 | BS4: ='InputS- Structure'!BS24 -> 0 | BT4: ='InputS- Structure'!BT24 -> 0 | BU4: ='InputS- Structure'!BU24 -> 0 | BV4: ='InputS- Structure'!BV24 -> 0 | BW4: ='InputS- Structure'!BW24 -> 0 | BX4: ='InputS- Structure'!BX24 -> 0 | BY4: ='InputS- Structure'!BY24 -> 0 | BZ4: ='InputS- Structure'!BZ24 -> 0 | CA4: ='InputS- Structure'!CA24 -> 0 | CB4: ='InputS- Structure'!CB24 -> 0 | CC4: ='InputS- Structure'!CC24 -> 0 | CD4: ='InputS- Structure'!CD24 -> 0 | CE4: ='InputS- Structure'!CE24 -> 0 | CF4: ='InputS- Structure'!CF24 -> 0 | CG4: ='InputS- Structure'!CG24 -> 0 | CH4: ='InputS- Structure'!CH24 -> 0 | CI4: ='InputS- Structure'!CI24 -> 0 | CJ4: ='InputS- Structure'!CJ24 -> 0 | CK4: ='InputS- Structure'!CK24 -> 0 | CL4: ='InputS- Structure'!CL24 -> 0 | CM4: ='InputS- Structure'!CM24 -> 0 | CN4: ='InputS- Structure'!CN24 -> 0 | CO4: ='InputS- Structure'!CO24 -> 0 | CP4: ='InputS- Structure'!CP24 -> 0 | CQ4: ='InputS- Structure'!CQ24 -> 0 | CR4: ='InputS- Structure'!CR24 -> 0 | CS4: ='InputS- Structure'!CS24 -> 0 | CT4: ='InputS- Structure'!CT24 -> 0 | CU4: ='InputS- Structure'!CU24 -> 0 | CV4: ='InputS- Structure'!CV24 -> 0 | CW4: ='InputS- Structure'!CW24 -> 0 | CX4: ='InputS- Structure'!CX24 -> 0 | CY4: ='InputS- Structure'!CY24 -> 0 | CZ4: ='InputS- Structure'!CZ24 -> 0 | DA4: ='InputS- Structure'!DA24 -> 0 | DB4: ='InputS- Structure'!DB24 -> 0 | DC4: ='InputS- Structure'!DC24 -> 0 | DD4: ='InputS- Structure'!DD24 -> 0 | DE4: ='InputS- Structure'!DE24 -> 0 | DF4: ='InputS- Structure'!DF24 -> 0 | DG4: ='InputS- Structure'!DG24 -> 0 | DH4: ='InputS- Structure'!DH24 -> 0 | DI4: ='InputS- Structure'!DI24 -> 0 | DJ4: ='InputS- Structure'!DJ24 -> 0 | DK4: ='InputS- Structure'!DK24 -> 0 | DL4: ='InputS- Structure'!DL24 -> 0 | DM4: ='InputS- Structure'!DM24 -> 0 | DN4: ='InputS- Structure'!DN24 -> 0
D6: S-Curve Projected for Structuring | F6: 1
E8: Construction Period | G8: 0 | H8: 1 | I8: 2 | J8: 3 | K8: 4 | L8: 5 | M8: 6 | N8: 7 | O8: 8 | P8: 9 | Q8: 10 | R8: 11 | S8: 12 | T8: 13 | U8: 14
E10: Base Case | F10: =SUM(H10:T10) -> 1 | H10: 0.3413086761 | I10: 0.09880368868 | J10: 0 | K10: 0.06586913522 | L10: 0 | M10: 0.1317382704 | N10: 0.1317382704 | O10: 0.1317382704 | P10: 0 | Q10: 0 | R10: 0 | S10: 0.06586913522 | T10: 0.03293455347 | U10: 0
E11: Earlier Case | F11: =SUM(H11:T11) -> 1 | H11: 0.5 | I11: 0.3 | J11: 0.1 | K11: 0.1 | L11: 0 | M11: 0 | N11: 0 | O11: 0 | P11: 0 | Q11: 0 | R11: 0 | S11: 0 | T11: 0 | U11: 0
E12: Delay Case | F12: =SUM(H12:T12) -> 1 | H12: 0.5 | I12: 0.3 | J12: 0.1 | K12: 0.1 | L12: 0 | M12: 0 | N12: 0 | O12: 0 | P12: 0 | Q12: 0 | R12: 0 | S12: 0 | T12: 0 | U12: 0
E14: =INDEX(E10:E13,$F$6) -> Base Case | F14: =INDEX(F10:F13,$F$6) -> 1 | H14: =INDEX(H10:H13,$F$6) -> 0.3413086761 | I14: =INDEX(I10:I13,$F$6) -> 0.09880368868 | J14: =INDEX(J10:J13,$F$6) -> 0 | K14: =INDEX(K10:K13,$F$6) -> 0.06586913522 | L14: =INDEX(L10:L13,$F$6) -> 0 | M14: =INDEX(M10:M13,$F$6) -> 0.1317382704 | N14: =INDEX(N10:N13,$F$6) -> 0.1317382704 | O14: =INDEX(O10:O13,$F$6) -> 0.1317382704 | P14: =INDEX(P10:P13,$F$6) -> 0 | Q14: =INDEX(Q10:Q13,$F$6) -> 0 | R14: =INDEX(R10:R13,$F$6) -> 0 | S14: =INDEX(S10:S13,$F$6) -> 0.06586913522 | T14: =INDEX(T10:T13,$F$6) -> 0.03293455347 | U14: =INDEX(U10:U13,$F$6) -> 0

Sheet Structuring Model
A1: Sculpting | L1: 0 | M1: 1 | N1: 2 | O1: 3 | P1: 4 | Q1: 5 | R1: 6 | S1: 7 | T1: 8 | U1: 9 | V1: 10 | W1: 11 | X1: 12 | Y1: 13 | Z1: 14 | AA1: 15 | AB1: 16 | AC1: 17 | AD1: 18 | AE1: 19 | AF1: 20 | AG1: 21 | AH1: 22 | AI1: 23 | AJ1: 24 | AK1: 25 | AL1: 26 | AM1: 27 | AN1: 28 | AO1: 29 | AP1: 30 | AQ1: 31 | AR1: 32 | AS1: 33 | AT1: 34 | AU1: 35 | AV1: 36 | AW1: 37 | AX1: 38 | AY1: 39 | AZ1: 40 | BA1: 41 | BB1: 42 | BC1: 43 | BD1: 44 | BE1: 45 | BF1: 46 | BG1: 47 | BH1: 48 | BI1: 49 | BJ1: 50 | BK1: 51 | BL1: 52 | BM1: 53 | BN1: 54 | BO1: 55 | BP1: 56 | BQ1: 57 | BR1: 58 | BS1: 59 | BT1: 60 | BU1: 61 | BV1: 62 | BW1: 63 | BX1: 64 | BY1: 65 | BZ1: 66 | CA1: 67 | CB1: 68 | CC1: 69 | CD1: 70 | CE1: 71 | CF1: 72 | CG1: 73 | CH1: 74 | CI1: 75 | CJ1: 76 | CK1: 77 | CL1: 78 | CM1: 79 | CN1: 80 | CO1: 81 | CP1: 82 | CQ1: 83 | CR1: 84 | CS1: 85 | CT1: 86 | CU1: 87 | CV1: 88 | CW1: 89 | CX1: 90 | CY1: 91 | CZ1: 92 | DA1: 93 | DB1: 94 | DC1: 95 | DD1: 96 | DE1: 97 | DF1: 98 | DG1: 99 | DH1: 100 | DI1: 101 | DJ1: 102 | DK1: 103 | DL1: 104 | DM1: 105 | DN1: 106 | DO1: 107 | DP1: 108 | DQ1: 109 | DR1: 110 | DS1: 111 | DT1: 112 | DU1: 113 | DV1: 114 | DW1: 115 | DX1: 116 | DY1: 117 | DZ1: 118 | EA1: 119 | EB1: 120 | EC1: 121 | ED1: 122 | EE1: 123
E2: Label | F2: Model Units | G2: Constant Units | H2: Constants | I2: Constants | J2: Sum | L2: Pre-FC | M2: Cons | N2: Cons | O2: Cons | P2: Cons | Q2: Cons | R2: Cons | S2: Cons | T2: Cons | U2: Cons | V2: Cons | W2: Cons | X2: Cons | Y2: Cons | Z2: Ops | AA2: Ops | AB2: Ops | AC2: Ops | AD2: Ops | AE2: Ops | AF2: Ops | AG2: Ops | AH2: Ops | AI2: Ops | AJ2: Ops | AK2: Ops | AL2: Ops | AM2: Ops | AN2: Ops | AO2: Ops | AP2: Ops | AQ2: Ops | AR2: Ops | AS2: Ops | AT2: Ops | AU2: Ops | AV2: Ops | AW2: Ops | AX2: Ops | AY2: Ops | AZ2: Ops | BA2: Ops | BB2: Ops | BC2: Ops | BD2: Ops | BE2: Ops | BF2: Ops | BG2: Ops | BH2: Ops | BI2: Ops | BJ2: Ops | BK2: Ops | BL2: Ops | BM2: Ops | BN2: Ops | BO2: Ops | BP2: Ops | BQ2: Ops | BR2: Ops | BS2: Ops | BT2: Ops | BU2: Ops | BV2: Ops | BW2: Ops | BX2: Ops | BY2: Ops | BZ2: Ops | CA2: Ops | CB2: Ops | CC2: Ops | CD2: Ops | CE2: Ops | CF2: Ops | CG2: Shut-down | CH2: Shut-down | CI2: Shut-down | CJ2: Shut-down | CK2: Shut-down | CL2: Shut-down | CM2: Shut-down | CN2: Shut-down | CO2: Shut-down | CP2: Shut-down | CQ2: Shut-down | CR2: Shut-down | CS2: Shut-down | CT2: Shut-down | CU2: Shut-down | CV2: Shut-down | CW2: Shut-down | CX2: Shut-down | CY2: Shut-down | CZ2: Shut-down | DA2: Shut-down | DB2: Shut-down | DC2: Shut-down | DD2: Shut-down | DE2: Shut-down | DF2: Shut-down | DG2: Shut-down | DH2: Shut-down | DI2: Shut-down | DJ2: Shut-down | DK2: Shut-down | DL2: Shut-down | DM2: Shut-down | DN2: Shut-down | DO2: Shut-down | DP2: Shut-down | DQ2: Shut-down | DR2: Shut-down | DS2: Shut-down | DT2: Shut-down | DU2: Shut-down | DV2: Shut-down | DW2: Shut-down | DX2: Shut-down | DY2: Shut-down | DZ2: Shut-down | EA2: Shut-down | EB2: Shut-down | EC2: Shut-down | ED2: Shut-down | EE2: Shut-down
F3: Base Case | L3: =IF(L6,1,6) -> 1 | M3: =IF(M6,1,6) -> 1 | N3: 1 | O3: 1 | P3: 1 | Q3: 1 | R3: 1 | S3: 1 | T3: 1 | U3: 1 | V3: 1 | W3: 1 | X3: 1 | Y3: 1 | Z3: 6 | AA3: 6 | AB3: 6 | AC3: 6 | AD3: 6 | AE3: 6 | AF3: 6 | AG3: 6 | AH3: 6 | AI3: 6 | AJ3: 6 | AK3: 6 | AL3: 6 | AM3: 6 | AN3: 6 | AO3: 6 | AP3: 6 | AQ3: 6 | AR3: 6 | AS3: 6 | AT3: 6 | AU3: 6 | AV3: 6 | AW3: 6 | AX3: 6 | AY3: 6 | AZ3: 6 | BA3: 6 | BB3: 6 | BC3: 6 | BD3: 6 | BE3: 6 | BF3: 6 | BG3: 6 | BH3: 6 | BI3: 6 | BJ3: 6 | BK3: 6 | BL3: 6 | BM3: 6 | BN3: 6 | BO3: 6 | BP3: 6 | BQ3: 6 | BR3: 6 | BS3: 6 | BT3: 6 | BU3: 6 | BV3: 6 | BW3: 6 | BX3: 6 | BY3: =IF(BY6,1,6) -> 6 | BZ3: 6 | CA3: 6 | CB3: 6 | CC3: 6 | CD3: 6 | CE3: 6 | CF3: 6 | CG3: 6 | CH3: 6 | CI3: 6 | CJ3: 6 | CK3: 6 | CL3: 6 | CM3: 6 | CN3: 6 | CO3: 6 | CP3: 6 | CQ3: 6 | CR3: 6 | CS3: 6 | CT3: 6 | CU3: 6 | CV3: 6 | CW3: 6 | CX3: 6 | CY3: 6 | CZ3: 6 | DA3: 6 | DB3: 6 | DC3: 6 | DD3: 6 | DE3: 6 | DF3: 6 | DG3: 6 | DH3: 6 | DI3: 6 | DJ3: 6 | DK3: 6 | DL3: 6 | DM3: 6 | DN3: 6 | DO3: 6 | DP3: 6 | DQ3: 6 | DR3: 6 | DS3: 6 | DT3: 6 | DU3: 6 | DV3: 6 | DW3: 6 | DX3: 6 | DY3: 6 | DZ3: 6 | EA3: 6 | EB3: 6 | EC3: 6 | ED3: 6 | EE3: 6
E4: Period beginning date | F4: Date | L4: 2022-11-01 | M4: 2022-12-01 | N4: 2023-01-01 | O4: 2023-02-01 | P4: 2023-03-01 | Q4: 2023-04-01 | R4: 2023-05-01 | S4: 2023-06-01 | T4: 2023-07-01 | U4: 2023-08-01 | V4: 2023-09-01 | W4: 2023-10-01 | X4: 2023-11-01 | Y4: 2023-12-01 | Z4: 2024-01-01 | AA4: 2024-07-01 | AB4: 2025-01-01 | AC4: 2025-07-01 | AD4: 2026-01-01 | AE4: 2026-07-01 | AF4: 2027-01-01 | AG4: 2027-07-01 | AH4: 2028-01-01 | AI4: 2028-07-01 | AJ4: 2029-01-01 | AK4: 2029-07-01 | AL4: 2030-01-01 | AM4: 2030-07-01 | AN4: 2031-01-01 | AO4: 2031-07-01 | AP4: 2032-01-01 | AQ4: 2032-07-01 | AR4: 2033-01-01 | AS4: 2033-07-01 | AT4: 2034-01-01 | AU4: 2034-07-01 | AV4: 2035-01-01 | AW4: 2035-07-01 | AX4: 2036-01-01 | AY4: 2036-07-01 | AZ4: 2037-01-01 | BA4: 2037-07-01 | BB4: 2038-01-01 | BC4: 2038-07-01 | BD4: 2039-01-01 | BE4: 2039-07-01 | BF4: 2040-01-01 | BG4: 2040-07-01 | BH4: 2041-01-01 | BI4: 2041-07-01 | BJ4: 2042-01-01 | BK4: 2042-07-01 | BL4: 2043-01-01 | BM4: 2043-07-01 | BN4: 2044-01-01 | BO4: 2044-07-01 | BP4: 2045-01-01 | BQ4: 2045-07-01 | BR4: 2046-01-01 | BS4: 2046-07-01 | BT4: 2047-01-01 | BU4: 2047-07-01 | BV4: 2048-01-01 | BW4: 2048-07-01 | BX4: 2049-01-01 | BY4: 2049-07-01 | BZ4: 2050-01-01 | CA4: 2050-07-01 | CB4: 2051-01-01 | CC4: 2051-07-01 | CD4: 2052-01-01 | CE4: 2052-07-01 | CF4: 2053-01-01 | CG4: 2053-07-01 | CH4: 2054-01-01 | CI4: 2054-07-01 | CJ4: 2055-01-01 | CK4: 2055-07-01 | CL4: 2056-01-01 | CM4: 2056-07-01 | CN4: 2057-01-01 | CO4: 2057-07-01 | CP4: 2058-01-01 | CQ4: 2058-07-01 | CR4: 2059-01-01 | CS4: 2059-07-01 | CT4: 2060-01-01 | CU4: 2060-07-01 | CV4: 2061-01-01 | CW4: 2061-07-01 | CX4: 2062-01-01 | CY4: 2062-07-01 | CZ4: 2063-01-01 | DA4: 2063-07-01 | DB4: 2064-01-01 | DC4: 2064-07-01 | DD4: 2065-01-01 | DE4: 2065-07-01 | DF4: 2066-01-01 | DG4: 2066-07-01 | DH4: 2067-01-01 | DI4: 2067-07-01 | DJ4: 2068-01-01 | DK4: 2068-07-01 | DL4: 2069-01-01 | DM4: 2069-07-01 | DN4: 2070-01-01 | DO4: 2070-07-01 | DP4: 2071-01-01 | DQ4: 2071-07-01 | DR4: 2072-01-01 | DS4: 2072-07-01 | DT4: 2073-01-01 | DU4: 2073-07-01 | DV4: 2074-01-01 | DW4: 2074-07-01 | DX4: 2075-01-01 | DY4: 2075-07-01 | DZ4: 2076-01-01 | EA4: 2076-07-01 | EB4: 2077-01-01 | EC4: 2077-07-01 | ED4: 2078-01-01 | EE4: 2078-07-01
E5: Period ending date | F5: Date | L5: =EOMONTH(L4,0) -> 2022-11-30 | M5: =EOMONTH(M4,0) -> 2022-12-31 | N5: 2023-01-31 | O5: 2023-02-28 | P5: 2023-03-31 | Q5: 2023-04-30 | R5: 2023-05-31 | S5: 2023-06-30 | T5: 2023-07-31 | U5: 2023-08-31 | V5: 2023-09-30 | W5: 2023-10-31 | X5: 2023-11-30 | Y5: 2023-12-31 | Z5: =EOMONTH(Z4,Z3-1) -> 2024-06-30 | AA5: =EOMONTH(AA4,AA3-1) -> 2024-12-31 | AB5: 2025-06-30 | AC5: 2025-12-31 | AD5: 2026-06-30 | AE5: 2026-12-31 | AF5: 2027-06-30 | AG5: 2027-12-31 | AH5: 2028-06-30 | AI5: 2028-12-31 | AJ5: 2029-06-30 | AK5: 2029-12-31 | AL5: 2030-06-30 | AM5: 2030-12-31 | AN5: 2031-06-30 | AO5: 2031-12-31 | AP5: 2032-06-30 | AQ5: 2032-12-31 | AR5: 2033-06-30 | AS5: 2033-12-31 | AT5: 2034-06-30 | AU5: 2034-12-31 | AV5: 2035-06-30 | AW5: 2035-12-31 | AX5: 2036-06-30 | AY5: 2036-12-31 | AZ5: 2037-06-30 | BA5: 2037-12-31 | BB5: 2038-06-30 | BC5: 2038-12-31 | BD5: 2039-06-30 | BE5: 2039-12-31 | BF5: 2040-06-30 | BG5: 2040-12-31 | BH5: 2041-06-30 | BI5: 2041-12-31 | BJ5: 2042-06-30 | BK5: 2042-12-31 | BL5: 2043-06-30 | BM5: 2043-12-31 | BN5: 2044-06-30 | BO5: 2044-12-31 | BP5: 2045-06-30 | BQ5: 2045-12-31 | BR5: 2046-06-30 | BS5: 2046-12-31 | BT5: 2047-06-30 | BU5: 2047-12-31 | BV5: 2048-06-30 | BW5: 2048-12-31 | BX5: 2049-06-30 | BY5: 2049-12-31 | BZ5: 2050-06-30 | CA5: 2050-12-31 | CB5: 2051-06-30 | CC5: 2051-12-31 | CD5: 2052-06-30 | CE5: 2052-12-31 | CF5: 2053-06-30 | CG5: 2053-12-31 | CH5: 2054-06-30 | CI5: 2054-12-31 | CJ5: 2055-06-30 | CK5: 2055-12-31 | CL5: 2056-06-30 | CM5: =EOMONTH(CM4,CM3-1) -> 2056-12-31 | CN5: 2057-06-30 | CO5: 2057-12-31 | CP5: 2058-06-30 | CQ5: 2058-12-31 | CR5: 2059-06-30 | CS5: 2059-12-31 | CT5: 2060-06-30 | CU5: 2060-12-31 | CV5: 2061-06-30 | CW5: 2061-12-31 | CX5: 2062-06-30 | CY5: 2062-12-31 | CZ5: 2063-06-30 | DA5: 2063-12-31 | DB5: 2064-06-30 | DC5: 2064-12-31 | DD5: 2065-06-30 | DE5: 2065-12-31 | DF5: 2066-06-30 | DG5: 2066-12-31 | DH5: 2067-06-30 | DI5: 2067-12-31 | DJ5: 2068-06-30 | DK5: 2068-12-31 | DL5: 2069-06-30 | DM5: 2069-12-31 | DN5: 2070-06-30 | DO5: 2070-12-31 | DP5: 2071-06-30 | DQ5: 2071-12-31 | DR5: 2072-06-30 | DS5: 2072-12-31 | DT5: 2073-06-30 | DU5: 2073-12-31 | DV5: 2074-06-30 | DW5: 2074-12-31 | DX5: 2075-06-30 | DY5: 2075-12-31 | DZ5: 2076-06-30 | EA5: 2076-12-31 | EB5: 2077-06-30 | EC5: 2077-12-31 | ED5: 2078-06-30 | EE5: 2078-12-31
E6: Construction period flag | F6: flag | H6: 0 | J6: 13 | K6: 0 | L6: 1 | M6: 1 | N6: 1 | O6: 1 | P6: 1 | Q6: 1 | R6: 1 | S6: 1 | T6: 1 | U6: 1 | V6: 1 | W6: 1 | X6: 1 | Y6: 1 | Z6: 0 | AA6: 0 | AB6: 0 | AC6: 0 | AD6: 0 | AE6: 0 | AF6: 0 | AG6: 0 | AH6: 0 | AI6: 0 | AJ6: 0 | AK6: 0 | AL6: 0 | AM6: 0 | AN6: 0 | AO6: 0 | AP6: 0 | AQ6: 0 | AR6: 0 | AS6: 0 | AT6: 0 | AU6: 0 | AV6: 0 | AW6: 0 | AX6: 0 | AY6: 0 | AZ6: 0 | BA6: 0 | BB6: 0 | BC6: 0 | BD6: 0 | BE6: 0 | BF6: 0 | BG6: 0 | BH6: 0 | BI6: 0 | BJ6: 0 | BK6: 0 | BL6: 0 | BM6: 0 | BN6: 0 | BO6: 0 | BP6: 0 | BQ6: 0 | BR6: 0 | BS6: 0 | BT6: 0 | BU6: 0 | BV6: 0 | BW6: 0 | BX6: 0 | BY6: 0 | BZ6: 0 | CA6: 0 | CB6: 0 | CC6: 0 | CD6: 0 | CE6: 0 | CF6: 0 | CG6: 0 | CH6: 0 | CI6: 0 | CJ6: 0 | CK6: 0 | CL6: 0 | CM6: 0 | CN6: 0 | CO6: 0 | CP6: 0 | CQ6: 0 | CR6: 0 | CS6: 0 | CT6: 0 | CU6: 0 | CV6: 0 | CW6: 0 | CX6: 0 | CY6: 0 | CZ6: 0 | DA6: 0 | DB6: 0 | DC6: 0 | DD6: 0 | DE6: 0 | DF6: 0 | DG6: 0 | DH6: 0 | DI6: 0 | DJ6: 0 | DK6: 0 | DL6: 0 | DM6: 0 | DN6: 0 | DO6: 0 | DP6: 0 | DQ6: 0 | DR6: 0 | DS6: 0 | DT6: 0 | DU6: 0 | DV6: 0 | DW6: 0 | DX6: 0 | DY6: 0 | DZ6: 0 | EA6: 0 | EB6: 0 | EC6: 0 | ED6: 0 | EE6: 0
E7: Operation period flag | F7: flag | H7: 0 | J7: 0 | K7: 0 | L7: 0 | M7: 0 | N7: 0 | O7: 0 | P7: 0 | Q7: 0 | R7: 0 | S7: 0 | T7: 0 | U7: 0 | V7: 0 | W7: 0 | X7: 0 | Y7: 0 | Z7: 1 | AA7: 1 | AB7: 1 | AC7: 1 | AD7: 1 | AE7: 1 | AF7: 1 | AG7: 1 | AH7: 1 | AI7: 1 | AJ7: 1 | AK7: 1 | AL7: 1 | AM7: 1 | AN7: 1 | AO7: 1 | AP7: 1 | AQ7: 1 | AR7: 1 | AS7: 1 | AT7: 1 | AU7: 1 | AV7: 1 | AW7: 1 | AX7: 1 | AY7: 1 | AZ7: 1 | BA7: 1 | BB7: 1 | BC7: 1 | BD7: 1 | BE7: 1 | BF7: 1 | BG7: 1 | BH7: 1 | BI7: 1 | BJ7: 1 | BK7: 1 | BL7: 1 | BM7: 1 | BN7: 1 | BO7: 1 | BP7: 1 | BQ7: 1 | BR7: 1 | BS7: 1 | BT7: 1 | BU7: 1 | BV7: 1 | BW7: 1 | BX7: 1 | BY7: 1 | BZ7: 1 | CA7: 1 | CB7: 1 | CC7: 1 | CD7: 1 | CE7: 1 | CF7: 1 | CG7: 0 | CH7: 0 | CI7: 0 | CJ7: 0 | CK7: 0 | CL7: 0 | CM7: 0 | CN7: 0 | CO7: 0 | CP7: 0 | CQ7: 0 | CR7: 0 | CS7: 0 | CT7: 0 | CU7: 0 | CV7: 0 | CW7: 0 | CX7: 0 | CY7: 0 | CZ7: 0 | DA7: 0 | DB7: 0 | DC7: 0 | DD7: 0 | DE7: 0 | DF7: 0 | DG7: 0 | DH7: 0 | DI7: 0 | DJ7: 0 | DK7: 0 | DL7: 0 | DM7: 0 | DN7: 0 | DO7: 0 | DP7: 0 | DQ7: 0 | DR7: 0 | DS7: 0 | DT7: 0 | DU7: 0 | DV7: 0 | DW7: 0 | DX7: 0 | DY7: 0 | DZ7: 0 | EA7: 0 | EB7: 0 | EC7: 0 | ED7: 0 | EE7: 0
E8: Operating Age in Periods | L8: =K8+L7 -> 0 | M8: =L8+M7 -> 0 | N8: 0 | O8: 0 | P8: 0 | Q8: 0 | R8: 0 | S8: 0 | T8: 0 | U8: 0 | V8: 0 | W8: 0 | X8: 0 | Y8: 0 | Z8: 1 | AA8: 2 | AB8: 3 | AC8: 4 | AD8: 5 | AE8: 6 | AF8: 7 | AG8: 8 | AH8: 9 | AI8: 10 | AJ8: 11 | AK8: 12 | AL8: 13 | AM8: 14 | AN8: 15 | AO8: 16 | AP8: 17 | AQ8: 18 | AR8: 19 | AS8: 20 | AT8: 21 | AU8: 22 | AV8: 23 | AW8: 24 | AX8: 25 | AY8: 26 | AZ8: 27 | BA8: 28 | BB8: 29 | BC8: 30 | BD8: 31 | BE8: 32 | BF8: 33 | BG8: 34 | BH8: 35 | BI8: 36 | BJ8: 37 | BK8: 38 | BL8: 39 | BM8: 40 | BN8: 41 | BO8: 42 | BP8: 43 | BQ8: 44 | BR8: 45 | BS8: 46 | BT8: 47 | BU8: 48 | BV8: 49 | BW8: 50 | BX8: 51 | BY8: =BX8+BY7 -> 52 | BZ8: 53 | CA8: 54 | CB8: 55 | CC8: 56 | CD8: 57 | CE8: 58 | CF8: 59 | CG8: 59 | CH8: 59 | CI8: 59 | CJ8: 59 | CK8: 59 | CL8: 59 | CM8: 59 | CN8: 59 | CO8: 59 | CP8: 59 | CQ8: 59 | CR8: 59 | CS8: 59 | CT8: 59 | CU8: 59 | CV8: 59 | CW8: 59 | CX8: 59 | CY8: 59 | CZ8: 59 | DA8: 59 | DB8: 59 | DC8: 59 | DD8: 59 | DE8: 59 | DF8: 59 | DG8: 59 | DH8: 59 | DI8: 59 | DJ8: 59 | DK8: 59 | DL8: 59 | DM8: 59 | DN8: 59 | DO8: 59 | DP8: 59 | DQ8: 59 | DR8: 59 | DS8: 59 | DT8: 59 | DU8: 59 | DV8: 59 | DW8: 59 | DX8: 59 | DY8: 59 | DZ8: 59 | EA8: 59 | EB8: 59 | EC8: 59 | ED8: 59 | EE8: 59
B10: Capitlal Expenditure, EBITDA, Project IRR
D11: Construction Period | F11: Counter | L11: 0 | M11: =L11+M6 -> 1 | N11: 2 | O11: 3 | P11: 4 | Q11: 5 | R11: 6 | S11: 7 | T11: 8 | U11: 9 | V11: 10 | W11: 11 | X11: 12 | Y11: 13 | Z11: 13 | AA11: 13 | AB11: 13 | AC11: 13 | AD11: 13 | AE11: 13 | AF11: 13 | AG11: 13 | AH11: 13 | AI11: 13 | AJ11: 13 | AK11: 13 | AL11: 13 | AM11: 13 | AN11: 13 | AO11: 13 | AP11: 13 | AQ11: 13 | AR11: 13 | AS11: 13 | AT11: 13 | AU11: 13 | AV11: 13 | AW11: 13 | AX11: 13 | AY11: 13 | AZ11: 13 | BA11: 13 | BB11: 13 | BC11: 13 | BD11: 13 | BE11: 13 | BF11: 13 | BG11: 13 | BH11: 13 | BI11: 13 | BJ11: 13 | BK11: 13 | BL11: 13 | BM11: 13 | BN11: 13 | BO11: 13 | BP11: 13 | BQ11: 13 | BR11: 13 | BS11: 13 | BT11: 13 | BU11: 13 | BV11: 13 | BW11: 13 | BX11: 13 | BY11: =BX11+BY6 -> 13 | BZ11: 13 | CA11: 13 | CB11: 13 | CC11: 13 | CD11: 13 | CE11: 13 | CF11: 13 | CG11: 13 | CH11: 13 | CI11: 13 | CJ11: 13 | CK11: 13 | CL11: 13 | CM11: 13 | CN11: 13 | CO11: 13 | CP11: 13 | CQ11: 13 | CR11: 13 | CS11: 13 | CT11: 13 | CU11: 13 | CV11: 13 | CW11: 13 | CX11: 13 | CY11: 13 | CZ11: 13 | DA11: 13 | DB11: 13 | DC11: 13 | DD11: 13 | DE11: 13 | DF11: 13 | DG11: 13 | DH11: 13 | DI11: 13 | DJ11: 13 | DK11: 13 | DL11: 13 | DM11: 13 | DN11: 13 | DO11: 13 | DP11: 13 | DQ11: 13 | DR11: 13 | DS11: 13 | DT11: 13 | DU11: 13 | DV11: 13 | DW11: 13 | DX11: 13 | DY11: 13 | DZ11: 13 | EA11: 13 | EB11: 13 | EC11: 13 | ED11: 13 | EE11: 13
D12: Total Cap Exp | F12: EUR'000 | G12: EUR'000 | H12: ='InputC - Structure'!G8 -> 65000 | L12: =$H$12 -> 65000 | M12: =$H$12 -> 65000 | N12: 65000 | O12: 65000 | P12: 65000 | Q12: 65000 | R12: 65000 | S12: 65000 | T12: 65000 | U12: 65000 | V12: 65000 | W12: 65000 | X12: 65000 | Y12: 65000 | Z12: 65000 | AA12: 65000 | AB12: 65000 | AC12: 65000 | AD12: 65000 | AE12: 65000 | AF12: 65000 | AG12: 65000 | AH12: 65000 | AI12: 65000 | AJ12: 65000 | AK12: 65000 | AL12: 65000 | AM12: 65000 | AN12: 65000 | AO12: 65000 | AP12: 65000 | AQ12: 65000 | AR12: 65000 | AS12: 65000 | AT12: 65000 | AU12: 65000 | AV12: 65000 | AW12: 65000 | AX12: 65000 | AY12: 65000 | AZ12: 65000 | BA12: 65000 | BB12: 65000 | BC12: 65000 | BD12: 65000 | BE12: 65000 | BF12: 65000 | BG12: 65000 | BH12: 65000 | BI12: 65000 | BJ12: 65000 | BK12: 65000 | BL12: 65000 | BM12: 65000 | BN12: 65000 | BO12: 65000 | BP12: 65000 | BQ12: 65000 | BR12: 65000 | BS12: 65000 | BT12: 65000 | BU12: 65000 | BV12: 65000 | BW12: 65000 | BX12: 65000 | BY12: =$H$12 -> 65000 | BZ12: 65000 | CA12: 65000 | CB12: 65000 | CC12: 65000 | CD12: 65000 | CE12: 65000 | CF12: 65000 | CG12: 65000 | CH12: 65000 | CI12: 65000 | CJ12: 65000 | CK12: 65000 | CL12: 65000 | CM12: 65000 | CN12: 65000 | CO12: 65000 | CP12: 65000 | CQ12: 65000 | CR12: 65000 | CS12: 65000 | CT12: 65000 | CU12: 65000 | CV12: 65000 | CW12: 65000 | CX12: 65000 | CY12: 65000 | CZ12: 65000 | DA12: 65000 | DB12: 65000 | DC12: 65000 | DD12: 65000 | DE12: 65000 | DF12: 65000 | DG12: 65000 | DH12: 65000 | DI12: 65000 | DJ12: 65000 | DK12: 65000 | DL12: 65000 | DM12: 65000 | DN12: 65000 | DO12: 65000 | DP12: 65000 | DQ12: 65000 | DR12: 65000 | DS12: 65000 | DT12: 65000 | DU12: 65000 | DV12: 65000 | DW12: 65000 | DX12: 65000 | DY12: 65000 | DZ12: 65000 | EA12: 65000 | EB12: 65000 | EC12: 65000 | ED12: 65000 | EE12: 65000
D13: S-curve | F13: % | G13: % | J13: =SUM(L13:XFD13) -> 1 | L13: =LOOKUP(L11,'InputS- Structure'!6:6,'InputS- Structure'!7:7)*L6 -> 0 | M13: =LOOKUP(M11,'InputS- Structure'!6:6,'InputS- Structure'!7:7)*M6 -> 0.3413086761 | N13: =LOOKUP(N11,'InputS- Structure'!6:6,'InputS- Structure'!7:7)*N6 -> 0.09880368868 | O13: =LOOKUP(O11,'InputS- Structure'!6:6,'InputS- Structure'!7:7)*O6 -> 0 | P13: =LOOKUP(P11,'InputS- Structure'!6:6,'InputS- Structure'!7:7)*P6 -> 0.06586913522 | Q13: =LOOKUP(Q11,'InputS- Structure'!6:6,'InputS- Structure'!7:7)*Q6 -> 0 | R13: =LOOKUP(R11,'InputS- Structure'!6:6,'InputS- Structure'!7:7)*R6 -> 0.1317382704 | S13: =LOOKUP(S11,'InputS- Structure'!6:6,'InputS- Structure'!7:7)*S6 -> 0.1317382704 | T13: =LOOKUP(T11,'InputS- Structure'!6:6,'InputS- Structure'!7:7)*T6 -> 0.1317382704 | U13: =LOOKUP(U11,'InputS- Structure'!6:6,'InputS- Structure'!7:7)*U6 -> 0 | V13: =LOOKUP(V11,'InputS- Structure'!6:6,'InputS- Structure'!7:7)*V6 -> 0 | W13: =LOOKUP(W11,'InputS- Structure'!6:6,'InputS- Structure'!7:7)*W6 -> 0 | X13: =LOOKUP(X11,'InputS- Structure'!6:6,'InputS- Structure'!7:7)*X6 -> 0.06586913522 | Y13: =LOOKUP(Y11,'InputS- Structure'!6:6,'InputS- Structure'!7:7)*Y6 -> 0.03293455347 | Z13: =LOOKUP(Z11,'InputS- Structure'!6:6,'InputS- Structure'!7:7)*Z6 -> 0 | AA13: =LOOKUP(AA11,'InputS- Structure'!6:6,'InputS- Structure'!7:7)*AA6 -> 0 | AB13: =LOOKUP(AB11,'InputS- Structure'!6:6,'InputS- Structure'!7:7)*AB6 -> 0 | AC13: =LOOKUP(AC11,'InputS- Structure'!6:6,'InputS- Structure'!7:7)*AC6 -> 0 | AD13: =LOOKUP(AD11,'InputS- Structure'!6:6,'InputS- Structure'!7:7)*AD6 -> 0 | AE13: =LOOKUP(AE11,'InputS- Structure'!6:6,'InputS- Structure'!7:7)*AE6 -> 0 | AF13: =LOOKUP(AF11,'InputS- Structure'!6:6,'InputS- Structure'!7:7)*AF6 -> 0 | AG13: =LOOKUP(AG11,'InputS- Structure'!6:6,'InputS- Structure'!7:7)*AG6 -> 0 | AH13: =LOOKUP(AH11,'InputS- Structure'!6:6,'InputS- Structure'!7:7)*AH6 -> 0 | AI13: =LOOKUP(AI11,'InputS- Structure'!6:6,'InputS- Structure'!7:7)*AI6 -> 0 | AJ13: =LOOKUP(AJ11,'InputS- Structure'!6:6,'InputS- Structure'!7:7)*AJ6 -> 0 | AK13: =LOOKUP(AK11,'InputS- Structure'!6:6,'InputS- Structure'!7:7)*AK6 -> 0 | AL13: =LOOKUP(AL11,'InputS- Structure'!6:6,'InputS- Structure'!7:7)*AL6 -> 0 | AM13: =LOOKUP(AM11,'InputS- Structure'!6:6,'InputS- Structure'!7:7)*AM6 -> 0 | AN13: =LOOKUP(AN11,'InputS- Structure'!6:6,'InputS- Structure'!7:7)*AN6 -> 0 | AO13: =LOOKUP(AO11,'InputS- Structure'!6:6,'InputS- Structure'!7:7)*AO6 -> 0 | AP13: =LOOKUP(AP11,'InputS- Structure'!6:6,'InputS- Structure'!7:7)*AP6 -> 0 | AQ13: =LOOKUP(AQ11,'InputS- Structure'!6:6,'InputS- Structure'!7:7)*AQ6 -> 0 | AR13: =LOOKUP(AR11,'InputS- Structure'!6:6,'InputS- Structure'!7:7)*AR6 -> 0 | AS13: =LOOKUP(AS11,'InputS- Structure'!6:6,'InputS- Structure'!7:7)*AS6 -> 0 | AT13: =LOOKUP(AT11,'InputS- Structure'!6:6,'InputS- Structure'!7:7)*AT6 -> 0 | AU13: =LOOKUP(AU11,'InputS- Structure'!6:6,'InputS- Structure'!7:7)*AU6 -> 0 | AV13: =LOOKUP(AV11,'InputS- Structure'!6:6,'InputS- Structure'!7:7)*AV6 -> 0 | AW13: =LOOKUP(AW11,'InputS- Structure'!6:6,'InputS- Structure'!7:7)*AW6 -> 0 | AX13: =LOOKUP(AX11,'InputS- Structure'!6:6,'InputS- Structure'!7:7)*AX6 -> 0 | AY13: =LOOKUP(AY11,'InputS- Structure'!6:6,'InputS- Structure'!7:7)*AY6 -> 0 | AZ13: =LOOKUP(AZ11,'InputS- Structure'!6:6,'InputS- Structure'!7:7)*AZ6 -> 0 | BA13: =LOOKUP(BA11,'InputS- Structure'!6:6,'InputS- Structure'!7:7)*BA6 -> 0 | BB13: =LOOKUP(BB11,'InputS- Structure'!6:6,'InputS- Structure'!7:7)*BB6 -> 0 | BC13: =LOOKUP(BC11,'InputS- Structure'!6:6,'InputS- Structure'!7:7)*BC6 -> 0 | BD13: =LOOKUP(BD11,'InputS- Structure'!6:6,'InputS- Structure'!7:7)*BD6 -> 0 | BE13: =LOOKUP(BE11,'InputS- Structure'!6:6,'InputS- Structure'!7:7)*BE6 -> 0 | BF13: =LOOKUP(BF11,'InputS- Structure'!6:6,'InputS- Structure'!7:7)*BF6 -> 0 | BG13: =LOOKUP(BG11,'InputS- Structure'!6:6,'InputS- Structure'!7:7)*BG6 -> 0 | BH13: =LOOKUP(BH11,'InputS- Structure'!6:6,'InputS- Structure'!7:7)*BH6 -> 0 | BI13: =LOOKUP(BI11,'InputS- Structure'!6:6,'InputS- Structure'!7:7)*BI6 -> 0 | BJ13: =LOOKUP(BJ11,'InputS- Structure'!6:6,'InputS- Structure'!7:7)*BJ6 -> 0 | BK13: =LOOKUP(BK11,'InputS- Structure'!6:6,'InputS- Structure'!7:7)*BK6 -> 0 | BL13: =LOOKUP(BL11,'InputS- Structure'!6:6,'InputS- Structure'!7:7)*BL6 -> 0 | BM13: =LOOKUP(BM11,'InputS- Structure'!6:6,'InputS- Structure'!7:7)*BM6 -> 0 | BN13: =LOOKUP(BN11,'InputS- Structure'!6:6,'InputS- Structure'!7:7)*BN6 -> 0 | BO13: =LOOKUP(BO11,'InputS- Structure'!6:6,'InputS- Structure'!7:7)*BO6 -> 0 | BP13: =LOOKUP(BP11,'InputS- Structure'!6:6,'InputS- Structure'!7:7)*BP6 -> 0 | BQ13: =LOOKUP(BQ11,'InputS- Structure'!6:6,'InputS- Structure'!7:7)*BQ6 -> 0 | BR13: =LOOKUP(BR11,'InputS- Structure'!6:6,'InputS- Structure'!7:7)*BR6 -> 0 | BS13: =LOOKUP(BS11,'InputS- Structure'!6:6,'InputS- Structure'!7:7)*BS6 -> 0 | BT13: =LOOKUP(BT11,'InputS- Structure'!6:6,'InputS- Structure'!7:7)*BT6 -> 0 | BU13: =LOOKUP(BU11,'InputS- Structure'!6:6,'InputS- Structure'!7:7)*BU6 -> 0 | BV13: =LOOKUP(BV11,'InputS- Structure'!6:6,'InputS- Structure'!7:7)*BV6 -> 0 | BW13: =LOOKUP(BW11,'InputS- Structure'!6:6,'InputS- Structure'!7:7)*BW6 -> 0 | BX13: =LOOKUP(BX11,'InputS- Structure'!6:6,'InputS- Structure'!7:7)*BX6 -> 0 | BY13: =LOOKUP(BY11,'InputS- Structure'!6:6,'InputS- Structure'!7:7)*BY6 -> 0 | BZ13: =LOOKUP(BZ11,'InputS- Structure'!6:6,'InputS- Structure'!7:7)*BZ6 -> 0 | CA13: =LOOKUP(CA11,'InputS- Structure'!6:6,'InputS- Structure'!7:7)*CA6 -> 0 | CB13: =LOOKUP(CB11,'InputS- Structure'!6:6,'InputS- Structure'!7:7)*CB6 -> 0 | CC13: =LOOKUP(CC11,'InputS- Structure'!6:6,'InputS- Structure'!7:7)*CC6 -> 0 | CD13: =LOOKUP(CD11,'InputS- Structure'!6:6,'InputS- Structure'!7:7)*CD6 -> 0 | CE13: =LOOKUP(CE11,'InputS- Structure'!6:6,'InputS- Structure'!7:7)*CE6 -> 0 | CF13: =LOOKUP(CF11,'InputS- Structure'!6:6,'InputS- Structure'!7:7)*CF6 -> 0 | CG13: =LOOKUP(CG11,'InputS- Structure'!6:6,'InputS- Structure'!7:7)*CG6 -> 0 | CH13: =LOOKUP(CH11,'InputS- Structure'!6:6,'InputS- Structure'!7:7)*CH6 -> 0 | CI13: =LOOKUP(CI11,'InputS- Structure'!6:6,'InputS- Structure'!7:7)*CI6 -> 0 | CJ13: =LOOKUP(CJ11,'InputS- Structure'!6:6,'InputS- Structure'!7:7)*CJ6 -> 0 | CK13: =LOOKUP(CK11,'InputS- Structure'!6:6,'InputS- Structure'!7:7)*CK6 -> 0 | CL13: =LOOKUP(CL11,'InputS- Structure'!6:6,'InputS- Structure'!7:7)*CL6 -> 0 | CM13: =LOOKUP(CM11,'InputS- Structure'!6:6,'InputS- Structure'!7:7)*CM6 -> 0 | CN13: =LOOKUP(CN11,'InputS- Structure'!6:6,'InputS- Structure'!7:7)*CN6 -> 0 | CO13: =LOOKUP(CO11,'InputS- Structure'!6:6,'InputS- Structure'!7:7)*CO6 -> 0 | CP13: =LOOKUP(CP11,'InputS- Structure'!6:6,'InputS- Structure'!7:7)*CP6 -> 0 | CQ13: =LOOKUP(CQ11,'InputS- Structure'!6:6,'InputS- Structure'!7:7)*CQ6 -> 0 | CR13: =LOOKUP(CR11,'InputS- Structure'!6:6,'InputS- Structure'!7:7)*CR6 -> 0 | CS13: =LOOKUP(CS11,'InputS- Structure'!6:6,'InputS- Structure'!7:7)*CS6 -> 0 | CT13: =LOOKUP(CT11,'InputS- Structure'!6:6,'InputS- Structure'!7:7)*CT6 -> 0 | CU13: =LOOKUP(CU11,'InputS- Structure'!6:6,'InputS- Structure'!7:7)*CU6 -> 0 | CV13: =LOOKUP(CV11,'InputS- Structure'!6:6,'InputS- Structure'!7:7)*CV6 -> 0 | CW13: =LOOKUP(CW11,'InputS- Structure'!6:6,'InputS- Structure'!7:7)*CW6 -> 0 | CX13: =LOOKUP(CX11,'InputS- Structure'!6:6,'InputS- Structure'!7:7)*CX6 -> 0 | CY13: =LOOKUP(CY11,'InputS- Structure'!6:6,'InputS- Structure'!7:7)*CY6 -> 0 | CZ13: =LOOKUP(CZ11,'InputS- Structure'!6:6,'InputS- Structure'!7:7)*CZ6 -> 0 | DA13: =LOOKUP(DA11,'InputS- Structure'!6:6,'InputS- Structure'!7:7)*DA6 -> 0 | DB13: =LOOKUP(DB11,'InputS- Structure'!6:6,'InputS- Structure'!7:7)*DB6 -> 0 | DC13: =LOOKUP(DC11,'InputS- Structure'!6:6,'InputS- Structure'!7:7)*DC6 -> 0 | DD13: =LOOKUP(DD11,'InputS- Structure'!6:6,'InputS- Structure'!7:7)*DD6 -> 0 | DE13: =LOOKUP(DE11,'InputS- Structure'!6:6,'InputS- Structure'!7:7)*DE6 -> 0 | DF13: =LOOKUP(DF11,'InputS- Structure'!6:6,'InputS- Structure'!7:7)*DF6 -> 0 | DG13: =LOOKUP(DG11,'InputS- Structure'!6:6,'InputS- Structure'!7:7)*DG6 -> 0 | DH13: =LOOKUP(DH11,'InputS- Structure'!6:6,'InputS- Structure'!7:7)*DH6 -> 0 | DI13: =LOOKUP(DI11,'InputS- Structure'!6:6,'InputS- Structure'!7:7)*DI6 -> 0 | DJ13: =LOOKUP(DJ11,'InputS- Structure'!6:6,'InputS- Structure'!7:7)*DJ6 -> 0 | DK13: =LOOKUP(DK11,'InputS- Structure'!6:6,'InputS- Structure'!7:7)*DK6 -> 0 | DL13: =LOOKUP(DL11,'InputS- Structure'!6:6,'InputS- Structure'!7:7)*DL6 -> 0 | DM13: =LOOKUP(DM11,'InputS- Structure'!6:6,'InputS- Structure'!7:7)*DM6 -> 0 | DN13: =LOOKUP(DN11,'InputS- Structure'!6:6,'InputS- Structure'!7:7)*DN6 -> 0 | DO13: =LOOKUP(DO11,'InputS- Structure'!6:6,'InputS- Structure'!7:7)*DO6 -> 0 | DP13: =LOOKUP(DP11,'InputS- Structure'!6:6,'InputS- Structure'!7:7)*DP6 -> 0 | DQ13: =LOOKUP(DQ11,'InputS- Structure'!6:6,'InputS- Structure'!7:7)*DQ6 -> 0 | DR13: =LOOKUP(DR11,'InputS- Structure'!6:6,'InputS- Structure'!7:7)*DR6 -> 0 | DS13: =LOOKUP(DS11,'InputS- Structure'!6:6,'InputS- Structure'!7:7)*DS6 -> 0 | DT13: =LOOKUP(DT11,'InputS- Structure'!6:6,'InputS- Structure'!7:7)*DT6 -> 0 | DU13: =LOOKUP(DU11,'InputS- Structure'!6:6,'InputS- Structure'!7:7)*DU6 -> 0 | DV13: =LOOKUP(DV11,'InputS- Structure'!6:6,'InputS- Structure'!7:7)*DV6 -> 0 | DW13: =LOOKUP(DW11,'InputS- Structure'!6:6,'InputS- Structure'!7:7)*DW6 -> 0 | DX13: =LOOKUP(DX11,'InputS- Structure'!6:6,'InputS- Structure'!7:7)*DX6 -> 0 | DY13: =LOOKUP(DY11,'InputS- Structure'!6:6,'InputS- Structure'!7:7)*DY6 -> 0 | DZ13: =LOOKUP(DZ11,'InputS- Structure'!6:6,'InputS- Structure'!7:7)*DZ6 -> 0 | EA13: =LOOKUP(EA11,'InputS- Structure'!6:6,'InputS- Structure'!7:7)*EA6 -> 0 | EB13: =LOOKUP(EB11,'InputS- Structure'!6:6,'InputS- Structure'!7:7)*EB6 -> 0 | EC13: =LOOKUP(EC11,'InputS- Structure'!6:6,'InputS- Structure'!7:7)*EC6 -> 0 | ED13: =LOOKUP(ED11,'InputS- Structure'!6:6,'InputS- Structure'!7:7)*ED6 -> 0 | EE13: =LOOKUP(EE11,'InputS- Structure'!6:6,'InputS- Structure'!7:7)*EE6 -> 0
D14: Periodic Cap Exp | F14: EUR'000 | J14: =SUM(L14:XFD14) -> 65000 | L14: =L12*L13 -> 0 | M14: =M12*M13 -> 22185.06395 | N14: 6422.239764 | O14: 0 | P14: 4281.493789 | Q14: 0 | R14: 8562.987578 | S14: 8562.987578 | T14: 8562.987578 | U14: 0 | V14: 0 | W14: 0 | X14: 4281.493789 | Y14: 2140.745975 | Z14: 0 | AA14: 0 | AB14: 0 | AC14: 0 | AD14: 0 | AE14: 0 | AF14: 0 | AG14: 0 | AH14: 0 | AI14: 0 | AJ14: 0 | AK14: 0 | AL14: 0 | AM14: 0 | AN14: 0 | AO14: 0 | AP14: 0 | AQ14: 0 | AR14: 0 | AS14: 0 | AT14: 0 | AU14: 0 | AV14: 0 | AW14: 0 | AX14: 0 | AY14: 0 | AZ14: 0 | BA14: 0 | BB14: 0 | BC14: 0 | BD14: 0 | BE14: 0 | BF14: 0 | BG14: 0 | BH14: 0 | BI14: 0 | BJ14: 0 | BK14: 0 | BL14: 0 | BM14: 0 | BN14: 0 | BO14: 0 | BP14: 0 | BQ14: 0 | BR14: 0 | BS14: 0 | BT14: 0 | BU14: 0 | BV14: 0 | BW14: 0 | BX14: 0 | BY14: =BY12*BY13 -> 0 | BZ14: 0 | CA14: 0 | CB14: 0 | CC14: 0 | CD14: 0 | CE14: 0 | CF14: 0 | CG14: 0 | CH14: 0 | CI14: 0 | CJ14: 0 | CK14: 0 | CL14: 0 | CM14: 0 | CN14: 0 | CO14: 0 | CP14: 0 | CQ14: 0 | CR14: 0 | CS14: 0 | CT14: 0 | CU14: 0 | CV14: 0 | CW14: 0 | CX14: 0 | CY14: 0 | CZ14: 0 | DA14: 0 | DB14: 0 | DC14: 0 | DD14: 0 | DE14: 0 | DF14: 0 | DG14: 0 | DH14: 0 | DI14: 0 | DJ14: 0 | DK14: 0 | DL14: 0 | DM14: 0 | DN14: 0 | DO14: 0 | DP14: 0 | DQ14: 0 | DR14: 0 | DS14: 0 | DT14: 0 | DU14: 0 | DV14: 0 | DW14: 0 | DX14: 0 | DY14: 0 | DZ14: 0 | EA14: 0 | EB14: 0 | EC14: 0 | ED14: 0 | EE14: 0
D16: Operating Period | F16: Counter | L16: =K16+L7 -> 0 | M16: =L16+M7 -> 0 | N16: 0 | O16: 0 | P16: 0 | Q16: 0 | R16: 0 | S16: 0 | T16: 0 | U16: 0 | V16: 0 | W16: 0 | X16: 0 | Y16: 0 | Z16: 1 | AA16: 2 | AB16: 3 | AC16: 4 | AD16: 5 | AE16: 6 | AF16: 7 | AG16: 8 | AH16: 9 | AI16: 10 | AJ16: 11 | AK16: 12 | AL16: 13 | AM16: 14 | AN16: 15 | AO16: 16 | AP16: 17 | AQ16: 18 | AR16: 19 | AS16: 20 | AT16: 21 | AU16: 22 | AV16: 23 | AW16: 24 | AX16: 25 | AY16: 26 | AZ16: 27 | BA16: 28 | BB16: 29 | BC16: 30 | BD16: 31 | BE16: 32 | BF16: 33 | BG16: 34 | BH16: 35 | BI16: 36 | BJ16: 37 | BK16: 38 | BL16: 39 | BM16: 40 | BN16: 41 | BO16: 42 | BP16: 43 | BQ16: 44 | BR16: 45 | BS16: 46 | BT16: 47 | BU16: 48 | BV16: 49 | BW16: 50 | BX16: 51 | BY16: =BX16+BY7 -> 52 | BZ16: 53 | CA16: 54 | CB16: 55 | CC16: 56 | CD16: 57 | CE16: 58 | CF16: 59 | CG16: 59 | CH16: 59 | CI16: 59 | CJ16: 59 | CK16: 59 | CL16: 59 | CM16: 59 | CN16: 59 | CO16: 59 | CP16: 59 | CQ16: 59 | CR16: 59 | CS16: 59 | CT16: 59 | CU16: 59 | CV16: 59 | CW16: 59 | CX16: 59 | CY16: 59 | CZ16: 59 | DA16: 59 | DB16: 59 | DC16: 59 | DD16: 59 | DE16: 59 | DF16: 59 | DG16: 59 | DH16: 59 | DI16: 59 | DJ16: 59 | DK16: 59 | DL16: 59 | DM16: 59 | DN16: 59 | DO16: 59 | DP16: 59 | DQ16: 59 | DR16: 59 | DS16: 59 | DT16: 59 | DU16: 59 | DV16: 59 | DW16: 59 | DX16: 59 | DY16: 59 | DZ16: 59 | EA16: 59 | EB16: 59 | EC16: 59 | ED16: 59 | EE16: 59
D17: Base CFADS | F17: EUR'000 | J17: =SUM(L17:XFD17) -> 169343.8857 | L17: =LOOKUP(L$16,'InputS- Structure'!$14:$14,'InputS- Structure'!$27:$27)*L7 -> 0 | M17: =LOOKUP(M$16,'InputS- Structure'!$14:$14,'InputS- Structure'!$27:$27)*M7 -> 0 | N17: =LOOKUP(N$16,'InputS- Structure'!$14:$14,'InputS- Structure'!$27:$27)*N7 -> 0 | O17: =LOOKUP(O$16,'InputS- Structure'!$14:$14,'InputS- Structure'!$27:$27)*O7 -> 0 | P17: =LOOKUP(P$16,'InputS- Structure'!$14:$14,'InputS- Structure'!$27:$27)*P7 -> 0 | Q17: =LOOKUP(Q$16,'InputS- Structure'!$14:$14,'InputS- Structure'!$27:$27)*Q7 -> 0 | R17: =LOOKUP(R$16,'InputS- Structure'!$14:$14,'InputS- Structure'!$27:$27)*R7 -> 0 | S17: =LOOKUP(S$16,'InputS- Structure'!$14:$14,'InputS- Structure'!$27:$27)*S7 -> 0 | T17: =LOOKUP(T$16,'InputS- Structure'!$14:$14,'InputS- Structure'!$27:$27)*T7 -> 0 | U17: =LOOKUP(U$16,'InputS- Structure'!$14:$14,'InputS- Structure'!$27:$27)*U7 -> 0 | V17: =LOOKUP(V$16,'InputS- Structure'!$14:$14,'InputS- Structure'!$27:$27)*V7 -> 0 | W17: =LOOKUP(W$16,'InputS- Structure'!$14:$14,'InputS- Structure'!$27:$27)*W7 -> 0 | X17: =LOOKUP(X$16,'InputS- Structure'!$14:$14,'InputS- Structure'!$27:$27)*X7 -> 0 | Y17: =LOOKUP(Y$16,'InputS- Structure'!$14:$14,'InputS- Structure'!$27:$27)*Y7 -> 0 | Z17: =LOOKUP(Z$16,'InputS- Structure'!$14:$14,'InputS- Structure'!$27:$27)*Z7 -> 2909.617547 | AA17: =LOOKUP(AA$16,'InputS- Structure'!$14:$14,'InputS- Structure'!$27:$27)*AA7 -> 2909.617547 | AB17: =LOOKUP(AB$16,'InputS- Structure'!$14:$14,'InputS- Structure'!$27:$27)*AB7 -> 2989.367044 | AC17: =LOOKUP(AC$16,'InputS- Structure'!$14:$14,'InputS- Structure'!$27:$27)*AC7 -> 2892.593285 | AD17: =LOOKUP(AD$16,'InputS- Structure'!$14:$14,'InputS- Structure'!$27:$27)*AD7 -> 3000.021672 | AE17: =LOOKUP(AE$16,'InputS- Structure'!$14:$14,'InputS- Structure'!$27:$27)*AE7 -> 2909.742019 | AF17: =LOOKUP(AF$16,'InputS- Structure'!$14:$14,'InputS- Structure'!$27:$27)*AF7 -> 2996.994703 | AG17: =LOOKUP(AG$16,'InputS- Structure'!$14:$14,'InputS- Structure'!$27:$27)*AG7 -> 2849.226766 | AH17: =LOOKUP(AH$16,'InputS- Structure'!$14:$14,'InputS- Structure'!$27:$27)*AH7 -> 2931.232153 | AI17: =LOOKUP(AI$16,'InputS- Structure'!$14:$14,'InputS- Structure'!$27:$27)*AI7 -> 2839.356195 | AJ17: =LOOKUP(AJ$16,'InputS- Structure'!$14:$14,'InputS- Structure'!$27:$27)*AJ7 -> 2926.54476 | AK17: =LOOKUP(AK$16,'InputS- Structure'!$14:$14,'InputS- Structure'!$27:$27)*AK7 -> 2839.109514 | AL17: =LOOKUP(AL$16,'InputS- Structure'!$14:$14,'InputS- Structure'!$27:$27)*AL7 -> 2926.821182 | AM17: =LOOKUP(AM$16,'InputS- Structure'!$14:$14,'InputS- Structure'!$27:$27)*AM7 -> 2839.492382 | AN17: =LOOKUP(AN$16,'InputS- Structure'!$14:$14,'InputS- Structure'!$27:$27)*AN7 -> 2927.385937 | AO17: =LOOKUP(AO$16,'InputS- Structure'!$14:$14,'InputS- Structure'!$27:$27)*AO7 -> 2840.339271 | AP17: =LOOKUP(AP$16,'InputS- Structure'!$14:$14,'InputS- Structure'!$27:$27)*AP7 -> 2923.301915 | AQ17: =LOOKUP(AQ$16,'InputS- Structure'!$14:$14,'InputS- Structure'!$27:$27)*AQ7 -> 2842.07159 | AR17: =LOOKUP(AR$16,'InputS- Structure'!$14:$14,'InputS- Structure'!$27:$27)*AR7 -> 2930.082711 | AS17: =LOOKUP(AS$16,'InputS- Structure'!$14:$14,'InputS- Structure'!$27:$27)*AS7 -> 2757.818267 | AT17: =LOOKUP(AT$16,'InputS- Structure'!$14:$14,'InputS- Structure'!$27:$27)*AT7 -> 2897.849112 | AU17: =LOOKUP(AU$16,'InputS- Structure'!$14:$14,'InputS- Structure'!$27:$27)*AU7 -> 2810.714068 | AV17: =LOOKUP(AV$16,'InputS- Structure'!$14:$14,'InputS- Structure'!$27:$27)*AV7 -> 2900.149132 | AW17: =LOOKUP(AW$16,'InputS- Structure'!$14:$14,'InputS- Structure'!$27:$27)*AW7 -> 2812.952322 | AX17: =LOOKUP(AX$16,'InputS- Structure'!$14:$14,'InputS- Structure'!$27:$27)*AX7 -> 2897.27911 | AY17: =LOOKUP(AY$16,'InputS- Structure'!$14:$14,'InputS- Structure'!$27:$27)*AY7 -> 2816.15025 | AZ17: =LOOKUP(AZ$16,'InputS- Structure'!$14:$14,'InputS- Structure'!$27:$27)*AZ7 -> 2905.719984 | BA17: =LOOKUP(BA$16,'InputS- Structure'!$14:$14,'InputS- Structure'!$27:$27)*BA7 -> 2819.204207 | BB17: =LOOKUP(BB$16,'InputS- Structure'!$14:$14,'InputS- Structure'!$27:$27)*BB7 -> 2909.536179 | BC17: =LOOKUP(BC$16,'InputS- Structure'!$14:$14,'InputS- Structure'!$27:$27)*BC7 -> 2823.435827 | BD17: =LOOKUP(BD$16,'InputS- Structure'!$14:$14,'InputS- Structure'!$27:$27)*BD7 -> 2914.113146 | BE17: =LOOKUP(BE$16,'InputS- Structure'!$14:$14,'InputS- Structure'!$27:$27)*BE7 -> 2828.845051 | BF17: =LOOKUP(BF$16,'InputS- Structure'!$14:$14,'InputS- Structure'!$27:$27)*BF7 -> 2839.492382 | BG17: =LOOKUP(BG$16,'InputS- Structure'!$14:$14,'InputS- Structure'!$27:$27)*BG7 -> 2927.385937 | BH17: =LOOKUP(BH$16,'InputS- Structure'!$14:$14,'InputS- Structure'!$27:$27)*BH7 -> 2840.339271 | BI17: =LOOKUP(BI$16,'InputS- Structure'!$14:$14,'InputS- Structure'!$27:$27)*BI7 -> 2923.301915 | BJ17: =LOOKUP(BJ$16,'InputS- Structure'!$14:$14,'InputS- Structure'!$27:$27)*BJ7 -> 2842.07159 | BK17: =LOOKUP(BK$16,'InputS- Structure'!$14:$14,'InputS- Structure'!$27:$27)*BK7 -> 2930.082711 | BL17: =LOOKUP(BL$16,'InputS- Structure'!$14:$14,'InputS- Structure'!$27:$27)*BL7 -> 2757.818267 | BM17: =LOOKUP(BM$16,'InputS- Structure'!$14:$14,'InputS- Structure'!$27:$27)*BM7 -> 2897.849112 | BN17: =LOOKUP(BN$16,'InputS- Structure'!$14:$14,'InputS- Structure'!$27:$27)*BN7 -> 2810.714068 | BO17: =LOOKUP(BO$16,'InputS- Structure'!$14:$14,'InputS- Structure'!$27:$27)*BO7 -> 2900.149132 | BP17: =LOOKUP(BP$16,'InputS- Structure'!$14:$14,'InputS- Structure'!$27:$27)*BP7 -> 2812.952322 | BQ17: =LOOKUP(BQ$16,'InputS- Structure'!$14:$14,'InputS- Structure'!$27:$27)*BQ7 -> 2897.27911 | BR17: =LOOKUP(BR$16,'InputS- Structure'!$14:$14,'InputS- Structure'!$27:$27)*BR7 -> 2816.15025 | BS17: =LOOKUP(BS$16,'InputS- Structure'!$14:$14,'InputS- Structure'!$27:$27)*BS7 -> 2905.719984 | BT17: =LOOKUP(BT$16,'InputS- Structure'!$14:$14,'InputS- Structure'!$27:$27)*BT7 -> 2819.204207 | BU17: =LOOKUP(BU$16,'InputS- Structure'!$14:$14,'InputS- Structure'!$27:$27)*BU7 -> 2909.536179 | BV17: =LOOKUP(BV$16,'InputS- Structure'!$14:$14,'InputS- Structure'!$27:$27)*BV7 -> 2823.435827 | BW17: =LOOKUP(BW$16,'InputS- Structure'!$14:$14,'InputS- Structure'!$27:$27)*BW7 -> 2914.113146 | BX17: =LOOKUP(BX$16,'InputS- Structure'!$14:$14,'InputS- Structure'!$27:$27)*BX7 -> 2828.845051 | BY17: =LOOKUP(BY$16,'InputS- Structure'!$14:$14,'InputS- Structure'!$27:$27)*BY7 -> 2828.845051 | BZ17: =LOOKUP(BZ$16,'InputS- Structure'!$14:$14,'InputS- Structure'!$27:$27)*BZ7 -> 2828.845051 | CA17: =LOOKUP(CA$16,'InputS- Structure'!$14:$14,'InputS- Structure'!$27:$27)*CA7 -> 2828.845051 | CB17: =LOOKUP(CB$16,'InputS- Structure'!$14:$14,'InputS- Structure'!$27:$27)*CB7 -> 2828.845051 | CC17: =LOOKUP(CC$16,'InputS- Structure'!$14:$14,'InputS- Structure'!$27:$27)*CC7 -> 2828.845051 | CD17: =LOOKUP(CD$16,'InputS- Structure'!$14:$14,'InputS- Structure'!$27:$27)*CD7 -> 2828.845051 | CE17: =LOOKUP(CE$16,'InputS- Structure'!$14:$14,'InputS- Structure'!$27:$27)*CE7 -> 2828.845051 | CF17: =LOOKUP(CF$16,'InputS- Structure'!$14:$14,'InputS- Structure'!$27:$27)*CF7 -> 2828.845051 | CG17: =LOOKUP(CG$16,'InputS- Structure'!$14:$14,'InputS- Structure'!$27:$27)*CG7 -> 0 | CH17: =LOOKUP(CH$16,'InputS- Structure'!$14:$14,'InputS- Structure'!$27:$27)*CH7 -> 0 | CI17: =LOOKUP(CI$16,'InputS- Structure'!$14:$14,'InputS- Structure'!$27:$27)*CI7 -> 0 | CJ17: =LOOKUP(CJ$16,'InputS- Structure'!$14:$14,'InputS- Structure'!$27:$27)*CJ7 -> 0 | CK17: =LOOKUP(CK$16,'InputS- Structure'!$14:$14,'InputS- Structure'!$27:$27)*CK7 -> 0 | CL17: =LOOKUP(CL$16,'InputS- Structure'!$14:$14,'InputS- Structure'!$27:$27)*CL7 -> 0 | CM17: =LOOKUP(CM$16,'InputS- Structure'!$14:$14,'InputS- Structure'!$27:$27)*CM7 -> 0 | CN17: =LOOKUP(CN$16,'InputS- Structure'!$14:$14,'InputS- Structure'!$27:$27)*CN7 -> 0 | CO17: =LOOKUP(CO$16,'InputS- Structure'!$14:$14,'InputS- Structure'!$27:$27)*CO7 -> 0 | CP17: =LOOKUP(CP$16,'InputS- Structure'!$14:$14,'InputS- Structure'!$27:$27)*CP7 -> 0 | CQ17: =LOOKUP(CQ$16,'InputS- Structure'!$14:$14,'InputS- Structure'!$27:$27)*CQ7 -> 0 | CR17: =LOOKUP(CR$16,'InputS- Structure'!$14:$14,'InputS- Structure'!$27:$27)*CR7 -> 0 | CS17: =LOOKUP(CS$16,'InputS- Structure'!$14:$14,'InputS- Structure'!$27:$27)*CS7 -> 0 | CT17: =LOOKUP(CT$16,'InputS- Structure'!$14:$14,'InputS- Structure'!$27:$27)*CT7 -> 0 | CU17: =LOOKUP(CU$16,'InputS- Structure'!$14:$14,'InputS- Structure'!$27:$27)*CU7 -> 0 | CV17: =LOOKUP(CV$16,'InputS- Structure'!$14:$14,'InputS- Structure'!$27:$27)*CV7 -> 0 | CW17: =LOOKUP(CW$16,'InputS- Structure'!$14:$14,'InputS- Structure'!$27:$27)*CW7 -> 0 | CX17: =LOOKUP(CX$16,'InputS- Structure'!$14:$14,'InputS- Structure'!$27:$27)*CX7 -> 0 | CY17: =LOOKUP(CY$16,'InputS- Structure'!$14:$14,'InputS- Structure'!$27:$27)*CY7 -> 0 | CZ17: =LOOKUP(CZ$16,'InputS- Structure'!$14:$14,'InputS- Structure'!$27:$27)*CZ7 -> 0 | DA17: =LOOKUP(DA$16,'InputS- Structure'!$14:$14,'InputS- Structure'!$27:$27)*DA7 -> 0 | DB17: =LOOKUP(DB$16,'InputS- Structure'!$14:$14,'InputS- Structure'!$27:$27)*DB7 -> 0 | DC17: =LOOKUP(DC$16,'InputS- Structure'!$14:$14,'InputS- Structure'!$27:$27)*DC7 -> 0 | DD17: =LOOKUP(DD$16,'InputS- Structure'!$14:$14,'InputS- Structure'!$27:$27)*DD7 -> 0 | DE17: =LOOKUP(DE$16,'InputS- Structure'!$14:$14,'InputS- Structure'!$27:$27)*DE7 -> 0 | DF17: =LOOKUP(DF$16,'InputS- Structure'!$14:$14,'InputS- Structure'!$27:$27)*DF7 -> 0 | DG17: =LOOKUP(DG$16,'InputS- Structure'!$14:$14,'InputS- Structure'!$27:$27)*DG7 -> 0 | DH17: =LOOKUP(DH$16,'InputS- Structure'!$14:$14,'InputS- Structure'!$27:$27)*DH7 -> 0 | DI17: =LOOKUP(DI$16,'InputS- Structure'!$14:$14,'InputS- Structure'!$27:$27)*DI7 -> 0 | DJ17: =LOOKUP(DJ$16,'InputS- Structure'!$14:$14,'InputS- Structure'!$27:$27)*DJ7 -> 0 | DK17: =LOOKUP(DK$16,'InputS- Structure'!$14:$14,'InputS- Structure'!$27:$27)*DK7 -> 0 | DL17: =LOOKUP(DL$16,'InputS- Structure'!$14:$14,'InputS- Structure'!$27:$27)*DL7 -> 0 | DM17: =LOOKUP(DM$16,'InputS- Structure'!$14:$14,'InputS- Structure'!$27:$27)*DM7 -> 0 | DN17: =LOOKUP(DN$16,'InputS- Structure'!$14:$14,'InputS- Structure'!$27:$27)*DN7 -> 0 | DO17: =LOOKUP(DO$16,'InputS- Structure'!$14:$14,'InputS- Structure'!$27:$27)*DO7 -> 0 | DP17: =LOOKUP(DP$16,'InputS- Structure'!$14:$14,'InputS- Structure'!$27:$27)*DP7 -> 0 | DQ17: =LOOKUP(DQ$16,'InputS- Structure'!$14:$14,'InputS- Structure'!$27:$27)*DQ7 -> 0 | DR17: =LOOKUP(DR$16,'InputS- Structure'!$14:$14,'InputS- Structure'!$27:$27)*DR7 -> 0 | DS17: =LOOKUP(DS$16,'InputS- Structure'!$14:$14,'InputS- Structure'!$27:$27)*DS7 -> 0 | DT17: =LOOKUP(DT$16,'InputS- Structure'!$14:$14,'InputS- Structure'!$27:$27)*DT7 -> 0 | DU17: =LOOKUP(DU$16,'InputS- Structure'!$14:$14,'InputS- Structure'!$27:$27)*DU7 -> 0 | DV17: =LOOKUP(DV$16,'InputS- Structure'!$14:$14,'InputS- Structure'!$27:$27)*DV7 -> 0 | DW17: =LOOKUP(DW$16,'InputS- Structure'!$14:$14,'InputS- Structure'!$27:$27)*DW7 -> 0 | DX17: =LOOKUP(DX$16,'InputS- Structure'!$14:$14,'InputS- Structure'!$27:$27)*DX7 -> 0 | DY17: =LOOKUP(DY$16,'InputS- Structure'!$14:$14,'InputS- Structure'!$27:$27)*DY7 -> 0 | DZ17: =LOOKUP(DZ$16,'InputS- Structure'!$14:$14,'InputS- Structure'!$27:$27)*DZ7 -> 0 | EA17: =LOOKUP(EA$16,'InputS- Structure'!$14:$14,'InputS- Structure'!$27:$27)*EA7 -> 0 | EB17: =LOOKUP(EB$16,'InputS- Structure'!$14:$14,'InputS- Structure'!$27:$27)*EB7 -> 0 | EC17: =LOOKUP(EC$16,'InputS- Structure'!$14:$14,'InputS- Structure'!$27:$27)*EC7 -> 0 | ED17: =LOOKUP(ED$16,'InputS- Structure'!$14:$14,'InputS- Structure'!$27:$27)*ED7 -> 0 | EE17: =LOOKUP(EE$16,'InputS- Structure'!$14:$14,'InputS- Structure'!$27:$27)*EE7 -> 0
D18: Seasonal Factor | F18: Constant | L18: =LOOKUP(L1,'InputS- Structure'!14:14,'InputS- Structure'!35:35) -> 1 | M18: =LOOKUP(M1,'InputS- Structure'!14:14,'InputS- Structure'!35:35) -> 1 | N18: =LOOKUP(N1,'InputS- Structure'!14:14,'InputS- Structure'!35:35) -> 1 | O18: =LOOKUP(O1,'InputS- Structure'!14:14,'InputS- Structure'!35:35) -> 1 | P18: =LOOKUP(P1,'InputS- Structure'!14:14,'InputS- Structure'!35:35) -> 1 | Q18: =LOOKUP(Q1,'InputS- Structure'!14:14,'InputS- Structure'!35:35) -> 1 | R18: =LOOKUP(R1,'InputS- Structure'!14:14,'InputS- Structure'!35:35) -> 1 | S18: =LOOKUP(S1,'InputS- Structure'!14:14,'InputS- Structure'!35:35) -> 1 | T18: =LOOKUP(T1,'InputS- Structure'!14:14,'InputS- Structure'!35:35) -> 1 | U18: =LOOKUP(U1,'InputS- Structure'!14:14,'InputS- Structure'!35:35) -> 1 | V18: =LOOKUP(V1,'InputS- Structure'!14:14,'InputS- Structure'!35:35) -> 1 | W18: =LOOKUP(W1,'InputS- Structure'!14:14,'InputS- Structure'!35:35) -> 1 | X18: =LOOKUP(X1,'InputS- Structure'!14:14,'InputS- Structure'!35:35) -> 1 | Y18: =LOOKUP(Y1,'InputS- Structure'!14:14,'InputS- Structure'!35:35) -> 1 | Z18: =LOOKUP(Z1,'InputS- Structure'!14:14,'InputS- Structure'!35:35) -> 1 | AA18: =LOOKUP(AA1,'InputS- Structure'!14:14,'InputS- Structure'!35:35) -> 1 | AB18: =LOOKUP(AB1,'InputS- Structure'!14:14,'InputS- Structure'!35:35) -> 1 | AC18: =LOOKUP(AC1,'InputS- Structure'!14:14,'InputS- Structure'!35:35) -> 1 | AD18: =LOOKUP(AD1,'InputS- Structure'!14:14,'InputS- Structure'!35:35) -> 1 | AE18: =LOOKUP(AE1,'InputS- Structure'!14:14,'InputS- Structure'!35:35) -> 1 | AF18: =LOOKUP(AF1,'InputS- Structure'!14:14,'InputS- Structure'!35:35) -> 1 | AG18: =LOOKUP(AG1,'InputS- Structure'!14:14,'InputS- Structure'!35:35) -> 1 | AH18: =LOOKUP(AH1,'InputS- Structure'!14:14,'InputS- Structure'!35:35) -> 1 | AI18: =LOOKUP(AI1,'InputS- Structure'!14:14,'InputS- Structure'!35:35) -> 1 | AJ18: =LOOKUP(AJ1,'InputS- Structure'!14:14,'InputS- Structure'!35:35) -> 1 | AK18: =LOOKUP(AK1,'InputS- Structure'!14:14,'InputS- Structure'!35:35) -> 1 | AL18: =LOOKUP(AL1,'InputS- Structure'!14:14,'InputS- Structure'!35:35) -> 1 | AM18: =LOOKUP(AM1,'InputS- Structure'!14:14,'InputS- Structure'!35:35) -> 1 | AN18: =LOOKUP(AN1,'InputS- Structure'!14:14,'InputS- Structure'!35:35) -> 1 | AO18: =LOOKUP(AO1,'InputS- Structure'!14:14,'InputS- Structure'!35:35) -> 1 | AP18: =LOOKUP(AP1,'InputS- Structure'!14:14,'InputS- Structure'!35:35) -> 1 | AQ18: =LOOKUP(AQ1,'InputS- Structure'!14:14,'InputS- Structure'!35:35) -> 1 | AR18: =LOOKUP(AR1,'InputS- Structure'!14:14,'InputS- Structure'!35:35) -> 1 | AS18: =LOOKUP(AS1,'InputS- Structure'!14:14,'InputS- Structure'!35:35) -> 1 | AT18: =LOOKUP(AT1,'InputS- Structure'!14:14,'InputS- Structure'!35:35) -> 1 | AU18: =LOOKUP(AU1,'InputS- Structure'!14:14,'InputS- Structure'!35:35) -> 1 | AV18: =LOOKUP(AV1,'InputS- Structure'!14:14,'InputS- Structure'!35:35) -> 1 | AW18: =LOOKUP(AW1,'InputS- Structure'!14:14,'InputS- Structure'!35:35) -> 1 | AX18: =LOOKUP(AX1,'InputS- Structure'!14:14,'InputS- Structure'!35:35) -> 1 | AY18: =LOOKUP(AY1,'InputS- Structure'!14:14,'InputS- Structure'!35:35) -> 1 | AZ18: =LOOKUP(AZ1,'InputS- Structure'!14:14,'InputS- Structure'!35:35) -> 1 | BA18: =LOOKUP(BA1,'InputS- Structure'!14:14,'InputS- Structure'!35:35) -> 1 | BB18: =LOOKUP(BB1,'InputS- Structure'!14:14,'InputS- Structure'!35:35) -> 1 | BC18: =LOOKUP(BC1,'InputS- Structure'!14:14,'InputS- Structure'!35:35) -> 1 | BD18: =LOOKUP(BD1,'InputS- Structure'!14:14,'InputS- Structure'!35:35) -> 1 | BE18: =LOOKUP(BE1,'InputS- Structure'!14:14,'InputS- Structure'!35:35) -> 1 | BF18: =LOOKUP(BF1,'InputS- Structure'!14:14,'InputS- Structure'!35:35) -> 1 | BG18: =LOOKUP(BG1,'InputS- Structure'!14:14,'InputS- Structure'!35:35) -> 1 | BH18: =LOOKUP(BH1,'InputS- Structure'!14:14,'InputS- Structure'!35:35) -> 1 | BI18: =LOOKUP(BI1,'InputS- Structure'!14:14,'InputS- Structure'!35:35) -> 1 | BJ18: =LOOKUP(BJ1,'InputS- Structure'!14:14,'InputS- Structure'!35:35) -> 1 | BK18: =LOOKUP(BK1,'InputS- Structure'!14:14,'InputS- Structure'!35:35) -> 1 | BL18: =LOOKUP(BL1,'InputS- Structure'!14:14,'InputS- Structure'!35:35) -> 1 | BM18: =LOOKUP(BM1,'InputS- Structure'!14:14,'InputS- Structure'!35:35) -> 1 | BN18: =LOOKUP(BN1,'InputS- Structure'!14:14,'InputS- Structure'!35:35) -> 1 | BO18: =LOOKUP(BO1,'InputS- Structure'!14:14,'InputS- Structure'!35:35) -> 1 | BP18: =LOOKUP(BP1,'InputS- Structure'!14:14,'InputS- Structure'!35:35) -> 1 | BQ18: =LOOKUP(BQ1,'InputS- Structure'!14:14,'InputS- Structure'!35:35) -> 1 | BR18: =LOOKUP(BR1,'InputS- Structure'!14:14,'InputS- Structure'!35:35) -> 1 | BS18: =LOOKUP(BS1,'InputS- Structure'!14:14,'InputS- Structure'!35:35) -> 1 | BT18: =LOOKUP(BT1,'InputS- Structure'!14:14,'InputS- Structure'!35:35) -> 1 | BU18: =LOOKUP(BU1,'InputS- Structure'!14:14,'InputS- Structure'!35:35) -> 1 | BV18: =LOOKUP(BV1,'InputS- Structure'!14:14,'InputS- Structure'!35:35) -> 1 | BW18: =LOOKUP(BW1,'InputS- Structure'!14:14,'InputS- Structure'!35:35) -> 1 | BX18: =LOOKUP(BX1,'InputS- Structure'!14:14,'InputS- Structure'!35:35) -> 1 | BY18: =LOOKUP(BY1,'InputS- Structure'!14:14,'InputS- Structure'!35:35) -> 1 | BZ18: =LOOKUP(BZ1,'InputS- Structure'!14:14,'InputS- Structure'!35:35) -> 1 | CA18: =LOOKUP(CA1,'InputS- Structure'!14:14,'InputS- Structure'!35:35) -> 1 | CB18: =LOOKUP(CB1,'InputS- Structure'!14:14,'InputS- Structure'!35:35) -> 1 | CC18: =LOOKUP(CC1,'InputS- Structure'!14:14,'InputS- Structure'!35:35) -> 1 | CD18: =LOOKUP(CD1,'InputS- Structure'!14:14,'InputS- Structure'!35:35) -> 1 | CE18: =LOOKUP(CE1,'InputS- Structure'!14:14,'InputS- Structure'!35:35) -> 1 | CF18: =LOOKUP(CF1,'InputS- Structure'!14:14,'InputS- Structure'!35:35) -> 1 | CG18: =LOOKUP(CG1,'InputS- Structure'!14:14,'InputS- Structure'!35:35) -> 1 | CH18: =LOOKUP(CH1,'InputS- Structure'!14:14,'InputS- Structure'!35:35) -> 1 | CI18: =LOOKUP(CI1,'InputS- Structure'!14:14,'InputS- Structure'!35:35) -> 1 | CJ18: =LOOKUP(CJ1,'InputS- Structure'!14:14,'InputS- Structure'!35:35) -> 1 | CK18: =LOOKUP(CK1,'InputS- Structure'!14:14,'InputS- Structure'!35:35) -> 1 | CL18: =LOOKUP(CL1,'InputS- Structure'!14:14,'InputS- Structure'!35:35) -> 1 | CM18: =LOOKUP(CM1,'InputS- Structure'!14:14,'InputS- Structure'!35:35) -> 1 | CN18: =LOOKUP(CN1,'InputS- Structure'!14:14,'InputS- Structure'!35:35) -> 1 | CO18: =LOOKUP(CO1,'InputS- Structure'!14:14,'InputS- Structure'!35:35) -> 1 | CP18: =LOOKUP(CP1,'InputS- Structure'!14:14,'InputS- Structure'!35:35) -> 1 | CQ18: =LOOKUP(CQ1,'InputS- Structure'!14:14,'InputS- Structure'!35:35) -> 1 | CR18: =LOOKUP(CR1,'InputS- Structure'!14:14,'InputS- Structure'!35:35) -> 1 | CS18: =LOOKUP(CS1,'InputS- Structure'!14:14,'InputS- Structure'!35:35) -> 1 | CT18: =LOOKUP(CT1,'InputS- Structure'!14:14,'InputS- Structure'!35:35) -> 1 | CU18: =LOOKUP(CU1,'InputS- Structure'!14:14,'InputS- Structure'!35:35) -> 1 | CV18: =LOOKUP(CV1,'InputS- Structure'!14:14,'InputS- Structure'!35:35) -> 1 | CW18: =LOOKUP(CW1,'InputS- Structure'!14:14,'InputS- Structure'!35:35) -> 1 | CX18: =LOOKUP(CX1,'InputS- Structure'!14:14,'InputS- Structure'!35:35) -> 1 | CY18: =LOOKUP(CY1,'InputS- Structure'!14:14,'InputS- Structure'!35:35) -> 1 | CZ18: =LOOKUP(CZ1,'InputS- Structure'!14:14,'InputS- Structure'!35:35) -> 1 | DA18: =LOOKUP(DA1,'InputS- Structure'!14:14,'InputS- Structure'!35:35) -> 1 | DB18: =LOOKUP(DB1,'InputS- Structure'!14:14,'InputS- Structure'!35:35) -> 1 | DC18: =LOOKUP(DC1,'InputS- Structure'!14:14,'InputS- Structure'!35:35) -> 1 | DD18: =LOOKUP(DD1,'InputS- Structure'!14:14,'InputS- Structure'!35:35) -> 1 | DE18: =LOOKUP(DE1,'InputS- Structure'!14:14,'InputS- Structure'!35:35) -> 1 | DF18: =LOOKUP(DF1,'InputS- Structure'!14:14,'InputS- Structure'!35:35) -> 1 | DG18: =LOOKUP(DG1,'InputS- Structure'!14:14,'InputS- Structure'!35:35) -> 1 | DH18: =LOOKUP(DH1,'InputS- Structure'!14:14,'InputS- Structure'!35:35) -> 1 | DI18: =LOOKUP(DI1,'InputS- Structure'!14:14,'InputS- Structure'!35:35) -> 1 | DJ18: =LOOKUP(DJ1,'InputS- Structure'!14:14,'InputS- Structure'!35:35) -> 1 | DK18: =LOOKUP(DK1,'InputS- Structure'!14:14,'InputS- Structure'!35:35) -> 1 | DL18: =LOOKUP(DL1,'InputS- Structure'!14:14,'InputS- Structure'!35:35) -> 1 | DM18: =LOOKUP(DM1,'InputS- Structure'!14:14,'InputS- Structure'!35:35) -> 1 | DN18: =LOOKUP(DN1,'InputS- Structure'!14:14,'InputS- Structure'!35:35) -> 1 | DO18: =LOOKUP(DO1,'InputS- Structure'!14:14,'InputS- Structure'!35:35) -> 1 | DP18: =LOOKUP(DP1,'InputS- Structure'!14:14,'InputS- Structure'!35:35) -> 1 | DQ18: =LOOKUP(DQ1,'InputS- Structure'!14:14,'InputS- Structure'!35:35) -> 1 | DR18: =LOOKUP(DR1,'InputS- Structure'!14:14,'InputS- Structure'!35:35) -> 1 | DS18: =LOOKUP(DS1,'InputS- Structure'!14:14,'InputS- Structure'!35:35) -> 1 | DT18: =LOOKUP(DT1,'InputS- Structure'!14:14,'InputS- Structure'!35:35) -> 1 | DU18: =LOOKUP(DU1,'InputS- Structure'!14:14,'InputS- Structure'!35:35) -> 1 | DV18: =LOOKUP(DV1,'InputS- Structure'!14:14,'InputS- Structure'!35:35) -> 1 | DW18: =LOOKUP(DW1,'InputS- Structure'!14:14,'InputS- Structure'!35:35) -> 1 | DX18: =LOOKUP(DX1,'InputS- Structure'!14:14,'InputS- Structure'!35:35) -> 1 | DY18: =LOOKUP(DY1,'InputS- Structure'!14:14,'InputS- Structure'!35:35) -> 1 | DZ18: =LOOKUP(DZ1,'InputS- Structure'!14:14,'InputS- Structure'!35:35) -> 1 | EA18: =LOOKUP(EA1,'InputS- Structure'!14:14,'InputS- Structure'!35:35) -> 1 | EB18: =LOOKUP(EB1,'InputS- Structure'!14:14,'InputS- Structure'!35:35) -> 1 | EC18: =LOOKUP(EC1,'InputS- Structure'!14:14,'InputS- Structure'!35:35) -> 1 | ED18: =LOOKUP(ED1,'InputS- Structure'!14:14,'InputS- Structure'!35:35) -> 1 | EE18: =LOOKUP(EE1,'InputS- Structure'!14:14,'InputS- Structure'!35:35) -> 1
D19: CFADS | F19: EUR'000 | J19: =SUM(L19:XFD19) -> 169343.8857 | L19: =L17*L18 -> 0 | M19: =M17*M18 -> 0 | N19: 0 | O19: 0 | P19: 0 | Q19: 0 | R19: 0 | S19: 0 | T19: 0 | U19: 0 | V19: 0 | W19: 0 | X19: 0 | Y19: 0 | Z19: 2909.617547 | AA19: 2909.617547 | AB19: 2989.367044 | AC19: 2892.593285 | AD19: 3000.021672 | AE19: 2909.742019 | AF19: 2996.994703 | AG19: 2849.226766 | AH19: 2931.232153 | AI19: 2839.356195 | AJ19: 2926.54476 | AK19: 2839.109514 | AL19: 2926.821182 | AM19: 2839.492382 | AN19: 2927.385937 | AO19: 2840.339271 | AP19: 2923.301915 | AQ19: 2842.07159 | AR19: 2930.082711 | AS19: 2757.818267 | AT19: 2897.849112 | AU19: 2810.714068 | AV19: 2900.149132 | AW19: 2812.952322 | AX19: 2897.27911 | AY19: 2816.15025 | AZ19: 2905.719984 | BA19: 2819.204207 | BB19: 2909.536179 | BC19: 2823.435827 | BD19: 2914.113146 | BE19: 2828.845051 | BF19: 2839.492382 | BG19: 2927.385937 | BH19: 2840.339271 | BI19: 2923.301915 | BJ19: 2842.07159 | BK19: 2930.082711 | BL19: 2757.818267 | BM19: 2897.849112 | BN19: 2810.714068 | BO19: 2900.149132 | BP19: 2812.952322 | BQ19: 2897.27911 | BR19: 2816.15025 | BS19: 2905.719984 | BT19: 2819.204207 | BU19: 2909.536179 | BV19: 2823.435827 | BW19: 2914.113146 | BX19: 2828.845051 | BY19: =BY17*BY18 -> 2828.845051 | BZ19: 2828.845051 | CA19: 2828.845051 | CB19: 2828.845051 | CC19: 2828.845051 | CD19: 2828.845051 | CE19: 2828.845051 | CF19: 2828.845051 | CG19: 0 | CH19: 0 | CI19: 0 | CJ19: 0 | CK19: 0 | CL19: 0 | CM19: 0 | CN19: 0 | CO19: 0 | CP19: 0 | CQ19: 0 | CR19: 0 | CS19: 0 | CT19: 0 | CU19: 0 | CV19: 0 | CW19: 0 | CX19: 0 | CY19: 0 | CZ19: 0 | DA19: 0 | DB19: 0 | DC19: 0 | DD19: 0 | DE19: 0 | DF19: 0 | DG19: 0 | DH19: 0 | DI19: 0 | DJ19: 0 | DK19: 0 | DL19: 0 | DM19: 0 | DN19: 0 | DO19: 0 | DP19: 0 | DQ19: 0 | DR19: 0 | DS19: 0 | DT19: 0 | DU19: 0 | DV19: 0 | DW19: 0 | DX19: 0 | DY19: 0 | DZ19: 0 | EA19: 0 | EB19: 0 | EC19: 0 | ED19: 0 | EE19: 0
D21: Net Operating Cash Flow | F21: EUR'000 | J21: =SUM(L21:XFD21) -> 104343.8857 | L21: =L14-0.000001 -> -1e-06 | M21: =M19-M14 -> -22185.06395 | N21: =N19-N14 -> -6422.239764 | O21: 0 | P21: -4281.493789 | Q21: 0 | R21: -8562.987578 | S21: -8562.987578 | T21: -8562.987578 | U21: 0 | V21: 0 | W21: 0 | X21: -4281.493789 | Y21: -2140.745975 | Z21: 2909.617547 | AA21: 2909.617547 | AB21: 2989.367044 | AC21: 2892.593285 | AD21: 3000.021672 | AE21: 2909.742019 | AF21: 2996.994703 | AG21: 2849.226766 | AH21: 2931.232153 | AI21: 2839.356195 | AJ21: 2926.54476 | AK21: 2839.109514 | AL21: 2926.821182 | AM21: 2839.492382 | AN21: 2927.385937 | AO21: 2840.339271 | AP21: 2923.301915 | AQ21: 2842.07159 | AR21: 2930.082711 | AS21: 2757.818267 | AT21: 2897.849112 | AU21: 2810.714068 | AV21: 2900.149132 | AW21: 2812.952322 | AX21: 2897.27911 | AY21: 2816.15025 | AZ21: 2905.719984 | BA21: 2819.204207 | BB21: 2909.536179 | BC21: 2823.435827 | BD21: 2914.113146 | BE21: 2828.845051 | BF21: 2839.492382 | BG21: 2927.385937 | BH21: 2840.339271 | BI21: 2923.301915 | BJ21: 2842.07159 | BK21: 2930.082711 | BL21: 2757.818267 | BM21: 2897.849112 | BN21: 2810.714068 | BO21: 2900.149132 | BP21: 2812.952322 | BQ21: 2897.27911 | BR21: 2816.15025 | BS21: 2905.719984 | BT21: 2819.204207 | BU21: 2909.536179 | BV21: 2823.435827 | BW21: 2914.113146 | BX21: 2828.845051 | BY21: 2828.845051 | BZ21: =BZ19-BZ14 -> 2828.845051 | CA21: 2828.845051 | CB21: 2828.845051 | CC21: 2828.845051 | CD21: 2828.845051 | CE21: 2828.845051 | CF21: 2828.845051 | CG21: 0 | CH21: 0 | CI21: 0 | CJ21: 0 | CK21: 0 | CL21: 0 | CM21: 0 | CN21: 0 | CO21: 0 | CP21: 0 | CQ21: 0 | CR21: 0 | CS21: 0 | CT21: 0 | CU21: 0 | CV21: 0 | CW21: 0 | CX21: 0 | CY21: 0 | CZ21: 0 | DA21: 0 | DB21: 0 | DC21: 0 | DD21: 0 | DE21: 0 | DF21: 0 | DG21: 0 | DH21: 0 | DI21: 0 | DJ21: 0 | DK21: 0 | DL21: 0 | DM21: 0 | DN21: 0 | DO21: 0 | DP21: 0 | DQ21: 0 | DR21: 0 | DS21: 0 | DT21: 0 | DU21: 0 | DV21: 0 | DW21: 0 | DX21: 0 | DY21: 0 | DZ21: 0 | EA21: 0 | EB21: 0 | EC21: 0 | ED21: 0 | EE21: 0
D22: Project IRR | F22: % | H22: =XIRR(L21:EE21,L5:EE5) -> 0.07608135045
B25: Summary Sources and Uses | M25: Copy Paste --> | N25: FALSE | P25: FALSE is UDF
C26: Uses of Funds | H26: Applied | L26: Fixed S | M26: Computed S | N26: Difference | O26: UDF Summary
D27: Capital Expenditures | F27: EUR'000 | H27: =H12 -> 65000 | L27: 50000 | M27: =H27 -> 65000 | Q27: do while [diff_s].value <> 0
D28: ="Interest Durning Construction "&D48 -> Interest Durning Construction EIAF | F28: EUR'000 | H28: =IF($N$25,L28,M28) -> 992.8753 | L28: 4725.623849 | M28: =J58 -> 992.8753 | N28: =(L28-M28)*$N$25 -> 0
D29: ="Interest Durning Construction "&D49 -> Interest Durning Construction AFDB | F29: EUR'000 | H29: =IF($N$25,L29,M29) -> 794.5499704 | L29: 3841.543672 | M29: =J59 -> 794.5499704 | N29: =(L29-M29)*$N$25 -> 0 | Q29: [fixed_s].value = [computed_s].value
D30: Interest Durning Construction IFC | F30: EUR'000 | H30: 64.59433227 | L30: 154.2683047 | M30: =J60 -> 64.59433227 | N30: 0
D31: Interest Durning Construction GFW | F31: EUR'000 | H31: 25.83773291 | L31: 61.7073219 | M31: 25.83773291 | N31: 0 | Q31: loop
D32: ="Up-Front Fees "&D48 -> Up-Front Fees EIAF | F32: EUR'000 | H32: 216.5063761 | L32: 190.3653843 | M32: =J62 -> 216.5063761 | N32: 0
D33: ="Up-Front Fees "&D49 -> Up-Front Fees AFDB | F33: EUR'000 | H33: 146.1411651 | L33: 128.4966344 | M33: =J63 -> 146.1411651 | N33: 0
D34: Up-Front Fees IFC | F34: EUR'000 | H34: 59.53925344 | L34: 52.35048068 | M34: 59.53925344 | N34: 0
D35: Up-Front Fees GFW | F35: EUR'000 | H35: 129.9038257 | L35: 114.2192306 | M35: 129.9038257 | N35: 0
D36: ="Commitment Fees "&D48 -> Commitment Fees EIAF | F36: EUR'000 | H36: 86.38147534 | L36: 83.47318829 | M36: 86.38147534 | N36: 0
D37: ="Commitment Fees "&D49 -> Commitment Fees AFDB | F37: EUR'000 | H37: 74.04060214 | L37: 71.5484471 | M37: 74.04060214 | N37: 0
D38: Commitment Fees IFC | F38: EUR'000 | H38: 18.51031614 | L38: 17.88711178 | M38: 18.51031614 | N38: 0
D39: Commitment Fees GFW | F39: EUR'000 | H39: 49.36084305 | L39: 47.69896473 | M39: 49.36084305 | N39: 0
D40: Standby Debt Fees | F40: EUR'000 | H40: =L40 -> 0 | N40: =L40-M40 -> 0
D41: Standby Equity Fees | F41: EUR'000 | H41: 0 | N41: 0
D42: Cash DSRA | F42: EUR'000 | H42: 0 | N42: 0
E43: Total Uses of Funds | F43: EUR'000 | H43: =SUM(H27:H42) -> 67658.24119 | N43: =SUM(N28:N42) -> 0 | O43: Diff s
D45: Total Debt | F45: EUR'000 | H45: =IF($N$25,H43*I45,SUM(H48:H51)) -> 54126.52306 | I45: =IF(N25,'InputC - Structure'!G25,'Structuring Model'!H45/'Structuring Model'!H43) -> 0.799998967
C47: Sources of Funds | H47: Debt Applied | J47: UDF
D48: EIAF | F48: EUR'000 | G48: ='InputC - Structure'!G47 -> 0.4 | H48: =IF($N$25,$H$45*G48,J48) -> 21650.63761 | J48: =IF(ISNUMBER(UDFOutput!I8),UDFOutput!I8,0) -> 21650.63761 | N48: =tef
D49: AFDB | F49: EUR'000 | G49: ='InputC - Structure'!G48 -> 0.3 | H49: =IF($N$25,$H$45*G49,J49) -> 16237.90724 | J49: =IF(ISNUMBER(UDFOutput!I9),UDFOutput!I9,0) -> 16237.90724 | N49: =SUBSTITUTE(N48,"=","",1) -> tef
D50: IFC | F50: EUR'000 | G50: ='InputC - Structure'!G49 -> 0.1 | H50: 5412.659404 | J50: =IF(ISNUMBER(UDFOutput!I10),UDFOutput!I10,0) -> 5412.659404
D51: GFW | F51: EUR'000 | G51: ='InputC - Structure'!G50 -> 0.2 | H51: 10825.31881 | J51: =IF(ISNUMBER(UDFOutput!I11),UDFOutput!I11,0) -> 10825.31881
D52: Equity | F52: EUR'000 | H52: =IF($N$25,H43-H45,J52) -> 13531.64851 | I52: =H52/H43 -> 0.200000004 | J52: =IF(ISNUMBER(UDFOutput!I12),UDFOutput!I12,0) -> 13531.64851
E53: Total Sources of Funds | F53: EUR'000 | H53: =SUM(H48:H52) -> 67658.17157
C56: Funding Needs
D57: Capital Expenditures | F57: EUR'000 | J57: =SUM(L57:XFD57) -> 65000 | L57: =L14 -> 0 | M57: =M14 -> 22185.06395 | N57: 6422.239764 | O57: 0 | P57: 4281.493789 | Q57: 0 | R57: 8562.987578 | S57: 8562.987578 | T57: 8562.987578 | U57: 0 | V57: 0 | W57: 0 | X57: 4281.493789 | Y57: 2140.745975 | Z57: 0 | AA57: 0 | AB57: 0 | AC57: 0 | AD57: 0 | AE57: 0 | AF57: 0 | AG57: 0 | AH57: 0 | AI57: 0 | AJ57: 0 | AK57: 0 | AL57: 0 | AM57: 0 | AN57: 0 | AO57: 0 | AP57: 0 | AQ57: 0 | AR57: 0 | AS57: 0 | AT57: 0 | AU57: 0 | AV57: 0 | AW57: 0 | AX57: 0 | AY57: 0 | AZ57: 0 | BA57: 0 | BB57: 0 | BC57: 0 | BD57: 0 | BE57: 0 | BF57: 0 | BG57: 0 | BH57: 0 | BI57: 0 | BJ57: 0 | BK57: 0 | BL57: 0 | BM57: 0 | BN57: 0 | BO57: 0 | BP57: 0 | BQ57: 0 | BR57: 0 | BS57: 0 | BT57: 0 | BU57: 0 | BV57: 0 | BW57: 0 | BX57: 0 | BY57: =BY14 -> 0 | BZ57: 0 | CA57: 0 | CB57: 0 | CC57: 0 | CD57: 0 | CE57: 0 | CF57: 0 | CG57: 0 | CH57: 0 | CI57: 0 | CJ57: 0 | CK57: 0 | CL57: 0 | CM57: 0 | CN57: 0 | CO57: 0 | CP57: 0 | CQ57: 0 | CR57: 0 | CS57: 0 | CT57: 0 | CU57: 0 | CV57: 0 | CW57: 0 | CX57: 0 | CY57: 0 | CZ57: 0 | DA57: 0 | DB57: 0 | DC57: 0 | DD57: 0 | DE57: 0 | DF57: 0 | DG57: 0 | DH57: 0 | DI57: 0 | DJ57: 0 | DK57: 0 | DL57: 0 | DM57: 0 | DN57: 0 | DO57: 0 | DP57: 0 | DQ57: 0 | DR57: 0 | DS57: 0 | DT57: 0 | DU57: 0 | DV57: 0 | DW57: 0 | DX57: 0 | DY57: 0 | DZ57: 0 | EA57: 0 | EB57: 0 | EC57: 0 | ED57: 0 | EE57: 0
D58: =D28 -> Interest Durning Construction EIAF | F58: EUR'000 | J58: =SUM(L58:XFD58) -> 992.8753 | L58: =L114 -> 0 | M58: =M114 -> 0 | N58: 23.75389008 | O58: 40.39248275 | P58: 40.64879463 | Q58: 51.87461765 | R58: 52.17948279 | S58: 74.4224917 | T58: 96.75955721 | U58: 119.191077 | V58: 119.780596 | W58: 120.3726078 | X58: 120.9671229 | Y58: 132.5325794 | Z58: 0 | AA58: 0 | AB58: 0 | AC58: 0 | AD58: 0 | AE58: 0 | AF58: 0 | AG58: 0 | AH58: 0 | AI58: 0 | AJ58: 0 | AK58: 0 | AL58: 0 | AM58: 0 | AN58: 0 | AO58: 0 | AP58: 0 | AQ58: 0 | AR58: 0 | AS58: 0 | AT58: 0 | AU58: 0 | AV58: 0 | AW58: 0 | AX58: 0 | AY58: 0 | AZ58: 0 | BA58: 0 | BB58: 0 | BC58: 0 | BD58: 0 | BE58: 0 | BF58: 0 | BG58: 0 | BH58: 0 | BI58: 0 | BJ58: 0 | BK58: 0 | BL58: 0 | BM58: 0 | BN58: 0 | BO58: 0 | BP58: 0 | BQ58: 0 | BR58: 0 | BS58: 0 | BT58: 0 | BU58: 0 | BV58: 0 | BW58: 0 | BX58: 0 | BY58: =BY114 -> 0 | BZ58: 0 | CA58: 0 | CB58: 0 | CC58: 0 | CD58: 0 | CE58: 0 | CF58: 0 | CG58: 0 | CH58: 0 | CI58: 0 | CJ58: 0 | CK58: 0 | CL58: 0 | CM58: 0 | CN58: 0 | CO58: 0 | CP58: 0 | CQ58: 0 | CR58: 0 | CS58: 0 | CT58: 0 | CU58: 0 | CV58: 0 | CW58: 0 | CX58: 0 | CY58: 0 | CZ58: 0 | DA58: 0 | DB58: 0 | DC58: 0 | DD58: 0 | DE58: 0 | DF58: 0 | DG58: 0 | DH58: 0 | DI58: 0 | DJ58: 0 | DK58: 0 | DL58: 0 | DM58: 0 | DN58: 0 | DO58: 0 | DP58: 0 | DQ58: 0 | DR58: 0 | DS58: 0 | DT58: 0 | DU58: 0 | DV58: 0 | DW58: 0 | DX58: 0 | DY58: 0 | DZ58: 0 | EA58: 0 | EB58: 0 | EC58: 0 | ED58: 0 | EE58: 0
D59: =D29 -> Interest Durning Construction AFDB | F59: EUR'000 | J59: 794.5499704 | L59: =L131 -> 0 | M59: =M131 -> 0 | N59: 19.0090867 | O59: 32.32414582 | P59: 32.52925979 | Q59: 41.51274175 | R59: 41.75671054 | S59: 59.55671229 | T59: 77.43198297 | U59: 95.38284087 | V59: 95.85460431 | W59: 96.32836264 | X59: 96.8041243 | Y59: 106.0593984 | Z59: 0 | AA59: 0 | AB59: 0 | AC59: 0 | AD59: 0 | AE59: 0 | AF59: 0 | AG59: 0 | AH59: 0 | AI59: 0 | AJ59: 0 | AK59: 0 | AL59: 0 | AM59: 0 | AN59: 0 | AO59: 0 | AP59: 0 | AQ59: 0 | AR59: 0 | AS59: 0 | AT59: 0 | AU59: 0 | AV59: 0 | AW59: 0 | AX59: 0 | AY59: 0 | AZ59: 0 | BA59: 0 | BB59: 0 | BC59: 0 | BD59: 0 | BE59: 0 | BF59: 0 | BG59: 0 | BH59: 0 | BI59: 0 | BJ59: 0 | BK59: 0 | BL59: 0 | BM59: 0 | BN59: 0 | BO59: 0 | BP59: 0 | BQ59: 0 | BR59: 0 | BS59: 0 | BT59: 0 | BU59: 0 | BV59: 0 | BW59: 0 | BX59: 0 | BY59: =BY131 -> 0 | BZ59: 0 | CA59: 0 | CB59: 0 | CC59: 0 | CD59: 0 | CE59: 0 | CF59: 0 | CG59: 0 | CH59: 0 | CI59: 0 | CJ59: 0 | CK59: 0 | CL59: 0 | CM59: 0 | CN59: 0 | CO59: 0 | CP59: 0 | CQ59: 0 | CR59: 0 | CS59: 0 | CT59: 0 | CU59: 0 | CV59: 0 | CW59: 0 | CX59: 0 | CY59: 0 | CZ59: 0 | DA59: 0 | DB59: 0 | DC59: 0 | DD59: 0 | DE59: 0 | DF59: 0 | DG59: 0 | DH59: 0 | DI59: 0 | DJ59: 0 | DK59: 0 | DL59: 0 | DM59: 0 | DN59: 0 | DO59: 0 | DP59: 0 | DQ59: 0 | DR59: 0 | DS59: 0 | DT59: 0 | DU59: 0 | DV59: 0 | DW59: 0 | DX59: 0 | DY59: 0 | DZ59: 0 | EA59: 0 | EB59: 0 | EC59: 0 | ED59: 0 | EE59: 0
D60: Interest Durning Construction IFC | F60: EUR'000 | J60: 64.59433227 | L60: =L148 -> 0 | M60: =M148 -> 0 | N60: 1.545377016 | O60: 2.627848082 | P60: 2.644523181 | Q60: 3.374851091 | R60: 3.394684961 | S60: 4.841767297 | T60: 6.294968753 | U60: 7.754315205 | V60: 7.79266804 | W60: 7.831183054 | X60: 7.869860932 | Y60: 8.622284661 | Z60: 0 | AA60: 0 | AB60: 0 | AC60: 0 | AD60: 0 | AE60: 0 | AF60: 0 | AG60: 0 | AH60: 0 | AI60: 0 | AJ60: 0 | AK60: 0 | AL60: 0 | AM60: 0 | AN60: 0 | AO60: 0 | AP60: 0 | AQ60: 0 | AR60: 0 | AS60: 0 | AT60: 0 | AU60: 0 | AV60: 0 | AW60: 0 | AX60: 0 | AY60: 0 | AZ60: 0 | BA60: 0 | BB60: 0 | BC60: 0 | BD60: 0 | BE60: 0 | BF60: 0 | BG60: 0 | BH60: 0 | BI60: 0 | BJ60: 0 | BK60: 0 | BL60: 0 | BM60: 0 | BN60: 0 | BO60: 0 | BP60: 0 | BQ60: 0 | BR60: 0 | BS60: 0 | BT60: 0 | BU60: 0 | BV60: 0 | BW60: 0 | BX60: 0 | BY60: =BY148 -> 0 | BZ60: 0 | CA60: 0 | CB60: 0 | CC60: 0 | CD60: 0 | CE60: 0 | CF60: 0 | CG60: 0 | CH60: 0 | CI60: 0 | CJ60: 0 | CK60: 0 | CL60: 0 | CM60: 0 | CN60: 0 | CO60: 0 | CP60: 0 | CQ60: 0 | CR60: 0 | CS60: 0 | CT60: 0 | CU60: 0 | CV60: 0 | CW60: 0 | CX60: 0 | CY60: 0 | CZ60: 0 | DA60: 0 | DB60: 0 | DC60: 0 | DD60: 0 | DE60: 0 | DF60: 0 | DG60: 0 | DH60: 0 | DI60: 0 | DJ60: 0 | DK60: 0 | DL60: 0 | DM60: 0 | DN60: 0 | DO60: 0 | DP60: 0 | DQ60: 0 | DR60: 0 | DS60: 0 | DT60: 0 | DU60: 0 | DV60: 0 | DW60: 0 | DX60: 0 | DY60: 0 | DZ60: 0 | EA60: 0 | EB60: 0 | EC60: 0 | ED60: 0 | EE60: 0
D61: Interest Durning Construction GFW | F61: EUR'000 | J61: 25.83773291 | L61: =L165 -> 0 | M61: =M165 -> 0 | N61: 0.6181508065 | O61: 1.051139233 | P61: 1.057809272 | Q61: 1.349940436 | R61: 1.357873984 | S61: 1.936706919 | T61: 2.517987501 | U61: 3.101726082 | V61: 3.117067216 | W61: 3.132473222 | X61: 3.147944373 | Y61: 3.448913864 | Z61: 0 | AA61: 0 | AB61: 0 | AC61: 0 | AD61: 0 | AE61: 0 | AF61: 0 | AG61: 0 | AH61: 0 | AI61: 0 | AJ61: 0 | AK61: 0 | AL61: 0 | AM61: 0 | AN61: 0 | AO61: 0 | AP61: 0 | AQ61: 0 | AR61: 0 | AS61: 0 | AT61: 0 | AU61: 0 | AV61: 0 | AW61: 0 | AX61: 0 | AY61: 0 | AZ61: 0 | BA61: 0 | BB61: 0 | BC61: 0 | BD61: 0 | BE61: 0 | BF61: 0 | BG61: 0 | BH61: 0 | BI61: 0 | BJ61: 0 | BK61: 0 | BL61: 0 | BM61: 0 | BN61: 0 | BO61: 0 | BP61: 0 | BQ61: 0 | BR61: 0 | BS61: 0 | BT61: 0 | BU61: 0 | BV61: 0 | BW61: 0 | BX61: 0 | BY61: =BY165 -> 0 | BZ61: 0 | CA61: 0 | CB61: 0 | CC61: 0 | CD61: 0 | CE61: 0 | CF61: 0 | CG61: 0 | CH61: 0 | CI61: 0 | CJ61: 0 | CK61: 0 | CL61: 0 | CM61: 0 | CN61: 0 | CO61: 0 | CP61: 0 | CQ61: 0 | CR61: 0 | CS61: 0 | CT61: 0 | CU61: 0 | CV61: 0 | CW61: 0 | CX61: 0 | CY61: 0 | CZ61: 0 | DA61: 0 | DB61: 0 | DC61: 0 | DD61: 0 | DE61: 0 | DF61: 0 | DG61: 0 | DH61: 0 | DI61: 0 | DJ61: 0 | DK61: 0 | DL61: 0 | DM61: 0 | DN61: 0 | DO61: 0 | DP61: 0 | DQ61: 0 | DR61: 0 | DS61: 0 | DT61: 0 | DU61: 0 | DV61: 0 | DW61: 0 | DX61: 0 | DY61: 0 | DZ61: 0 | EA61: 0 | EB61: 0 | EC61: 0 | ED61: 0 | EE61: 0
D62: Up-Front Fees EIAF | F62: EUR'000 | J62: =SUM(L62:XFD62) -> 216.5063761 | L62: =L117 -> 216.5063761 | M62: =M117 -> 0 | N62: 0 | O62: 0 | P62: 0 | Q62: 0 | R62: 0 | S62: 0 | T62: 0 | U62: 0 | V62: 0 | W62: 0 | X62: 0 | Y62: 0 | Z62: 0 | AA62: 0 | AB62: 0 | AC62: 0 | AD62: 0 | AE62: 0 | AF62: 0 | AG62: 0 | AH62: 0 | AI62: 0 | AJ62: 0 | AK62: 0 | AL62: 0 | AM62: 0 | AN62: 0 | AO62: 0 | AP62: 0 | AQ62: 0 | AR62: 0 | AS62: 0 | AT62: 0 | AU62: 0 | AV62: 0 | AW62: 0 | AX62: 0 | AY62: 0 | AZ62: 0 | BA62: 0 | BB62: 0 | BC62: 0 | BD62: 0 | BE62: 0 | BF62: 0 | BG62: 0 | BH62: 0 | BI62: 0 | BJ62: 0 | BK62: 0 | BL62: 0 | BM62: 0 | BN62: 0 | BO62: 0 | BP62: 0 | BQ62: 0 | BR62: 0 | BS62: 0 | BT62: 0 | BU62: 0 | BV62: 0 | BW62: 0 | BX62: 0 | BY62: =BY117 -> 0 | BZ62: 0 | CA62: 0 | CB62: 0 | CC62: 0 | CD62: 0 | CE62: 0 | CF62: 0 | CG62: 0 | CH62: 0 | CI62: 0 | CJ62: 0 | CK62: 0 | CL62: 0 | CM62: 0 | CN62: 0 | CO62: 0 | CP62: 0 | CQ62: 0 | CR62: 0 | CS62: 0 | CT62: 0 | CU62: 0 | CV62: 0 | CW62: 0 | CX62: 0 | CY62: 0 | CZ62: 0 | DA62: 0 | DB62: 0 | DC62: 0 | DD62: 0 | DE62: 0 | DF62: 0 | DG62: 0 | DH62: 0 | DI62: 0 | DJ62: 0 | DK62: 0 | DL62: 0 | DM62: 0 | DN62: 0 | DO62: 0 | DP62: 0 | DQ62: 0 | DR62: 0 | DS62: 0 | DT62: 0 | DU62: 0 | DV62: 0 | DW62: 0 | DX62: 0 | DY62: 0 | DZ62: 0 | EA62: 0 | EB62: 0 | EC62: 0 | ED62: 0 | EE62: 0
D63: Up-Front Fees AFDB | F63: EUR'000 | J63: 146.1411651 | L63: =L134 -> 146.1411651 | M63: =M134 -> 0 | N63: 0 | O63: 0 | P63: 0 | Q63: 0 | R63: 0 | S63: 0 | T63: 0 | U63: 0 | V63: 0 | W63: 0 | X63: 0 | Y63: 0 | Z63: 0 | AA63: 0 | AB63: 0 | AC63: 0 | AD63: 0 | AE63: 0 | AF63: 0 | AG63: 0 | AH63: 0 | AI63: 0 | AJ63: 0 | AK63: 0 | AL63: 0 | AM63: 0 | AN63: 0 | AO63: 0 | AP63: 0 | AQ63: 0 | AR63: 0 | AS63: 0 | AT63: 0 | AU63: 0 | AV63: 0 | AW63: 0 | AX63: 0 | AY63: 0 | AZ63: 0 | BA63: 0 | BB63: 0 | BC63: 0 | BD63: 0 | BE63: 0 | BF63: 0 | BG63: 0 | BH63: 0 | BI63: 0 | BJ63: 0 | BK63: 0 | BL63: 0 | BM63: 0 | BN63: 0 | BO63: 0 | BP63: 0 | BQ63: 0 | BR63: 0 | BS63: 0 | BT63: 0 | BU63: 0 | BV63: 0 | BW63: 0 | BX63: 0 | BY63: =BY134 -> 0 | BZ63: 0 | CA63: 0 | CB63: 0 | CC63: 0 | CD63: 0 | CE63: 0 | CF63: 0 | CG63: 0 | CH63: 0 | CI63: 0 | CJ63: 0 | CK63: 0 | CL63: 0 | CM63: 0 | CN63: 0 | CO63: 0 | CP63: 0 | CQ63: 0 | CR63: 0 | CS63: 0 | CT63: 0 | CU63: 0 | CV63: 0 | CW63: 0 | CX63: 0 | CY63: 0 | CZ63: 0 | DA63: 0 | DB63: 0 | DC63: 0 | DD63: 0 | DE63: 0 | DF63: 0 | DG63: 0 | DH63: 0 | DI63: 0 | DJ63: 0 | DK63: 0 | DL63: 0 | DM63: 0 | DN63: 0 | DO63: 0 | DP63: 0 | DQ63: 0 | DR63: 0 | DS63: 0 | DT63: 0 | DU63: 0 | DV63: 0 | DW63: 0 | DX63: 0 | DY63: 0 | DZ63: 0 | EA63: 0 | EB63: 0 | EC63: 0 | ED63: 0 | EE63: 0
D64: Up-Front Fees IFC | F64: EUR'000 | J64: 59.53925344 | L64: =L151 -> 59.53925344 | M64: =M151 -> 0 | N64: 0 | O64: 0 | P64: 0 | Q64: 0 | R64: 0 | S64: 0 | T64: 0 | U64: 0 | V64: 0 | W64: 0 | X64: 0 | Y64: 0 | Z64: 0 | AA64: 0 | AB64: 0 | AC64: 0 | AD64: 0 | AE64: 0 | AF64: 0 | AG64: 0 | AH64: 0 | AI64: 0 | AJ64: 0 | AK64: 0 | AL64: 0 | AM64: 0 | AN64: 0 | AO64: 0 | AP64: 0 | AQ64: 0 | AR64: 0 | AS64: 0 | AT64: 0 | AU64: 0 | AV64: 0 | AW64: 0 | AX64: 0 | AY64: 0 | AZ64: 0 | BA64: 0 | BB64: 0 | BC64: 0 | BD64: 0 | BE64: 0 | BF64: 0 | BG64: 0 | BH64: 0 | BI64: 0 | BJ64: 0 | BK64: 0 | BL64: 0 | BM64: 0 | BN64: 0 | BO64: 0 | BP64: 0 | BQ64: 0 | BR64: 0 | BS64: 0 | BT64: 0 | BU64: 0 | BV64: 0 | BW64: 0 | BX64: 0 | BY64: =BY151 -> 0 | BZ64: 0 | CA64: 0 | CB64: 0 | CC64: 0 | CD64: 0 | CE64: 0 | CF64: 0 | CG64: 0 | CH64: 0 | CI64: 0 | CJ64: 0 | CK64: 0 | CL64: 0 | CM64: 0 | CN64: 0 | CO64: 0 | CP64: 0 | CQ64: 0 | CR64: 0 | CS64: 0 | CT64: 0 | CU64: 0 | CV64: 0 | CW64: 0 | CX64: 0 | CY64: 0 | CZ64: 0 | DA64: 0 | DB64: 0 | DC64: 0 | DD64: 0 | DE64: 0 | DF64: 0 | DG64: 0 | DH64: 0 | DI64: 0 | DJ64: 0 | DK64: 0 | DL64: 0 | DM64: 0 | DN64: 0 | DO64: 0 | DP64: 0 | DQ64: 0 | DR64: 0 | DS64: 0 | DT64: 0 | DU64: 0 | DV64: 0 | DW64: 0 | DX64: 0 | DY64: 0 | DZ64: 0 | EA64: 0 | EB64: 0 | EC64: 0 | ED64: 0 | EE64: 0
D65: Up-Front Fees GFW | F65: EUR'000 | J65: 129.9038257 | L65: =L168 -> 129.9038257 | M65: =M168 -> 0 | N65: 0 | O65: 0 | P65: 0 | Q65: 0 | R65: 0 | S65: 0 | T65: 0 | U65: 0 | V65: 0 | W65: 0 | X65: 0 | Y65: 0 | Z65: 0 | AA65: 0 | AB65: 0 | AC65: 0 | AD65: 0 | AE65: 0 | AF65: 0 | AG65: 0 | AH65: 0 | AI65: 0 | AJ65: 0 | AK65: 0 | AL65: 0 | AM65: 0 | AN65: 0 | AO65: 0 | AP65: 0 | AQ65: 0 | AR65: 0 | AS65: 0 | AT65: 0 | AU65: 0 | AV65: 0 | AW65: 0 | AX65: 0 | AY65: 0 | AZ65: 0 | BA65: 0 | BB65: 0 | BC65: 0 | BD65: 0 | BE65: 0 | BF65: 0 | BG65: 0 | BH65: 0 | BI65: 0 | BJ65: 0 | BK65: 0 | BL65: 0 | BM65: 0 | BN65: 0 | BO65: 0 | BP65: 0 | BQ65: 0 | BR65: 0 | BS65: 0 | BT65: 0 | BU65: 0 | BV65: 0 | BW65: 0 | BX65: 0 | BY65: =BY168 -> 0 | BZ65: 0 | CA65: 0 | CB65: 0 | CC65: 0 | CD65: 0 | CE65: 0 | CF65: 0 | CG65: 0 | CH65: 0 | CI65: 0 | CJ65: 0 | CK65: 0 | CL65: 0 | CM65: 0 | CN65: 0 | CO65: 0 | CP65: 0 | CQ65: 0 | CR65: 0 | CS65: 0 | CT65: 0 | CU65: 0 | CV65: 0 | CW65: 0 | CX65: 0 | CY65: 0 | CZ65: 0 | DA65: 0 | DB65: 0 | DC65: 0 | DD65: 0 | DE65: 0 | DF65: 0 | DG65: 0 | DH65: 0 | DI65: 0 | DJ65: 0 | DK65: 0 | DL65: 0 | DM65: 0 | DN65: 0 | DO65: 0 | DP65: 0 | DQ65: 0 | DR65: 0 | DS65: 0 | DT65: 0 | DU65: 0 | DV65: 0 | DW65: 0 | DX65: 0 | DY65: 0 | DZ65: 0 | EA65: 0 | EB65: 0 | EC65: 0 | ED65: 0 | EE65: 0
D66: Commitment Fees EIAF | F66: EUR'000 | J66: 86.38147534 | L66: =L121 -> 12.62953861 | M66: =M121 -> 12.62953861 | N66: 10.46601079 | O66: 8.950551294 | P66: 8.927206155 | Q66: 7.904747081 | R66: 7.876979663 | S66: 5.851064393 | T66: 3.816582354 | U66: 1.773497322 | V66: 1.719803353 | W66: 1.665882333 | X66: 1.611733304 | Y66: 0.558340083 | Z66: 0 | AA66: 0 | AB66: 0 | AC66: 0 | AD66: 0 | AE66: 0 | AF66: 0 | AG66: 0 | AH66: 0 | AI66: 0 | AJ66: 0 | AK66: 0 | AL66: 0 | AM66: 0 | AN66: 0 | AO66: 0 | AP66: 0 | AQ66: 0 | AR66: 0 | AS66: 0 | AT66: 0 | AU66: 0 | AV66: 0 | AW66: 0 | AX66: 0 | AY66: 0 | AZ66: 0 | BA66: 0 | BB66: 0 | BC66: 0 | BD66: 0 | BE66: 0 | BF66: 0 | BG66: 0 | BH66: 0 | BI66: 0 | BJ66: 0 | BK66: 0 | BL66: 0 | BM66: 0 | BN66: 0 | BO66: 0 | BP66: 0 | BQ66: 0 | BR66: 0 | BS66: 0 | BT66: 0 | BU66: 0 | BV66: 0 | BW66: 0 | BX66: 0 | BY66: =BY121 -> 0 | BZ66: 0 | CA66: 0 | CB66: 0 | CC66: 0 | CD66: 0 | CE66: 0 | CF66: 0 | CG66: 0 | CH66: 0 | CI66: 0 | CJ66: 0 | CK66: 0 | CL66: 0 | CM66: 0 | CN66: 0 | CO66: 0 | CP66: 0 | CQ66: 0 | CR66: 0 | CS66: 0 | CT66: 0 | CU66: 0 | CV66: 0 | CW66: 0 | CX66: 0 | CY66: 0 | CZ66: 0 | DA66: 0 | DB66: 0 | DC66: 0 | DD66: 0 | DE66: 0 | DF66: 0 | DG66: 0 | DH66: 0 | DI66: 0 | DJ66: 0 | DK66: 0 | DL66: 0 | DM66: 0 | DN66: 0 | DO66: 0 | DP66: 0 | DQ66: 0 | DR66: 0 | DS66: 0 | DT66: 0 | DU66: 0 | DV66: 0 | DW66: 0 | DX66: 0 | DY66: 0 | DZ66: 0 | EA66: 0 | EB66: 0 | EC66: 0 | ED66: 0 | EE66: 0
D67: Commitment Fees AFDB | F67: EUR'000 | J67: 74.04060214 | L67: =L138 -> 10.82527149 | M67: =M138 -> 10.82527149 | N67: 8.970819071 | O67: 7.671853792 | P67: 7.651843673 | Q67: 6.775450181 | R67: 6.751649537 | S67: 5.015150734 | T67: 3.271308987 | U67: 1.520093245 | V67: 1.474069842 | W67: 1.427851826 | X67: 1.381438372 | Y67: 0.478529897 | Z67: 0 | AA67: 0 | AB67: 0 | AC67: 0 | AD67: 0 | AE67: 0 | AF67: 0 | AG67: 0 | AH67: 0 | AI67: 0 | AJ67: 0 | AK67: 0 | AL67: 0 | AM67: 0 | AN67: 0 | AO67: 0 | AP67: 0 | AQ67: 0 | AR67: 0 | AS67: 0 | AT67: 0 | AU67: 0 | AV67: 0 | AW67: 0 | AX67: 0 | AY67: 0 | AZ67: 0 | BA67: 0 | BB67: 0 | BC67: 0 | BD67: 0 | BE67: 0 | BF67: 0 | BG67: 0 | BH67: 0 | BI67: 0 | BJ67: 0 | BK67: 0 | BL67: 0 | BM67: 0 | BN67: 0 | BO67: 0 | BP67: 0 | BQ67: 0 | BR67: 0 | BS67: 0 | BT67: 0 | BU67: 0 | BV67: 0 | BW67: 0 | BX67: 0 | BY67: =BY138 -> 0 | BZ67: 0 | CA67: 0 | CB67: 0 | CC67: 0 | CD67: 0 | CE67: 0 | CF67: 0 | CG67: 0 | CH67: 0 | CI67: 0 | CJ67: 0 | CK67: 0 | CL67: 0 | CM67: 0 | CN67: 0 | CO67: 0 | CP67: 0 | CQ67: 0 | CR67: 0 | CS67: 0 | CT67: 0 | CU67: 0 | CV67: 0 | CW67: 0 | CX67: 0 | CY67: 0 | CZ67: 0 | DA67: 0 | DB67: 0 | DC67: 0 | DD67: 0 | DE67: 0 | DF67: 0 | DG67: 0 | DH67: 0 | DI67: 0 | DJ67: 0 | DK67: 0 | DL67: 0 | DM67: 0 | DN67: 0 | DO67: 0 | DP67: 0 | DQ67: 0 | DR67: 0 | DS67: 0 | DT67: 0 | DU67: 0 | DV67: 0 | DW67: 0 | DX67: 0 | DY67: 0 | DZ67: 0 | EA67: 0 | EB67: 0 | EC67: 0 | ED67: 0 | EE67: 0
D68: Commitment Fees IFC | F68: EUR'000 | J68: 18.51031614 | L68: =L155 -> 2.706329702 | M68: =M155 -> 2.706329702 | N68: 2.242716597 | O68: 1.917975277 | P68: 1.912972747 | Q68: 1.693874375 | R68: 1.687924213 | S68: 1.253799513 | T68: 0.8178390759 | U68: 0.3800351404 | V68: 0.3685292898 | W68: 0.3569747857 | X68: 0.3453714223 | Y68: 0.1196443035 | Z68: 0 | AA68: 0 | AB68: 0 | AC68: 0 | AD68: 0 | AE68: 0 | AF68: 0 | AG68: 0 | AH68: 0 | AI68: 0 | AJ68: 0 | AK68: 0 | AL68: 0 | AM68: 0 | AN68: 0 | AO68: 0 | AP68: 0 | AQ68: 0 | AR68: 0 | AS68: 0 | AT68: 0 | AU68: 0 | AV68: 0 | AW68: 0 | AX68: 0 | AY68: 0 | AZ68: 0 | BA68: 0 | BB68: 0 | BC68: 0 | BD68: 0 | BE68: 0 | BF68: 0 | BG68: 0 | BH68: 0 | BI68: 0 | BJ68: 0 | BK68: 0 | BL68: 0 | BM68: 0 | BN68: 0 | BO68: 0 | BP68: 0 | BQ68: 0 | BR68: 0 | BS68: 0 | BT68: 0 | BU68: 0 | BV68: 0 | BW68: 0 | BX68: 0 | BY68: =BY155 -> 0 | BZ68: 0 | CA68: 0 | CB68: 0 | CC68: 0 | CD68: 0 | CE68: 0 | CF68: 0 | CG68: 0 | CH68: 0 | CI68: 0 | CJ68: 0 | CK68: 0 | CL68: 0 | CM68: 0 | CN68: 0 | CO68: 0 | CP68: 0 | CQ68: 0 | CR68: 0 | CS68: 0 | CT68: 0 | CU68: 0 | CV68: 0 | CW68: 0 | CX68: 0 | CY68: 0 | CZ68: 0 | DA68: 0 | DB68: 0 | DC68: 0 | DD68: 0 | DE68: 0 | DF68: 0 | DG68: 0 | DH68: 0 | DI68: 0 | DJ68: 0 | DK68: 0 | DL68: 0 | DM68: 0 | DN68: 0 | DO68: 0 | DP68: 0 | DQ68: 0 | DR68: 0 | DS68: 0 | DT68: 0 | DU68: 0 | DV68: 0 | DW68: 0 | DX68: 0 | DY68: 0 | DZ68: 0 | EA68: 0 | EB68: 0 | EC68: 0 | ED68: 0 | EE68: 0
D69: Commitment Fees GFW | F69: EUR'000 | J69: 49.36084305 | L69: =L172 -> 7.216879205 | M69: =M172 -> 7.216879205 | N69: 5.980577592 | O69: 5.114600739 | P69: 5.10126066 | Q69: 4.516998332 | R69: 4.501131236 | S69: 3.343465367 | T69: 2.180904202 | U69: 1.013427041 | V69: 0.9827447729 | W69: 0.9519327618 | X69: 0.9209904594 | Y69: 0.319051476 | Z69: 0 | AA69: 0 | AB69: 0 | AC69: 0 | AD69: 0 | AE69: 0 | AF69: 0 | AG69: 0 | AH69: 0 | AI69: 0 | AJ69: 0 | AK69: 0 | AL69: 0 | AM69: 0 | AN69: 0 | AO69: 0 | AP69: 0 | AQ69: 0 | AR69: 0 | AS69: 0 | AT69: 0 | AU69: 0 | AV69: 0 | AW69: 0 | AX69: 0 | AY69: 0 | AZ69: 0 | BA69: 0 | BB69: 0 | BC69: 0 | BD69: 0 | BE69: 0 | BF69: 0 | BG69: 0 | BH69: 0 | BI69: 0 | BJ69: 0 | BK69: 0 | BL69: 0 | BM69: 0 | BN69: 0 | BO69: 0 | BP69: 0 | BQ69: 0 | BR69: 0 | BS69: 0 | BT69: 0 | BU69: 0 | BV69: 0 | BW69: 0 | BX69: 0 | BY69: =BY172 -> 0 | BZ69: 0 | CA69: 0 | CB69: 0 | CC69: 0 | CD69: 0 | CE69: 0 | CF69: 0 | CG69: 0 | CH69: 0 | CI69: 0 | CJ69: 0 | CK69: 0 | CL69: 0 | CM69: 0 | CN69: 0 | CO69: 0 | CP69: 0 | CQ69: 0 | CR69: 0 | CS69: 0 | CT69: 0 | CU69: 0 | CV69: 0 | CW69: 0 | CX69: 0 | CY69: 0 | CZ69: 0 | DA69: 0 | DB69: 0 | DC69: 0 | DD69: 0 | DE69: 0 | DF69: 0 | DG69: 0 | DH69: 0 | DI69: 0 | DJ69: 0 | DK69: 0 | DL69: 0 | DM69: 0 | DN69: 0 | DO69: 0 | DP69: 0 | DQ69: 0 | DR69: 0 | DS69: 0 | DT69: 0 | DU69: 0 | DV69: 0 | DW69: 0 | DX69: 0 | DY69: 0 | DZ69: 0 | EA69: 0 | EB69: 0 | EC69: 0 | ED69: 0 | EE69: 0
D70: Standby Debt Fees | F70: EUR'000 | J70: 0
D71: Standby Equity Fees | F71: EUR'000 | J71: 0
D72: Cash DSRA | F72: EUR'000 | J72: 0
E73: Funding Needs | F73: EUR'000 | J73: 67658.24119 | L73: =SUM(L57:L72) -> 585.4686394 | M73: 22218.44197 | N73: 6494.826393 | O73: 100.050597 | P73: 4381.967459 | Q73: 119.0032209 | R73: 8682.494015 | S73: 8719.208736 | T73: 8756.078709 | U73: 230.117012 | V73: 231.0900828 | W73: 232.0672684 | X73: 4514.542375 | Y73: 2392.884717 | Z73: 0 | AA73: 0 | AB73: 0 | AC73: 0 | AD73: 0 | AE73: 0 | AF73: 0 | AG73: 0 | AH73: 0 | AI73: 0 | AJ73: 0 | AK73: 0 | AL73: 0 | AM73: 0 | AN73: 0 | AO73: 0 | AP73: 0 | AQ73: 0 | AR73: 0 | AS73: 0 | AT73: 0 | AU73: 0 | AV73: 0 | AW73: 0 | AX73: 0 | AY73: 0 | AZ73: 0 | BA73: 0 | BB73: 0 | BC73: 0 | BD73: 0 | BE73: 0 | BF73: 0 | BG73: 0 | BH73: 0 | BI73: 0 | BJ73: 0 | BK73: 0 | BL73: 0 | BM73: 0 | BN73: 0 | BO73: 0 | BP73: 0 | BQ73: 0 | BR73: 0 | BS73: 0 | BT73: 0 | BU73: 0 | BV73: 0 | BW73: 0 | BX73: 0 | BY73: =SUM(BY57:BY72) -> 0 | BZ73: 0 | CA73: 0 | CB73: 0 | CC73: 0 | CD73: 0 | CE73: 0 | CF73: 0 | CG73: 0 | CH73: 0 | CI73: 0 | CJ73: 0 | CK73: 0 | CL73: 0 | CM73: 0 | CN73: 0 | CO73: 0 | CP73: 0 | CQ73: 0 | CR73: 0 | CS73: 0 | CT73: 0 | CU73: 0 | CV73: 0 | CW73: 0 | CX73: 0 | CY73: 0 | CZ73: 0 | DA73: 0 | DB73: 0 | DC73: 0 | DD73: 0 | DE73: 0 | DF73: 0 | DG73: 0 | DH73: 0 | DI73: 0 | DJ73: 0 | DK73: 0 | DL73: 0 | DM73: 0 | DN73: 0 | DO73: 0 | DP73: 0 | DQ73: 0 | DR73: 0 | DS73: 0 | DT73: 0 | DU73: 0 | DV73: 0 | DW73: 0 | DX73: 0 | DY73: 0 | DZ73: 0 | EA73: 0 | EB73: 0 | EC73: 0 | ED73: 0 | EE73: 0
C75: Funding Sources
D77: Equity Commitment | F77: EUR'000 | G77: EUR'000 | H77: =H52 -> 13531.64851 | L77: =$H$77 -> 13531.64851 | M77: =$H$77 -> 13531.64851 | N77: 13531.64851 | O77: 13531.64851 | P77: 13531.64851 | Q77: 13531.64851 | R77: 13531.64851 | S77: 13531.64851 | T77: 13531.64851 | U77: 13531.64851 | V77: 13531.64851 | W77: 13531.64851 | X77: 13531.64851 | Y77: 13531.64851 | Z77: 13531.64851 | AA77: 13531.64851 | AB77: 13531.64851 | AC77: 13531.64851 | AD77: 13531.64851 | AE77: 13531.64851 | AF77: 13531.64851 | AG77: 13531.64851 | AH77: 13531.64851 | AI77: 13531.64851 | AJ77: 13531.64851 | AK77: 13531.64851 | AL77: 13531.64851 | AM77: 13531.64851 | AN77: 13531.64851 | AO77: 13531.64851 | AP77: 13531.64851 | AQ77: 13531.64851 | AR77: 13531.64851 | AS77: 13531.64851 | AT77: 13531.64851 | AU77: 13531.64851 | AV77: 13531.64851 | AW77: 13531.64851 | AX77: 13531.64851 | AY77: 13531.64851 | AZ77: 13531.64851 | BA77: 13531.64851 | BB77: 13531.64851 | BC77: 13531.64851 | BD77: 13531.64851 | BE77: 13531.64851 | BF77: 13531.64851 | BG77: 13531.64851 | BH77: 13531.64851 | BI77: 13531.64851 | BJ77: 13531.64851 | BK77: 13531.64851 | BL77: 13531.64851 | BM77: 13531.64851 | BN77: 13531.64851 | BO77: 13531.64851 | BP77: 13531.64851 | BQ77: 13531.64851 | BR77: 13531.64851 | BS77: 13531.64851 | BT77: 13531.64851 | BU77: 13531.64851 | BV77: 13531.64851 | BW77: 13531.64851 | BX77: 13531.64851 | BY77: =$H$77 -> 13531.64851 | BZ77: 13531.64851 | CA77: 13531.64851 | CB77: 13531.64851 | CC77: 13531.64851 | CD77: 13531.64851 | CE77: 13531.64851 | CF77: 13531.64851 | CG77: 13531.64851 | CH77: 13531.64851 | CI77: 13531.64851 | CJ77: 13531.64851 | CK77: 13531.64851 | CL77: 13531.64851 | CM77: 13531.64851 | CN77: 13531.64851 | CO77: 13531.64851 | CP77: 13531.64851 | CQ77: 13531.64851 | CR77: 13531.64851 | CS77: 13531.64851 | CT77: 13531.64851 | CU77: 13531.64851 | CV77: 13531.64851 | CW77: 13531.64851 | CX77: 13531.64851 | CY77: 13531.64851 | CZ77: 13531.64851 | DA77: 13531.64851 | DB77: 13531.64851 | DC77: 13531.64851 | DD77: 13531.64851 | DE77: 13531.64851 | DF77: 13531.64851 | DG77: 13531.64851 | DH77: 13531.64851 | DI77: 13531.64851 | DJ77: 13531.64851 | DK77: 13531.64851 | DL77: 13531.64851 | DM77: 13531.64851 | DN77: 13531.64851 | DO77: 13531.64851 | DP77: 13531.64851 | DQ77: 13531.64851 | DR77: 13531.64851 | DS77: 13531.64851 | DT77: 13531.64851 | DU77: 13531.64851 | DV77: 13531.64851 | DW77: 13531.64851 | DX77: 13531.64851 | DY77: 13531.64851 | DZ77: 13531.64851 | EA77: 13531.64851 | EB77: 13531.64851 | EC77: 13531.64851 | ED77: 13531.64851 | EE77: 13531.64851
D78: Less: Equity Already Commited | F78: EUR'000 | L78: =L81 -> 0 | M78: =M81 -> 585.4686394 | N78: 13531.64851 | O78: 13531.64851 | P78: 13531.64851 | Q78: 13531.64851 | R78: 13531.64851 | S78: 13531.64851 | T78: 13531.64851 | U78: 13531.64851 | V78: 13531.64851 | W78: 13531.64851 | X78: 13531.64851 | Y78: 13531.64851 | Z78: 13531.64851 | AA78: 13531.64851 | AB78: 13531.64851 | AC78: 13531.64851 | AD78: 13531.64851 | AE78: 13531.64851 | AF78: 13531.64851 | AG78: 13531.64851 | AH78: 13531.64851 | AI78: 13531.64851 | AJ78: 13531.64851 | AK78: 13531.64851 | AL78: 13531.64851 | AM78: 13531.64851 | AN78: 13531.64851 | AO78: 13531.64851 | AP78: 13531.64851 | AQ78: 13531.64851 | AR78: 13531.64851 | AS78: 13531.64851 | AT78: 13531.64851 | AU78: 13531.64851 | AV78: 13531.64851 | AW78: 13531.64851 | AX78: 13531.64851 | AY78: 13531.64851 | AZ78: 13531.64851 | BA78: 13531.64851 | BB78: 13531.64851 | BC78: 13531.64851 | BD78: 13531.64851 | BE78: 13531.64851 | BF78: 13531.64851 | BG78: 13531.64851 | BH78: 13531.64851 | BI78: 13531.64851 | BJ78: 13531.64851 | BK78: 13531.64851 | BL78: 13531.64851 | BM78: 13531.64851 | BN78: 13531.64851 | BO78: 13531.64851 | BP78: 13531.64851 | BQ78: 13531.64851 | BR78: 13531.64851 | BS78: 13531.64851 | BT78: 13531.64851 | BU78: 13531.64851 | BV78: 13531.64851 | BW78: 13531.64851 | BX78: 13531.64851 | BY78: =BY81 -> 13531.64851 | BZ78: 13531.64851 | CA78: 13531.64851 | CB78: 13531.64851 | CC78: 13531.64851 | CD78: 13531.64851 | CE78: 13531.64851 | CF78: 13531.64851 | CG78: 13531.64851 | CH78: 13531.64851 | CI78: 13531.64851 | CJ78: 13531.64851 | CK78: 13531.64851 | CL78: 13531.64851 | CM78: 13531.64851 | CN78: 13531.64851 | CO78: 13531.64851 | CP78: 13531.64851 | CQ78: 13531.64851 | CR78: 13531.64851 | CS78: 13531.64851 | CT78: 13531.64851 | CU78: 13531.64851 | CV78: 13531.64851 | CW78: 13531.64851 | CX78: 13531.64851 | CY78: 13531.64851 | CZ78: 13531.64851 | DA78: 13531.64851 | DB78: 13531.64851 | DC78: 13531.64851 | DD78: 13531.64851 | DE78: 13531.64851 | DF78: 13531.64851 | DG78: 13531.64851 | DH78: 13531.64851 | DI78: 13531.64851 | DJ78: 13531.64851 | DK78: 13531.64851 | DL78: 13531.64851 | DM78: 13531.64851 | DN78: 13531.64851 | DO78: 13531.64851 | DP78: 13531.64851 | DQ78: 13531.64851 | DR78: 13531.64851 | DS78: 13531.64851 | DT78: 13531.64851 | DU78: 13531.64851 | DV78: 13531.64851 | DW78: 13531.64851 | DX78: 13531.64851 | DY78: 13531.64851 | DZ78: 13531.64851 | EA78: 13531.64851 | EB78: 13531.64851 | EC78: 13531.64851 | ED78: 13531.64851 | EE78: 13531.64851
D79: Remaining Equity | F79: EUR'000 | L79: =L77-L78 -> 13531.64851 | M79: =M77-M78 -> 12946.17987 | N79: 0 | O79: 0 | P79: 0 | Q79: 0 | R79: 0 | S79: 0 | T79: 0 | U79: 0 | V79: 0 | W79: 0 | X79: 0 | Y79: 0 | Z79: 0 | AA79: 0 | AB79: 0 | AC79: 0 | AD79: 0 | AE79: 0 | AF79: 0 | AG79: 0 | AH79: 0 | AI79: 0 | AJ79: 0 | AK79: 0 | AL79: 0 | AM79: 0 | AN79: 0 | AO79: 0 | AP79: 0 | AQ79: 0 | AR79: 0 | AS79: 0 | AT79: 0 | AU79: 0 | AV79: 0 | AW79: 0 | AX79: 0 | AY79: 0 | AZ79: 0 | BA79: 0 | BB79: 0 | BC79: 0 | BD79: 0 | BE79: 0 | BF79: 0 | BG79: 0 | BH79: 0 | BI79: 0 | BJ79: 0 | BK79: 0 | BL79: 0 | BM79: 0 | BN79: 0 | BO79: 0 | BP79: 0 | BQ79: 0 | BR79: 0 | BS79: 0 | BT79: 0 | BU79: 0 | BV79: 0 | BW79: 0 | BX79: 0 | BY79: =BY77-BY78 -> 0 | BZ79: 0 | CA79: 0 | CB79: 0 | CC79: 0 | CD79: 0 | CE79: 0 | CF79: 0 | CG79: 0 | CH79: 0 | CI79: 0 | CJ79: 0 | CK79: 0 | CL79: 0 | CM79: 0 | CN79: 0 | CO79: 0 | CP79: 0 | CQ79: 0 | CR79: 0 | CS79: 0 | CT79: 0 | CU79: 0 | CV79: 0 | CW79: 0 | CX79: 0 | CY79: 0 | CZ79: 0 | DA79: 0 | DB79: 0 | DC79: 0 | DD79: 0 | DE79: 0 | DF79: 0 | DG79: 0 | DH79: 0 | DI79: 0 | DJ79: 0 | DK79: 0 | DL79: 0 | DM79: 0 | DN79: 0 | DO79: 0 | DP79: 0 | DQ79: 0 | DR79: 0 | DS79: 0 | DT79: 0 | DU79: 0 | DV79: 0 | DW79: 0 | DX79: 0 | DY79: 0 | DZ79: 0 | EA79: 0 | EB79: 0 | EC79: 0 | ED79: 0 | EE79: 0
D81: Opening Equity | F81: EUR'000 | L81: =K83 -> 0 | M81: =L83 -> 585.4686394 | N81: 13531.64851 | O81: 13531.64851 | P81: 13531.64851 | Q81: 13531.64851 | R81: 13531.64851 | S81: 13531.64851 | T81: 13531.64851 | U81: 13531.64851 | V81: 13531.64851 | W81: 13531.64851 | X81: 13531.64851 | Y81: 13531.64851 | Z81: 13531.64851 | AA81: 13531.64851 | AB81: 13531.64851 | AC81: 13531.64851 | AD81: 13531.64851 | AE81: 13531.64851 | AF81: 13531.64851 | AG81: 13531.64851 | AH81: 13531.64851 | AI81: 13531.64851 | AJ81: 13531.64851 | AK81: 13531.64851 | AL81: 13531.64851 | AM81: 13531.64851 | AN81: 13531.64851 | AO81: 13531.64851 | AP81: 13531.64851 | AQ81: 13531.64851 | AR81: 13531.64851 | AS81: 13531.64851 | AT81: 13531.64851 | AU81: 13531.64851 | AV81: 13531.64851 | AW81: 13531.64851 | AX81: 13531.64851 | AY81: 13531.64851 | AZ81: 13531.64851 | BA81: 13531.64851 | BB81: 13531.64851 | BC81: 13531.64851 | BD81: 13531.64851 | BE81: 13531.64851 | BF81: 13531.64851 | BG81: 13531.64851 | BH81: 13531.64851 | BI81: 13531.64851 | BJ81: 13531.64851 | BK81: 13531.64851 | BL81: 13531.64851 | BM81: 13531.64851 | BN81: 13531.64851 | BO81: 13531.64851 | BP81: 13531.64851 | BQ81: 13531.64851 | BR81: 13531.64851 | BS81: 13531.64851 | BT81: 13531.64851 | BU81: 13531.64851 | BV81: 13531.64851 | BW81: 13531.64851 | BX81: 13531.64851 | BY81: =BX83 -> 13531.64851 | BZ81: 13531.64851 | CA81: 13531.64851 | CB81: 13531.64851 | CC81: 13531.64851 | CD81: 13531.64851 | CE81: 13531.64851 | CF81: 13531.64851 | CG81: 13531.64851 | CH81: 13531.64851 | CI81: 13531.64851 | CJ81: 13531.64851 | CK81: 13531.64851 | CL81: 13531.64851 | CM81: 13531.64851 | CN81: 13531.64851 | CO81: 13531.64851 | CP81: 13531.64851 | CQ81: 13531.64851 | CR81: 13531.64851 | CS81: 13531.64851 | CT81: 13531.64851 | CU81: 13531.64851 | CV81: 13531.64851 | CW81: 13531.64851 | CX81: 13531.64851 | CY81: 13531.64851 | CZ81: 13531.64851 | DA81: 13531.64851 | DB81: 13531.64851 | DC81: 13531.64851 | DD81: 13531.64851 | DE81: 13531.64851 | DF81: 13531.64851 | DG81: 13531.64851 | DH81: 13531.64851 | DI81: 13531.64851 | DJ81: 13531.64851 | DK81: 13531.64851 | DL81: 13531.64851 | DM81: 13531.64851 | DN81: 13531.64851 | DO81: 13531.64851 | DP81: 13531.64851 | DQ81: 13531.64851 | DR81: 13531.64851 | DS81: 13531.64851 | DT81: 13531.64851 | DU81: 13531.64851 | DV81: 13531.64851 | DW81: 13531.64851 | DX81: 13531.64851 | DY81: 13531.64851 | DZ81: 13531.64851 | EA81: 13531.64851 | EB81: 13531.64851 | EC81: 13531.64851 | ED81: 13531.64851 | EE81: 13531.64851
D82: Add: Equity Draws (Min Fund, Remaining) | F82: EUR'000 | L82: =MIN(L79,L73) -> 585.4686394 | M82: =MIN(M79,M73) -> 12946.17987 | N82: 0 | O82: 0 | P82: 0 | Q82: 0 | R82: 0 | S82: 0 | T82: 0 | U82: 0 | V82: 0 | W82: 0 | X82: 0 | Y82: 0 | Z82: 0 | AA82: 0 | AB82: 0 | AC82: 0 | AD82: 0 | AE82: 0 | AF82: 0 | AG82: 0 | AH82: 0 | AI82: 0 | AJ82: 0 | AK82: 0 | AL82: 0 | AM82: 0 | AN82: 0 | AO82: 0 | AP82: 0 | AQ82: 0 | AR82: 0 | AS82: 0 | AT82: 0 | AU82: 0 | AV82: 0 | AW82: 0 | AX82: 0 | AY82: 0 | AZ82: 0 | BA82: 0 | BB82: 0 | BC82: 0 | BD82: 0 | BE82: 0 | BF82: 0 | BG82: 0 | BH82: 0 | BI82: 0 | BJ82: 0 | BK82: 0 | BL82: 0 | BM82: 0 | BN82: 0 | BO82: 0 | BP82: 0 | BQ82: 0 | BR82: 0 | BS82: 0 | BT82: 0 | BU82: 0 | BV82: 0 | BW82: 0 | BX82: 0 | BY82: =MIN(BY79,BY73) -> 0 | BZ82: 0 | CA82: 0 | CB82: 0 | CC82: 0 | CD82: 0 | CE82: 0 | CF82: 0 | CG82: 0 | CH82: 0 | CI82: 0 | CJ82: 0 | CK82: 0 | CL82: 0 | CM82: 0 | CN82: 0 | CO82: 0 | CP82: 0 | CQ82: 0 | CR82: 0 | CS82: 0 | CT82: 0 | CU82: 0 | CV82: 0 | CW82: 0 | CX82: 0 | CY82: 0 | CZ82: 0 | DA82: 0 | DB82: 0 | DC82: 0 | DD82: 0 | DE82: 0 | DF82: 0 | DG82: 0 | DH82: 0 | DI82: 0 | DJ82: 0 | DK82: 0 | DL82: 0 | DM82: 0 | DN82: 0 | DO82: 0 | DP82: 0 | DQ82: 0 | DR82: 0 | DS82: 0 | DT82: 0 | DU82: 0 | DV82: 0 | DW82: 0 | DX82: 0 | DY82: 0 | DZ82: 0 | EA82: 0 | EB82: 0 | EC82: 0 | ED82: 0 | EE82: 0
D83: Closing Balance | F83: EUR'000 | L83: =L81+L82 -> 585.4686394 | M83: =M81+M82 -> 13531.64851 | N83: 13531.64851 | O83: 13531.64851 | P83: 13531.64851 | Q83: 13531.64851 | R83: 13531.64851 | S83: 13531.64851 | T83: 13531.64851 | U83: 13531.64851 | V83: 13531.64851 | W83: 13531.64851 | X83: 13531.64851 | Y83: 13531.64851 | Z83: 13531.64851 | AA83: 13531.64851 | AB83: 13531.64851 | AC83: 13531.64851 | AD83: 13531.64851 | AE83: 13531.64851 | AF83: 13531.64851 | AG83: 13531.64851 | AH83: 13531.64851 | AI83: 13531.64851 | AJ83: 13531.64851 | AK83: 13531.64851 | AL83: 13531.64851 | AM83: 13531.64851 | AN83: 13531.64851 | AO83: 13531.64851 | AP83: 13531.64851 | AQ83: 13531.64851 | AR83: 13531.64851 | AS83: 13531.64851 | AT83: 13531.64851 | AU83: 13531.64851 | AV83: 13531.64851 | AW83: 13531.64851 | AX83: 13531.64851 | AY83: 13531.64851 | AZ83: 13531.64851 | BA83: 13531.64851 | BB83: 13531.64851 | BC83: 13531.64851 | BD83: 13531.64851 | BE83: 13531.64851 | BF83: 13531.64851 | BG83: 13531.64851 | BH83: 13531.64851 | BI83: 13531.64851 | BJ83: 13531.64851 | BK83: 13531.64851 | BL83: 13531.64851 | BM83: 13531.64851 | BN83: 13531.64851 | BO83: 13531.64851 | BP83: 13531.64851 | BQ83: 13531.64851 | BR83: 13531.64851 | BS83: 13531.64851 | BT83: 13531.64851 | BU83: 13531.64851 | BV83: 13531.64851 | BW83: 13531.64851 | BX83: 13531.64851 | BY83: =BY81+BY82 -> 13531.64851 | BZ83: 13531.64851 | CA83: 13531.64851 | CB83: 13531.64851 | CC83: 13531.64851 | CD83: 13531.64851 | CE83: 13531.64851 | CF83: 13531.64851 | CG83: 13531.64851 | CH83: 13531.64851 | CI83: 13531.64851 | CJ83: 13531.64851 | CK83: 13531.64851 | CL83: 13531.64851 | CM83: 13531.64851 | CN83: 13531.64851 | CO83: 13531.64851 | CP83: 13531.64851 | CQ83: 13531.64851 | CR83: 13531.64851 | CS83: 13531.64851 | CT83: 13531.64851 | CU83: 13531.64851 | CV83: 13531.64851 | CW83: 13531.64851 | CX83: 13531.64851 | CY83: 13531.64851 | CZ83: 13531.64851 | DA83: 13531.64851 | DB83: 13531.64851 | DC83: 13531.64851 | DD83: 13531.64851 | DE83: 13531.64851 | DF83: 13531.64851 | DG83: 13531.64851 | DH83: 13531.64851 | DI83: 13531.64851 | DJ83: 13531.64851 | DK83: 13531.64851 | DL83: 13531.64851 | DM83: 13531.64851 | DN83: 13531.64851 | DO83: 13531.64851 | DP83: 13531.64851 | DQ83: 13531.64851 | DR83: 13531.64851 | DS83: 13531.64851 | DT83: 13531.64851 | DU83: 13531.64851 | DV83: 13531.64851 | DW83: 13531.64851 | DX83: 13531.64851 | DY83: 13531.64851 | DZ83: 13531.64851 | EA83: 13531.64851 | EB83: 13531.64851 | EC83: 13531.64851 | ED83: 13531.64851 | EE83: 13531.64851
D85: Total Debt Draws (Equity First) | F85: EUR'000 | L85: =L73-L82 -> 0 | M85: =M73-M82 -> 9272.262097 | N85: 6494.826393 | O85: 100.050597 | P85: 4381.967459 | Q85: 119.0032209 | R85: 8682.494015 | S85: 8719.208736 | T85: 8756.078709 | U85: 230.117012 | V85: 231.0900828 | W85: 232.0672684 | X85: 4514.542375 | Y85: 2392.884717 | Z85: 0 | AA85: 0 | AB85: 0 | AC85: 0 | AD85: 0 | AE85: 0 | AF85: 0 | AG85: 0 | AH85: 0 | AI85: 0 | AJ85: 0 | AK85: 0 | AL85: 0 | AM85: 0 | AN85: 0 | AO85: 0 | AP85: 0 | AQ85: 0 | AR85: 0 | AS85: 0 | AT85: 0 | AU85: 0 | AV85: 0 | AW85: 0 | AX85: 0 | AY85: 0 | AZ85: 0 | BA85: 0 | BB85: 0 | BC85: 0 | BD85: 0 | BE85: 0 | BF85: 0 | BG85: 0 | BH85: 0 | BI85: 0 | BJ85: 0 | BK85: 0 | BL85: 0 | BM85: 0 | BN85: 0 | BO85: 0 | BP85: 0 | BQ85: 0 | BR85: 0 | BS85: 0 | BT85: 0 | BU85: 0 | BV85: 0 | BW85: 0 | BX85: 0 | BY85: =BY73-BY82 -> 0 | BZ85: 0 | CA85: 0 | CB85: 0 | CC85: 0 | CD85: 0 | CE85: 0 | CF85: 0 | CG85: 0 | CH85: 0 | CI85: 0 | CJ85: 0 | CK85: 0 | CL85: 0 | CM85: 0 | CN85: 0 | CO85: 0 | CP85: 0 | CQ85: 0 | CR85: 0 | CS85: 0 | CT85: 0 | CU85: 0 | CV85: 0 | CW85: 0 | CX85: 0 | CY85: 0 | CZ85: 0 | DA85: 0 | DB85: 0 | DC85: 0 | DD85: 0 | DE85: 0 | DF85: 0 | DG85: 0 | DH85: 0 | DI85: 0 | DJ85: 0 | DK85: 0 | DL85: 0 | DM85: 0 | DN85: 0 | DO85: 0 | DP85: 0 | DQ85: 0 | DR85: 0 | DS85: 0 | DT85: 0 | DU85: 0 | DV85: 0 | DW85: 0 | DX85: 0 | DY85: 0 | DZ85: 0 | EA85: 0 | EB85: 0 | EC85: 0 | ED85: 0 | EE85: 0
D87: Pro-Rata Equity | F87: EUR'000 | G87: % | H87: =I52 -> 0.200000004 | L87: =$H$87*L73 -> 117.0937302 | M87: =$H$87*M73 -> 4443.688482 | N87: 1298.965305 | O87: 20.0101198 | P87: 876.3935094 | Q87: 23.80064466 | R87: 1736.498838 | S87: 1743.841782 | T87: 1751.215777 | U87: 46.02340331 | V87: 46.21801749 | W87: 46.41345461 | X87: 902.9084931 | Y87: 478.576953 | Z87: 0 | AA87: 0 | AB87: 0 | AC87: 0 | AD87: 0 | AE87: 0 | AF87: 0 | AG87: 0 | AH87: 0 | AI87: 0 | AJ87: 0 | AK87: 0 | AL87: 0 | AM87: 0 | AN87: 0 | AO87: 0 | AP87: 0 | AQ87: 0 | AR87: 0 | AS87: 0 | AT87: 0 | AU87: 0 | AV87: 0 | AW87: 0 | AX87: 0 | AY87: 0 | AZ87: 0 | BA87: 0 | BB87: 0 | BC87: 0 | BD87: 0 | BE87: 0 | BF87: 0 | BG87: 0 | BH87: 0 | BI87: 0 | BJ87: 0 | BK87: 0 | BL87: 0 | BM87: 0 | BN87: 0 | BO87: 0 | BP87: 0 | BQ87: 0 | BR87: 0 | BS87: 0 | BT87: 0 | BU87: 0 | BV87: 0 | BW87: 0 | BX87: 0 | BY87: =$H$87*BY73 -> 0 | BZ87: 0 | CA87: 0 | CB87: 0 | CC87: 0 | CD87: 0 | CE87: 0 | CF87: 0 | CG87: 0 | CH87: 0 | CI87: 0 | CJ87: 0 | CK87: 0 | CL87: 0 | CM87: 0 | CN87: 0 | CO87: 0 | CP87: 0 | CQ87: 0 | CR87: 0 | CS87: 0 | CT87: 0 | CU87: 0 | CV87: 0 | CW87: 0 | CX87: 0 | CY87: 0 | CZ87: 0 | DA87: 0 | DB87: 0 | DC87: 0 | DD87: 0 | DE87: 0 | DF87: 0 | DG87: 0 | DH87: 0 | DI87: 0 | DJ87: 0 | DK87: 0 | DL87: 0 | DM87: 0 | DN87: 0 | DO87: 0 | DP87: 0 | DQ87: 0 | DR87: 0 | DS87: 0 | DT87: 0 | DU87: 0 | DV87: 0 | DW87: 0 | DX87: 0 | DY87: 0 | DZ87: 0 | EA87: 0 | EB87: 0 | EC87: 0 | ED87: 0 | EE87: 0
D88: Pro-Rata Debt | F88: EUR'000 | G88: % | H88: =I45 -> 0.799998967 | L88: =$H$88*L73 -> 468.3743067 | M88: =$H$88*M73 -> 17774.73062 | N88: 5195.854405 | O88: 80.04037424 | P88: 3505.569441 | Q88: 95.20245379 | R88: 6945.986243 | S88: 6975.357982 | T88: 7004.853922 | U88: 184.0933718 | V88: 184.8718275 | W88: 185.653575 | X88: 3611.629236 | Y88: 1914.305302 | Z88: 0 | AA88: 0 | AB88: 0 | AC88: 0 | AD88: 0 | AE88: 0 | AF88: 0 | AG88: 0 | AH88: 0 | AI88: 0 | AJ88: 0 | AK88: 0 | AL88: 0 | AM88: 0 | AN88: 0 | AO88: 0 | AP88: 0 | AQ88: 0 | AR88: 0 | AS88: 0 | AT88: 0 | AU88: 0 | AV88: 0 | AW88: 0 | AX88: 0 | AY88: 0 | AZ88: 0 | BA88: 0 | BB88: 0 | BC88: 0 | BD88: 0 | BE88: 0 | BF88: 0 | BG88: 0 | BH88: 0 | BI88: 0 | BJ88: 0 | BK88: 0 | BL88: 0 | BM88: 0 | BN88: 0 | BO88: 0 | BP88: 0 | BQ88: 0 | BR88: 0 | BS88: 0 | BT88: 0 | BU88: 0 | BV88: 0 | BW88: 0 | BX88: 0 | BY88: =$H$88*BY73 -> 0 | BZ88: 0 | CA88: 0 | CB88: 0 | CC88: 0 | CD88: 0 | CE88: 0 | CF88: 0 | CG88: 0 | CH88: 0 | CI88: 0 | CJ88: 0 | CK88: 0 | CL88: 0 | CM88: 0 | CN88: 0 | CO88: 0 | CP88: 0 | CQ88: 0 | CR88: 0 | CS88: 0 | CT88: 0 | CU88: 0 | CV88: 0 | CW88: 0 | CX88: 0 | CY88: 0 | CZ88: 0 | DA88: 0 | DB88: 0 | DC88: 0 | DD88: 0 | DE88: 0 | DF88: 0 | DG88: 0 | DH88: 0 | DI88: 0 | DJ88: 0 | DK88: 0 | DL88: 0 | DM88: 0 | DN88: 0 | DO88: 0 | DP88: 0 | DQ88: 0 | DR88: 0 | DS88: 0 | DT88: 0 | DU88: 0 | DV88: 0 | DW88: 0 | DX88: 0 | DY88: 0 | DZ88: 0 | EA88: 0 | EB88: 0 | EC88: 0 | ED88: 0 | EE88: 0
D90: Final Equity Funding | F90: EUR'000 | G90: Eq Fst | H90: ='InputC - Structure'!$G$31 -> TRUE | L90: =IF($H$90,L82,L87) -> 585.4686394 | M90: =IF($H$90,M82,M87) -> 12946.17987 | N90: 0 | O90: 0 | P90: 0 | Q90: 0 | R90: 0 | S90: 0 | T90: 0 | U90: 0 | V90: 0 | W90: 0 | X90: 0 | Y90: 0 | Z90: 0 | AA90: 0 | AB90: 0 | AC90: 0 | AD90: 0 | AE90: 0 | AF90: 0 | AG90: 0 | AH90: 0 | AI90: 0 | AJ90: 0 | AK90: 0 | AL90: 0 | AM90: 0 | AN90: 0 | AO90: 0 | AP90: 0 | AQ90: 0 | AR90: 0 | AS90: 0 | AT90: 0 | AU90: 0 | AV90: 0 | AW90: 0 | AX90: 0 | AY90: 0 | AZ90: 0 | BA90: 0 | BB90: 0 | BC90: 0 | BD90: 0 | BE90: 0 | BF90: 0 | BG90: 0 | BH90: 0 | BI90: 0 | BJ90: 0 | BK90: 0 | BL90: 0 | BM90: 0 | BN90: 0 | BO90: 0 | BP90: 0 | BQ90: 0 | BR90: 0 | BS90: 0 | BT90: 0 | BU90: 0 | BV90: 0 | BW90: 0 | BX90: 0 | BY90: =IF($H$90,BY82,BY87) -> 0 | BZ90: 0 | CA90: 0 | CB90: 0 | CC90: 0 | CD90: 0 | CE90: 0 | CF90: 0 | CG90: 0 | CH90: 0 | CI90: 0 | CJ90: 0 | CK90: 0 | CL90: 0 | CM90: 0 | CN90: 0 | CO90: 0 | CP90: 0 | CQ90: 0 | CR90: 0 | CS90: 0 | CT90: 0 | CU90: 0 | CV90: 0 | CW90: 0 | CX90: 0 | CY90: 0 | CZ90: 0 | DA90: 0 | DB90: 0 | DC90: 0 | DD90: 0 | DE90: 0 | DF90: 0 | DG90: 0 | DH90: 0 | DI90: 0 | DJ90: 0 | DK90: 0 | DL90: 0 | DM90: 0 | DN90: 0 | DO90: 0 | DP90: 0 | DQ90: 0 | DR90: 0 | DS90: 0 | DT90: 0 | DU90: 0 | DV90: 0 | DW90: 0 | DX90: 0 | DY90: 0 | DZ90: 0 | EA90: 0 | EB90: 0 | EC90: 0 | ED90: 0 | EE90: 0
D91: Final Debt Funding | F91: EUR'000 | G91: Eq Fst | H91: ='InputC - Structure'!$G$31 -> TRUE | L91: =IF($H$91,L85,L88) -> 0 | M91: =IF($H$91,M85,M88) -> 9272.262097 | N91: 6494.826393 | O91: 100.050597 | P91: 4381.967459 | Q91: 119.0032209 | R91: 8682.494015 | S91: 8719.208736 | T91: 8756.078709 | U91: 230.117012 | V91: 231.0900828 | W91: 232.0672684 | X91: 4514.542375 | Y91: 2392.884717 | Z91: 0 | AA91: 0 | AB91: 0 | AC91: 0 | AD91: 0 | AE91: 0 | AF91: 0 | AG91: 0 | AH91: 0 | AI91: 0 | AJ91: 0 | AK91: 0 | AL91: 0 | AM91: 0 | AN91: 0 | AO91: 0 | AP91: 0 | AQ91: 0 | AR91: 0 | AS91: 0 | AT91: 0 | AU91: 0 | AV91: 0 | AW91: 0 | AX91: 0 | AY91: 0 | AZ91: 0 | BA91: 0 | BB91: 0 | BC91: 0 | BD91: 0 | BE91: 0 | BF91: 0 | BG91: 0 | BH91: 0 | BI91: 0 | BJ91: 0 | BK91: 0 | BL91: 0 | BM91: 0 | BN91: 0 | BO91: 0 | BP91: 0 | BQ91: 0 | BR91: 0 | BS91: 0 | BT91: 0 | BU91: 0 | BV91: 0 | BW91: 0 | BX91: 0 | BY91: =IF($H$91,BY85,BY88) -> 0 | BZ91: 0 | CA91: 0 | CB91: 0 | CC91: 0 | CD91: 0 | CE91: 0 | CF91: 0 | CG91: 0 | CH91: 0 | CI91: 0 | CJ91: 0 | CK91: 0 | CL91: 0 | CM91: 0 | CN91: 0 | CO91: 0 | CP91: 0 | CQ91: 0 | CR91: 0 | CS91: 0 | CT91: 0 | CU91: 0 | CV91: 0 | CW91: 0 | CX91: 0 | CY91: 0 | CZ91: 0 | DA91: 0 | DB91: 0 | DC91: 0 | DD91: 0 | DE91: 0 | DF91: 0 | DG91: 0 | DH91: 0 | DI91: 0 | DJ91: 0 | DK91: 0 | DL91: 0 | DM91: 0 | DN91: 0 | DO91: 0 | DP91: 0 | DQ91: 0 | DR91: 0 | DS91: 0 | DT91: 0 | DU91: 0 | DV91: 0 | DW91: 0 | DX91: 0 | DY91: 0 | DZ91: 0 | EA91: 0 | EB91: 0 | EC91: 0 | ED91: 0 | EE91: 0
D93: =D48& " Funded" -> EIAF Funded | F93: EUR'000 | G93: % | H93: ='InputC - Structure'!G47 -> 0.4 | J93: =SUM(L93:XFD93) -> 21650.63707 | L93: =L$91*$H93 -> 0 | M93: =M$91*$H93 -> 3708.904839 | N93: 2597.930557 | O93: 40.0202388 | P93: 1752.786984 | Q93: 47.60128836 | R93: 3472.997606 | S93: 3487.683495 | T93: 3502.431484 | U93: 92.04680478 | V93: 92.43603313 | W93: 92.82690736 | X93: 1805.81695 | Y93: 957.1538869 | Z93: 0 | AA93: 0 | AB93: 0 | AC93: 0 | AD93: 0 | AE93: 0 | AF93: 0 | AG93: 0 | AH93: 0 | AI93: 0 | AJ93: 0 | AK93: 0 | AL93: 0 | AM93: 0 | AN93: 0 | AO93: 0 | AP93: 0 | AQ93: 0 | AR93: 0 | AS93: 0 | AT93: 0 | AU93: 0 | AV93: 0 | AW93: 0 | AX93: 0 | AY93: 0 | AZ93: 0 | BA93: 0 | BB93: 0 | BC93: 0 | BD93: 0 | BE93: 0 | BF93: 0 | BG93: 0 | BH93: 0 | BI93: 0 | BJ93: 0 | BK93: 0 | BL93: 0 | BM93: 0 | BN93: 0 | BO93: 0 | BP93: 0 | BQ93: 0 | BR93: 0 | BS93: 0 | BT93: 0 | BU93: 0 | BV93: 0 | BW93: 0 | BX93: 0 | BY93: =BY$91*$H93 -> 0 | BZ93: 0 | CA93: 0 | CB93: 0 | CC93: 0 | CD93: 0 | CE93: 0 | CF93: 0 | CG93: 0 | CH93: 0 | CI93: 0 | CJ93: 0 | CK93: 0 | CL93: 0 | CM93: 0 | CN93: 0 | CO93: 0 | CP93: 0 | CQ93: 0 | CR93: 0 | CS93: 0 | CT93: 0 | CU93: 0 | CV93: 0 | CW93: 0 | CX93: 0 | CY93: 0 | CZ93: 0 | DA93: 0 | DB93: 0 | DC93: 0 | DD93: 0 | DE93: 0 | DF93: 0 | DG93: 0 | DH93: 0 | DI93: 0 | DJ93: 0 | DK93: 0 | DL93: 0 | DM93: 0 | DN93: 0 | DO93: 0 | DP93: 0 | DQ93: 0 | DR93: 0 | DS93: 0 | DT93: 0 | DU93: 0 | DV93: 0 | DW93: 0 | DX93: 0 | DY93: 0 | DZ93: 0 | EA93: 0 | EB93: 0 | EC93: 0 | ED93: 0 | EE93: 0
D94: =D49& " Funded" -> AFDB Funded | F94: EUR'000 | G94: % | H94: ='InputC - Structure'!G48 -> 0.3 | J94: =SUM(L94:XFD94) -> 16237.97781 | L94: =L$91*$H94 -> 0 | M94: 2781.678629 | N94: 1948.447918 | O94: 30.0151791 | P94: 1314.590238 | Q94: 35.70096627 | R94: 2604.748205 | S94: 2615.762621 | T94: 2626.823613 | U94: 69.03510359 | V94: 69.32702484 | W94: 69.62018052 | X94: 1354.362713 | Y94: 717.8654152 | Z94: 0 | AA94: 0 | AB94: 0 | AC94: 0 | AD94: 0 | AE94: 0 | AF94: 0 | AG94: 0 | AH94: 0 | AI94: 0 | AJ94: 0 | AK94: 0 | AL94: 0 | AM94: 0 | AN94: 0 | AO94: 0 | AP94: 0 | AQ94: 0 | AR94: 0 | AS94: 0 | AT94: 0 | AU94: 0 | AV94: 0 | AW94: 0 | AX94: 0 | AY94: 0 | AZ94: 0 | BA94: 0 | BB94: 0 | BC94: 0 | BD94: 0 | BE94: 0 | BF94: 0 | BG94: 0 | BH94: 0 | BI94: 0 | BJ94: 0 | BK94: 0 | BL94: 0 | BM94: 0 | BN94: 0 | BO94: 0 | BP94: 0 | BQ94: 0 | BR94: 0 | BS94: 0 | BT94: 0 | BU94: 0 | BV94: 0 | BW94: 0 | BX94: 0 | BY94: 0 | BZ94: 0 | CA94: 0 | CB94: 0 | CC94: 0 | CD94: 0 | CE94: 0 | CF94: 0 | CG94: 0 | CH94: 0 | CI94: 0 | CJ94: 0 | CK94: 0 | CL94: 0 | CM94: 0 | CN94: 0 | CO94: 0 | CP94: 0 | CQ94: 0 | CR94: 0 | CS94: 0 | CT94: 0 | CU94: 0 | CV94: 0 | CW94: 0 | CX94: 0 | CY94: 0 | CZ94: 0 | DA94: 0 | DB94: 0 | DC94: 0 | DD94: 0 | DE94: 0 | DF94: 0 | DG94: 0 | DH94: 0 | DI94: 0 | DJ94: 0 | DK94: 0 | DL94: 0 | DM94: 0 | DN94: 0 | DO94: 0 | DP94: 0 | DQ94: 0 | DR94: 0 | DS94: 0 | DT94: 0 | DU94: 0 | DV94: 0 | DW94: 0 | DX94: 0 | DY94: 0 | DZ94: 0 | EA94: 0 | EB94: 0 | EC94: 0 | ED94: 0 | EE94: 0
D95: IFC Funded | F95: EUR'000 | G95: % | H95: ='InputC - Structure'!G49 -> 0.1 | J95: =SUM(L95:XFD95) -> 5412.659268 | L95: 0 | M95: 927.2262097 | N95: 649.4826393 | O95: 10.0050597 | P95: 438.1967459 | Q95: 11.90032209 | R95: 868.2494015 | S95: 871.9208736 | T95: 875.6078709 | U95: 23.0117012 | V95: 23.10900828 | W95: 23.20672684 | X95: 451.4542375 | Y95: 239.2884717 | Z95: 0 | AA95: 0 | AB95: 0 | AC95: 0 | AD95: 0 | AE95: 0 | AF95: 0 | AG95: 0 | AH95: 0 | AI95: 0 | AJ95: 0 | AK95: 0 | AL95: 0 | AM95: 0 | AN95: 0 | AO95: 0 | AP95: 0 | AQ95: 0 | AR95: 0 | AS95: 0 | AT95: 0 | AU95: 0 | AV95: 0 | AW95: 0 | AX95: 0 | AY95: 0 | AZ95: 0 | BA95: 0 | BB95: 0 | BC95: 0 | BD95: 0 | BE95: 0 | BF95: 0 | BG95: 0 | BH95: 0 | BI95: 0 | BJ95: 0 | BK95: 0 | BL95: 0 | BM95: 0 | BN95: 0 | BO95: 0 | BP95: 0 | BQ95: 0 | BR95: 0 | BS95: 0 | BT95: 0 | BU95: 0 | BV95: 0 | BW95: 0 | BX95: 0 | BY95: 0 | BZ95: 0 | CA95: 0 | CB95: 0 | CC95: 0 | CD95: 0 | CE95: 0 | CF95: 0 | CG95: 0 | CH95: 0 | CI95: 0 | CJ95: 0 | CK95: 0 | CL95: 0 | CM95: 0 | CN95: 0 | CO95: 0 | CP95: 0 | CQ95: 0 | CR95: 0 | CS95: 0 | CT95: 0 | CU95: 0 | CV95: 0 | CW95: 0 | CX95: 0 | CY95: 0 | CZ95: 0 | DA95: 0 | DB95: 0 | DC95: 0 | DD95: 0 | DE95: 0 | DF95: 0 | DG95: 0 | DH95: 0 | DI95: 0 | DJ95: 0 | DK95: 0 | DL95: 0 | DM95: 0 | DN95: 0 | DO95: 0 | DP95: 0 | DQ95: 0 | DR95: 0 | DS95: 0 | DT95: 0 | DU95: 0 | DV95: 0 | DW95: 0 | DX95: 0 | DY95: 0 | DZ95: 0 | EA95: 0 | EB95: 0 | EC95: 0 | ED95: 0 | EE95: 0
D96: GFW Funded | F96: EUR'000 | G96: % | H96: ='InputC - Structure'!G50 -> 0.2 | J96: =SUM(L96:XFD96) -> 10825.31854 | L96: 0 | M96: 1854.452419 | N96: 1298.965279 | O96: 20.0101194 | P96: 876.3934918 | Q96: 23.80064418 | R96: 1736.498803 | S96: 1743.841747 | T96: 1751.215742 | U96: 46.02340239 | V96: 46.21801656 | W96: 46.41345368 | X96: 902.908475 | Y96: 478.5769435 | Z96: 0 | AA96: 0 | AB96: 0 | AC96: 0 | AD96: 0 | AE96: 0 | AF96: 0 | AG96: 0 | AH96: 0 | AI96: 0 | AJ96: 0 | AK96: 0 | AL96: 0 | AM96: 0 | AN96: 0 | AO96: 0 | AP96: 0 | AQ96: 0 | AR96: 0 | AS96: 0 | AT96: 0 | AU96: 0 | AV96: 0 | AW96: 0 | AX96: 0 | AY96: 0 | AZ96: 0 | BA96: 0 | BB96: 0 | BC96: 0 | BD96: 0 | BE96: 0 | BF96: 0 | BG96: 0 | BH96: 0 | BI96: 0 | BJ96: 0 | BK96: 0 | BL96: 0 | BM96: 0 | BN96: 0 | BO96: 0 | BP96: 0 | BQ96: 0 | BR96: 0 | BS96: 0 | BT96: 0 | BU96: 0 | BV96: 0 | BW96: 0 | BX96: 0 | BY96: 0 | BZ96: 0 | CA96: 0 | CB96: 0 | CC96: 0 | CD96: 0 | CE96: 0 | CF96: 0 | CG96: 0 | CH96: 0 | CI96: 0 | CJ96: 0 | CK96: 0 | CL96: 0 | CM96: 0 | CN96: 0 | CO96: 0 | CP96: 0 | CQ96: 0 | CR96: 0 | CS96: 0 | CT96: 0 | CU96: 0 | CV96: 0 | CW96: 0 | CX96: 0 | CY96: 0 | CZ96: 0 | DA96: 0 | DB96: 0 | DC96: 0 | DD96: 0 | DE96: 0 | DF96: 0 | DG96: 0 | DH96: 0 | DI96: 0 | DJ96: 0 | DK96: 0 | DL96: 0 | DM96: 0 | DN96: 0 | DO96: 0 | DP96: 0 | DQ96: 0 | DR96: 0 | DS96: 0 | DT96: 0 | DU96: 0 | DV96: 0 | DW96: 0 | DX96: 0 | DY96: 0 | DZ96: 0 | EA96: 0 | EB96: 0 | EC96: 0 | ED96: 0 | EE96: 0
C98: Debt Balance and Repayment
D99: Financial Close Flag | F99: Flag | G99: Date | H99: ='Structuring Model'!L4 -> 2022-11-01 | L99: =(L4=$H$99)*1 -> 1 | M99: =(M4=$H$99)*1 -> 0 | N99: 0 | O99: 0 | P99: 0 | Q99: 0 | R99: 0 | S99: 0 | T99: 0 | U99: 0 | V99: 0 | W99: 0 | X99: 0 | Y99: 0 | Z99: 0 | AA99: 0 | AB99: 0 | AC99: 0 | AD99: 0 | AE99: 0 | AF99: 0 | AG99: 0 | AH99: 0 | AI99: 0 | AJ99: 0 | AK99: 0 | AL99: 0 | AM99: 0 | AN99: 0 | AO99: 0 | AP99: 0 | AQ99: 0 | AR99: 0 | AS99: 0 | AT99: 0 | AU99: 0 | AV99: 0 | AW99: 0 | AX99: 0 | AY99: 0 | AZ99: 0 | BA99: 0 | BB99: 0 | BC99: 0 | BD99: 0 | BE99: 0 | BF99: 0 | BG99: 0 | BH99: 0 | BI99: 0 | BJ99: 0 | BK99: 0 | BL99: 0 | BM99: 0 | BN99: 0 | BO99: 0 | BP99: 0 | BQ99: 0 | BR99: 0 | BS99: 0 | BT99: 0 | BU99: 0 | BV99: 0 | BW99: 0 | BX99: 0 | BY99: =(BY4=$H$99)*1 -> 0 | BZ99: 0 | CA99: 0 | CB99: 0 | CC99: 0 | CD99: 0 | CE99: 0 | CF99: 0 | CG99: 0 | CH99: 0 | CI99: 0 | CJ99: 0 | CK99: 0 | CL99: 0 | CM99: 0 | CN99: 0 | CO99: 0 | CP99: 0 | CQ99: 0 | CR99: 0 | CS99: 0 | CT99: 0 | CU99: 0 | CV99: 0 | CW99: 0 | CX99: 0 | CY99: 0 | CZ99: 0 | DA99: 0 | DB99: 0 | DC99: 0 | DD99: 0 | DE99: 0 | DF99: 0 | DG99: 0 | DH99: 0 | DI99: 0 | DJ99: 0 | DK99: 0 | DL99: 0 | DM99: 0 | DN99: 0 | DO99: 0 | DP99: 0 | DQ99: 0 | DR99: 0 | DS99: 0 | DT99: 0 | DU99: 0 | DV99: 0 | DW99: 0 | DX99: 0 | DY99: 0 | DZ99: 0 | EA99: 0 | EB99: 0 | EC99: 0 | ED99: 0 | EE99: 0
D101: =D48&" Repayment" -> EIAF Repayment | F101: EUR'000 | J101: =SUM(L101:XFD101) -> 21650.63761 | L101: =IF(ISNUMBER(UDFOutput!J8),UDFOutput!J8,0) -> 0 | M101: =IF(ISNUMBER(UDFOutput!K8),UDFOutput!K8,0) -> 0 | N101: =IF(ISNUMBER(UDFOutput!L8),UDFOutput!L8,0) -> 0 | O101: =IF(ISNUMBER(UDFOutput!M8),UDFOutput!M8,0) -> 0 | P101: =IF(ISNUMBER(UDFOutput!N8),UDFOutput!N8,0) -> 0 | Q101: =IF(ISNUMBER(UDFOutput!O8),UDFOutput!O8,0) -> 0 | R101: =IF(ISNUMBER(UDFOutput!P8),UDFOutput!P8,0) -> 0 | S101: =IF(ISNUMBER(UDFOutput!Q8),UDFOutput!Q8,0) -> 0 | T101: =IF(ISNUMBER(UDFOutput!R8),UDFOutput!R8,0) -> 0 | U101: =IF(ISNUMBER(UDFOutput!S8),UDFOutput!S8,0) -> 0 | V101: =IF(ISNUMBER(UDFOutput!T8),UDFOutput!T8,0) -> 0 | W101: =IF(ISNUMBER(UDFOutput!U8),UDFOutput!U8,0) -> 0 | X101: =IF(ISNUMBER(UDFOutput!V8),UDFOutput!V8,0) -> 0 | Y101: =IF(ISNUMBER(UDFOutput!W8),UDFOutput!W8,0) -> 0 | Z101: =IF(ISNUMBER(UDFOutput!X8),UDFOutput!X8,0) -> 307.5861642 | AA101: =IF(ISNUMBER(UDFOutput!Y8),UDFOutput!Y8,0) -> 334.2039988 | AB101: =IF(ISNUMBER(UDFOutput!Z8),UDFOutput!Z8,0) -> 364.2129322 | AC101: =IF(ISNUMBER(UDFOutput!AA8),UDFOutput!AA8,0) -> 352.5401748 | AD101: =IF(ISNUMBER(UDFOutput!AB8),UDFOutput!AB8,0) -> 394.6878273 | AE101: =IF(ISNUMBER(UDFOutput!AC8),UDFOutput!AC8,0) -> 386.4600814 | AF101: =IF(ISNUMBER(UDFOutput!AD8),UDFOutput!AD8,0) -> 422.5026605 | AG101: =IF(ISNUMBER(UDFOutput!AE8),UDFOutput!AE8,0) -> 388.3832038 | AH101: =IF(ISNUMBER(UDFOutput!AF8),UDFOutput!AF8,0) -> 427.4091556 | AI101: =IF(ISNUMBER(UDFOutput!AG8),UDFOutput!AG8,0) -> 419.3177726 | AJ101: =IF(ISNUMBER(UDFOutput!AH8),UDFOutput!AH8,0) -> 457.3163551 | AK101: =IF(ISNUMBER(UDFOutput!AI8),UDFOutput!AI8,0) -> 450.8601474 | AL101: =IF(ISNUMBER(UDFOutput!AJ8),UDFOutput!AJ8,0) -> 490.720563 | AM101: =IF(ISNUMBER(UDFOutput!AK8),UDFOutput!AK8,0) -> 484.9592081 | AN101: =IF(ISNUMBER(UDFOutput!AL8),UDFOutput!AL8,0) -> 527.7793458 | AO101: =IF(ISNUMBER(UDFOutput!AM8),UDFOutput!AM8,0) -> 520.6402443 | AP101: =IF(ISNUMBER(UDFOutput!AN8),UDFOutput!AN8,0) -> 566.8020282 | AQ101: =IF(ISNUMBER(UDFOutput!AO8),UDFOutput!AO8,0) -> 566.0165652 | AR101: =IF(ISNUMBER(UDFOutput!AP8),UDFOutput!AP8,0) -> 613.3490865 | AS101: =IF(ISNUMBER(UDFOutput!AQ8),UDFOutput!AQ8,0) -> 577.968225 | AT101: =IF(ISNUMBER(UDFOutput!AR8),UDFOutput!AR8,0) -> 646.8825587 | AU101: =IF(ISNUMBER(UDFOutput!AS8),UDFOutput!AS8,0) -> 645.3684484 | AV101: =IF(ISNUMBER(UDFOutput!AT8),UDFOutput!AT8,0) -> 697.8519525 | AW101: =IF(ISNUMBER(UDFOutput!AU8),UDFOutput!AU8,0) -> 695.2064403 | AX101: =IF(ISNUMBER(UDFOutput!AV8),UDFOutput!AV8,0) -> 750.7022865 | AY101: =IF(ISNUMBER(UDFOutput!AW8),UDFOutput!AW8,0) -> 753.8011039 | AZ101: =IF(ISNUMBER(UDFOutput!AX8),UDFOutput!AX8,0) -> 812.3005389 | BA101: =IF(ISNUMBER(UDFOutput!AY8),UDFOutput!AY8,0) -> 814.6868586 | BB101: =IF(ISNUMBER(UDFOutput!AZ8),UDFOutput!AZ8,0) -> 876.8331917 | BC101: =IF(ISNUMBER(UDFOutput!BA8),UDFOutput!BA8,0) -> 880.8139872 | BD101: =IF(ISNUMBER(UDFOutput!BB8),UDFOutput!BB8,0) -> 946.726249 | BE101: =IF(ISNUMBER(UDFOutput!BC8),UDFOutput!BC8,0) -> 950.0118227 | BF101: =IF(ISNUMBER(UDFOutput!BD8),UDFOutput!BD8,0) -> 990.9903306 | BG101: =IF(ISNUMBER(UDFOutput!BE8),UDFOutput!BE8,0) -> 1063.810332 | BH101: =IF(ISNUMBER(UDFOutput!BF8),UDFOutput!BF8,0) -> 1070.935774 | BI101: =IF(ISNUMBER(UDFOutput!BG8),UDFOutput!BG8,0) -> 0 | BJ101: =IF(ISNUMBER(UDFOutput!BH8),UDFOutput!BH8,0) -> 0 | BK101: =IF(ISNUMBER(UDFOutput!BI8),UDFOutput!BI8,0) -> 0 | BL101: =IF(ISNUMBER(UDFOutput!BJ8),UDFOutput!BJ8,0) -> 0 | BM101: =IF(ISNUMBER(UDFOutput!BK8),UDFOutput!BK8,0) -> 0 | BN101: =IF(ISNUMBER(UDFOutput!BL8),UDFOutput!BL8,0) -> 0 | BO101: =IF(ISNUMBER(UDFOutput!BM8),UDFOutput!BM8,0) -> 0 | BP101: =IF(ISNUMBER(UDFOutput!BN8),UDFOutput!BN8,0) -> 0 | BQ101: =IF(ISNUMBER(UDFOutput!BO8),UDFOutput!BO8,0) -> 0 | BR101: =IF(ISNUMBER(UDFOutput!BP8),UDFOutput!BP8,0) -> 0 | BS101: =IF(ISNUMBER(UDFOutput!BQ8),UDFOutput!BQ8,0) -> 0 | BT101: =IF(ISNUMBER(UDFOutput!BR8),UDFOutput!BR8,0) -> 0 | BU101: =IF(ISNUMBER(UDFOutput!BS8),UDFOutput!BS8,0) -> 0 | BV101: =IF(ISNUMBER(UDFOutput!BT8),UDFOutput!BT8,0) -> 0 | BW101: =IF(ISNUMBER(UDFOutput!BU8),UDFOutput!BU8,0) -> 0 | BX101: =IF(ISNUMBER(UDFOutput!BV8),UDFOutput!BV8,0) -> 0 | BY101: =IF(ISNUMBER(UDFOutput!BW8),UDFOutput!BW8,0) -> 0 | BZ101: =IF(ISNUMBER(UDFOutput!BX8),UDFOutput!BX8,0) -> 0 | CA101: =IF(ISNUMBER(UDFOutput!BY8),UDFOutput!BY8,0) -> 0 | CB101: =IF(ISNUMBER(UDFOutput!BZ8),UDFOutput!BZ8,0) -> 0 | CC101: =IF(ISNUMBER(UDFOutput!CA8),UDFOutput!CA8,0) -> 0 | CD101: =IF(ISNUMBER(UDFOutput!CB8),UDFOutput!CB8,0) -> 0 | CE101: =IF(ISNUMBER(UDFOutput!CC8),UDFOutput!CC8,0) -> 0 | CF101: =IF(ISNUMBER(UDFOutput!CD8),UDFOutput!CD8,0) -> 0 | CG101: =IF(ISNUMBER(UDFOutput!CE8),UDFOutput!CE8,0) -> 0 | CH101: =IF(ISNUMBER(UDFOutput!CF8),UDFOutput!CF8,0) -> 0 | CI101: =IF(ISNUMBER(UDFOutput!CG8),UDFOutput!CG8,0) -> 0 | CJ101: =IF(ISNUMBER(UDFOutput!CH8),UDFOutput!CH8,0) -> 0 | CK101: =IF(ISNUMBER(UDFOutput!CI8),UDFOutput!CI8,0) -> 0 | CL101: =IF(ISNUMBER(UDFOutput!CJ8),UDFOutput!CJ8,0) -> 0 | CM101: =IF(ISNUMBER(UDFOutput!CK8),UDFOutput!CK8,0) -> 0 | CN101: =IF(ISNUMBER(UDFOutput!CL8),UDFOutput!CL8,0) -> 0 | CO101: =IF(ISNUMBER(UDFOutput!CM8),UDFOutput!CM8,0) -> 0 | CP101: =IF(ISNUMBER(UDFOutput!CN8),UDFOutput!CN8,0) -> 0 | CQ101: =IF(ISNUMBER(UDFOutput!CO8),UDFOutput!CO8,0) -> 0 | CR101: =IF(ISNUMBER(UDFOutput!CP8),UDFOutput!CP8,0) -> 0 | CS101: =IF(ISNUMBER(UDFOutput!CQ8),UDFOutput!CQ8,0) -> 0 | CT101: =IF(ISNUMBER(UDFOutput!CR8),UDFOutput!CR8,0) -> 0 | CU101: =IF(ISNUMBER(UDFOutput!CS8),UDFOutput!CS8,0) -> 0 | CV101: =IF(ISNUMBER(UDFOutput!CT8),UDFOutput!CT8,0) -> 0 | CW101: =IF(ISNUMBER(UDFOutput!CU8),UDFOutput!CU8,0) -> 0 | CX101: =IF(ISNUMBER(UDFOutput!CV8),UDFOutput!CV8,0) -> 0 | CY101: =IF(ISNUMBER(UDFOutput!CW8),UDFOutput!CW8,0) -> 0 | CZ101: =IF(ISNUMBER(UDFOutput!CX8),UDFOutput!CX8,0) -> 0 | DA101: =IF(ISNUMBER(UDFOutput!CY8),UDFOutput!CY8,0) -> 0 | DB101: =IF(ISNUMBER(UDFOutput!CZ8),UDFOutput!CZ8,0) -> 0 | DC101: =IF(ISNUMBER(UDFOutput!DA8),UDFOutput!DA8,0) -> 0 | DD101: =IF(ISNUMBER(UDFOutput!DB8),UDFOutput!DB8,0) -> 0 | DE101: =IF(ISNUMBER(UDFOutput!DC8),UDFOutput!DC8,0) -> 0 | DF101: =IF(ISNUMBER(UDFOutput!DD8),UDFOutput!DD8,0) -> 0 | DG101: =IF(ISNUMBER(UDFOutput!DE8),UDFOutput!DE8,0) -> 0 | DH101: =IF(ISNUMBER(UDFOutput!DF8),UDFOutput!DF8,0) -> 0 | DI101: =IF(ISNUMBER(UDFOutput!DG8),UDFOutput!DG8,0) -> 0 | DJ101: =IF(ISNUMBER(UDFOutput!DH8),UDFOutput!DH8,0) -> 0 | DK101: =IF(ISNUMBER(UDFOutput!DI8),UDFOutput!DI8,0) -> 0 | DL101: =IF(ISNUMBER(UDFOutput!DJ8),UDFOutput!DJ8,0) -> 0 | DM101: =IF(ISNUMBER(UDFOutput!DK8),UDFOutput!DK8,0) -> 0 | DN101: =IF(ISNUMBER(UDFOutput!DL8),UDFOutput!DL8,0) -> 0 | DO101: =IF(ISNUMBER(UDFOutput!DM8),UDFOutput!DM8,0) -> 0 | DP101: =IF(ISNUMBER(UDFOutput!DN8),UDFOutput!DN8,0) -> 0 | DQ101: =IF(ISNUMBER(UDFOutput!DO8),UDFOutput!DO8,0) -> 0 | DR101: =IF(ISNUMBER(UDFOutput!DP8),UDFOutput!DP8,0) -> 0 | DS101: =IF(ISNUMBER(UDFOutput!DQ8),UDFOutput!DQ8,0) -> 0 | DT101: =IF(ISNUMBER(UDFOutput!DR8),UDFOutput!DR8,0) -> 0 | DU101: =IF(ISNUMBER(UDFOutput!DS8),UDFOutput!DS8,0) -> 0 | DV101: =IF(ISNUMBER(UDFOutput!DT8),UDFOutput!DT8,0) -> 0 | DW101: =IF(ISNUMBER(UDFOutput!DU8),UDFOutput!DU8,0) -> 0 | DX101: =IF(ISNUMBER(UDFOutput!DV8),UDFOutput!DV8,0) -> 0 | DY101: =IF(ISNUMBER(UDFOutput!DW8),UDFOutput!DW8,0) -> 0 | DZ101: =IF(ISNUMBER(UDFOutput!DX8),UDFOutput!DX8,0) -> 0 | EA101: =IF(ISNUMBER(UDFOutput!DY8),UDFOutput!DY8,0) -> 0 | EB101: =IF(ISNUMBER(UDFOutput!DZ8),UDFOutput!DZ8,0) -> 0 | EC101: =IF(ISNUMBER(UDFOutput!EA8),UDFOutput!EA8,0) -> 0 | ED101: =IF(ISNUMBER(UDFOutput!EB8),UDFOutput!EB8,0) -> 0 | EE101: =IF(ISNUMBER(UDFOutput!EC8),UDFOutput!EC8,0) -> 0
D102: =D49&" Repayment" -> AFDB Repayment | F102: EUR'000 | J102: =SUM(L102:XFD102) -> 16237.90724 | L102: =IF(ISNUMBER(UDFOutput!J9),UDFOutput!J9,0) -> 0 | M102: =IF(ISNUMBER(UDFOutput!K9),UDFOutput!K9,0) -> 0 | N102: =IF(ISNUMBER(UDFOutput!L9),UDFOutput!L9,0) -> 0 | O102: =IF(ISNUMBER(UDFOutput!M9),UDFOutput!M9,0) -> 0 | P102: =IF(ISNUMBER(UDFOutput!N9),UDFOutput!N9,0) -> 0 | Q102: =IF(ISNUMBER(UDFOutput!O9),UDFOutput!O9,0) -> 0 | R102: =IF(ISNUMBER(UDFOutput!P9),UDFOutput!P9,0) -> 0 | S102: =IF(ISNUMBER(UDFOutput!Q9),UDFOutput!Q9,0) -> 0 | T102: =IF(ISNUMBER(UDFOutput!R9),UDFOutput!R9,0) -> 0 | U102: =IF(ISNUMBER(UDFOutput!S9),UDFOutput!S9,0) -> 0 | V102: =IF(ISNUMBER(UDFOutput!T9),UDFOutput!T9,0) -> 0 | W102: =IF(ISNUMBER(UDFOutput!U9),UDFOutput!U9,0) -> 0 | X102: =IF(ISNUMBER(UDFOutput!V9),UDFOutput!V9,0) -> 0 | Y102: =IF(ISNUMBER(UDFOutput!W9),UDFOutput!W9,0) -> 0 | Z102: =IF(ISNUMBER(UDFOutput!X9),UDFOutput!X9,0) -> 96.32090331 | AA102: =IF(ISNUMBER(UDFOutput!Y9),UDFOutput!Y9,0) -> 88.204166 | AB102: =IF(ISNUMBER(UDFOutput!Z9),UDFOutput!Z9,0) -> 124.7754615 | AC102: =IF(ISNUMBER(UDFOutput!AA9),UDFOutput!AA9,0) -> 93.19053545 | AD102: =IF(ISNUMBER(UDFOutput!AB9),UDFOutput!AB9,0) -> 135.4675386 | AE102: =IF(ISNUMBER(UDFOutput!AC9),UDFOutput!AC9,0) -> 106.2798578 | AF102: =IF(ISNUMBER(UDFOutput!AD9),UDFOutput!AD9,0) -> 143.7866224 | AG102: =IF(ISNUMBER(UDFOutput!AE9),UDFOutput!AE9,0) -> 100.0547069 | AH102: =IF(ISNUMBER(UDFOutput!AF9),UDFOutput!AF9,0) -> 132.2931903 | AI102: =IF(ISNUMBER(UDFOutput!AG9),UDFOutput!AG9,0) -> 106.7313845 | AJ102: =IF(ISNUMBER(UDFOutput!AH9),UDFOutput!AH9,0) -> 144.2999514 | AK102: =IF(ISNUMBER(UDFOutput!AI9),UDFOutput!AI9,0) -> 116.4315575 | AL102: =IF(ISNUMBER(UDFOutput!AJ9),UDFOutput!AJ9,0) -> 153.7475911 | AM102: =IF(ISNUMBER(UDFOutput!AK9),UDFOutput!AK9,0) -> 126.3398272 | AN102: =IF(ISNUMBER(UDFOutput!AL9),UDFOutput!AL9,0) -> 163.8316639 | AO102: =IF(ISNUMBER(UDFOutput!AM9),UDFOutput!AM9,0) -> 137.9311522 | AP102: =IF(ISNUMBER(UDFOutput!AN9),UDFOutput!AN9,0) -> 171.9889217 | AQ102: =IF(ISNUMBER(UDFOutput!AO9),UDFOutput!AO9,0) -> 151.4232878 | AR102: =IF(ISNUMBER(UDFOutput!AP9),UDFOutput!AP9,0) -> 190.4104387 | AS102: =IF(ISNUMBER(UDFOutput!AQ9),UDFOutput!AQ9,0) -> 143.7350347 | AT102: =IF(ISNUMBER(UDFOutput!AR9),UDFOutput!AR9,0) -> 195.7950151 | AU102: =IF(ISNUMBER(UDFOutput!AS9),UDFOutput!AS9,0) -> 171.8731128 | AV102: =IF(ISNUMBER(UDFOutput!AT9),UDFOutput!AT9,0) -> 211.6121454 | AW102: =IF(ISNUMBER(UDFOutput!AU9),UDFOutput!AU9,0) -> 188.5916287 | AX102: =IF(ISNUMBER(UDFOutput!AV9),UDFOutput!AV9,0) -> 224.4852395 | AY102: =IF(ISNUMBER(UDFOutput!AW9),UDFOutput!AW9,0) -> 206.8063541 | AZ102: =IF(ISNUMBER(UDFOutput!AX9),UDFOutput!AX9,0) -> 247.4799053 | BA102: =IF(ISNUMBER(UDFOutput!AY9),UDFOutput!AY9,0) -> 226.7169446 | BB102: =IF(ISNUMBER(UDFOutput!AZ9),UDFOutput!AZ9,0) -> 268.1024921 | BC102: =IF(ISNUMBER(UDFOutput!BA9),UDFOutput!BA9,0) -> 248.6411263 | BD102: =IF(ISNUMBER(UDFOutput!BB9),UDFOutput!BB9,0) -> 290.6849994 | BE102: =IF(ISNUMBER(UDFOutput!BC9),UDFOutput!BC9,0) -> 280.3798755 | BF102: =IF(ISNUMBER(UDFOutput!BD9),UDFOutput!BD9,0) -> 294.7712767 | BG102: =IF(ISNUMBER(UDFOutput!BE9),UDFOutput!BE9,0) -> 329.9911915 | BH102: =IF(ISNUMBER(UDFOutput!BF9),UDFOutput!BF9,0) -> 320.8467623 | BI102: =IF(ISNUMBER(UDFOutput!BG9),UDFOutput!BG9,0) -> 1687.200781 | BJ102: =IF(ISNUMBER(UDFOutput!BH9),UDFOutput!BH9,0) -> 1698.748928 | BK102: =IF(ISNUMBER(UDFOutput!BI9),UDFOutput!BI9,0) -> 2140.866131 | BL102: =IF(ISNUMBER(UDFOutput!BJ9),UDFOutput!BJ9,0) -> 2087.735869 | BM102: =IF(ISNUMBER(UDFOutput!BK9),UDFOutput!BK9,0) -> 2289.333663 | BN102: =IF(ISNUMBER(UDFOutput!BL9),UDFOutput!BL9,0) -> 0 | BO102: =IF(ISNUMBER(UDFOutput!BM9),UDFOutput!BM9,0) -> 0 | BP102: =IF(ISNUMBER(UDFOutput!BN9),UDFOutput!BN9,0) -> 0 | BQ102: =IF(ISNUMBER(UDFOutput!BO9),UDFOutput!BO9,0) -> 0 | BR102: =IF(ISNUMBER(UDFOutput!BP9),UDFOutput!BP9,0) -> 0 | BS102: =IF(ISNUMBER(UDFOutput!BQ9),UDFOutput!BQ9,0) -> 0 | BT102: =IF(ISNUMBER(UDFOutput!BR9),UDFOutput!BR9,0) -> 0 | BU102: =IF(ISNUMBER(UDFOutput!BS9),UDFOutput!BS9,0) -> 0 | BV102: =IF(ISNUMBER(UDFOutput!BT9),UDFOutput!BT9,0) -> 0 | BW102: =IF(ISNUMBER(UDFOutput!BU9),UDFOutput!BU9,0) -> 0 | BX102: =IF(ISNUMBER(UDFOutput!BV9),UDFOutput!BV9,0) -> 0 | BY102: =IF(ISNUMBER(UDFOutput!BW9),UDFOutput!BW9,0) -> 0 | BZ102: =IF(ISNUMBER(UDFOutput!BX9),UDFOutput!BX9,0) -> 0 | CA102: =IF(ISNUMBER(UDFOutput!BY9),UDFOutput!BY9,0) -> 0 | CB102: =IF(ISNUMBER(UDFOutput!BZ9),UDFOutput!BZ9,0) -> 0 | CC102: =IF(ISNUMBER(UDFOutput!CA9),UDFOutput!CA9,0) -> 0 | CD102: =IF(ISNUMBER(UDFOutput!CB9),UDFOutput!CB9,0) -> 0 | CE102: =IF(ISNUMBER(UDFOutput!CC9),UDFOutput!CC9,0) -> 0 | CF102: =IF(ISNUMBER(UDFOutput!CD9),UDFOutput!CD9,0) -> 0 | CG102: =IF(ISNUMBER(UDFOutput!CE9),UDFOutput!CE9,0) -> 0 | CH102: =IF(ISNUMBER(UDFOutput!CF9),UDFOutput!CF9,0) -> 0 | CI102: =IF(ISNUMBER(UDFOutput!CG9),UDFOutput!CG9,0) -> 0 | CJ102: =IF(ISNUMBER(UDFOutput!CH9),UDFOutput!CH9,0) -> 0 | CK102: =IF(ISNUMBER(UDFOutput!CI9),UDFOutput!CI9,0) -> 0 | CL102: =IF(ISNUMBER(UDFOutput!CJ9),UDFOutput!CJ9,0) -> 0 | CM102: =IF(ISNUMBER(UDFOutput!CK9),UDFOutput!CK9,0) -> 0 | CN102: =IF(ISNUMBER(UDFOutput!CL9),UDFOutput!CL9,0) -> 0 | CO102: =IF(ISNUMBER(UDFOutput!CM9),UDFOutput!CM9,0) -> 0 | CP102: =IF(ISNUMBER(UDFOutput!CN9),UDFOutput!CN9,0) -> 0 | CQ102: =IF(ISNUMBER(UDFOutput!CO9),UDFOutput!CO9,0) -> 0 | CR102: =IF(ISNUMBER(UDFOutput!CP9),UDFOutput!CP9,0) -> 0 | CS102: =IF(ISNUMBER(UDFOutput!CQ9),UDFOutput!CQ9,0) -> 0 | CT102: =IF(ISNUMBER(UDFOutput!CR9),UDFOutput!CR9,0) -> 0 | CU102: =IF(ISNUMBER(UDFOutput!CS9),UDFOutput!CS9,0) -> 0 | CV102: =IF(ISNUMBER(UDFOutput!CT9),UDFOutput!CT9,0) -> 0 | CW102: =IF(ISNUMBER(UDFOutput!CU9),UDFOutput!CU9,0) -> 0 | CX102: =IF(ISNUMBER(UDFOutput!CV9),UDFOutput!CV9,0) -> 0 | CY102: =IF(ISNUMBER(UDFOutput!CW9),UDFOutput!CW9,0) -> 0 | CZ102: =IF(ISNUMBER(UDFOutput!CX9),UDFOutput!CX9,0) -> 0 | DA102: =IF(ISNUMBER(UDFOutput!CY9),UDFOutput!CY9,0) -> 0 | DB102: =IF(ISNUMBER(UDFOutput!CZ9),UDFOutput!CZ9,0) -> 0 | DC102: =IF(ISNUMBER(UDFOutput!DA9),UDFOutput!DA9,0) -> 0 | DD102: =IF(ISNUMBER(UDFOutput!DB9),UDFOutput!DB9,0) -> 0 | DE102: =IF(ISNUMBER(UDFOutput!DC9),UDFOutput!DC9,0) -> 0 | DF102: =IF(ISNUMBER(UDFOutput!DD9),UDFOutput!DD9,0) -> 0 | DG102: =IF(ISNUMBER(UDFOutput!DE9),UDFOutput!DE9,0) -> 0 | DH102: =IF(ISNUMBER(UDFOutput!DF9),UDFOutput!DF9,0) -> 0 | DI102: =IF(ISNUMBER(UDFOutput!DG9),UDFOutput!DG9,0) -> 0 | DJ102: =IF(ISNUMBER(UDFOutput!DH9),UDFOutput!DH9,0) -> 0 | DK102: =IF(ISNUMBER(UDFOutput!DI9),UDFOutput!DI9,0) -> 0 | DL102: =IF(ISNUMBER(UDFOutput!DJ9),UDFOutput!DJ9,0) -> 0 | DM102: =IF(ISNUMBER(UDFOutput!DK9),UDFOutput!DK9,0) -> 0 | DN102: =IF(ISNUMBER(UDFOutput!DL9),UDFOutput!DL9,0) -> 0 | DO102: =IF(ISNUMBER(UDFOutput!DM9),UDFOutput!DM9,0) -> 0 | DP102: =IF(ISNUMBER(UDFOutput!DN9),UDFOutput!DN9,0) -> 0 | DQ102: =IF(ISNUMBER(UDFOutput!DO9),UDFOutput!DO9,0) -> 0 | DR102: =IF(ISNUMBER(UDFOutput!DP9),UDFOutput!DP9,0) -> 0 | DS102: =IF(ISNUMBER(UDFOutput!DQ9),UDFOutput!DQ9,0) -> 0 | DT102: =IF(ISNUMBER(UDFOutput!DR9),UDFOutput!DR9,0) -> 0 | DU102: =IF(ISNUMBER(UDFOutput!DS9),UDFOutput!DS9,0) -> 0 | DV102: =IF(ISNUMBER(UDFOutput!DT9),UDFOutput!DT9,0) -> 0 | DW102: =IF(ISNUMBER(UDFOutput!DU9),UDFOutput!DU9,0) -> 0 | DX102: =IF(ISNUMBER(UDFOutput!DV9),UDFOutput!DV9,0) -> 0 | DY102: =IF(ISNUMBER(UDFOutput!DW9),UDFOutput!DW9,0) -> 0 | DZ102: =IF(ISNUMBER(UDFOutput!DX9),UDFOutput!DX9,0) -> 0 | EA102: =IF(ISNUMBER(UDFOutput!DY9),UDFOutput!DY9,0) -> 0 | EB102: =IF(ISNUMBER(UDFOutput!DZ9),UDFOutput!DZ9,0) -> 0 | EC102: =IF(ISNUMBER(UDFOutput!EA9),UDFOutput!EA9,0) -> 0 | ED102: =IF(ISNUMBER(UDFOutput!EB9),UDFOutput!EB9,0) -> 0 | EE102: =IF(ISNUMBER(UDFOutput!EC9),UDFOutput!EC9,0) -> 0
D103: =D50&" Repayment" -> IFC Repayment | F103: EUR'000 | J103: =SUM(L103:XFD103) -> 5412.659404 | L103: =IF(ISNUMBER(UDFOutput!J10),UDFOutput!J10,0) -> 0 | M103: =IF(ISNUMBER(UDFOutput!K10),UDFOutput!K10,0) -> 0 | N103: =IF(ISNUMBER(UDFOutput!L10),UDFOutput!L10,0) -> 0 | O103: =IF(ISNUMBER(UDFOutput!M10),UDFOutput!M10,0) -> 0 | P103: =IF(ISNUMBER(UDFOutput!N10),UDFOutput!N10,0) -> 0 | Q103: =IF(ISNUMBER(UDFOutput!O10),UDFOutput!O10,0) -> 0 | R103: =IF(ISNUMBER(UDFOutput!P10),UDFOutput!P10,0) -> 0 | S103: =IF(ISNUMBER(UDFOutput!Q10),UDFOutput!Q10,0) -> 0 | T103: =IF(ISNUMBER(UDFOutput!R10),UDFOutput!R10,0) -> 0 | U103: =IF(ISNUMBER(UDFOutput!S10),UDFOutput!S10,0) -> 0 | V103: =IF(ISNUMBER(UDFOutput!T10),UDFOutput!T10,0) -> 0 | W103: =IF(ISNUMBER(UDFOutput!U10),UDFOutput!U10,0) -> 0 | X103: =IF(ISNUMBER(UDFOutput!V10),UDFOutput!V10,0) -> 0 | Y103: =IF(ISNUMBER(UDFOutput!W10),UDFOutput!W10,0) -> 0 | Z103: =IF(ISNUMBER(UDFOutput!X10),UDFOutput!X10,0) -> 131.4252613 | AA103: =IF(ISNUMBER(UDFOutput!Y10),UDFOutput!Y10,0) -> 132.7395139 | AB103: =IF(ISNUMBER(UDFOutput!Z10),UDFOutput!Z10,0) -> 139.1526864 | AC103: =IF(ISNUMBER(UDFOutput!AA10),UDFOutput!AA10,0) -> 134.3727663 | AD103: =IF(ISNUMBER(UDFOutput!AB10),UDFOutput!AB10,0) -> 142.5674069 | AE103: =IF(ISNUMBER(UDFOutput!AC10),UDFOutput!AC10,0) -> 138.2357755 | AF103: =IF(ISNUMBER(UDFOutput!AD10),UDFOutput!AD10,0) -> 145.1824031 | AG103: =IF(ISNUMBER(UDFOutput!AE10),UDFOutput!AE10,0) -> 137.2107842 | AH103: =IF(ISNUMBER(UDFOutput!AF10),UDFOutput!AF10,0) -> 143.8125319 | AI103: =IF(ISNUMBER(UDFOutput!AG10),UDFOutput!AG10,0) -> 139.3915523 | AJ103: =IF(ISNUMBER(UDFOutput!AH10),UDFOutput!AH10,0) -> 146.3456487 | AK103: =IF(ISNUMBER(UDFOutput!AI10),UDFOutput!AI10,0) -> 142.2331929 | AL103: =IF(ISNUMBER(UDFOutput!AJ10),UDFOutput!AJ10,0) -> 149.2490651 | AM103: =IF(ISNUMBER(UDFOutput!AK10),UDFOutput!AK10,0) -> 145.1724318 | AN103: =IF(ISNUMBER(UDFOutput!AL10),UDFOutput!AL10,0) -> 152.2292956 | AO103: =IF(ISNUMBER(UDFOutput!AM10),UDFOutput!AM10,0) -> 148.2004568 | AP103: =IF(ISNUMBER(UDFOutput!AN10),UDFOutput!AN10,0) -> 154.9731472 | AQ103: =IF(ISNUMBER(UDFOutput!AO10),UDFOutput!AO10,0) -> 151.3426661 | AR103: =IF(ISNUMBER(UDFOutput!AP10),UDFOutput!AP10,0) -> 158.4687297 | AS103: =IF(ISNUMBER(UDFOutput!AQ10),UDFOutput!AQ10,0) -> 149.0677851 | AT103: =IF(ISNUMBER(UDFOutput!AR10),UDFOutput!AR10,0) -> 159.4884968 | AU103: =IF(ISNUMBER(UDFOutput!AS10),UDFOutput!AS10,0) -> 155.5266139 | AV103: =IF(ISNUMBER(UDFOutput!AT10),UDFOutput!AT10,0) -> 162.7853246 | AW103: =IF(ISNUMBER(UDFOutput!AU10),UDFOutput!AU10,0) -> 158.8524711 | AX103: =IF(ISNUMBER(UDFOutput!AV10),UDFOutput!AV10,0) -> 165.8186757 | AY103: =IF(ISNUMBER(UDFOutput!AW10),UDFOutput!AW10,0) -> 162.3031205 | AZ103: =IF(ISNUMBER(UDFOutput!AX10),UDFOutput!AX10,0) -> 169.6381843 | BA103: =IF(ISNUMBER(UDFOutput!AY10),UDFOutput!AY10,0) -> 165.8172902 | BB103: =IF(ISNUMBER(UDFOutput!AZ10),UDFOutput!AZ10,0) -> 173.2361051 | BC103: =IF(ISNUMBER(UDFOutput!BA10),UDFOutput!BA10,0) -> 169.4776826 | BD103: =IF(ISNUMBER(UDFOutput!BB10),UDFOutput!BB10,0) -> 176.9551249 | BE103: =IF(ISNUMBER(UDFOutput!BC10),UDFOutput!BC10,0) -> 173.2869672 | BF103: =IF(ISNUMBER(UDFOutput!BD10),UDFOutput!BD10,0) -> 175.6988374 | BG103: =IF(ISNUMBER(UDFOutput!BE10),UDFOutput!BE10,0) -> 183.0609653 | BH103: =IF(ISNUMBER(UDFOutput!BF10),UDFOutput!BF10,0) -> 179.3404432 | BI103: =IF(ISNUMBER(UDFOutput!BG10),UDFOutput!BG10,0) -> 0 | BJ103: =IF(ISNUMBER(UDFOutput!BH10),UDFOutput!BH10,0) -> 0 | BK103: =IF(ISNUMBER(UDFOutput!BI10),UDFOutput!BI10,0) -> 0 | BL103: =IF(ISNUMBER(UDFOutput!BJ10),UDFOutput!BJ10,0) -> 0 | BM103: =IF(ISNUMBER(UDFOutput!BK10),UDFOutput!BK10,0) -> 0 | BN103: =IF(ISNUMBER(UDFOutput!BL10),UDFOutput!BL10,0) -> 0 | BO103: =IF(ISNUMBER(UDFOutput!BM10),UDFOutput!BM10,0) -> 0 | BP103: =IF(ISNUMBER(UDFOutput!BN10),UDFOutput!BN10,0) -> 0 | BQ103: =IF(ISNUMBER(UDFOutput!BO10),UDFOutput!BO10,0) -> 0 | BR103: =IF(ISNUMBER(UDFOutput!BP10),UDFOutput!BP10,0) -> 0 | BS103: =IF(ISNUMBER(UDFOutput!BQ10),UDFOutput!BQ10,0) -> 0 | BT103: =IF(ISNUMBER(UDFOutput!BR10),UDFOutput!BR10,0) -> 0 | BU103: =IF(ISNUMBER(UDFOutput!BS10),UDFOutput!BS10,0) -> 0 | BV103: =IF(ISNUMBER(UDFOutput!BT10),UDFOutput!BT10,0) -> 0 | BW103: =IF(ISNUMBER(UDFOutput!BU10),UDFOutput!BU10,0) -> 0 | BX103: =IF(ISNUMBER(UDFOutput!BV10),UDFOutput!BV10,0) -> 0 | BY103: =IF(ISNUMBER(UDFOutput!BW10),UDFOutput!BW10,0) -> 0 | BZ103: =IF(ISNUMBER(UDFOutput!BX10),UDFOutput!BX10,0) -> 0 | CA103: =IF(ISNUMBER(UDFOutput!BY10),UDFOutput!BY10,0) -> 0 | CB103: =IF(ISNUMBER(UDFOutput!BZ10),UDFOutput!BZ10,0) -> 0 | CC103: =IF(ISNUMBER(UDFOutput!CA10),UDFOutput!CA10,0) -> 0 | CD103: =IF(ISNUMBER(UDFOutput!CB10),UDFOutput!CB10,0) -> 0 | CE103: =IF(ISNUMBER(UDFOutput!CC10),UDFOutput!CC10,0) -> 0 | CF103: =IF(ISNUMBER(UDFOutput!CD10),UDFOutput!CD10,0) -> 0 | CG103: =IF(ISNUMBER(UDFOutput!CE10),UDFOutput!CE10,0) -> 0 | CH103: =IF(ISNUMBER(UDFOutput!CF10),UDFOutput!CF10,0) -> 0 | CI103: =IF(ISNUMBER(UDFOutput!CG10),UDFOutput!CG10,0) -> 0 | CJ103: =IF(ISNUMBER(UDFOutput!CH10),UDFOutput!CH10,0) -> 0 | CK103: =IF(ISNUMBER(UDFOutput!CI10),UDFOutput!CI10,0) -> 0 | CL103: =IF(ISNUMBER(UDFOutput!CJ10),UDFOutput!CJ10,0) -> 0 | CM103: =IF(ISNUMBER(UDFOutput!CK10),UDFOutput!CK10,0) -> 0 | CN103: =IF(ISNUMBER(UDFOutput!CL10),UDFOutput!CL10,0) -> 0 | CO103: =IF(ISNUMBER(UDFOutput!CM10),UDFOutput!CM10,0) -> 0 | CP103: =IF(ISNUMBER(UDFOutput!CN10),UDFOutput!CN10,0) -> 0 | CQ103: =IF(ISNUMBER(UDFOutput!CO10),UDFOutput!CO10,0) -> 0 | CR103: =IF(ISNUMBER(UDFOutput!CP10),UDFOutput!CP10,0) -> 0 | CS103: =IF(ISNUMBER(UDFOutput!CQ10),UDFOutput!CQ10,0) -> 0 | CT103: =IF(ISNUMBER(UDFOutput!CR10),UDFOutput!CR10,0) -> 0 | CU103: =IF(ISNUMBER(UDFOutput!CS10),UDFOutput!CS10,0) -> 0 | CV103: =IF(ISNUMBER(UDFOutput!CT10),UDFOutput!CT10,0) -> 0 | CW103: =IF(ISNUMBER(UDFOutput!CU10),UDFOutput!CU10,0) -> 0 | CX103: =IF(ISNUMBER(UDFOutput!CV10),UDFOutput!CV10,0) -> 0 | CY103: =IF(ISNUMBER(UDFOutput!CW10),UDFOutput!CW10,0) -> 0 | CZ103: =IF(ISNUMBER(UDFOutput!CX10),UDFOutput!CX10,0) -> 0 | DA103: =IF(ISNUMBER(UDFOutput!CY10),UDFOutput!CY10,0) -> 0 | DB103: =IF(ISNUMBER(UDFOutput!CZ10),UDFOutput!CZ10,0) -> 0 | DC103: =IF(ISNUMBER(UDFOutput!DA10),UDFOutput!DA10,0) -> 0 | DD103: =IF(ISNUMBER(UDFOutput!DB10),UDFOutput!DB10,0) -> 0 | DE103: =IF(ISNUMBER(UDFOutput!DC10),UDFOutput!DC10,0) -> 0 | DF103: =IF(ISNUMBER(UDFOutput!DD10),UDFOutput!DD10,0) -> 0 | DG103: =IF(ISNUMBER(UDFOutput!DE10),UDFOutput!DE10,0) -> 0 | DH103: =IF(ISNUMBER(UDFOutput!DF10),UDFOutput!DF10,0) -> 0 | DI103: =IF(ISNUMBER(UDFOutput!DG10),UDFOutput!DG10,0) -> 0 | DJ103: =IF(ISNUMBER(UDFOutput!DH10),UDFOutput!DH10,0) -> 0 | DK103: =IF(ISNUMBER(UDFOutput!DI10),UDFOutput!DI10,0) -> 0 | DL103: =IF(ISNUMBER(UDFOutput!DJ10),UDFOutput!DJ10,0) -> 0 | DM103: =IF(ISNUMBER(UDFOutput!DK10),UDFOutput!DK10,0) -> 0 | DN103: =IF(ISNUMBER(UDFOutput!DL10),UDFOutput!DL10,0) -> 0 | DO103: =IF(ISNUMBER(UDFOutput!DM10),UDFOutput!DM10,0) -> 0 | DP103: =IF(ISNUMBER(UDFOutput!DN10),UDFOutput!DN10,0) -> 0 | DQ103: =IF(ISNUMBER(UDFOutput!DO10),UDFOutput!DO10,0) -> 0 | DR103: =IF(ISNUMBER(UDFOutput!DP10),UDFOutput!DP10,0) -> 0 | DS103: =IF(ISNUMBER(UDFOutput!DQ10),UDFOutput!DQ10,0) -> 0 | DT103: =IF(ISNUMBER(UDFOutput!DR10),UDFOutput!DR10,0) -> 0 | DU103: =IF(ISNUMBER(UDFOutput!DS10),UDFOutput!DS10,0) -> 0 | DV103: =IF(ISNUMBER(UDFOutput!DT10),UDFOutput!DT10,0) -> 0 | DW103: =IF(ISNUMBER(UDFOutput!DU10),UDFOutput!DU10,0) -> 0 | DX103: =IF(ISNUMBER(UDFOutput!DV10),UDFOutput!DV10,0) -> 0 | DY103: =IF(ISNUMBER(UDFOutput!DW10),UDFOutput!DW10,0) -> 0 | DZ103: =IF(ISNUMBER(UDFOutput!DX10),UDFOutput!DX10,0) -> 0 | EA103: =IF(ISNUMBER(UDFOutput!DY10),UDFOutput!DY10,0) -> 0 | EB103: =IF(ISNUMBER(UDFOutput!DZ10),UDFOutput!DZ10,0) -> 0 | EC103: =IF(ISNUMBER(UDFOutput!EA10),UDFOutput!EA10,0) -> 0 | ED103: =IF(ISNUMBER(UDFOutput!EB10),UDFOutput!EB10,0) -> 0 | EE103: =IF(ISNUMBER(UDFOutput!EC10),UDFOutput!EC10,0) -> 0
D104: =D51&" Repayment" -> GFW Repayment | F104: EUR'000 | J104: =SUM(L104:XFD104) -> 10825.31881 | L104: =IF(ISNUMBER(UDFOutput!J11),UDFOutput!J11,0) -> 0 | M104: =IF(ISNUMBER(UDFOutput!K11),UDFOutput!K11,0) -> 0 | N104: =IF(ISNUMBER(UDFOutput!L11),UDFOutput!L11,0) -> 0 | O104: =IF(ISNUMBER(UDFOutput!M11),UDFOutput!M11,0) -> 0 | P104: =IF(ISNUMBER(UDFOutput!N11),UDFOutput!N11,0) -> 0 | Q104: =IF(ISNUMBER(UDFOutput!O11),UDFOutput!O11,0) -> 0 | R104: =IF(ISNUMBER(UDFOutput!P11),UDFOutput!P11,0) -> 0 | S104: =IF(ISNUMBER(UDFOutput!Q11),UDFOutput!Q11,0) -> 0 | T104: =IF(ISNUMBER(UDFOutput!R11),UDFOutput!R11,0) -> 0 | U104: =IF(ISNUMBER(UDFOutput!S11),UDFOutput!S11,0) -> 0 | V104: =IF(ISNUMBER(UDFOutput!T11),UDFOutput!T11,0) -> 0 | W104: =IF(ISNUMBER(UDFOutput!U11),UDFOutput!U11,0) -> 0 | X104: =IF(ISNUMBER(UDFOutput!V11),UDFOutput!V11,0) -> 0 | Y104: =IF(ISNUMBER(UDFOutput!W11),UDFOutput!W11,0) -> 0 | Z104: =IF(ISNUMBER(UDFOutput!X11),UDFOutput!X11,0) -> 284.8785049 | AA104: =IF(ISNUMBER(UDFOutput!Y11),UDFOutput!Y11,0) -> 285.4482619 | AB104: =IF(ISNUMBER(UDFOutput!Z11),UDFOutput!Z11,0) -> 294.4207935 | AC104: =IF(ISNUMBER(UDFOutput!AA11),UDFOutput!AA11,0) -> 284.8144885 | AD104: =IF(ISNUMBER(UDFOutput!AB11),UDFOutput!AB11,0) -> 296.7017326 | AE104: =IF(ISNUMBER(UDFOutput!AC11),UDFOutput!AC11,0) -> 287.7841456 | AF104: =IF(ISNUMBER(UDFOutput!AD11),UDFOutput!AD11,0) -> 297.5518122 | AG104: =IF(ISNUMBER(UDFOutput!AE11),UDFOutput!AE11,0) -> 282.5795162 | AH104: =IF(ISNUMBER(UDFOutput!AF11),UDFOutput!AF11,0) -> 291.7839691 | AI104: =IF(ISNUMBER(UDFOutput!AG11),UDFOutput!AG11,0) -> 282.6883754 | AJ104: =IF(ISNUMBER(UDFOutput!AH11),UDFOutput!AH11,0) -> 292.4390954 | AK104: =IF(ISNUMBER(UDFOutput!AI11),UDFOutput!AI11,0) -> 283.8126423 | AL104: =IF(ISNUMBER(UDFOutput!AJ11),UDFOutput!AJ11,0) -> 293.62072 | AM104: =IF(ISNUMBER(UDFOutput!AK11),UDFOutput!AK11,0) -> 285.0078443 | AN104: =IF(ISNUMBER(UDFOutput!AL11),UDFOutput!AL11,0) -> 294.8374743 | AO104: =IF(ISNUMBER(UDFOutput!AM11),UDFOutput!AM11,0) -> 286.2567551 | AP104: =IF(ISNUMBER(UDFOutput!AN11),UDFOutput!AN11,0) -> 295.5694097 | AQ104: =IF(ISNUMBER(UDFOutput!AO11),UDFOutput!AO11,0) -> 287.6029077 | AR104: =IF(ISNUMBER(UDFOutput!AP11),UDFOutput!AP11,0) -> 297.4501134 | AS104: =IF(ISNUMBER(UDFOutput!AQ11),UDFOutput!AQ11,0) -> 279.8968991 | AT104: =IF(ISNUMBER(UDFOutput!AR11),UDFOutput!AR11,0) -> 295.2089874 | AU104: =IF(ISNUMBER(UDFOutput!AS11),UDFOutput!AS11,0) -> 286.6197005 | AV104: =IF(ISNUMBER(UDFOutput!AT11),UDFOutput!AT11,0) -> 296.6149527 | AW104: =IF(ISNUMBER(UDFOutput!AU11),UDFOutput!AU11,0) -> 288.0219707 | AX104: =IF(ISNUMBER(UDFOutput!AV11),UDFOutput!AV11,0) -> 297.4818687 | AY104: =IF(ISNUMBER(UDFOutput!AW11),UDFOutput!AW11,0) -> 289.529881 | AZ104: =IF(ISNUMBER(UDFOutput!AX11),UDFOutput!AX11,0) -> 299.545141 | BA104: =IF(ISNUMBER(UDFOutput!AY11),UDFOutput!AY11,0) -> 291.0297665 | BB104: =IF(ISNUMBER(UDFOutput!AZ11),UDFOutput!AZ11,0) -> 301.1283282 | BC104: =IF(ISNUMBER(UDFOutput!BA11),UDFOutput!BA11,0) -> 292.6598852 | BD104: =IF(ISNUMBER(UDFOutput!BB11),UDFOutput!BB11,0) -> 302.7980896 | BE104: =IF(ISNUMBER(UDFOutput!BC11),UDFOutput!BC11,0) -> 294.4206645 | BF104: =IF(ISNUMBER(UDFOutput!BD11),UDFOutput!BD11,0) -> 296.1312056 | BG104: =IF(ISNUMBER(UDFOutput!BE11),UDFOutput!BE11,0) -> 305.9830823 | BH104: =IF(ISNUMBER(UDFOutput!BF11),UDFOutput!BF11,0) -> 297.4246543 | BI104: =IF(ISNUMBER(UDFOutput!BG11),UDFOutput!BG11,0) -> 306.7596447 | BJ104: =IF(ISNUMBER(UDFOutput!BH11),UDFOutput!BH11,0) -> 298.8155232 | BK104: =IF(ISNUMBER(UDFOutput!BI11),UDFOutput!BI11,0) -> 0 | BL104: =IF(ISNUMBER(UDFOutput!BJ11),UDFOutput!BJ11,0) -> 0 | BM104: =IF(ISNUMBER(UDFOutput!BK11),UDFOutput!BK11,0) -> 0 | BN104: =IF(ISNUMBER(UDFOutput!BL11),UDFOutput!BL11,0) -> 0 | BO104: =IF(ISNUMBER(UDFOutput!BM11),UDFOutput!BM11,0) -> 0 | BP104: =IF(ISNUMBER(UDFOutput!BN11),UDFOutput!BN11,0) -> 0 | BQ104: =IF(ISNUMBER(UDFOutput!BO11),UDFOutput!BO11,0) -> 0 | BR104: =IF(ISNUMBER(UDFOutput!BP11),UDFOutput!BP11,0) -> 0 | BS104: =IF(ISNUMBER(UDFOutput!BQ11),UDFOutput!BQ11,0) -> 0 | BT104: =IF(ISNUMBER(UDFOutput!BR11),UDFOutput!BR11,0) -> 0 | BU104: =IF(ISNUMBER(UDFOutput!BS11),UDFOutput!BS11,0) -> 0 | BV104: =IF(ISNUMBER(UDFOutput!BT11),UDFOutput!BT11,0) -> 0 | BW104: =IF(ISNUMBER(UDFOutput!BU11),UDFOutput!BU11,0) -> 0 | BX104: =IF(ISNUMBER(UDFOutput!BV11),UDFOutput!BV11,0) -> 0 | BY104: =IF(ISNUMBER(UDFOutput!BW11),UDFOutput!BW11,0) -> 0 | BZ104: =IF(ISNUMBER(UDFOutput!BX11),UDFOutput!BX11,0) -> 0 | CA104: =IF(ISNUMBER(UDFOutput!BY11),UDFOutput!BY11,0) -> 0 | CB104: =IF(ISNUMBER(UDFOutput!BZ11),UDFOutput!BZ11,0) -> 0 | CC104: =IF(ISNUMBER(UDFOutput!CA11),UDFOutput!CA11,0) -> 0 | CD104: =IF(ISNUMBER(UDFOutput!CB11),UDFOutput!CB11,0) -> 0 | CE104: =IF(ISNUMBER(UDFOutput!CC11),UDFOutput!CC11,0) -> 0 | CF104: =IF(ISNUMBER(UDFOutput!CD11),UDFOutput!CD11,0) -> 0 | CG104: =IF(ISNUMBER(UDFOutput!CE11),UDFOutput!CE11,0) -> 0 | CH104: =IF(ISNUMBER(UDFOutput!CF11),UDFOutput!CF11,0) -> 0 | CI104: =IF(ISNUMBER(UDFOutput!CG11),UDFOutput!CG11,0) -> 0 | CJ104: =IF(ISNUMBER(UDFOutput!CH11),UDFOutput!CH11,0) -> 0 | CK104: =IF(ISNUMBER(UDFOutput!CI11),UDFOutput!CI11,0) -> 0 | CL104: =IF(ISNUMBER(UDFOutput!CJ11),UDFOutput!CJ11,0) -> 0 | CM104: =IF(ISNUMBER(UDFOutput!CK11),UDFOutput!CK11,0) -> 0 | CN104: =IF(ISNUMBER(UDFOutput!CL11),UDFOutput!CL11,0) -> 0 | CO104: =IF(ISNUMBER(UDFOutput!CM11),UDFOutput!CM11,0) -> 0 | CP104: =IF(ISNUMBER(UDFOutput!CN11),UDFOutput!CN11,0) -> 0 | CQ104: =IF(ISNUMBER(UDFOutput!CO11),UDFOutput!CO11,0) -> 0 | CR104: =IF(ISNUMBER(UDFOutput!CP11),UDFOutput!CP11,0) -> 0 | CS104: =IF(ISNUMBER(UDFOutput!CQ11),UDFOutput!CQ11,0) -> 0 | CT104: =IF(ISNUMBER(UDFOutput!CR11),UDFOutput!CR11,0) -> 0 | CU104: =IF(ISNUMBER(UDFOutput!CS11),UDFOutput!CS11,0) -> 0 | CV104: =IF(ISNUMBER(UDFOutput!CT11),UDFOutput!CT11,0) -> 0 | CW104: =IF(ISNUMBER(UDFOutput!CU11),UDFOutput!CU11,0) -> 0 | CX104: =IF(ISNUMBER(UDFOutput!CV11),UDFOutput!CV11,0) -> 0 | CY104: =IF(ISNUMBER(UDFOutput!CW11),UDFOutput!CW11,0) -> 0 | CZ104: =IF(ISNUMBER(UDFOutput!CX11),UDFOutput!CX11,0) -> 0 | DA104: =IF(ISNUMBER(UDFOutput!CY11),UDFOutput!CY11,0) -> 0 | DB104: =IF(ISNUMBER(UDFOutput!CZ11),UDFOutput!CZ11,0) -> 0 | DC104: =IF(ISNUMBER(UDFOutput!DA11),UDFOutput!DA11,0) -> 0 | DD104: =IF(ISNUMBER(UDFOutput!DB11),UDFOutput!DB11,0) -> 0 | DE104: =IF(ISNUMBER(UDFOutput!DC11),UDFOutput!DC11,0) -> 0 | DF104: =IF(ISNUMBER(UDFOutput!DD11),UDFOutput!DD11,0) -> 0 | DG104: =IF(ISNUMBER(UDFOutput!DE11),UDFOutput!DE11,0) -> 0 | DH104: =IF(ISNUMBER(UDFOutput!DF11),UDFOutput!DF11,0) -> 0 | DI104: =IF(ISNUMBER(UDFOutput!DG11),UDFOutput!DG11,0) -> 0 | DJ104: =IF(ISNUMBER(UDFOutput!DH11),UDFOutput!DH11,0) -> 0 | DK104: =IF(ISNUMBER(UDFOutput!DI11),UDFOutput!DI11,0) -> 0 | DL104: =IF(ISNUMBER(UDFOutput!DJ11),UDFOutput!DJ11,0) -> 0 | DM104: =IF(ISNUMBER(UDFOutput!DK11),UDFOutput!DK11,0) -> 0 | DN104: =IF(ISNUMBER(UDFOutput!DL11),UDFOutput!DL11,0) -> 0 | DO104: =IF(ISNUMBER(UDFOutput!DM11),UDFOutput!DM11,0) -> 0 | DP104: =IF(ISNUMBER(UDFOutput!DN11),UDFOutput!DN11,0) -> 0 | DQ104: =IF(ISNUMBER(UDFOutput!DO11),UDFOutput!DO11,0) -> 0 | DR104: =IF(ISNUMBER(UDFOutput!DP11),UDFOutput!DP11,0) -> 0 | DS104: =IF(ISNUMBER(UDFOutput!DQ11),UDFOutput!DQ11,0) -> 0 | DT104: =IF(ISNUMBER(UDFOutput!DR11),UDFOutput!DR11,0) -> 0 | DU104: =IF(ISNUMBER(UDFOutput!DS11),UDFOutput!DS11,0) -> 0 | DV104: =IF(ISNUMBER(UDFOutput!DT11),UDFOutput!DT11,0) -> 0 | DW104: =IF(ISNUMBER(UDFOutput!DU11),UDFOutput!DU11,0) -> 0 | DX104: =IF(ISNUMBER(UDFOutput!DV11),UDFOutput!DV11,0) -> 0 | DY104: =IF(ISNUMBER(UDFOutput!DW11),UDFOutput!DW11,0) -> 0 | DZ104: =IF(ISNUMBER(UDFOutput!DX11),UDFOutput!DX11,0) -> 0 | EA104: =IF(ISNUMBER(UDFOutput!DY11),UDFOutput!DY11,0) -> 0 | EB104: =IF(ISNUMBER(UDFOutput!DZ11),UDFOutput!DZ11,0) -> 0 | EC104: =IF(ISNUMBER(UDFOutput!EA11),UDFOutput!EA11,0) -> 0 | ED104: =IF(ISNUMBER(UDFOutput!EB11),UDFOutput!EB11,0) -> 0 | EE104: =IF(ISNUMBER(UDFOutput!EC11),UDFOutput!EC11,0) -> 0
C106: =D48 -> EIAF
E107: Opening | F107: EUR'000 | L107: =K110 -> 0 | M107: =L110 -> 0 | N107: 3708.904839 | O107: 6306.835396 | P107: 6346.855635 | Q107: 8099.642618 | R107: 8147.243907 | S107: 11620.24151 | T107: 15107.92501 | U107: 18610.35649 | V107: 18702.4033 | W107: 18794.83933 | X107: 18887.66624 | Y107: 20693.48319 | Z107: 21650.63707 | AA107: 21343.05091 | AB107: 21008.84691 | AC107: 20644.63398 | AD107: 20292.0938 | AE107: 19897.40598 | AF107: 19510.94589 | AG107: 19088.44323 | AH107: 18700.06003 | AI107: 18272.65087 | AJ107: 17853.3331 | AK107: 17396.01675 | AL107: 16945.1566 | AM107: 16454.43604 | AN107: 15969.47683 | AO107: 15441.69748 | AP107: 14921.05724 | AQ107: 14354.25521 | AR107: 13788.23865 | AS107: 13174.88956 | AT107: 12596.92133 | AU107: 11950.03877 | AV107: 11304.67033 | AW107: 10606.81837 | AX107: 9911.611934 | AY107: 9160.909647 | AZ107: 8407.108543 | BA107: 7594.808004 | BB107: 6780.121146 | BC107: 5903.287954 | BD107: 5022.473967 | BE107: 4075.747718 | BF107: 3125.735895 | BG107: 2134.745565 | BH107: 1070.935233 | BI107: -0.000541081333 | BJ107: -0.000541081333 | BK107: -0.000541081333 | BL107: -0.000541081333 | BM107: -0.000541081333 | BN107: -0.000541081333 | BO107: -0.000541081333 | BP107: -0.000541081333 | BQ107: -0.000541081333 | BR107: -0.000541081333 | BS107: -0.000541081333 | BT107: -0.000541081333 | BU107: -0.000541081333 | BV107: -0.000541081333 | BW107: -0.000541081333 | BX107: -0.000541081333 | BY107: =BX110 -> -0.000541081333 | BZ107: -0.000541081333 | CA107: -0.000541081333 | CB107: -0.000541081333 | CC107: -0.000541081333 | CD107: -0.000541081333 | CE107: -0.000541081333 | CF107: -0.000541081333 | CG107: -0.000541081333 | CH107: -0.000541081333 | CI107: -0.000541081333 | CJ107: -0.000541081333 | CK107: -0.000541081333 | CL107: -0.000541081333 | CM107: -0.000541081333 | CN107: -0.000541081333 | CO107: -0.000541081333 | CP107: -0.000541081333 | CQ107: -0.000541081333 | CR107: -0.000541081333 | CS107: -0.000541081333 | CT107: -0.000541081333 | CU107: -0.000541081333 | CV107: -0.000541081333 | CW107: -0.000541081333 | CX107: -0.000541081333 | CY107: -0.000541081333 | CZ107: -0.000541081333 | DA107: -0.000541081333 | DB107: -0.000541081333 | DC107: -0.000541081333 | DD107: -0.000541081333 | DE107: -0.000541081333 | DF107: -0.000541081333 | DG107: -0.000541081333 | DH107: -0.000541081333 | DI107: -0.000541081333 | DJ107: -0.000541081333 | DK107: -0.000541081333 | DL107: -0.000541081333 | DM107: -0.000541081333 | DN107: -0.000541081333 | DO107: -0.000541081333 | DP107: -0.000541081333 | DQ107: -0.000541081333 | DR107: -0.000541081333 | DS107: -0.000541081333 | DT107: -0.000541081333 | DU107: -0.000541081333 | DV107: -0.000541081333 | DW107: -0.000541081333 | DX107: -0.000541081333 | DY107: -0.000541081333 | DZ107: -0.000541081333 | EA107: -0.000541081333 | EB107: -0.000541081333 | EC107: -0.000541081333 | ED107: -0.000541081333 | EE107: -0.000541081333
E108: Add: Draws | F108: EUR'000 | L108: =L93 -> 0 | M108: =M93 -> 3708.904839 | N108: 2597.930557 | O108: 40.0202388 | P108: 1752.786984 | Q108: 47.60128836 | R108: 3472.997606 | S108: 3487.683495 | T108: 3502.431484 | U108: 92.04680478 | V108: 92.43603313 | W108: 92.82690736 | X108: 1805.81695 | Y108: 957.1538869 | Z108: 0 | AA108: 0 | AB108: 0 | AC108: 0 | AD108: 0 | AE108: 0 | AF108: 0 | AG108: 0 | AH108: 0 | AI108: 0 | AJ108: 0 | AK108: 0 | AL108: 0 | AM108: 0 | AN108: 0 | AO108: 0 | AP108: 0 | AQ108: 0 | AR108: 0 | AS108: 0 | AT108: 0 | AU108: 0 | AV108: 0 | AW108: 0 | AX108: 0 | AY108: 0 | AZ108: 0 | BA108: 0 | BB108: 0 | BC108: 0 | BD108: 0 | BE108: 0 | BF108: 0 | BG108: 0 | BH108: 0 | BI108: 0 | BJ108: 0 | BK108: 0 | BL108: 0 | BM108: 0 | BN108: 0 | BO108: 0 | BP108: 0 | BQ108: 0 | BR108: 0 | BS108: 0 | BT108: 0 | BU108: 0 | BV108: 0 | BW108: 0 | BX108: 0 | BY108: =BY93 -> 0 | BZ108: 0 | CA108: 0 | CB108: 0 | CC108: 0 | CD108: 0 | CE108: 0 | CF108: 0 | CG108: 0 | CH108: 0 | CI108: 0 | CJ108: 0 | CK108: 0 | CL108: 0 | CM108: 0 | CN108: 0 | CO108: 0 | CP108: 0 | CQ108: 0 | CR108: 0 | CS108: 0 | CT108: 0 | CU108: 0 | CV108: 0 | CW108: 0 | CX108: 0 | CY108: 0 | CZ108: 0 | DA108: 0 | DB108: 0 | DC108: 0 | DD108: 0 | DE108: 0 | DF108: 0 | DG108: 0 | DH108: 0 | DI108: 0 | DJ108: 0 | DK108: 0 | DL108: 0 | DM108: 0 | DN108: 0 | DO108: 0 | DP108: 0 | DQ108: 0 | DR108: 0 | DS108: 0 | DT108: 0 | DU108: 0 | DV108: 0 | DW108: 0 | DX108: 0 | DY108: 0 | DZ108: 0 | EA108: 0 | EB108: 0 | EC108: 0 | ED108: 0 | EE108: 0
E109: Less: Repayment | F109: EUR'000 | L109: =L101 -> 0 | M109: =M101 -> 0 | N109: 0 | O109: 0 | P109: 0 | Q109: 0 | R109: 0 | S109: 0 | T109: 0 | U109: 0 | V109: 0 | W109: 0 | X109: 0 | Y109: 0 | Z109: 307.5861642 | AA109: 334.2039988 | AB109: 364.2129322 | AC109: 352.5401748 | AD109: 394.6878273 | AE109: 386.4600814 | AF109: 422.5026605 | AG109: 388.3832038 | AH109: 427.4091556 | AI109: 419.3177726 | AJ109: 457.3163551 | AK109: 450.8601474 | AL109: 490.720563 | AM109: 484.9592081 | AN109: 527.7793458 | AO109: 520.6402443 | AP109: 566.8020282 | AQ109: 566.0165652 | AR109: 613.3490865 | AS109: 577.968225 | AT109: 646.8825587 | AU109: 645.3684484 | AV109: 697.8519525 | AW109: 695.2064403 | AX109: 750.7022865 | AY109: 753.8011039 | AZ109: 812.3005389 | BA109: 814.6868586 | BB109: 876.8331917 | BC109: 880.8139872 | BD109: 946.726249 | BE109: 950.0118227 | BF109: 990.9903306 | BG109: 1063.810332 | BH109: 1070.935774 | BI109: 0 | BJ109: 0 | BK109: 0 | BL109: 0 | BM109: 0 | BN109: 0 | BO109: 0 | BP109: 0 | BQ109: 0 | BR109: 0 | BS109: 0 | BT109: 0 | BU109: 0 | BV109: 0 | BW109: 0 | BX109: 0 | BY109: =BY101 -> 0 | BZ109: 0 | CA109: 0 | CB109: 0 | CC109: 0 | CD109: 0 | CE109: 0 | CF109: 0 | CG109: 0 | CH109: 0 | CI109: 0 | CJ109: 0 | CK109: 0 | CL109: 0 | CM109: 0 | CN109: 0 | CO109: 0 | CP109: 0 | CQ109: 0 | CR109: 0 | CS109: 0 | CT109: 0 | CU109: 0 | CV109: 0 | CW109: 0 | CX109: 0 | CY109: 0 | CZ109: 0 | DA109: 0 | DB109: 0 | DC109: 0 | DD109: 0 | DE109: 0 | DF109: 0 | DG109: 0 | DH109: 0 | DI109: 0 | DJ109: 0 | DK109: 0 | DL109: 0 | DM109: 0 | DN109: 0 | DO109: 0 | DP109: 0 | DQ109: 0 | DR109: 0 | DS109: 0 | DT109: 0 | DU109: 0 | DV109: 0 | DW109: 0 | DX109: 0 | DY109: 0 | DZ109: 0 | EA109: 0 | EB109: 0 | EC109: 0 | ED109: 0 | EE109: 0
E110: Closing | F110: EUR'000 | L110: =L107+L108-L109 -> 0 | M110: =M107+M108-M109 -> 3708.904839 | N110: 6306.835396 | O110: 6346.855635 | P110: 8099.642618 | Q110: 8147.243907 | R110: 11620.24151 | S110: 15107.92501 | T110: 18610.35649 | U110: 18702.4033 | V110: 18794.83933 | W110: 18887.66624 | X110: 20693.48319 | Y110: 21650.63707 | Z110: 21343.05091 | AA110: 21008.84691 | AB110: 20644.63398 | AC110: 20292.0938 | AD110: 19897.40598 | AE110: 19510.94589 | AF110: 19088.44323 | AG110: 18700.06003 | AH110: 18272.65087 | AI110: 17853.3331 | AJ110: 17396.01675 | AK110: 16945.1566 | AL110: 16454.43604 | AM110: 15969.47683 | AN110: 15441.69748 | AO110: 14921.05724 | AP110: 14354.25521 | AQ110: 13788.23865 | AR110: 13174.88956 | AS110: 12596.92133 | AT110: 11950.03877 | AU110: 11304.67033 | AV110: 10606.81837 | AW110: 9911.611934 | AX110: 9160.909647 | AY110: 8407.108543 | AZ110: 7594.808004 | BA110: 6780.121146 | BB110: 5903.287954 | BC110: 5022.473967 | BD110: 4075.747718 | BE110: 3125.735895 | BF110: 2134.745565 | BG110: 1070.935233 | BH110: -0.000541081333 | BI110: -0.000541081333 | BJ110: -0.000541081333 | BK110: -0.000541081333 | BL110: -0.000541081333 | BM110: -0.000541081333 | BN110: -0.000541081333 | BO110: -0.000541081333 | BP110: -0.000541081333 | BQ110: -0.000541081333 | BR110: -0.000541081333 | BS110: -0.000541081333 | BT110: -0.000541081333 | BU110: -0.000541081333 | BV110: -0.000541081333 | BW110: -0.000541081333 | BX110: -0.000541081333 | BY110: =BY107+BY108-BY109 -> -0.000541081333 | BZ110: -0.000541081333 | CA110: -0.000541081333 | CB110: -0.000541081333 | CC110: -0.000541081333 | CD110: -0.000541081333 | CE110: -0.000541081333 | CF110: -0.000541081333 | CG110: -0.000541081333 | CH110: -0.000541081333 | CI110: -0.000541081333 | CJ110: -0.000541081333 | CK110: -0.000541081333 | CL110: -0.000541081333 | CM110: -0.000541081333 | CN110: -0.000541081333 | CO110: -0.000541081333 | CP110: -0.000541081333 | CQ110: -0.000541081333 | CR110: -0.000541081333 | CS110: -0.000541081333 | CT110: -0.000541081333 | CU110: -0.000541081333 | CV110: -0.000541081333 | CW110: -0.000541081333 | CX110: -0.000541081333 | CY110: -0.000541081333 | CZ110: -0.000541081333 | DA110: -0.000541081333 | DB110: -0.000541081333 | DC110: -0.000541081333 | DD110: -0.000541081333 | DE110: -0.000541081333 | DF110: -0.000541081333 | DG110: -0.000541081333 | DH110: -0.000541081333 | DI110: -0.000541081333 | DJ110: -0.000541081333 | DK110: -0.000541081333 | DL110: -0.000541081333 | DM110: -0.000541081333 | DN110: -0.000541081333 | DO110: -0.000541081333 | DP110: -0.000541081333 | DQ110: -0.000541081333 | DR110: -0.000541081333 | DS110: -0.000541081333 | DT110: -0.000541081333 | DU110: -0.000541081333 | DV110: -0.000541081333 | DW110: -0.000541081333 | DX110: -0.000541081333 | DY110: -0.000541081333 | DZ110: -0.000541081333 | EA110: -0.000541081333 | EB110: -0.000541081333 | EC110: -0.000541081333 | ED110: -0.000541081333 | EE110: -0.000541081333
E112: Interest Rate | F112: % p.p. | L112: =LOOKUP(L$8,'InputS- Structure'!$14:$14,'InputS- Structure'!57:57)/12*L3 -> 0.006404556361 | M112: =LOOKUP(M$8,'InputS- Structure'!$14:$14,'InputS- Structure'!57:57)/12*M3 -> 0.006404556361 | N112: =LOOKUP(N$8,'InputS- Structure'!$14:$14,'InputS- Structure'!57:57)/12*N3 -> 0.006404556361 | O112: =LOOKUP(O$8,'InputS- Structure'!$14:$14,'InputS- Structure'!57:57)/12*O3 -> 0.006404556361 | P112: =LOOKUP(P$8,'InputS- Structure'!$14:$14,'InputS- Structure'!57:57)/12*P3 -> 0.006404556361 | Q112: =LOOKUP(Q$8,'InputS- Structure'!$14:$14,'InputS- Structure'!57:57)/12*Q3 -> 0.006404556361 | R112: =LOOKUP(R$8,'InputS- Structure'!$14:$14,'InputS- Structure'!57:57)/12*R3 -> 0.006404556361 | S112: =LOOKUP(S$8,'InputS- Structure'!$14:$14,'InputS- Structure'!57:57)/12*S3 -> 0.006404556361 | T112: =LOOKUP(T$8,'InputS- Structure'!$14:$14,'InputS- Structure'!57:57)/12*T3 -> 0.006404556361 | U112: =LOOKUP(U$8,'InputS- Structure'!$14:$14,'InputS- Structure'!57:57)/12*U3 -> 0.006404556361 | V112: =LOOKUP(V$8,'InputS- Structure'!$14:$14,'InputS- Structure'!57:57)/12*V3 -> 0.006404556361 | W112: =LOOKUP(W$8,'InputS- Structure'!$14:$14,'InputS- Structure'!57:57)/12*W3 -> 0.006404556361 | X112: =LOOKUP(X$8,'InputS- Structure'!$14:$14,'InputS- Structure'!57:57)/12*X3 -> 0.006404556361 | Y112: =LOOKUP(Y$8,'InputS- Structure'!$14:$14,'InputS- Structure'!57:57)/12*Y3 -> 0.006404556361 | Z112: =LOOKUP(Z$8,'InputS- Structure'!$14:$14,'InputS- Structure'!57:57)/12*Z3 -> 0.03842733817 | AA112: =LOOKUP(AA$8,'InputS- Structure'!$14:$14,'InputS- Structure'!57:57)/12*AA3 -> 0.03773399227 | AB112: =LOOKUP(AB$8,'InputS- Structure'!$14:$14,'InputS- Structure'!57:57)/12*AB3 -> 0.03839257695 | AC112: =LOOKUP(AC$8,'InputS- Structure'!$14:$14,'InputS- Structure'!57:57)/12*AC3 -> 0.03779939752 | AD112: =LOOKUP(AD$8,'InputS- Structure'!$14:$14,'InputS- Structure'!57:57)/12*AD3 -> 0.03845250315 | AE112: =LOOKUP(AE$8,'InputS- Structure'!$14:$14,'InputS- Structure'!57:57)/12*AE3 -> 0.03785172732 | AF112: =LOOKUP(AF$8,'InputS- Structure'!$14:$14,'InputS- Structure'!57:57)/12*AF3 -> 0.03850563926 | AG112: =LOOKUP(AG$8,'InputS- Structure'!$14:$14,'InputS- Structure'!57:57)/12*AG3 -> 0.03811348206 | AH112: =LOOKUP(AH$8,'InputS- Structure'!$14:$14,'InputS- Structure'!57:57)/12*AH3 -> 0.03853564108 | AI112: =LOOKUP(AI$8,'InputS- Structure'!$14:$14,'InputS- Structure'!57:57)/12*AI3 -> 0.03791057078 | AJ112: =LOOKUP(AJ$8,'InputS- Structure'!$14:$14,'InputS- Structure'!57:57)/12*AJ3 -> 0.03858527498 | AK112: =LOOKUP(AK$8,'InputS- Structure'!$14:$14,'InputS- Structure'!57:57)/12*AK3 -> 0.03800224185 | AL112: =LOOKUP(AL$8,'InputS- Structure'!$14:$14,'InputS- Structure'!57:57)/12*AL3 -> 0.03868833061 | AM112: =LOOKUP(AM$8,'InputS- Structure'!$14:$14,'InputS- Structure'!57:57)/12*AM3 -> 0.03811364456 | AN112: =LOOKUP(AN$8,'InputS- Structure'!$14:$14,'InputS- Structure'!57:57)/12*AN3 -> 0.0387453035 | AO112: =LOOKUP(AO$8,'InputS- Structure'!$14:$14,'InputS- Structure'!57:57)/12*AO3 -> 0.03832410125 | AP112: =LOOKUP(AP$8,'InputS- Structure'!$14:$14,'InputS- Structure'!57:57)/12*AP3 -> 0.03874524522 | AQ112: =LOOKUP(AQ$8,'InputS- Structure'!$14:$14,'InputS- Structure'!57:57)/12*AQ3 -> 0.03811352927 | AR112: =LOOKUP(AR$8,'InputS- Structure'!$14:$14,'InputS- Structure'!57:57)/12*AR3 -> 0.03874524522 | AS112: =LOOKUP(AS$8,'InputS- Structure'!$14:$14,'InputS- Structure'!57:57)/12*AS3 -> 0.03811352927 | AT112: =LOOKUP(AT$8,'InputS- Structure'!$14:$14,'InputS- Structure'!57:57)/12*AT3 -> 0.03874524522 | AU112: =LOOKUP(AU$8,'InputS- Structure'!$14:$14,'InputS- Structure'!57:57)/12*AU3 -> 0.03811352927 | AV112: =LOOKUP(AV$8,'InputS- Structure'!$14:$14,'InputS- Structure'!57:57)/12*AV3 -> 0.03874524522 | AW112: =LOOKUP(AW$8,'InputS- Structure'!$14:$14,'InputS- Structure'!57:57)/12*AW3 -> 0.03832410125 | AX112: =LOOKUP(AX$8,'InputS- Structure'!$14:$14,'InputS- Structure'!57:57)/12*AX3 -> 0.03874524522 | AY112: =LOOKUP(AY$8,'InputS- Structure'!$14:$14,'InputS- Structure'!57:57)/12*AY3 -> 0.03811352927 | AZ112: =LOOKUP(AZ$8,'InputS- Structure'!$14:$14,'InputS- Structure'!57:57)/12*AZ3 -> 0.03874524522 | BA112: =LOOKUP(BA$8,'InputS- Structure'!$14:$14,'InputS- Structure'!57:57)/12*BA3 -> 0.03811352927 | BB112: =LOOKUP(BB$8,'InputS- Structure'!$14:$14,'InputS- Structure'!57:57)/12*BB3 -> 0.03874524522 | BC112: =LOOKUP(BC$8,'InputS- Structure'!$14:$14,'InputS- Structure'!57:57)/12*BC3 -> 0.03811352927 | BD112: =LOOKUP(BD$8,'InputS- Structure'!$14:$14,'InputS- Structure'!57:57)/12*BD3 -> 0.03874524522 | BE112: =LOOKUP(BE$8,'InputS- Structure'!$14:$14,'InputS- Structure'!57:57)/12*BE3 -> 0.03874524522 | BF112: =LOOKUP(BF$8,'InputS- Structure'!$14:$14,'InputS- Structure'!57:57)/12*BF3 -> 0.03874524522 | BG112: =LOOKUP(BG$8,'InputS- Structure'!$14:$14,'InputS- Structure'!57:57)/12*BG3 -> 0.03874524522 | BH112: =LOOKUP(BH$8,'InputS- Structure'!$14:$14,'InputS- Structure'!57:57)/12*BH3 -> 0.03874524522 | BI112: =LOOKUP(BI$8,'InputS- Structure'!$14:$14,'InputS- Structure'!57:57)/12*BI3 -> 0.03874524522 | BJ112: =LOOKUP(BJ$8,'InputS- Structure'!$14:$14,'InputS- Structure'!57:57)/12*BJ3 -> 0.03874524522 | BK112: =LOOKUP(BK$8,'InputS- Structure'!$14:$14,'InputS- Structure'!57:57)/12*BK3 -> 0.03874524522 | BL112: =LOOKUP(BL$8,'InputS- Structure'!$14:$14,'InputS- Structure'!57:57)/12*BL3 -> 0.03874524522 | BM112: =LOOKUP(BM$8,'InputS- Structure'!$14:$14,'InputS- Structure'!57:57)/12*BM3 -> 0.03874524522 | BN112: =LOOKUP(BN$8,'InputS- Structure'!$14:$14,'InputS- Structure'!57:57)/12*BN3 -> 0.03874524522 | BO112: =LOOKUP(BO$8,'InputS- Structure'!$14:$14,'InputS- Structure'!57:57)/12*BO3 -> 0.03874524522 | BP112: =LOOKUP(BP$8,'InputS- Structure'!$14:$14,'InputS- Structure'!57:57)/12*BP3 -> 0.03874524522 | BQ112: =LOOKUP(BQ$8,'InputS- Structure'!$14:$14,'InputS- Structure'!57:57)/12*BQ3 -> 0.03874524522 | BR112: =LOOKUP(BR$8,'InputS- Structure'!$14:$14,'InputS- Structure'!57:57)/12*BR3 -> 0.03874524522 | BS112: =LOOKUP(BS$8,'InputS- Structure'!$14:$14,'InputS- Structure'!57:57)/12*BS3 -> 0.03874524522 | BT112: =LOOKUP(BT$8,'InputS- Structure'!$14:$14,'InputS- Structure'!57:57)/12*BT3 -> 0.03874524522 | BU112: =LOOKUP(BU$8,'InputS- Structure'!$14:$14,'InputS- Structure'!57:57)/12*BU3 -> 0.03874524522 | BV112: =LOOKUP(BV$8,'InputS- Structure'!$14:$14,'InputS- Structure'!57:57)/12*BV3 -> 0.03874524522 | BW112: =LOOKUP(BW$8,'InputS- Structure'!$14:$14,'InputS- Structure'!57:57)/12*BW3 -> 0.03874524522 | BX112: =LOOKUP(BX$8,'InputS- Structure'!$14:$14,'InputS- Structure'!57:57)/12*BX3 -> 0.03874524522 | BY112: =LOOKUP(BY$8,'InputS- Structure'!$14:$14,'InputS- Structure'!57:57)/12*BY3 -> 0.03874524522 | BZ112: =LOOKUP(BZ$8,'InputS- Structure'!$14:$14,'InputS- Structure'!57:57)/12*BZ3 -> 0.03874524522 | CA112: =LOOKUP(CA$8,'InputS- Structure'!$14:$14,'InputS- Structure'!57:57)/12*CA3 -> 0.03874524522 | CB112: =LOOKUP(CB$8,'InputS- Structure'!$14:$14,'InputS- Structure'!57:57)/12*CB3 -> 0.03874524522 | CC112: =LOOKUP(CC$8,'InputS- Structure'!$14:$14,'InputS- Structure'!57:57)/12*CC3 -> 0.03874524522 | CD112: =LOOKUP(CD$8,'InputS- Structure'!$14:$14,'InputS- Structure'!57:57)/12*CD3 -> 0.03874524522 | CE112: =LOOKUP(CE$8,'InputS- Structure'!$14:$14,'InputS- Structure'!57:57)/12*CE3 -> 0.03874524522 | CF112: =LOOKUP(CF$8,'InputS- Structure'!$14:$14,'InputS- Structure'!57:57)/12*CF3 -> 0.03874524522 | CG112: =LOOKUP(CG$8,'InputS- Structure'!$14:$14,'InputS- Structure'!57:57)/12*CG3 -> 0.03874524522 | CH112: =LOOKUP(CH$8,'InputS- Structure'!$14:$14,'InputS- Structure'!57:57)/12*CH3 -> 0.03874524522 | CI112: =LOOKUP(CI$8,'InputS- Structure'!$14:$14,'InputS- Structure'!57:57)/12*CI3 -> 0.03874524522 | CJ112: =LOOKUP(CJ$8,'InputS- Structure'!$14:$14,'InputS- Structure'!57:57)/12*CJ3 -> 0.03874524522 | CK112: =LOOKUP(CK$8,'InputS- Structure'!$14:$14,'InputS- Structure'!57:57)/12*CK3 -> 0.03874524522 | CL112: =LOOKUP(CL$8,'InputS- Structure'!$14:$14,'InputS- Structure'!57:57)/12*CL3 -> 0.03874524522 | CM112: =LOOKUP(CM$8,'InputS- Structure'!$14:$14,'InputS- Structure'!57:57)/12*CM3 -> 0.03874524522 | CN112: =LOOKUP(CN$8,'InputS- Structure'!$14:$14,'InputS- Structure'!57:57)/12*CN3 -> 0.03874524522 | CO112: =LOOKUP(CO$8,'InputS- Structure'!$14:$14,'InputS- Structure'!57:57)/12*CO3 -> 0.03874524522 | CP112: =LOOKUP(CP$8,'InputS- Structure'!$14:$14,'InputS- Structure'!57:57)/12*CP3 -> 0.03874524522 | CQ112: =LOOKUP(CQ$8,'InputS- Structure'!$14:$14,'InputS- Structure'!57:57)/12*CQ3 -> 0.03874524522 | CR112: =LOOKUP(CR$8,'InputS- Structure'!$14:$14,'InputS- Structure'!57:57)/12*CR3 -> 0.03874524522 | CS112: =LOOKUP(CS$8,'InputS- Structure'!$14:$14,'InputS- Structure'!57:57)/12*CS3 -> 0.03874524522 | CT112: =LOOKUP(CT$8,'InputS- Structure'!$14:$14,'InputS- Structure'!57:57)/12*CT3 -> 0.03874524522 | CU112: =LOOKUP(CU$8,'InputS- Structure'!$14:$14,'InputS- Structure'!57:57)/12*CU3 -> 0.03874524522 | CV112: =LOOKUP(CV$8,'InputS- Structure'!$14:$14,'InputS- Structure'!57:57)/12*CV3 -> 0.03874524522 | CW112: =LOOKUP(CW$8,'InputS- Structure'!$14:$14,'InputS- Structure'!57:57)/12*CW3 -> 0.03874524522 | CX112: =LOOKUP(CX$8,'InputS- Structure'!$14:$14,'InputS- Structure'!57:57)/12*CX3 -> 0.03874524522 | CY112: =LOOKUP(CY$8,'InputS- Structure'!$14:$14,'InputS- Structure'!57:57)/12*CY3 -> 0.03874524522 | CZ112: =LOOKUP(CZ$8,'InputS- Structure'!$14:$14,'InputS- Structure'!57:57)/12*CZ3 -> 0.03874524522 | DA112: =LOOKUP(DA$8,'InputS- Structure'!$14:$14,'InputS- Structure'!57:57)/12*DA3 -> 0.03874524522 | DB112: =LOOKUP(DB$8,'InputS- Structure'!$14:$14,'InputS- Structure'!57:57)/12*DB3 -> 0.03874524522 | DC112: =LOOKUP(DC$8,'InputS- Structure'!$14:$14,'InputS- Structure'!57:57)/12*DC3 -> 0.03874524522 | DD112: =LOOKUP(DD$8,'InputS- Structure'!$14:$14,'InputS- Structure'!57:57)/12*DD3 -> 0.03874524522 | DE112: =LOOKUP(DE$8,'InputS- Structure'!$14:$14,'InputS- Structure'!57:57)/12*DE3 -> 0.03874524522 | DF112: =LOOKUP(DF$8,'InputS- Structure'!$14:$14,'InputS- Structure'!57:57)/12*DF3 -> 0.03874524522 | DG112: =LOOKUP(DG$8,'InputS- Structure'!$14:$14,'InputS- Structure'!57:57)/12*DG3 -> 0.03874524522 | DH112: =LOOKUP(DH$8,'InputS- Structure'!$14:$14,'InputS- Structure'!57:57)/12*DH3 -> 0.03874524522 | DI112: =LOOKUP(DI$8,'InputS- Structure'!$14:$14,'InputS- Structure'!57:57)/12*DI3 -> 0.03874524522 | DJ112: =LOOKUP(DJ$8,'InputS- Structure'!$14:$14,'InputS- Structure'!57:57)/12*DJ3 -> 0.03874524522 | DK112: =LOOKUP(DK$8,'InputS- Structure'!$14:$14,'InputS- Structure'!57:57)/12*DK3 -> 0.03874524522 | DL112: =LOOKUP(DL$8,'InputS- Structure'!$14:$14,'InputS- Structure'!57:57)/12*DL3 -> 0.03874524522 | DM112: =LOOKUP(DM$8,'InputS- Structure'!$14:$14,'InputS- Structure'!57:57)/12*DM3 -> 0.03874524522 | DN112: =LOOKUP(DN$8,'InputS- Structure'!$14:$14,'InputS- Structure'!57:57)/12*DN3 -> 0.03874524522 | DO112: =LOOKUP(DO$8,'InputS- Structure'!$14:$14,'InputS- Structure'!57:57)/12*DO3 -> 0.03874524522 | DP112: =LOOKUP(DP$8,'InputS- Structure'!$14:$14,'InputS- Structure'!57:57)/12*DP3 -> 0.03874524522 | DQ112: =LOOKUP(DQ$8,'InputS- Structure'!$14:$14,'InputS- Structure'!57:57)/12*DQ3 -> 0.03874524522 | DR112: =LOOKUP(DR$8,'InputS- Structure'!$14:$14,'InputS- Structure'!57:57)/12*DR3 -> 0.03874524522 | DS112: =LOOKUP(DS$8,'InputS- Structure'!$14:$14,'InputS- Structure'!57:57)/12*DS3 -> 0.03874524522 | DT112: =LOOKUP(DT$8,'InputS- Structure'!$14:$14,'InputS- Structure'!57:57)/12*DT3 -> 0.03874524522 | DU112: =LOOKUP(DU$8,'InputS- Structure'!$14:$14,'InputS- Structure'!57:57)/12*DU3 -> 0.03874524522 | DV112: =LOOKUP(DV$8,'InputS- Structure'!$14:$14,'InputS- Structure'!57:57)/12*DV3 -> 0.03874524522 | DW112: =LOOKUP(DW$8,'InputS- Structure'!$14:$14,'InputS- Structure'!57:57)/12*DW3 -> 0.03874524522 | DX112: =LOOKUP(DX$8,'InputS- Structure'!$14:$14,'InputS- Structure'!57:57)/12*DX3 -> 0.03874524522 | DY112: =LOOKUP(DY$8,'InputS- Structure'!$14:$14,'InputS- Structure'!57:57)/12*DY3 -> 0.03874524522 | DZ112: =LOOKUP(DZ$8,'InputS- Structure'!$14:$14,'InputS- Structure'!57:57)/12*DZ3 -> 0.03874524522 | EA112: =LOOKUP(EA$8,'InputS- Structure'!$14:$14,'InputS- Structure'!57:57)/12*EA3 -> 0.03874524522 | EB112: =LOOKUP(EB$8,'InputS- Structure'!$14:$14,'InputS- Structure'!57:57)/12*EB3 -> 0.03874524522 | EC112: =LOOKUP(EC$8,'InputS- Structure'!$14:$14,'InputS- Structure'!57:57)/12*EC3 -> 0.03874524522 | ED112: =LOOKUP(ED$8,'InputS- Structure'!$14:$14,'InputS- Structure'!57:57)/12*ED3 -> 0.03874524522 | EE112: =LOOKUP(EE$8,'InputS- Structure'!$14:$14,'InputS- Structure'!57:57)/12*EE3 -> 0.03874524522
E113: Interest Cost | F113: EUR'000 | L113: =L112*L107 -> 0 | M113: =M112*M107 -> 0 | N113: 23.75389008 | O113: 40.39248275 | P113: 40.64879463 | Q113: 51.87461765 | R113: 52.17948279 | S113: 74.4224917 | T113: 96.75955721 | U113: 119.191077 | V113: 119.780596 | W113: 120.3726078 | X113: 120.9671229 | Y113: 132.5325794 | Z113: 831.9763523 | AA113: 805.3585181 | AB113: 806.5837716 | AC113: 780.3547263 | AD113: 780.2818009 | AE113: 753.1511853 | AF113: 751.2814442 | AG113: 727.5270388 | AH113: 720.6188016 | AI113: 692.7266243 | AJ113: 688.8757671 | AK113: 661.0876356 | AL113: 655.5798208 | AM113: 627.1385266 | AN113: 618.7422265 | AO113: 591.7891779 | AP113: 578.1200217 | AQ113: 547.0913261 | AR113: 534.2286875 | AS113: 502.1415388 | AT113: 488.0708061 | AU113: 455.4581526 | AV113: 438.002224 | AW113: 406.4967813 | AX113: 384.0278349 | AY113: 349.154598 | AZ113: 325.7354821 | BA113: 289.4649372 | BB113: 262.6974564 | BC113: 224.9951382 | BD113: 194.5969855 | BE113: 157.9158448 | BF113: 121.1074038 | BG113: 82.71124039 | BH113: 41.49364821 | BI113: -2.096432893e-05 | BJ113: -2.096432893e-05 | BK113: -2.096432893e-05 | BL113: -2.096432893e-05 | BM113: -2.096432893e-05 | BN113: -2.096432893e-05 | BO113: -2.096432893e-05 | BP113: -2.096432893e-05 | BQ113: -2.096432893e-05 | BR113: -2.096432893e-05 | BS113: -2.096432893e-05 | BT113: -2.096432893e-05 | BU113: -2.096432893e-05 | BV113: -2.096432893e-05 | BW113: -2.096432893e-05 | BX113: -2.096432893e-05 | BY113: =BY112*BY107 -> -2.096432893e-05 | BZ113: -2.096432893e-05 | CA113: -2.096432893e-05 | CB113: -2.096432893e-05 | CC113: -2.096432893e-05 | CD113: -2.096432893e-05 | CE113: -2.096432893e-05 | CF113: -2.096432893e-05 | CG113: -2.096432893e-05 | CH113: -2.096432893e-05 | CI113: -2.096432893e-05 | CJ113: -2.096432893e-05 | CK113: -2.096432893e-05 | CL113: -2.096432893e-05 | CM113: -2.096432893e-05 | CN113: -2.096432893e-05 | CO113: -2.096432893e-05 | CP113: -2.096432893e-05 | CQ113: -2.096432893e-05 | CR113: -2.096432893e-05 | CS113: -2.096432893e-05 | CT113: -2.096432893e-05 | CU113: -2.096432893e-05 | CV113: -2.096432893e-05 | CW113: -2.096432893e-05 | CX113: -2.096432893e-05 | CY113: -2.096432893e-05 | CZ113: -2.096432893e-05 | DA113: -2.096432893e-05 | DB113: -2.096432893e-05 | DC113: -2.096432893e-05 | DD113: -2.096432893e-05 | DE113: -2.096432893e-05 | DF113: -2.096432893e-05 | DG113: -2.096432893e-05 | DH113: -2.096432893e-05 | DI113: -2.096432893e-05 | DJ113: -2.096432893e-05 | DK113: -2.096432893e-05 | DL113: -2.096432893e-05 | DM113: -2.096432893e-05 | DN113: -2.096432893e-05 | DO113: -2.096432893e-05 | DP113: -2.096432893e-05 | DQ113: -2.096432893e-05 | DR113: -2.096432893e-05 | DS113: -2.096432893e-05 | DT113: -2.096432893e-05 | DU113: -2.096432893e-05 | DV113: -2.096432893e-05 | DW113: -2.096432893e-05 | DX113: -2.096432893e-05 | DY113: -2.096432893e-05 | DZ113: -2.096432893e-05 | EA113: -2.096432893e-05 | EB113: -2.096432893e-05 | EC113: -2.096432893e-05 | ED113: -2.096432893e-05 | EE113: -2.096432893e-05
E114: Interest During Construction | F114: EUR'000 | L114: =L113*L6 -> 0 | M114: =M113*M6 -> 0 | N114: 23.75389008 | O114: 40.39248275 | P114: 40.64879463 | Q114: 51.87461765 | R114: 52.17948279 | S114: 74.4224917 | T114: 96.75955721 | U114: 119.191077 | V114: 119.780596 | W114: 120.3726078 | X114: 120.9671229 | Y114: 132.5325794 | Z114: 0 | AA114: 0 | AB114: 0 | AC114: 0 | AD114: 0 | AE114: 0 | AF114: 0 | AG114: 0 | AH114: 0 | AI114: 0 | AJ114: 0 | AK114: 0 | AL114: 0 | AM114: 0 | AN114: 0 | AO114: 0 | AP114: 0 | AQ114: 0 | AR114: 0 | AS114: 0 | AT114: 0 | AU114: 0 | AV114: 0 | AW114: 0 | AX114: 0 | AY114: 0 | AZ114: 0 | BA114: 0 | BB114: 0 | BC114: 0 | BD114: 0 | BE114: 0 | BF114: 0 | BG114: 0 | BH114: 0 | BI114: 0 | BJ114: 0 | BK114: 0 | BL114: 0 | BM114: 0 | BN114: 0 | BO114: 0 | BP114: 0 | BQ114: 0 | BR114: 0 | BS114: 0 | BT114: 0 | BU114: 0 | BV114: 0 | BW114: 0 | BX114: 0 | BY114: =BY113*BY6 -> 0 | BZ114: 0 | CA114: 0 | CB114: 0 | CC114: 0 | CD114: 0 | CE114: 0 | CF114: 0 | CG114: 0 | CH114: 0 | CI114: 0 | CJ114: 0 | CK114: 0 | CL114: 0 | CM114: 0 | CN114: 0 | CO114: 0 | CP114: 0 | CQ114: 0 | CR114: 0 | CS114: 0 | CT114: 0 | CU114: 0 | CV114: 0 | CW114: 0 | CX114: 0 | CY114: 0 | CZ114: 0 | DA114: 0 | DB114: 0 | DC114: 0 | DD114: 0 | DE114: 0 | DF114: 0 | DG114: 0 | DH114: 0 | DI114: 0 | DJ114: 0 | DK114: 0 | DL114: 0 | DM114: 0 | DN114: 0 | DO114: 0 | DP114: 0 | DQ114: 0 | DR114: 0 | DS114: 0 | DT114: 0 | DU114: 0 | DV114: 0 | DW114: 0 | DX114: 0 | DY114: 0 | DZ114: 0 | EA114: 0 | EB114: 0 | EC114: 0 | ED114: 0 | EE114: 0
E115: Interest Expense | F115: EUR'000 | L115: =L113-L114 -> 0 | M115: =M113-M114 -> 0 | N115: 0 | O115: 0 | P115: 0 | Q115: 0 | R115: 0 | S115: 0 | T115: 0 | U115: 0 | V115: 0 | W115: 0 | X115: 0 | Y115: 0 | Z115: 831.9763523 | AA115: 805.3585181 | AB115: 806.5837716 | AC115: 780.3547263 | AD115: 780.2818009 | AE115: 753.1511853 | AF115: 751.2814442 | AG115: 727.5270388 | AH115: 720.6188016 | AI115: 692.7266243 | AJ115: 688.8757671 | AK115: 661.0876356 | AL115: 655.5798208 | AM115: 627.1385266 | AN115: 618.7422265 | AO115: 591.7891779 | AP115: 578.1200217 | AQ115: 547.0913261 | AR115: 534.2286875 | AS115: 502.1415388 | AT115: 488.0708061 | AU115: 455.4581526 | AV115: 438.002224 | AW115: 406.4967813 | AX115: 384.0278349 | AY115: 349.154598 | AZ115: 325.7354821 | BA115: 289.4649372 | BB115: 262.6974564 | BC115: 224.9951382 | BD115: 194.5969855 | BE115: 157.9158448 | BF115: 121.1074038 | BG115: 82.71124039 | BH115: 41.49364821 | BI115: -2.096432893e-05 | BJ115: -2.096432893e-05 | BK115: -2.096432893e-05 | BL115: -2.096432893e-05 | BM115: -2.096432893e-05 | BN115: -2.096432893e-05 | BO115: -2.096432893e-05 | BP115: -2.096432893e-05 | BQ115: -2.096432893e-05 | BR115: -2.096432893e-05 | BS115: -2.096432893e-05 | BT115: -2.096432893e-05 | BU115: -2.096432893e-05 | BV115: -2.096432893e-05 | BW115: -2.096432893e-05 | BX115: -2.096432893e-05 | BY115: =BY113-BY114 -> -2.096432893e-05 | BZ115: -2.096432893e-05 | CA115: -2.096432893e-05 | CB115: -2.096432893e-05 | CC115: -2.096432893e-05 | CD115: -2.096432893e-05 | CE115: -2.096432893e-05 | CF115: -2.096432893e-05 | CG115: -2.096432893e-05 | CH115: -2.096432893e-05 | CI115: -2.096432893e-05 | CJ115: -2.096432893e-05 | CK115: -2.096432893e-05 | CL115: -2.096432893e-05 | CM115: -2.096432893e-05 | CN115: -2.096432893e-05 | CO115: -2.096432893e-05 | CP115: -2.096432893e-05 | CQ115: -2.096432893e-05 | CR115: -2.096432893e-05 | CS115: -2.096432893e-05 | CT115: -2.096432893e-05 | CU115: -2.096432893e-05 | CV115: -2.096432893e-05 | CW115: -2.096432893e-05 | CX115: -2.096432893e-05 | CY115: -2.096432893e-05 | CZ115: -2.096432893e-05 | DA115: -2.096432893e-05 | DB115: -2.096432893e-05 | DC115: -2.096432893e-05 | DD115: -2.096432893e-05 | DE115: -2.096432893e-05 | DF115: -2.096432893e-05 | DG115: -2.096432893e-05 | DH115: -2.096432893e-05 | DI115: -2.096432893e-05 | DJ115: -2.096432893e-05 | DK115: -2.096432893e-05 | DL115: -2.096432893e-05 | DM115: -2.096432893e-05 | DN115: -2.096432893e-05 | DO115: -2.096432893e-05 | DP115: -2.096432893e-05 | DQ115: -2.096432893e-05 | DR115: -2.096432893e-05 | DS115: -2.096432893e-05 | DT115: -2.096432893e-05 | DU115: -2.096432893e-05 | DV115: -2.096432893e-05 | DW115: -2.096432893e-05 | DX115: -2.096432893e-05 | DY115: -2.096432893e-05 | DZ115: -2.096432893e-05 | EA115: -2.096432893e-05 | EB115: -2.096432893e-05 | EC115: -2.096432893e-05 | ED115: -2.096432893e-05 | EE115: -2.096432893e-05
E117: Up-Front Fee | F117: EUR'000 | G117: % | H117: ='InputC - Structure'!G55 -> 0.01 | I117: =H48 -> 21650.63761 | L117: =$H117*$I117*L$99 -> 216.5063761 | M117: =$H117*$I117*M$99 -> 0 | N117: 0 | O117: 0 | P117: 0 | Q117: 0 | R117: 0 | S117: 0 | T117: 0 | U117: 0 | V117: 0 | W117: 0 | X117: 0 | Y117: 0 | Z117: 0 | AA117: 0 | AB117: 0 | AC117: 0 | AD117: 0 | AE117: 0 | AF117: 0 | AG117: 0 | AH117: 0 | AI117: 0 | AJ117: 0 | AK117: 0 | AL117: 0 | AM117: 0 | AN117: 0 | AO117: 0 | AP117: 0 | AQ117: 0 | AR117: 0 | AS117: 0 | AT117: 0 | AU117: 0 | AV117: 0 | AW117: 0 | AX117: 0 | AY117: 0 | AZ117: 0 | BA117: 0 | BB117: 0 | BC117: 0 | BD117: 0 | BE117: 0 | BF117: 0 | BG117: 0 | BH117: 0 | BI117: 0 | BJ117: 0 | BK117: 0 | BL117: 0 | BM117: 0 | BN117: 0 | BO117: 0 | BP117: 0 | BQ117: 0 | BR117: 0 | BS117: 0 | BT117: 0 | BU117: 0 | BV117: 0 | BW117: 0 | BX117: 0 | BY117: =$H117*$I117*BY$99 -> 0 | BZ117: 0 | CA117: 0 | CB117: 0 | CC117: 0 | CD117: 0 | CE117: 0 | CF117: 0 | CG117: 0 | CH117: 0 | CI117: 0 | CJ117: 0 | CK117: 0 | CL117: 0 | CM117: 0 | CN117: 0 | CO117: 0 | CP117: 0 | CQ117: 0 | CR117: 0 | CS117: 0 | CT117: 0 | CU117: 0 | CV117: 0 | CW117: 0 | CX117: 0 | CY117: 0 | CZ117: 0 | DA117: 0 | DB117: 0 | DC117: 0 | DD117: 0 | DE117: 0 | DF117: 0 | DG117: 0 | DH117: 0 | DI117: 0 | DJ117: 0 | DK117: 0 | DL117: 0 | DM117: 0 | DN117: 0 | DO117: 0 | DP117: 0 | DQ117: 0 | DR117: 0 | DS117: 0 | DT117: 0 | DU117: 0 | DV117: 0 | DW117: 0 | DX117: 0 | DY117: 0 | DZ117: 0 | EA117: 0 | EB117: 0 | EC117: 0 | ED117: 0 | EE117: 0
E119: Commitment Fee
E120: Undrawn Balance | F120: EUR'000 | G120: EUR'000 | H120: =H48 -> 21650.63761 | L120: =$H120-L107 -> 21650.63761 | M120: =$H120-M107 -> 21650.63761 | N120: 17941.73278 | O120: 15343.80222 | P120: 15303.78198 | Q120: 13550.995 | R120: 13503.39371 | S120: 10030.3961 | T120: 6542.712607 | U120: 3040.281123 | V120: 2948.234319 | W120: 2855.798285 | X120: 2762.971378 | Y120: 957.154428 | Z120: 0.0005410813355 | AA120: 307.5867053 | AB120: 641.7907041 | AC120: 1006.003636 | AD120: 1358.543811 | AE120: 1753.231638 | AF120: 2139.69172 | AG120: 2562.19438 | AH120: 2950.577584 | AI120: 3377.98674 | AJ120: 3797.304512 | AK120: 4254.620867 | AL120: 4705.481015 | AM120: 5196.201578 | AN120: 5681.160786 | AO120: 6208.940132 | AP120: 6729.580376 | AQ120: 7296.382404 | AR120: 7862.398969 | AS120: 8475.748056 | AT120: 9053.716281 | AU120: 9700.59884 | AV120: 10345.96729 | AW120: 11043.81924 | AX120: 11739.02568 | AY120: 12489.72797 | AZ120: 13243.52907 | BA120: 14055.82961 | BB120: 14870.51647 | BC120: 15747.34966 | BD120: 16628.16365 | BE120: 17574.8899 | BF120: 18524.90172 | BG120: 19515.89205 | BH120: 20579.70238 | BI120: 21650.63816 | BJ120: 21650.63816 | BK120: 21650.63816 | BL120: 21650.63816 | BM120: 21650.63816 | BN120: 21650.63816 | BO120: 21650.63816 | BP120: 21650.63816 | BQ120: 21650.63816 | BR120: 21650.63816 | BS120: 21650.63816 | BT120: 21650.63816 | BU120: 21650.63816 | BV120: 21650.63816 | BW120: 21650.63816 | BX120: 21650.63816 | BY120: =$H120-BY107 -> 21650.63816 | BZ120: 21650.63816 | CA120: 21650.63816 | CB120: 21650.63816 | CC120: 21650.63816 | CD120: 21650.63816 | CE120: 21650.63816 | CF120: 21650.63816 | CG120: 21650.63816 | CH120: 21650.63816 | CI120: 21650.63816 | CJ120: 21650.63816 | CK120: 21650.63816 | CL120: 21650.63816 | CM120: 21650.63816 | CN120: 21650.63816 | CO120: 21650.63816 | CP120: 21650.63816 | CQ120: 21650.63816 | CR120: 21650.63816 | CS120: 21650.63816 | CT120: 21650.63816 | CU120: 21650.63816 | CV120: 21650.63816 | CW120: 21650.63816 | CX120: 21650.63816 | CY120: 21650.63816 | CZ120: 21650.63816 | DA120: 21650.63816 | DB120: 21650.63816 | DC120: 21650.63816 | DD120: 21650.63816 | DE120: 21650.63816 | DF120: 21650.63816 | DG120: 21650.63816 | DH120: 21650.63816 | DI120: 21650.63816 | DJ120: 21650.63816 | DK120: 21650.63816 | DL120: 21650.63816 | DM120: 21650.63816 | DN120: 21650.63816 | DO120: 21650.63816 | DP120: 21650.63816 | DQ120: 21650.63816 | DR120: 21650.63816 | DS120: 21650.63816 | DT120: 21650.63816 | DU120: 21650.63816 | DV120: 21650.63816 | DW120: 21650.63816 | DX120: 21650.63816 | DY120: 21650.63816 | DZ120: 21650.63816 | EA120: 21650.63816 | EB120: 21650.63816 | EC120: 21650.63816 | ED120: 21650.63816 | EE120: 21650.63816
E121: Periodic Commitment Fee | F121: EUR'000 | G121: % | H121: ='InputC - Structure'!G61 -> 0.007 | I121: =H121/12 -> 0.0005833333333 | L121: =$I$121*L120*L6 -> 12.62953861 | M121: =$I$121*M120*M6 -> 12.62953861 | N121: 10.46601079 | O121: 8.950551294 | P121: 8.927206155 | Q121: 7.904747081 | R121: 7.876979663 | S121: 5.851064393 | T121: 3.816582354 | U121: 1.773497322 | V121: 1.719803353 | W121: 1.665882333 | X121: 1.611733304 | Y121: 0.558340083 | Z121: 0 | AA121: 0 | AB121: 0 | AC121: 0 | AD121: 0 | AE121: 0 | AF121: 0 | AG121: 0 | AH121: 0 | AI121: 0 | AJ121: 0 | AK121: 0 | AL121: 0 | AM121: 0 | AN121: 0 | AO121: 0 | AP121: 0 | AQ121: 0 | AR121: 0 | AS121: 0 | AT121: 0 | AU121: 0 | AV121: 0 | AW121: 0 | AX121: 0 | AY121: 0 | AZ121: 0 | BA121: 0 | BB121: 0 | BC121: 0 | BD121: 0 | BE121: 0 | BF121: 0 | BG121: 0 | BH121: 0 | BI121: 0 | BJ121: 0 | BK121: 0 | BL121: 0 | BM121: 0 | BN121: 0 | BO121: 0 | BP121: 0 | BQ121: 0 | BR121: 0 | BS121: 0 | BT121: 0 | BU121: 0 | BV121: 0 | BW121: 0 | BX121: 0 | BY121: =$I$121*BY120*BY6 -> 0 | BZ121: 0 | CA121: 0 | CB121: 0 | CC121: 0 | CD121: 0 | CE121: 0 | CF121: 0 | CG121: 0 | CH121: 0 | CI121: 0 | CJ121: 0 | CK121: 0 | CL121: 0 | CM121: 0 | CN121: 0 | CO121: 0 | CP121: 0 | CQ121: 0 | CR121: 0 | CS121: 0 | CT121: 0 | CU121: 0 | CV121: 0 | CW121: 0 | CX121: 0 | CY121: 0 | CZ121: 0 | DA121: 0 | DB121: 0 | DC121: 0 | DD121: 0 | DE121: 0 | DF121: 0 | DG121: 0 | DH121: 0 | DI121: 0 | DJ121: 0 | DK121: 0 | DL121: 0 | DM121: 0 | DN121: 0 | DO121: 0 | DP121: 0 | DQ121: 0 | DR121: 0 | DS121: 0 | DT121: 0 | DU121: 0 | DV121: 0 | DW121: 0 | DX121: 0 | DY121: 0 | DZ121: 0 | EA121: 0 | EB121: 0 | EC121: 0 | ED121: 0 | EE121: 0
C123: =D49 -> AFDB
E124: Opening | F124: EUR'000 | L124: =K127 -> 0 | M124: =L127 -> 0 | N124: 2781.678629 | O124: 4730.126547 | P124: 4760.141726 | Q124: 6074.731964 | R124: 6110.43293 | S124: 8715.181135 | T124: 11330.94376 | U124: 13957.76737 | V124: 14026.80247 | W124: 14096.1295 | X124: 14165.74968 | Y124: 15520.11239 | Z124: 16237.97781 | AA124: 16141.6569 | AB124: 16053.45274 | AC124: 15928.67727 | AD124: 15835.48674 | AE124: 15700.0192 | AF124: 15593.73934 | AG124: 15449.95272 | AH124: 15349.89801 | AI124: 15217.60482 | AJ124: 15110.87344 | AK124: 14966.57349 | AL124: 14850.14193 | AM124: 14696.39434 | AN124: 14570.05451 | AO124: 14406.22285 | AP124: 14268.2917 | AQ124: 14096.30277 | AR124: 13944.87949 | AS124: 13754.46905 | AT124: 13610.73401 | AU124: 13414.939 | AV124: 13243.06588 | AW124: 13031.45374 | AX124: 12842.86211 | AY124: 12618.37687 | AZ124: 12411.57052 | BA124: 12164.09061 | BB124: 11937.37367 | BC124: 11669.27117 | BD124: 11420.63005 | BE124: 11129.94505 | BF124: 10849.56517 | BG124: 10554.7939 | BH124: 10224.80271 | BI124: 9903.955943 | BJ124: 8216.755162 | BK124: 6518.006234 | BL124: 4377.140103 | BM124: 2289.404233 | BN124: 0.07056967642 | BO124: 0.07056967642 | BP124: 0.07056967642 | BQ124: 0.07056967642 | BR124: 0.07056967642 | BS124: 0.07056967642 | BT124: 0.07056967642 | BU124: 0.07056967642 | BV124: 0.07056967642 | BW124: 0.07056967642 | BX124: 0.07056967642 | BY124: =BX127 -> 0.07056967642 | BZ124: 0.07056967642 | CA124: 0.07056967642 | CB124: 0.07056967642 | CC124: 0.07056967642 | CD124: 0.07056967642 | CE124: 0.07056967642 | CF124: 0.07056967642 | CG124: 0.07056967642 | CH124: 0.07056967642 | CI124: 0.07056967642 | CJ124: 0.07056967642 | CK124: 0.07056967642 | CL124: 0.07056967642 | CM124: 0.07056967642 | CN124: 0.07056967642 | CO124: 0.07056967642 | CP124: 0.07056967642 | CQ124: 0.07056967642 | CR124: 0.07056967642 | CS124: 0.07056967642 | CT124: 0.07056967642 | CU124: 0.07056967642 | CV124: 0.07056967642 | CW124: 0.07056967642 | CX124: 0.07056967642 | CY124: 0.07056967642 | CZ124: 0.07056967642 | DA124: 0.07056967642 | DB124: 0.07056967642 | DC124: 0.07056967642 | DD124: 0.07056967642 | DE124: 0.07056967642 | DF124: 0.07056967642 | DG124: 0.07056967642 | DH124: 0.07056967642 | DI124: 0.07056967642 | DJ124: 0.07056967642 | DK124: 0.07056967642 | DL124: 0.07056967642 | DM124: 0.07056967642 | DN124: 0.07056967642 | DO124: 0.07056967642 | DP124: 0.07056967642 | DQ124: 0.07056967642 | DR124: 0.07056967642 | DS124: 0.07056967642 | DT124: 0.07056967642 | DU124: 0.07056967642 | DV124: 0.07056967642 | DW124: 0.07056967642 | DX124: 0.07056967642 | DY124: 0.07056967642 | DZ124: 0.07056967642 | EA124: 0.07056967642 | EB124: 0.07056967642 | EC124: 0.07056967642 | ED124: 0.07056967642 | EE124: 0.07056967642
E125: Add: Draws | F125: EUR'000 | L125: =L94 -> 0 | M125: =M94 -> 2781.678629 | N125: 1948.447918 | O125: 30.0151791 | P125: 1314.590238 | Q125: 35.70096627 | R125: 2604.748205 | S125: 2615.762621 | T125: 2626.823613 | U125: 69.03510359 | V125: 69.32702484 | W125: 69.62018052 | X125: 1354.362713 | Y125: 717.8654152 | Z125: 0 | AA125: 0 | AB125: 0 | AC125: 0 | AD125: 0 | AE125: 0 | AF125: 0 | AG125: 0 | AH125: 0 | AI125: 0 | AJ125: 0 | AK125: 0 | AL125: 0 | AM125: 0 | AN125: 0 | AO125: 0 | AP125: 0 | AQ125: 0 | AR125: 0 | AS125: 0 | AT125: 0 | AU125: 0 | AV125: 0 | AW125: 0 | AX125: 0 | AY125: 0 | AZ125: 0 | BA125: 0 | BB125: 0 | BC125: 0 | BD125: 0 | BE125: 0 | BF125: 0 | BG125: 0 | BH125: 0 | BI125: 0 | BJ125: 0 | BK125: 0 | BL125: 0 | BM125: 0 | BN125: 0 | BO125: 0 | BP125: 0 | BQ125: 0 | BR125: 0 | BS125: 0 | BT125: 0 | BU125: 0 | BV125: 0 | BW125: 0 | BX125: 0 | BY125: =BY94 -> 0 | BZ125: 0 | CA125: 0 | CB125: 0 | CC125: 0 | CD125: 0 | CE125: 0 | CF125: 0 | CG125: 0 | CH125: 0 | CI125: 0 | CJ125: 0 | CK125: 0 | CL125: 0 | CM125: 0 | CN125: 0 | CO125: 0 | CP125: 0 | CQ125: 0 | CR125: 0 | CS125: 0 | CT125: 0 | CU125: 0 | CV125: 0 | CW125: 0 | CX125: 0 | CY125: 0 | CZ125: 0 | DA125: 0 | DB125: 0 | DC125: 0 | DD125: 0 | DE125: 0 | DF125: 0 | DG125: 0 | DH125: 0 | DI125: 0 | DJ125: 0 | DK125: 0 | DL125: 0 | DM125: 0 | DN125: 0 | DO125: 0 | DP125: 0 | DQ125: 0 | DR125: 0 | DS125: 0 | DT125: 0 | DU125: 0 | DV125: 0 | DW125: 0 | DX125: 0 | DY125: 0 | DZ125: 0 | EA125: 0 | EB125: 0 | EC125: 0 | ED125: 0 | EE125: 0
E126: Less: Repayment | F126: EUR'000 | L126: =L102 -> 0 | M126: =M102 -> 0 | N126: 0 | O126: 0 | P126: 0 | Q126: 0 | R126: 0 | S126: 0 | T126: 0 | U126: 0 | V126: 0 | W126: 0 | X126: 0 | Y126: 0 | Z126: 96.32090331 | AA126: 88.204166 | AB126: 124.7754615 | AC126: 93.19053545 | AD126: 135.4675386 | AE126: 106.2798578 | AF126: 143.7866224 | AG126: 100.0547069 | AH126: 132.2931903 | AI126: 106.7313845 | AJ126: 144.2999514 | AK126: 116.4315575 | AL126: 153.7475911 | AM126: 126.3398272 | AN126: 163.8316639 | AO126: 137.9311522 | AP126: 171.9889217 | AQ126: 151.4232878 | AR126: 190.4104387 | AS126: 143.7350347 | AT126: 195.7950151 | AU126: 171.8731128 | AV126: 211.6121454 | AW126: 188.5916287 | AX126: 224.4852395 | AY126: 206.8063541 | AZ126: 247.4799053 | BA126: 226.7169446 | BB126: 268.1024921 | BC126: 248.6411263 | BD126: 290.6849994 | BE126: 280.3798755 | BF126: 294.7712767 | BG126: 329.9911915 | BH126: 320.8467623 | BI126: 1687.200781 | BJ126: 1698.748928 | BK126: 2140.866131 | BL126: 2087.735869 | BM126: 2289.333663 | BN126: 0 | BO126: 0 | BP126: 0 | BQ126: 0 | BR126: 0 | BS126: 0 | BT126: 0 | BU126: 0 | BV126: 0 | BW126: 0 | BX126: 0 | BY126: =BY102 -> 0 | BZ126: 0 | CA126: 0 | CB126: 0 | CC126: 0 | CD126: 0 | CE126: 0 | CF126: 0 | CG126: 0 | CH126: 0 | CI126: 0 | CJ126: 0 | CK126: 0 | CL126: 0 | CM126: 0 | CN126: 0 | CO126: 0 | CP126: 0 | CQ126: 0 | CR126: 0 | CS126: 0 | CT126: 0 | CU126: 0 | CV126: 0 | CW126: 0 | CX126: 0 | CY126: 0 | CZ126: 0 | DA126: 0 | DB126: 0 | DC126: 0 | DD126: 0 | DE126: 0 | DF126: 0 | DG126: 0 | DH126: 0 | DI126: 0 | DJ126: 0 | DK126: 0 | DL126: 0 | DM126: 0 | DN126: 0 | DO126: 0 | DP126: 0 | DQ126: 0 | DR126: 0 | DS126: 0 | DT126: 0 | DU126: 0 | DV126: 0 | DW126: 0 | DX126: 0 | DY126: 0 | DZ126: 0 | EA126: 0 | EB126: 0 | EC126: 0 | ED126: 0 | EE126: 0
E127: Closing | F127: EUR'000 | L127: =L124+L125-L126 -> 0 | M127: =M124+M125-M126 -> 2781.678629 | N127: =N124+N125-N126 -> 4730.126547 | O127: =O124+O125-O126 -> 4760.141726 | P127: =P124+P125-P126 -> 6074.731964 | Q127: =Q124+Q125-Q126 -> 6110.43293 | R127: =R124+R125-R126 -> 8715.181135 | S127: =S124+S125-S126 -> 11330.94376 | T127: =T124+T125-T126 -> 13957.76737 | U127: =U124+U125-U126 -> 14026.80247 | V127: =V124+V125-V126 -> 14096.1295 | W127: =W124+W125-W126 -> 14165.74968 | X127: =X124+X125-X126 -> 15520.11239 | Y127: =Y124+Y125-Y126 -> 16237.97781 | Z127: =Z124+Z125-Z126 -> 16141.6569 | AA127: =AA124+AA125-AA126 -> 16053.45274 | AB127: =AB124+AB125-AB126 -> 15928.67727 | AC127: =AC124+AC125-AC126 -> 15835.48674 | AD127: =AD124+AD125-AD126 -> 15700.0192 | AE127: =AE124+AE125-AE126 -> 15593.73934 | AF127: =AF124+AF125-AF126 -> 15449.95272 | AG127: =AG124+AG125-AG126 -> 15349.89801 | AH127: =AH124+AH125-AH126 -> 15217.60482 | AI127: =AI124+AI125-AI126 -> 15110.87344 | AJ127: =AJ124+AJ125-AJ126 -> 14966.57349 | AK127: =AK124+AK125-AK126 -> 14850.14193 | AL127: =AL124+AL125-AL126 -> 14696.39434 | AM127: =AM124+AM125-AM126 -> 14570.05451 | AN127: =AN124+AN125-AN126 -> 14406.22285 | AO127: =AO124+AO125-AO126 -> 14268.2917 | AP127: =AP124+AP125-AP126 -> 14096.30277 | AQ127: =AQ124+AQ125-AQ126 -> 13944.87949 | AR127: =AR124+AR125-AR126 -> 13754.46905 | AS127: =AS124+AS125-AS126 -> 13610.73401 | AT127: =AT124+AT125-AT126 -> 13414.939 | AU127: =AU124+AU125-AU126 -> 13243.06588 | AV127: =AV124+AV125-AV126 -> 13031.45374 | AW127: =AW124+AW125-AW126 -> 12842.86211 | AX127: =AX124+AX125-AX126 -> 12618.37687 | AY127: =AY124+AY125-AY126 -> 12411.57052 | AZ127: =AZ124+AZ125-AZ126 -> 12164.09061 | BA127: =BA124+BA125-BA126 -> 11937.37367 | BB127: =BB124+BB125-BB126 -> 11669.27117 | BC127: =BC124+BC125-BC126 -> 11420.63005 | BD127: =BD124+BD125-BD126 -> 11129.94505 | BE127: =BE124+BE125-BE126 -> 10849.56517 | BF127: =BF124+BF125-BF126 -> 10554.7939 | BG127: =BG124+BG125-BG126 -> 10224.80271 | BH127: =BH124+BH125-BH126 -> 9903.955943 | BI127: =BI124+BI125-BI126 -> 8216.755162 | BJ127: =BJ124+BJ125-BJ126 -> 6518.006234 | BK127: =BK124+BK125-BK126 -> 4377.140103 | BL127: =BL124+BL125-BL126 -> 2289.404233 | BM127: =BM124+BM125-BM126 -> 0.07056967642 | BN127: =BN124+BN125-BN126 -> 0.07056967642 | BO127: =BO124+BO125-BO126 -> 0.07056967642 | BP127: =BP124+BP125-BP126 -> 0.07056967642 | BQ127: =BQ124+BQ125-BQ126 -> 0.07056967642 | BR127: =BR124+BR125-BR126 -> 0.07056967642 | BS127: =BS124+BS125-BS126 -> 0.07056967642 | BT127: =BT124+BT125-BT126 -> 0.07056967642 | BU127: =BU124+BU125-BU126 -> 0.07056967642 | BV127: =BV124+BV125-BV126 -> 0.07056967642 | BW127: =BW124+BW125-BW126 -> 0.07056967642 | BX127: =BX124+BX125-BX126 -> 0.07056967642 | BY127: =BY124+BY125-BY126 -> 0.07056967642 | BZ127: =BZ124+BZ125-BZ126 -> 0.07056967642 | CA127: =CA124+CA125-CA126 -> 0.07056967642 | CB127: =CB124+CB125-CB126 -> 0.07056967642 | CC127: =CC124+CC125-CC126 -> 0.07056967642 | CD127: =CD124+CD125-CD126 -> 0.07056967642 | CE127: =CE124+CE125-CE126 -> 0.07056967642 | CF127: =CF124+CF125-CF126 -> 0.07056967642 | CG127: =CG124+CG125-CG126 -> 0.07056967642 | CH127: =CH124+CH125-CH126 -> 0.07056967642 | CI127: =CI124+CI125-CI126 -> 0.07056967642 | CJ127: =CJ124+CJ125-CJ126 -> 0.07056967642 | CK127: =CK124+CK125-CK126 -> 0.07056967642 | CL127: =CL124+CL125-CL126 -> 0.07056967642 | CM127: =CM124+CM125-CM126 -> 0.07056967642 | CN127: =CN124+CN125-CN126 -> 0.07056967642 | CO127: =CO124+CO125-CO126 -> 0.07056967642 | CP127: =CP124+CP125-CP126 -> 0.07056967642 | CQ127: =CQ124+CQ125-CQ126 -> 0.07056967642 | CR127: =CR124+CR125-CR126 -> 0.07056967642 | CS127: =CS124+CS125-CS126 -> 0.07056967642 | CT127: =CT124+CT125-CT126 -> 0.07056967642 | CU127: =CU124+CU125-CU126 -> 0.07056967642 | CV127: =CV124+CV125-CV126 -> 0.07056967642 | CW127: =CW124+CW125-CW126 -> 0.07056967642 | CX127: =CX124+CX125-CX126 -> 0.07056967642 | CY127: =CY124+CY125-CY126 -> 0.07056967642 | CZ127: =CZ124+CZ125-CZ126 -> 0.07056967642 | DA127: =DA124+DA125-DA126 -> 0.07056967642 | DB127: =DB124+DB125-DB126 -> 0.07056967642 | DC127: =DC124+DC125-DC126 -> 0.07056967642 | DD127: =DD124+DD125-DD126 -> 0.07056967642 | DE127: =DE124+DE125-DE126 -> 0.07056967642 | DF127: =DF124+DF125-DF126 -> 0.07056967642 | DG127: =DG124+DG125-DG126 -> 0.07056967642 | DH127: =DH124+DH125-DH126 -> 0.07056967642 | DI127: =DI124+DI125-DI126 -> 0.07056967642 | DJ127: =DJ124+DJ125-DJ126 -> 0.07056967642 | DK127: =DK124+DK125-DK126 -> 0.07056967642 | DL127: =DL124+DL125-DL126 -> 0.07056967642 | DM127: =DM124+DM125-DM126 -> 0.07056967642 | DN127: =DN124+DN125-DN126 -> 0.07056967642 | DO127: =DO124+DO125-DO126 -> 0.07056967642 | DP127: =DP124+DP125-DP126 -> 0.07056967642 | DQ127: =DQ124+DQ125-DQ126 -> 0.07056967642 | DR127: =DR124+DR125-DR126 -> 0.07056967642 | DS127: =DS124+DS125-DS126 -> 0.07056967642 | DT127: =DT124+DT125-DT126 -> 0.07056967642 | DU127: =DU124+DU125-DU126 -> 0.07056967642 | DV127: =DV124+DV125-DV126 -> 0.07056967642 | DW127: =DW124+DW125-DW126 -> 0.07056967642 | DX127: =DX124+DX125-DX126 -> 0.07056967642 | DY127: =DY124+DY125-DY126 -> 0.07056967642 | DZ127: =DZ124+DZ125-DZ126 -> 0.07056967642 | EA127: =EA124+EA125-EA126 -> 0.07056967642 | EB127: =EB124+EB125-EB126 -> 0.07056967642 | EC127: =EC124+EC125-EC126 -> 0.07056967642 | ED127: =ED124+ED125-ED126 -> 0.07056967642 | EE127: =EE124+EE125-EE126 -> 0.07056967642
E129: Interest Rate | F129: % p.p. | L129: =LOOKUP(L$8,'InputS- Structure'!$14:$14,'InputS- Structure'!58:58)/12*L3 -> 0.006833674638 | M129: =LOOKUP(M$8,'InputS- Structure'!$14:$14,'InputS- Structure'!58:58)/12*M3 -> 0.006833674638 | N129: =LOOKUP(N$8,'InputS- Structure'!$14:$14,'InputS- Structure'!58:58)/12*N3 -> 0.006833674638 | O129: =LOOKUP(O$8,'InputS- Structure'!$14:$14,'InputS- Structure'!58:58)/12*O3 -> 0.006833674638 | P129: =LOOKUP(P$8,'InputS- Structure'!$14:$14,'InputS- Structure'!58:58)/12*P3 -> 0.006833674638 | Q129: =LOOKUP(Q$8,'InputS- Structure'!$14:$14,'InputS- Structure'!58:58)/12*Q3 -> 0.006833674638 | R129: =LOOKUP(R$8,'InputS- Structure'!$14:$14,'InputS- Structure'!58:58)/12*R3 -> 0.006833674638 | S129: =LOOKUP(S$8,'InputS- Structure'!$14:$14,'InputS- Structure'!58:58)/12*S3 -> 0.006833674638 | T129: =LOOKUP(T$8,'InputS- Structure'!$14:$14,'InputS- Structure'!58:58)/12*T3 -> 0.006833674638 | U129: =LOOKUP(U$8,'InputS- Structure'!$14:$14,'InputS- Structure'!58:58)/12*U3 -> 0.006833674638 | V129: =LOOKUP(V$8,'InputS- Structure'!$14:$14,'InputS- Structure'!58:58)/12*V3 -> 0.006833674638 | W129: =LOOKUP(W$8,'InputS- Structure'!$14:$14,'InputS- Structure'!58:58)/12*W3 -> 0.006833674638 | X129: =LOOKUP(X$8,'InputS- Structure'!$14:$14,'InputS- Structure'!58:58)/12*X3 -> 0.006833674638 | Y129: =LOOKUP(Y$8,'InputS- Structure'!$14:$14,'InputS- Structure'!58:58)/12*Y3 -> 0.006833674638 | Z129: =LOOKUP(Z$8,'InputS- Structure'!$14:$14,'InputS- Structure'!58:58)/12*Z3 -> 0.04100204783 | AA129: =LOOKUP(AA$8,'InputS- Structure'!$14:$14,'InputS- Structure'!58:58)/12*AA3 -> 0.04174956039 | AB129: =LOOKUP(AB$8,'InputS- Structure'!$14:$14,'InputS- Structure'!58:58)/12*AB3 -> 0.04100204783 | AC129: =LOOKUP(AC$8,'InputS- Structure'!$14:$14,'InputS- Structure'!58:58)/12*AC3 -> 0.04171479917 | AD129: =LOOKUP(AD$8,'InputS- Structure'!$14:$14,'InputS- Structure'!58:58)/12*AD3 -> 0.04106745307 | AE129: =LOOKUP(AE$8,'InputS- Structure'!$14:$14,'InputS- Structure'!58:58)/12*AE3 -> 0.04177472537 | AF129: =LOOKUP(AF$8,'InputS- Structure'!$14:$14,'InputS- Structure'!58:58)/12*AF3 -> 0.04111978287 | AG129: =LOOKUP(AG$8,'InputS- Structure'!$14:$14,'InputS- Structure'!58:58)/12*AG3 -> 0.04182786148 | AH129: =LOOKUP(AH$8,'InputS- Structure'!$14:$14,'InputS- Structure'!58:58)/12*AH3 -> 0.04139959317 | AI129: =LOOKUP(AI$8,'InputS- Structure'!$14:$14,'InputS- Structure'!58:58)/12*AI3 -> 0.04185786331 | AJ129: =LOOKUP(AJ$8,'InputS- Structure'!$14:$14,'InputS- Structure'!58:58)/12*AJ3 -> 0.04117862633 | AK129: =LOOKUP(AK$8,'InputS- Structure'!$14:$14,'InputS- Structure'!58:58)/12*AK3 -> 0.0419074972 | AL129: =LOOKUP(AL$8,'InputS- Structure'!$14:$14,'InputS- Structure'!58:58)/12*AL3 -> 0.0412702974 | AM129: =LOOKUP(AM$8,'InputS- Structure'!$14:$14,'InputS- Structure'!58:58)/12*AM3 -> 0.04201055284 | AN129: =LOOKUP(AN$8,'InputS- Structure'!$14:$14,'InputS- Structure'!58:58)/12*AN3 -> 0.04138170012 | AO129: =LOOKUP(AO$8,'InputS- Structure'!$14:$14,'InputS- Structure'!58:58)/12*AO3 -> 0.04206752573 | AP129: =LOOKUP(AP$8,'InputS- Structure'!$14:$14,'InputS- Structure'!58:58)/12*AP3 -> 0.04161021237 | AQ129: =LOOKUP(AQ$8,'InputS- Structure'!$14:$14,'InputS- Structure'!58:58)/12*AQ3 -> 0.04206746745 | AR129: =LOOKUP(AR$8,'InputS- Structure'!$14:$14,'InputS- Structure'!58:58)/12*AR3 -> 0.04138158482 | AS129: =LOOKUP(AS$8,'InputS- Structure'!$14:$14,'InputS- Structure'!58:58)/12*AS3 -> 0.04206746745 | AT129: =LOOKUP(AT$8,'InputS- Structure'!$14:$14,'InputS- Structure'!58:58)/12*AT3 -> 0.04138158482 | AU129: =LOOKUP(AU$8,'InputS- Structure'!$14:$14,'InputS- Structure'!58:58)/12*AU3 -> 0.04206746745 | AV129: =LOOKUP(AV$8,'InputS- Structure'!$14:$14,'InputS- Structure'!58:58)/12*AV3 -> 0.04138158482 | AW129: =LOOKUP(AW$8,'InputS- Structure'!$14:$14,'InputS- Structure'!58:58)/12*AW3 -> 0.04206746745 | AX129: =LOOKUP(AX$8,'InputS- Structure'!$14:$14,'InputS- Structure'!58:58)/12*AX3 -> 0.04161021237 | AY129: =LOOKUP(AY$8,'InputS- Structure'!$14:$14,'InputS- Structure'!58:58)/12*AY3 -> 0.04206746745 | AZ129: =LOOKUP(AZ$8,'InputS- Structure'!$14:$14,'InputS- Structure'!58:58)/12*AZ3 -> 0.04138158482 | BA129: =LOOKUP(BA$8,'InputS- Structure'!$14:$14,'InputS- Structure'!58:58)/12*BA3 -> 0.04206746745 | BB129: =LOOKUP(BB$8,'InputS- Structure'!$14:$14,'InputS- Structure'!58:58)/12*BB3 -> 0.04138158482 | BC129: =LOOKUP(BC$8,'InputS- Structure'!$14:$14,'InputS- Structure'!58:58)/12*BC3 -> 0.04206746745 | BD129: =LOOKUP(BD$8,'InputS- Structure'!$14:$14,'InputS- Structure'!58:58)/12*BD3 -> 0.04138158482 | BE129: =LOOKUP(BE$8,'InputS- Structure'!$14:$14,'InputS- Structure'!58:58)/12*BE3 -> 0.04138158482 | BF129: =LOOKUP(BF$8,'InputS- Structure'!$14:$14,'InputS- Structure'!58:58)/12*BF3 -> 0.04138158482 | BG129: =LOOKUP(BG$8,'InputS- Structure'!$14:$14,'InputS- Structure'!58:58)/12*BG3 -> 0.04138158482 | BH129: =LOOKUP(BH$8,'InputS- Structure'!$14:$14,'InputS- Structure'!58:58)/12*BH3 -> 0.04138158482 | BI129: =LOOKUP(BI$8,'InputS- Structure'!$14:$14,'InputS- Structure'!58:58)/12*BI3 -> 0.04138158482 | BJ129: =LOOKUP(BJ$8,'InputS- Structure'!$14:$14,'InputS- Structure'!58:58)/12*BJ3 -> 0.04138158482 | BK129: =LOOKUP(BK$8,'InputS- Structure'!$14:$14,'InputS- Structure'!58:58)/12*BK3 -> 0.04138158482 | BL129: =LOOKUP(BL$8,'InputS- Structure'!$14:$14,'InputS- Structure'!58:58)/12*BL3 -> 0.04138158482 | BM129: =LOOKUP(BM$8,'InputS- Structure'!$14:$14,'InputS- Structure'!58:58)/12*BM3 -> 0.04138158482 | BN129: =LOOKUP(BN$8,'InputS- Structure'!$14:$14,'InputS- Structure'!58:58)/12*BN3 -> 0.04138158482 | BO129: =LOOKUP(BO$8,'InputS- Structure'!$14:$14,'InputS- Structure'!58:58)/12*BO3 -> 0.04138158482 | BP129: =LOOKUP(BP$8,'InputS- Structure'!$14:$14,'InputS- Structure'!58:58)/12*BP3 -> 0.04138158482 | BQ129: =LOOKUP(BQ$8,'InputS- Structure'!$14:$14,'InputS- Structure'!58:58)/12*BQ3 -> 0.04138158482 | BR129: =LOOKUP(BR$8,'InputS- Structure'!$14:$14,'InputS- Structure'!58:58)/12*BR3 -> 0.04138158482 | BS129: =LOOKUP(BS$8,'InputS- Structure'!$14:$14,'InputS- Structure'!58:58)/12*BS3 -> 0.04138158482 | BT129: =LOOKUP(BT$8,'InputS- Structure'!$14:$14,'InputS- Structure'!58:58)/12*BT3 -> 0.04138158482 | BU129: =LOOKUP(BU$8,'InputS- Structure'!$14:$14,'InputS- Structure'!58:58)/12*BU3 -> 0.04138158482 | BV129: =LOOKUP(BV$8,'InputS- Structure'!$14:$14,'InputS- Structure'!58:58)/12*BV3 -> 0.04138158482 | BW129: =LOOKUP(BW$8,'InputS- Structure'!$14:$14,'InputS- Structure'!58:58)/12*BW3 -> 0.04138158482 | BX129: =LOOKUP(BX$8,'InputS- Structure'!$14:$14,'InputS- Structure'!58:58)/12*BX3 -> 0.04138158482 | BY129: =LOOKUP(BY$8,'InputS- Structure'!$14:$14,'InputS- Structure'!58:58)/12*BY3 -> 0.04138158482 | BZ129: =LOOKUP(BZ$8,'InputS- Structure'!$14:$14,'InputS- Structure'!58:58)/12*BZ3 -> 0.04138158482 | CA129: =LOOKUP(CA$8,'InputS- Structure'!$14:$14,'InputS- Structure'!58:58)/12*CA3 -> 0.04138158482 | CB129: =LOOKUP(CB$8,'InputS- Structure'!$14:$14,'InputS- Structure'!58:58)/12*CB3 -> 0.04138158482 | CC129: =LOOKUP(CC$8,'InputS- Structure'!$14:$14,'InputS- Structure'!58:58)/12*CC3 -> 0.04138158482 | CD129: =LOOKUP(CD$8,'InputS- Structure'!$14:$14,'InputS- Structure'!58:58)/12*CD3 -> 0.04138158482 | CE129: =LOOKUP(CE$8,'InputS- Structure'!$14:$14,'InputS- Structure'!58:58)/12*CE3 -> 0.04138158482 | CF129: =LOOKUP(CF$8,'InputS- Structure'!$14:$14,'InputS- Structure'!58:58)/12*CF3 -> 0.04138158482 | CG129: =LOOKUP(CG$8,'InputS- Structure'!$14:$14,'InputS- Structure'!58:58)/12*CG3 -> 0.04138158482 | CH129: =LOOKUP(CH$8,'InputS- Structure'!$14:$14,'InputS- Structure'!58:58)/12*CH3 -> 0.04138158482 | CI129: =LOOKUP(CI$8,'InputS- Structure'!$14:$14,'InputS- Structure'!58:58)/12*CI3 -> 0.04138158482 | CJ129: =LOOKUP(CJ$8,'InputS- Structure'!$14:$14,'InputS- Structure'!58:58)/12*CJ3 -> 0.04138158482 | CK129: =LOOKUP(CK$8,'InputS- Structure'!$14:$14,'InputS- Structure'!58:58)/12*CK3 -> 0.04138158482 | CL129: =LOOKUP(CL$8,'InputS- Structure'!$14:$14,'InputS- Structure'!58:58)/12*CL3 -> 0.04138158482 | CM129: =LOOKUP(CM$8,'InputS- Structure'!$14:$14,'InputS- Structure'!58:58)/12*CM3 -> 0.04138158482 | CN129: =LOOKUP(CN$8,'InputS- Structure'!$14:$14,'InputS- Structure'!58:58)/12*CN3 -> 0.04138158482 | CO129: =LOOKUP(CO$8,'InputS- Structure'!$14:$14,'InputS- Structure'!58:58)/12*CO3 -> 0.04138158482 | CP129: =LOOKUP(CP$8,'InputS- Structure'!$14:$14,'InputS- Structure'!58:58)/12*CP3 -> 0.04138158482 | CQ129: =LOOKUP(CQ$8,'InputS- Structure'!$14:$14,'InputS- Structure'!58:58)/12*CQ3 -> 0.04138158482 | CR129: =LOOKUP(CR$8,'InputS- Structure'!$14:$14,'InputS- Structure'!58:58)/12*CR3 -> 0.04138158482 | CS129: =LOOKUP(CS$8,'InputS- Structure'!$14:$14,'InputS- Structure'!58:58)/12*CS3 -> 0.04138158482 | CT129: =LOOKUP(CT$8,'InputS- Structure'!$14:$14,'InputS- Structure'!58:58)/12*CT3 -> 0.04138158482 | CU129: =LOOKUP(CU$8,'InputS- Structure'!$14:$14,'InputS- Structure'!58:58)/12*CU3 -> 0.04138158482 | CV129: =LOOKUP(CV$8,'InputS- Structure'!$14:$14,'InputS- Structure'!58:58)/12*CV3 -> 0.04138158482 | CW129: =LOOKUP(CW$8,'InputS- Structure'!$14:$14,'InputS- Structure'!58:58)/12*CW3 -> 0.04138158482 | CX129: =LOOKUP(CX$8,'InputS- Structure'!$14:$14,'InputS- Structure'!58:58)/12*CX3 -> 0.04138158482 | CY129: =LOOKUP(CY$8,'InputS- Structure'!$14:$14,'InputS- Structure'!58:58)/12*CY3 -> 0.04138158482 | CZ129: =LOOKUP(CZ$8,'InputS- Structure'!$14:$14,'InputS- Structure'!58:58)/12*CZ3 -> 0.04138158482 | DA129: =LOOKUP(DA$8,'InputS- Structure'!$14:$14,'InputS- Structure'!58:58)/12*DA3 -> 0.04138158482 | DB129: =LOOKUP(DB$8,'InputS- Structure'!$14:$14,'InputS- Structure'!58:58)/12*DB3 -> 0.04138158482 | DC129: =LOOKUP(DC$8,'InputS- Structure'!$14:$14,'InputS- Structure'!58:58)/12*DC3 -> 0.04138158482 | DD129: =LOOKUP(DD$8,'InputS- Structure'!$14:$14,'InputS- Structure'!58:58)/12*DD3 -> 0.04138158482 | DE129: =LOOKUP(DE$8,'InputS- Structure'!$14:$14,'InputS- Structure'!58:58)/12*DE3 -> 0.04138158482 | DF129: =LOOKUP(DF$8,'InputS- Structure'!$14:$14,'InputS- Structure'!58:58)/12*DF3 -> 0.04138158482 | DG129: =LOOKUP(DG$8,'InputS- Structure'!$14:$14,'InputS- Structure'!58:58)/12*DG3 -> 0.04138158482 | DH129: =LOOKUP(DH$8,'InputS- Structure'!$14:$14,'InputS- Structure'!58:58)/12*DH3 -> 0.04138158482 | DI129: =LOOKUP(DI$8,'InputS- Structure'!$14:$14,'InputS- Structure'!58:58)/12*DI3 -> 0.04138158482 | DJ129: =LOOKUP(DJ$8,'InputS- Structure'!$14:$14,'InputS- Structure'!58:58)/12*DJ3 -> 0.04138158482 | DK129: =LOOKUP(DK$8,'InputS- Structure'!$14:$14,'InputS- Structure'!58:58)/12*DK3 -> 0.04138158482 | DL129: =LOOKUP(DL$8,'InputS- Structure'!$14:$14,'InputS- Structure'!58:58)/12*DL3 -> 0.04138158482 | DM129: =LOOKUP(DM$8,'InputS- Structure'!$14:$14,'InputS- Structure'!58:58)/12*DM3 -> 0.04138158482 | DN129: =LOOKUP(DN$8,'InputS- Structure'!$14:$14,'InputS- Structure'!58:58)/12*DN3 -> 0.04138158482 | DO129: =LOOKUP(DO$8,'InputS- Structure'!$14:$14,'InputS- Structure'!58:58)/12*DO3 -> 0.04138158482 | DP129: =LOOKUP(DP$8,'InputS- Structure'!$14:$14,'InputS- Structure'!58:58)/12*DP3 -> 0.04138158482 | DQ129: =LOOKUP(DQ$8,'InputS- Structure'!$14:$14,'InputS- Structure'!58:58)/12*DQ3 -> 0.04138158482 | DR129: =LOOKUP(DR$8,'InputS- Structure'!$14:$14,'InputS- Structure'!58:58)/12*DR3 -> 0.04138158482 | DS129: =LOOKUP(DS$8,'InputS- Structure'!$14:$14,'InputS- Structure'!58:58)/12*DS3 -> 0.04138158482 | DT129: =LOOKUP(DT$8,'InputS- Structure'!$14:$14,'InputS- Structure'!58:58)/12*DT3 -> 0.04138158482 | DU129: =LOOKUP(DU$8,'InputS- Structure'!$14:$14,'InputS- Structure'!58:58)/12*DU3 -> 0.04138158482 | DV129: =LOOKUP(DV$8,'InputS- Structure'!$14:$14,'InputS- Structure'!58:58)/12*DV3 -> 0.04138158482 | DW129: =LOOKUP(DW$8,'InputS- Structure'!$14:$14,'InputS- Structure'!58:58)/12*DW3 -> 0.04138158482 | DX129: =LOOKUP(DX$8,'InputS- Structure'!$14:$14,'InputS- Structure'!58:58)/12*DX3 -> 0.04138158482 | DY129: =LOOKUP(DY$8,'InputS- Structure'!$14:$14,'InputS- Structure'!58:58)/12*DY3 -> 0.04138158482 | DZ129: =LOOKUP(DZ$8,'InputS- Structure'!$14:$14,'InputS- Structure'!58:58)/12*DZ3 -> 0.04138158482 | EA129: =LOOKUP(EA$8,'InputS- Structure'!$14:$14,'InputS- Structure'!58:58)/12*EA3 -> 0.04138158482 | EB129: =LOOKUP(EB$8,'InputS- Structure'!$14:$14,'InputS- Structure'!58:58)/12*EB3 -> 0.04138158482 | EC129: =LOOKUP(EC$8,'InputS- Structure'!$14:$14,'InputS- Structure'!58:58)/12*EC3 -> 0.04138158482 | ED129: =LOOKUP(ED$8,'InputS- Structure'!$14:$14,'InputS- Structure'!58:58)/12*ED3 -> 0.04138158482 | EE129: =LOOKUP(EE$8,'InputS- Structure'!$14:$14,'InputS- Structure'!58:58)/12*EE3 -> 0.04138158482
E130: Interest Cost | F130: EUR'000 | L130: =L129*L124 -> 0 | M130: =M129*M124 -> 0 | N130: =N129*N124 -> 19.0090867 | O130: =O129*O124 -> 32.32414582 | P130: =P129*P124 -> 32.52925979 | Q130: =Q129*Q124 -> 41.51274175 | R130: =R129*R124 -> 41.75671054 | S130: =S129*S124 -> 59.55671229 | T130: =T129*T124 -> 77.43198297 | U130: =U129*U124 -> 95.38284087 | V130: =V129*V124 -> 95.85460431 | W130: =W129*W124 -> 96.32836264 | X130: =X129*X124 -> 96.8041243 | Y130: =Y129*Y124 -> 106.0593984 | Z130: =Z129*Z124 -> 665.7903426 | AA130: =AA129*AA124 -> 673.9070796 | AB130: =AB129*AB124 -> 658.2244369 | AC130: =AC129*AC124 -> 664.4615735 | AD130: =AD129*AD124 -> 650.3231085 | AE130: =AE129*AE124 -> 655.8639905 | AF130: =AF129*AF124 -> 641.2111759 | AG130: =AG129*AG124 -> 646.2384822 | AH130: =AH129*AH124 -> 635.479533 | AI130: =AI129*AI124 -> 636.9764225 | AJ130: =AJ129*AJ124 -> 622.2450109 | AK130: =AK129*AK124 -> 627.2116365 | AL130: =AL129*AL124 -> 612.8697739 | AM130: =AM129*AM124 -> 617.4036509 | AN130: =AN129*AN124 -> 602.9336265 | AO130: =AO129*AO124 -> 606.0341503 | AP130: =AP129*AP124 -> 593.7066475 | AQ130: =AQ129*AQ124 -> 592.995758 | AR130: =AR129*AR124 -> 577.0612133 | AS130: =AS129*AS124 -> 578.6156789 | AT130: =AT129*AT124 -> 563.233744 | AU130: =AU129*AU124 -> 564.3325095 | AV130: =AV129*AV124 -> 548.0190542 | AW130: =AW129*AW124 -> 548.2002559 | AX130: =AX129*AX124 -> 534.3942198 | AY130: =AY129*AY124 -> 530.8231582 | AZ130: =AZ129*AZ124 -> 513.6104581 | BA130: =BA129*BA124 -> 511.7124858 | BB130: =BB129*BB124 -> 493.987441 | BC130: =BC129*BC124 -> 490.8966852 | BD130: =BD129*BD124 -> 472.6037711 | BE130: =BE129*BE124 -> 460.5747651 | BF130: =BF129*BF124 -> 448.9722015 | BG130: =BG129*BG124 -> 436.7740989 | BH130: =BH129*BH124 -> 423.1185405 | BI130: =BI129*BI124 -> 409.8413929 | BJ130: =BJ129*BJ124 -> 340.0223507 | BK130: =BK129*BK124 -> 269.7254278 | BL130: =BL129*BL124 -> 181.1329944 | BM130: =BM129*BM124 -> 94.73917547 | BN130: =BN129*BN124 -> 0.002920285051 | BO130: =BO129*BO124 -> 0.002920285051 | BP130: =BP129*BP124 -> 0.002920285051 | BQ130: =BQ129*BQ124 -> 0.002920285051 | BR130: =BR129*BR124 -> 0.002920285051 | BS130: =BS129*BS124 -> 0.002920285051 | BT130: =BT129*BT124 -> 0.002920285051 | BU130: =BU129*BU124 -> 0.002920285051 | BV130: =BV129*BV124 -> 0.002920285051 | BW130: =BW129*BW124 -> 0.002920285051 | BX130: =BX129*BX124 -> 0.002920285051 | BY130: =BY129*BY124 -> 0.002920285051 | BZ130: =BZ129*BZ124 -> 0.002920285051 | CA130: =CA129*CA124 -> 0.002920285051 | CB130: =CB129*CB124 -> 0.002920285051 | CC130: =CC129*CC124 -> 0.002920285051 | CD130: =CD129*CD124 -> 0.002920285051 | CE130: =CE129*CE124 -> 0.002920285051 | CF130: =CF129*CF124 -> 0.002920285051 | CG130: =CG129*CG124 -> 0.002920285051 | CH130: =CH129*CH124 -> 0.002920285051 | CI130: =CI129*CI124 -> 0.002920285051 | CJ130: =CJ129*CJ124 -> 0.002920285051 | CK130: =CK129*CK124 -> 0.002920285051 | CL130: =CL129*CL124 -> 0.002920285051 | CM130: =CM129*CM124 -> 0.002920285051 | CN130: =CN129*CN124 -> 0.002920285051 | CO130: =CO129*CO124 -> 0.002920285051 | CP130: =CP129*CP124 -> 0.002920285051 | CQ130: =CQ129*CQ124 -> 0.002920285051 | CR130: =CR129*CR124 -> 0.002920285051 | CS130: =CS129*CS124 -> 0.002920285051 | CT130: =CT129*CT124 -> 0.002920285051 | CU130: =CU129*CU124 -> 0.002920285051 | CV130: =CV129*CV124 -> 0.002920285051 | CW130: =CW129*CW124 -> 0.002920285051 | CX130: =CX129*CX124 -> 0.002920285051 | CY130: =CY129*CY124 -> 0.002920285051 | CZ130: =CZ129*CZ124 -> 0.002920285051 | DA130: =DA129*DA124 -> 0.002920285051 | DB130: =DB129*DB124 -> 0.002920285051 | DC130: =DC129*DC124 -> 0.002920285051 | DD130: =DD129*DD124 -> 0.002920285051 | DE130: =DE129*DE124 -> 0.002920285051 | DF130: =DF129*DF124 -> 0.002920285051 | DG130: =DG129*DG124 -> 0.002920285051 | DH130: =DH129*DH124 -> 0.002920285051 | DI130: =DI129*DI124 -> 0.002920285051 | DJ130: =DJ129*DJ124 -> 0.002920285051 | DK130: =DK129*DK124 -> 0.002920285051 | DL130: =DL129*DL124 -> 0.002920285051 | DM130: =DM129*DM124 -> 0.002920285051 | DN130: =DN129*DN124 -> 0.002920285051 | DO130: =DO129*DO124 -> 0.002920285051 | DP130: =DP129*DP124 -> 0.002920285051 | DQ130: =DQ129*DQ124 -> 0.002920285051 | DR130: =DR129*DR124 -> 0.002920285051 | DS130: =DS129*DS124 -> 0.002920285051 | DT130: =DT129*DT124 -> 0.002920285051 | DU130: =DU129*DU124 -> 0.002920285051 | DV130: =DV129*DV124 -> 0.002920285051 | DW130: =DW129*DW124 -> 0.002920285051 | DX130: =DX129*DX124 -> 0.002920285051 | DY130: =DY129*DY124 -> 0.002920285051 | DZ130: =DZ129*DZ124 -> 0.002920285051 | EA130: =EA129*EA124 -> 0.002920285051 | EB130: =EB129*EB124 -> 0.002920285051 | EC130: =EC129*EC124 -> 0.002920285051 | ED130: =ED129*ED124 -> 0.002920285051 | EE130: =EE129*EE124 -> 0.002920285051
E131: Interest During Construction | F131: EUR'000 | L131: =L130*L$6 -> 0 | M131: =M130*M$6 -> 0 | N131: 19.0090867 | O131: 32.32414582 | P131: 32.52925979 | Q131: 41.51274175 | R131: 41.75671054 | S131: 59.55671229 | T131: 77.43198297 | U131: 95.38284087 | V131: 95.85460431 | W131: 96.32836264 | X131: 96.8041243 | Y131: 106.0593984 | Z131: 0 | AA131: 0 | AB131: 0 | AC131: 0 | AD131: 0 | AE131: 0 | AF131: 0 | AG131: 0 | AH131: 0 | AI131: 0 | AJ131: 0 | AK131: 0 | AL131: 0 | AM131: 0 | AN131: 0 | AO131: 0 | AP131: 0 | AQ131: 0 | AR131: 0 | AS131: 0 | AT131: 0 | AU131: 0 | AV131: 0 | AW131: 0 | AX131: 0 | AY131: 0 | AZ131: 0 | BA131: 0 | BB131: 0 | BC131: 0 | BD131: 0 | BE131: 0 | BF131: 0 | BG131: 0 | BH131: 0 | BI131: 0 | BJ131: 0 | BK131: 0 | BL131: 0 | BM131: 0 | BN131: 0 | BO131: 0 | BP131: 0 | BQ131: 0 | BR131: 0 | BS131: 0 | BT131: 0 | BU131: 0 | BV131: 0 | BW131: 0 | BX131: 0 | BY131: =BY130*BY$6 -> 0 | BZ131: 0 | CA131: 0 | CB131: 0 | CC131: 0 | CD131: 0 | CE131: 0 | CF131: 0 | CG131: 0 | CH131: 0 | CI131: 0 | CJ131: 0 | CK131: 0 | CL131: 0 | CM131: 0 | CN131: 0 | CO131: 0 | CP131: 0 | CQ131: 0 | CR131: 0 | CS131: 0 | CT131: 0 | CU131: 0 | CV131: 0 | CW131: 0 | CX131: 0 | CY131: 0 | CZ131: 0 | DA131: 0 | DB131: 0 | DC131: 0 | DD131: 0 | DE131: 0 | DF131: 0 | DG131: 0 | DH131: 0 | DI131: 0 | DJ131: 0 | DK131: 0 | DL131: 0 | DM131: 0 | DN131: 0 | DO131: 0 | DP131: 0 | DQ131: 0 | DR131: 0 | DS131: 0 | DT131: 0 | DU131: 0 | DV131: 0 | DW131: 0 | DX131: 0 | DY131: 0 | DZ131: 0 | EA131: 0 | EB131: 0 | EC131: 0 | ED131: 0 | EE131: 0
E132: Interest Expense | F132: EUR'000 | L132: =L130-L131 -> 0 | M132: =M130-M131 -> 0 | N132: =N130-N131 -> 0 | O132: =O130-O131 -> 0 | P132: =P130-P131 -> 0 | Q132: =Q130-Q131 -> 0 | R132: =R130-R131 -> 0 | S132: =S130-S131 -> 0 | T132: =T130-T131 -> 0 | U132: =U130-U131 -> 0 | V132: =V130-V131 -> 0 | W132: =W130-W131 -> 0 | X132: =X130-X131 -> 0 | Y132: =Y130-Y131 -> 0 | Z132: =Z130-Z131 -> 665.7903426 | AA132: =AA130-AA131 -> 673.9070796 | AB132: =AB130-AB131 -> 658.2244369 | AC132: =AC130-AC131 -> 664.4615735 | AD132: =AD130-AD131 -> 650.3231085 | AE132: =AE130-AE131 -> 655.8639905 | AF132: =AF130-AF131 -> 641.2111759 | AG132: =AG130-AG131 -> 646.2384822 | AH132: =AH130-AH131 -> 635.479533 | AI132: =AI130-AI131 -> 636.9764225 | AJ132: =AJ130-AJ131 -> 622.2450109 | AK132: =AK130-AK131 -> 627.2116365 | AL132: =AL130-AL131 -> 612.8697739 | AM132: =AM130-AM131 -> 617.4036509 | AN132: =AN130-AN131 -> 602.9336265 | AO132: =AO130-AO131 -> 606.0341503 | AP132: =AP130-AP131 -> 593.7066475 | AQ132: =AQ130-AQ131 -> 592.995758 | AR132: =AR130-AR131 -> 577.0612133 | AS132: =AS130-AS131 -> 578.6156789 | AT132: =AT130-AT131 -> 563.233744 | AU132: =AU130-AU131 -> 564.3325095 | AV132: =AV130-AV131 -> 548.0190542 | AW132: =AW130-AW131 -> 548.2002559 | AX132: =AX130-AX131 -> 534.3942198 | AY132: =AY130-AY131 -> 530.8231582 | AZ132: =AZ130-AZ131 -> 513.6104581 | BA132: =BA130-BA131 -> 511.7124858 | BB132: =BB130-BB131 -> 493.987441 | BC132: =BC130-BC131 -> 490.8966852 | BD132: =BD130-BD131 -> 472.6037711 | BE132: =BE130-BE131 -> 460.5747651 | BF132: =BF130-BF131 -> 448.9722015 | BG132: =BG130-BG131 -> 436.7740989 | BH132: =BH130-BH131 -> 423.1185405 | BI132: =BI130-BI131 -> 409.8413929 | BJ132: =BJ130-BJ131 -> 340.0223507 | BK132: =BK130-BK131 -> 269.7254278 | BL132: =BL130-BL131 -> 181.1329944 | BM132: =BM130-BM131 -> 94.73917547 | BN132: =BN130-BN131 -> 0.002920285051 | BO132: =BO130-BO131 -> 0.002920285051 | BP132: =BP130-BP131 -> 0.002920285051 | BQ132: =BQ130-BQ131 -> 0.002920285051 | BR132: =BR130-BR131 -> 0.002920285051 | BS132: =BS130-BS131 -> 0.002920285051 | BT132: =BT130-BT131 -> 0.002920285051 | BU132: =BU130-BU131 -> 0.002920285051 | BV132: =BV130-BV131 -> 0.002920285051 | BW132: =BW130-BW131 -> 0.002920285051 | BX132: =BX130-BX131 -> 0.002920285051 | BY132: =BY130-BY131 -> 0.002920285051 | BZ132: =BZ130-BZ131 -> 0.002920285051 | CA132: =CA130-CA131 -> 0.002920285051 | CB132: =CB130-CB131 -> 0.002920285051 | CC132: =CC130-CC131 -> 0.002920285051 | CD132: =CD130-CD131 -> 0.002920285051 | CE132: =CE130-CE131 -> 0.002920285051 | CF132: =CF130-CF131 -> 0.002920285051 | CG132: =CG130-CG131 -> 0.002920285051 | CH132: =CH130-CH131 -> 0.002920285051 | CI132: =CI130-CI131 -> 0.002920285051 | CJ132: =CJ130-CJ131 -> 0.002920285051 | CK132: =CK130-CK131 -> 0.002920285051 | CL132: =CL130-CL131 -> 0.002920285051 | CM132: =CM130-CM131 -> 0.002920285051 | CN132: =CN130-CN131 -> 0.002920285051 | CO132: =CO130-CO131 -> 0.002920285051 | CP132: =CP130-CP131 -> 0.002920285051 | CQ132: =CQ130-CQ131 -> 0.002920285051 | CR132: =CR130-CR131 -> 0.002920285051 | CS132: =CS130-CS131 -> 0.002920285051 | CT132: =CT130-CT131 -> 0.002920285051 | CU132: =CU130-CU131 -> 0.002920285051 | CV132: =CV130-CV131 -> 0.002920285051 | CW132: =CW130-CW131 -> 0.002920285051 | CX132: =CX130-CX131 -> 0.002920285051 | CY132: =CY130-CY131 -> 0.002920285051 | CZ132: =CZ130-CZ131 -> 0.002920285051 | DA132: =DA130-DA131 -> 0.002920285051 | DB132: =DB130-DB131 -> 0.002920285051 | DC132: =DC130-DC131 -> 0.002920285051 | DD132: =DD130-DD131 -> 0.002920285051 | DE132: =DE130-DE131 -> 0.002920285051 | DF132: =DF130-DF131 -> 0.002920285051 | DG132: =DG130-DG131 -> 0.002920285051 | DH132: =DH130-DH131 -> 0.002920285051 | DI132: =DI130-DI131 -> 0.002920285051 | DJ132: =DJ130-DJ131 -> 0.002920285051 | DK132: =DK130-DK131 -> 0.002920285051 | DL132: =DL130-DL131 -> 0.002920285051 | DM132: =DM130-DM131 -> 0.002920285051 | DN132: =DN130-DN131 -> 0.002920285051 | DO132: =DO130-DO131 -> 0.002920285051 | DP132: =DP130-DP131 -> 0.002920285051 | DQ132: =DQ130-DQ131 -> 0.002920285051 | DR132: =DR130-DR131 -> 0.002920285051 | DS132: =DS130-DS131 -> 0.002920285051 | DT132: =DT130-DT131 -> 0.002920285051 | DU132: =DU130-DU131 -> 0.002920285051 | DV132: =DV130-DV131 -> 0.002920285051 | DW132: =DW130-DW131 -> 0.002920285051 | DX132: =DX130-DX131 -> 0.002920285051 | DY132: =DY130-DY131 -> 0.002920285051 | DZ132: =DZ130-DZ131 -> 0.002920285051 | EA132: =EA130-EA131 -> 0.002920285051 | EB132: =EB130-EB131 -> 0.002920285051 | EC132: =EC130-EC131 -> 0.002920285051 | ED132: =ED130-ED131 -> 0.002920285051 | EE132: =EE130-EE131 -> 0.002920285051
E134: Up-Front Fee | F134: EUR'000 | G134: % | H134: =H49 -> 16237.90724 | I134: ='InputC - Structure'!G56 -> 0.009 | L134: =$H134*$I134*L$99 -> 146.1411651 | M134: =$H134*$I134*M$99 -> 0 | N134: 0 | O134: 0 | P134: 0 | Q134: 0 | R134: 0 | S134: 0 | T134: 0 | U134: 0 | V134: 0 | W134: 0 | X134: 0 | Y134: 0 | Z134: 0 | AA134: 0 | AB134: 0 | AC134: 0 | AD134: 0 | AE134: 0 | AF134: 0 | AG134: 0 | AH134: 0 | AI134: 0 | AJ134: 0 | AK134: 0 | AL134: 0 | AM134: 0 | AN134: 0 | AO134: 0 | AP134: 0 | AQ134: 0 | AR134: 0 | AS134: 0 | AT134: 0 | AU134: 0 | AV134: 0 | AW134: 0 | AX134: 0 | AY134: 0 | AZ134: 0 | BA134: 0 | BB134: 0 | BC134: 0 | BD134: 0 | BE134: 0 | BF134: 0 | BG134: 0 | BH134: 0 | BI134: 0 | BJ134: 0 | BK134: 0 | BL134: 0 | BM134: 0 | BN134: 0 | BO134: 0 | BP134: 0 | BQ134: 0 | BR134: 0 | BS134: 0 | BT134: 0 | BU134: 0 | BV134: 0 | BW134: 0 | BX134: 0 | BY134: =$H134*$I134*BY$99 -> 0 | BZ134: 0 | CA134: 0 | CB134: 0 | CC134: 0 | CD134: 0 | CE134: 0 | CF134: 0 | CG134: 0 | CH134: 0 | CI134: 0 | CJ134: 0 | CK134: 0 | CL134: 0 | CM134: 0 | CN134: 0 | CO134: 0 | CP134: 0 | CQ134: 0 | CR134: 0 | CS134: 0 | CT134: 0 | CU134: 0 | CV134: 0 | CW134: 0 | CX134: 0 | CY134: 0 | CZ134: 0 | DA134: 0 | DB134: 0 | DC134: 0 | DD134: 0 | DE134: 0 | DF134: 0 | DG134: 0 | DH134: 0 | DI134: 0 | DJ134: 0 | DK134: 0 | DL134: 0 | DM134: 0 | DN134: 0 | DO134: 0 | DP134: 0 | DQ134: 0 | DR134: 0 | DS134: 0 | DT134: 0 | DU134: 0 | DV134: 0 | DW134: 0 | DX134: 0 | DY134: 0 | DZ134: 0 | EA134: 0 | EB134: 0 | EC134: 0 | ED134: 0 | EE134: 0
E136: Commitment Fee
E137: Undrawn Balance | F137: EUR'000 | G137: EUR'000 | H137: =H49 -> 16237.90724 | L137: =$H137-L124 -> 16237.90724 | M137: =$H137-M124 -> 16237.90724 | N137: 13456.22861 | O137: 11507.78069 | P137: 11477.76551 | Q137: 10163.17527 | R137: 10127.47431 | S137: 7522.726101 | T137: 4906.96348 | U137: 2280.139867 | V137: 2211.104763 | W137: 2141.777739 | X137: 2072.157558 | Y137: 717.7948455 | Z137: -0.07056967642 | AA137: 96.25033363 | AB137: 184.4544996 | AC137: 309.2299611 | AD137: 402.4204966 | AE137: 537.8880352 | AF137: 644.167893 | AG137: 787.9545154 | AH137: 888.0092223 | AI137: 1020.302413 | AJ137: 1127.033797 | AK137: 1271.333748 | AL137: 1387.765306 | AM137: 1541.512897 | AN137: 1667.852724 | AO137: 1831.684388 | AP137: 1969.61554 | AQ137: 2141.604462 | AR137: 2293.02775 | AS137: 2483.438189 | AT137: 2627.173223 | AU137: 2822.968238 | AV137: 2994.841351 | AW137: 3206.453497 | AX137: 3395.045125 | AY137: 3619.530365 | AZ137: 3826.336719 | BA137: 4073.816624 | BB137: 4300.533569 | BC137: 4568.636061 | BD137: 4817.277187 | BE137: 5107.962187 | BF137: 5388.342062 | BG137: 5683.113339 | BH137: 6013.10453 | BI137: 6333.951293 | BJ137: 8021.152073 | BK137: 9719.901002 | BL137: 11860.76713 | BM137: 13948.503 | BN137: 16237.83667 | BO137: 16237.83667 | BP137: 16237.83667 | BQ137: 16237.83667 | BR137: 16237.83667 | BS137: 16237.83667 | BT137: 16237.83667 | BU137: 16237.83667 | BV137: 16237.83667 | BW137: 16237.83667 | BX137: 16237.83667 | BY137: =$H137-BY124 -> 16237.83667 | BZ137: 16237.83667 | CA137: 16237.83667 | CB137: 16237.83667 | CC137: 16237.83667 | CD137: 16237.83667 | CE137: 16237.83667 | CF137: 16237.83667 | CG137: 16237.83667 | CH137: 16237.83667 | CI137: 16237.83667 | CJ137: 16237.83667 | CK137: 16237.83667 | CL137: 16237.83667 | CM137: 16237.83667 | CN137: 16237.83667 | CO137: 16237.83667 | CP137: 16237.83667 | CQ137: 16237.83667 | CR137: 16237.83667 | CS137: 16237.83667 | CT137: 16237.83667 | CU137: 16237.83667 | CV137: 16237.83667 | CW137: 16237.83667 | CX137: 16237.83667 | CY137: 16237.83667 | CZ137: 16237.83667 | DA137: 16237.83667 | DB137: 16237.83667 | DC137: 16237.83667 | DD137: 16237.83667 | DE137: 16237.83667 | DF137: 16237.83667 | DG137: 16237.83667 | DH137: 16237.83667 | DI137: 16237.83667 | DJ137: 16237.83667 | DK137: 16237.83667 | DL137: 16237.83667 | DM137: 16237.83667 | DN137: 16237.83667 | DO137: 16237.83667 | DP137: 16237.83667 | DQ137: 16237.83667 | DR137: 16237.83667 | DS137: 16237.83667 | DT137: 16237.83667 | DU137: 16237.83667 | DV137: 16237.83667 | DW137: 16237.83667 | DX137: 16237.83667 | DY137: 16237.83667 | DZ137: 16237.83667 | EA137: 16237.83667 | EB137: 16237.83667 | EC137: 16237.83667 | ED137: 16237.83667 | EE137: 16237.83667
E138: Periodic Commitment Fee | F138: EUR'000 | G138: % | H138: ='InputC - Structure'!G62 -> 0.008 | I138: =H138/12 -> 0.0006666666667 | L138: =$I$138*L137*L$6 -> 10.82527149 | M138: =$I$138*M137*M$6 -> 10.82527149 | N138: 8.970819071 | O138: 7.671853792 | P138: 7.651843673 | Q138: 6.775450181 | R138: 6.751649537 | S138: 5.015150734 | T138: 3.271308987 | U138: 1.520093245 | V138: 1.474069842 | W138: 1.427851826 | X138: 1.381438372 | Y138: 0.478529897 | Z138: 0 | AA138: 0 | AB138: 0 | AC138: 0 | AD138: 0 | AE138: 0 | AF138: 0 | AG138: 0 | AH138: 0 | AI138: 0 | AJ138: 0 | AK138: 0 | AL138: 0 | AM138: 0 | AN138: 0 | AO138: 0 | AP138: 0 | AQ138: 0 | AR138: 0 | AS138: 0 | AT138: 0 | AU138: 0 | AV138: 0 | AW138: 0 | AX138: 0 | AY138: 0 | AZ138: 0 | BA138: 0 | BB138: 0 | BC138: 0 | BD138: 0 | BE138: 0 | BF138: 0 | BG138: 0 | BH138: 0 | BI138: 0 | BJ138: 0 | BK138: 0 | BL138: 0 | BM138: 0 | BN138: 0 | BO138: 0 | BP138: 0 | BQ138: 0 | BR138: 0 | BS138: 0 | BT138: 0 | BU138: 0 | BV138: 0 | BW138: 0 | BX138: 0 | BY138: =$I$138*BY137*BY$6 -> 0 | BZ138: 0 | CA138: 0 | CB138: 0 | CC138: 0 | CD138: 0 | CE138: 0 | CF138: 0 | CG138: 0 | CH138: 0 | CI138: 0 | CJ138: 0 | CK138: 0 | CL138: 0 | CM138: 0 | CN138: 0 | CO138: 0 | CP138: 0 | CQ138: 0 | CR138: 0 | CS138: 0 | CT138: 0 | CU138: 0 | CV138: 0 | CW138: 0 | CX138: 0 | CY138: 0 | CZ138: 0 | DA138: 0 | DB138: 0 | DC138: 0 | DD138: 0 | DE138: 0 | DF138: 0 | DG138: 0 | DH138: 0 | DI138: 0 | DJ138: 0 | DK138: 0 | DL138: 0 | DM138: 0 | DN138: 0 | DO138: 0 | DP138: 0 | DQ138: 0 | DR138: 0 | DS138: 0 | DT138: 0 | DU138: 0 | DV138: 0 | DW138: 0 | DX138: 0 | DY138: 0 | DZ138: 0 | EA138: 0 | EB138: 0 | EC138: 0 | ED138: 0 | EE138: 0
C140: =D50 -> IFC
E141: Opening | F141: EUR'000 | L141: =K144 -> 0 | M141: =L144 -> 0 | N141: 927.2262097 | O141: 1576.708849 | P141: 1586.713909 | Q141: 2024.910655 | R141: 2036.810977 | S141: 2905.060378 | T141: 3776.981252 | U141: 4652.589123 | V141: 4675.600824 | W141: 4698.709832 | X141: 4721.916559 | Y141: 5173.370797 | Z141: 5412.659268 | AA141: 5281.234007 | AB141: 5148.494493 | AC141: 5009.341807 | AD141: 4874.96904 | AE141: 4732.401634 | AF141: 4594.165858 | AG141: 4448.983455 | AH141: 4311.772671 | AI141: 4167.960139 | AJ141: 4028.568587 | AK141: 3882.222938 | AL141: 3739.989745 | AM141: 3590.74068 | AN141: 3445.568248 | AO141: 3293.338952 | AP141: 3145.138496 | AQ141: 2990.165348 | AR141: 2838.822682 | AS141: 2680.353953 | AT141: 2531.286168 | AU141: 2371.797671 | AV141: 2216.271057 | AW141: 2053.485732 | AX141: 1894.633261 | AY141: 1728.814585 | AZ141: 1566.511465 | BA141: 1396.873281 | BB141: 1231.055991 | BC141: 1057.819885 | BD141: 888.3422028 | BE141: 711.3870779 | BF141: 538.1001108 | BG141: 362.4012733 | BH141: 179.340308 | BI141: -0.0001352703343 | BJ141: -0.0001352703343 | BK141: -0.0001352703343 | BL141: -0.0001352703343 | BM141: -0.0001352703343 | BN141: -0.0001352703343 | BO141: -0.0001352703343 | BP141: -0.0001352703343 | BQ141: -0.0001352703343 | BR141: -0.0001352703343 | BS141: -0.0001352703343 | BT141: -0.0001352703343 | BU141: -0.0001352703343 | BV141: -0.0001352703343 | BW141: -0.0001352703343 | BX141: -0.0001352703343 | BY141: =BX144 -> -0.0001352703343 | BZ141: -0.0001352703343 | CA141: -0.0001352703343 | CB141: -0.0001352703343 | CC141: -0.0001352703343 | CD141: -0.0001352703343 | CE141: -0.0001352703343 | CF141: -0.0001352703343 | CG141: -0.0001352703343 | CH141: -0.0001352703343 | CI141: -0.0001352703343 | CJ141: -0.0001352703343 | CK141: -0.0001352703343 | CL141: -0.0001352703343 | CM141: -0.0001352703343 | CN141: -0.0001352703343 | CO141: -0.0001352703343 | CP141: -0.0001352703343 | CQ141: -0.0001352703343 | CR141: -0.0001352703343 | CS141: -0.0001352703343 | CT141: -0.0001352703343 | CU141: -0.0001352703343 | CV141: -0.0001352703343 | CW141: -0.0001352703343 | CX141: -0.0001352703343 | CY141: -0.0001352703343 | CZ141: -0.0001352703343 | DA141: -0.0001352703343 | DB141: -0.0001352703343 | DC141: -0.0001352703343 | DD141: -0.0001352703343 | DE141: -0.0001352703343 | DF141: -0.0001352703343 | DG141: -0.0001352703343 | DH141: -0.0001352703343 | DI141: -0.0001352703343 | DJ141: -0.0001352703343 | DK141: -0.0001352703343 | DL141: -0.0001352703343 | DM141: -0.0001352703343 | DN141: -0.0001352703343 | DO141: -0.0001352703343 | DP141: -0.0001352703343 | DQ141: -0.0001352703343 | DR141: -0.0001352703343 | DS141: -0.0001352703343 | DT141: -0.0001352703343 | DU141: -0.0001352703343 | DV141: -0.0001352703343 | DW141: -0.0001352703343 | DX141: -0.0001352703343 | DY141: -0.0001352703343 | DZ141: -0.0001352703343 | EA141: -0.0001352703343 | EB141: -0.0001352703343 | EC141: -0.0001352703343 | ED141: -0.0001352703343 | EE141: -0.0001352703343
E142: Add: Draws | F142: EUR'000 | L142: =L95 -> 0 | M142: =M95 -> 927.2262097 | N142: 649.4826393 | O142: 10.0050597 | P142: 438.1967459 | Q142: 11.90032209 | R142: 868.2494015 | S142: 871.9208736 | T142: 875.6078709 | U142: 23.0117012 | V142: 23.10900828 | W142: 23.20672684 | X142: 451.4542375 | Y142: 239.2884717 | Z142: 0 | AA142: 0 | AB142: 0 | AC142: 0 | AD142: 0 | AE142: 0 | AF142: 0 | AG142: 0 | AH142: 0 | AI142: 0 | AJ142: 0 | AK142: 0 | AL142: 0 | AM142: 0 | AN142: 0 | AO142: 0 | AP142: 0 | AQ142: 0 | AR142: 0 | AS142: 0 | AT142: 0 | AU142: 0 | AV142: 0 | AW142: 0 | AX142: 0 | AY142: 0 | AZ142: 0 | BA142: 0 | BB142: 0 | BC142: 0 | BD142: 0 | BE142: 0 | BF142: 0 | BG142: 0 | BH142: 0 | BI142: 0 | BJ142: 0 | BK142: 0 | BL142: 0 | BM142: 0 | BN142: 0 | BO142: 0 | BP142: 0 | BQ142: 0 | BR142: 0 | BS142: 0 | BT142: 0 | BU142: 0 | BV142: 0 | BW142: 0 | BX142: 0 | BY142: =BY95 -> 0 | BZ142: 0 | CA142: 0 | CB142: 0 | CC142: 0 | CD142: 0 | CE142: 0 | CF142: 0 | CG142: 0 | CH142: 0 | CI142: 0 | CJ142: 0 | CK142: 0 | CL142: 0 | CM142: 0 | CN142: 0 | CO142: 0 | CP142: 0 | CQ142: 0 | CR142: 0 | CS142: 0 | CT142: 0 | CU142: 0 | CV142: 0 | CW142: 0 | CX142: 0 | CY142: 0 | CZ142: 0 | DA142: 0 | DB142: 0 | DC142: 0 | DD142: 0 | DE142: 0 | DF142: 0 | DG142: 0 | DH142: 0 | DI142: 0 | DJ142: 0 | DK142: 0 | DL142: 0 | DM142: 0 | DN142: 0 | DO142: 0 | DP142: 0 | DQ142: 0 | DR142: 0 | DS142: 0 | DT142: 0 | DU142: 0 | DV142: 0 | DW142: 0 | DX142: 0 | DY142: 0 | DZ142: 0 | EA142: 0 | EB142: 0 | EC142: 0 | ED142: 0 | EE142: 0
E143: Less: Repayment | F143: EUR'000 | L143: =L103 -> 0 | M143: =M103 -> 0 | N143: 0 | O143: 0 | P143: 0 | Q143: 0 | R143: 0 | S143: 0 | T143: 0 | U143: 0 | V143: 0 | W143: 0 | X143: 0 | Y143: 0 | Z143: 131.4252613 | AA143: 132.7395139 | AB143: 139.1526864 | AC143: 134.3727663 | AD143: 142.5674069 | AE143: 138.2357755 | AF143: 145.1824031 | AG143: 137.2107842 | AH143: 143.8125319 | AI143: 139.3915523 | AJ143: 146.3456487 | AK143: 142.2331929 | AL143: 149.2490651 | AM143: 145.1724318 | AN143: 152.2292956 | AO143: 148.2004568 | AP143: 154.9731472 | AQ143: 151.3426661 | AR143: 158.4687297 | AS143: 149.0677851 | AT143: 159.4884968 | AU143: 155.5266139 | AV143: 162.7853246 | AW143: 158.8524711 | AX143: 165.8186757 | AY143: 162.3031205 | AZ143: 169.6381843 | BA143: 165.8172902 | BB143: 173.2361051 | BC143: 169.4776826 | BD143: 176.9551249 | BE143: 173.2869672 | BF143: 175.6988374 | BG143: 183.0609653 | BH143: 179.3404432 | BI143: 0 | BJ143: 0 | BK143: 0 | BL143: 0 | BM143: 0 | BN143: 0 | BO143: 0 | BP143: 0 | BQ143: 0 | BR143: 0 | BS143: 0 | BT143: 0 | BU143: 0 | BV143: 0 | BW143: 0 | BX143: 0 | BY143: =BY103 -> 0 | BZ143: 0 | CA143: 0 | CB143: 0 | CC143: 0 | CD143: 0 | CE143: 0 | CF143: 0 | CG143: 0 | CH143: 0 | CI143: 0 | CJ143: 0 | CK143: 0 | CL143: 0 | CM143: 0 | CN143: 0 | CO143: 0 | CP143: 0 | CQ143: 0 | CR143: 0 | CS143: 0 | CT143: 0 | CU143: 0 | CV143: 0 | CW143: 0 | CX143: 0 | CY143: 0 | CZ143: 0 | DA143: 0 | DB143: 0 | DC143: 0 | DD143: 0 | DE143: 0 | DF143: 0 | DG143: 0 | DH143: 0 | DI143: 0 | DJ143: 0 | DK143: 0 | DL143: 0 | DM143: 0 | DN143: 0 | DO143: 0 | DP143: 0 | DQ143: 0 | DR143: 0 | DS143: 0 | DT143: 0 | DU143: 0 | DV143: 0 | DW143: 0 | DX143: 0 | DY143: 0 | DZ143: 0 | EA143: 0 | EB143: 0 | EC143: 0 | ED143: 0 | EE143: 0
E144: Closing | F144: EUR'000 | L144: =L141+L142-L143 -> 0 | M144: =M141+M142-M143 -> 927.2262097 | N144: 1576.708849 | O144: 1586.713909 | P144: 2024.910655 | Q144: 2036.810977 | R144: 2905.060378 | S144: 3776.981252 | T144: 4652.589123 | U144: 4675.600824 | V144: 4698.709832 | W144: 4721.916559 | X144: 5173.370797 | Y144: 5412.659268 | Z144: 5281.234007 | AA144: 5148.494493 | AB144: 5009.341807 | AC144: 4874.96904 | AD144: 4732.401634 | AE144: 4594.165858 | AF144: 4448.983455 | AG144: 4311.772671 | AH144: 4167.960139 | AI144: 4028.568587 | AJ144: 3882.222938 | AK144: 3739.989745 | AL144: 3590.74068 | AM144: 3445.568248 | AN144: 3293.338952 | AO144: 3145.138496 | AP144: 2990.165348 | AQ144: 2838.822682 | AR144: 2680.353953 | AS144: 2531.286168 | AT144: 2371.797671 | AU144: 2216.271057 | AV144: 2053.485732 | AW144: 1894.633261 | AX144: 1728.814585 | AY144: 1566.511465 | AZ144: 1396.873281 | BA144: 1231.055991 | BB144: 1057.819885 | BC144: 888.3422028 | BD144: 711.3870779 | BE144: 538.1001108 | BF144: 362.4012733 | BG144: 179.340308 | BH144: -0.0001352703343 | BI144: -0.0001352703343 | BJ144: -0.0001352703343 | BK144: -0.0001352703343 | BL144: -0.0001352703343 | BM144: -0.0001352703343 | BN144: -0.0001352703343 | BO144: -0.0001352703343 | BP144: -0.0001352703343 | BQ144: -0.0001352703343 | BR144: -0.0001352703343 | BS144: -0.0001352703343 | BT144: -0.0001352703343 | BU144: -0.0001352703343 | BV144: -0.0001352703343 | BW144: -0.0001352703343 | BX144: -0.0001352703343 | BY144: =BY141+BY142-BY143 -> -0.0001352703343 | BZ144: -0.0001352703343 | CA144: -0.0001352703343 | CB144: -0.0001352703343 | CC144: -0.0001352703343 | CD144: -0.0001352703343 | CE144: -0.0001352703343 | CF144: -0.0001352703343 | CG144: -0.0001352703343 | CH144: -0.0001352703343 | CI144: -0.0001352703343 | CJ144: -0.0001352703343 | CK144: -0.0001352703343 | CL144: -0.0001352703343 | CM144: -0.0001352703343 | CN144: -0.0001352703343 | CO144: -0.0001352703343 | CP144: -0.0001352703343 | CQ144: -0.0001352703343 | CR144: -0.0001352703343 | CS144: -0.0001352703343 | CT144: -0.0001352703343 | CU144: -0.0001352703343 | CV144: -0.0001352703343 | CW144: -0.0001352703343 | CX144: -0.0001352703343 | CY144: -0.0001352703343 | CZ144: -0.0001352703343 | DA144: -0.0001352703343 | DB144: -0.0001352703343 | DC144: -0.0001352703343 | DD144: -0.0001352703343 | DE144: -0.0001352703343 | DF144: -0.0001352703343 | DG144: -0.0001352703343 | DH144: -0.0001352703343 | DI144: -0.0001352703343 | DJ144: -0.0001352703343 | DK144: -0.0001352703343 | DL144: -0.0001352703343 | DM144: -0.0001352703343 | DN144: -0.0001352703343 | DO144: -0.0001352703343 | DP144: -0.0001352703343 | DQ144: -0.0001352703343 | DR144: -0.0001352703343 | DS144: -0.0001352703343 | DT144: -0.0001352703343 | DU144: -0.0001352703343 | DV144: -0.0001352703343 | DW144: -0.0001352703343 | DX144: -0.0001352703343 | DY144: -0.0001352703343 | DZ144: -0.0001352703343 | EA144: -0.0001352703343 | EB144: -0.0001352703343 | EC144: -0.0001352703343 | ED144: -0.0001352703343 | EE144: -0.0001352703343
